Workbook

Sheet Cover Page
A1: 1

Sheet Scenario 1
G4: 1. Herd description | I4: 4. Feed inputs
G6: 2. Economic Inputs | I6: 5. Manure and Fertilizers
G8: 3. Ration Composition | I8: 6. Crops and Rotations
R18: =28/12 -> 2.333333333
A21: 1. Herd Description
A22: 1.1 Herd Structure | O22: HERD DYNAMIC COMPUTATION AREA
B23: N-CyCLE can model the nutritional requirements of up to 5 groups | H23: GROUP | O23: Heifer group Selection: | Q23: 2H (<1yr) | R23: 2H (>1yr) | S23: 2H (>1yr) | T23: All together | U23: 2H(>1yr) | AC23: Annual
C24: Your choices are as follows: | F24: 1 | G24: 2 | H24: 3 | I24: 4 | J24: 5 | O24: Heifer group Selection: | Q24: (a) | R24: (b) | S24: [c] | T24: (a+b+c) | U24: (b+c) | AC24: (yr 2) Heifers | AE24: Annual
C25: "3" groups of cows and two groups of heifers: | F25: Early lactation | G25: Mid-late lac. | H25: Dry cows | I25: Heifers<1yr old | J25: Heifers>1yr old | O25: Age span: | Q25: 2-12-mths | R25: 12-24 mths | S25: > 24 mths | T25: >2 mths | U25: >12 mths | Z25: 2-12 mths | AA25: 12-24 mths | AB25: > 24 mths | AC25: Needed for | AE25: Heifers
C26: "4" groups of cows and one group of heifers: | F26: Early lactation | G26: Mid-late lac. | H26: Early dry cows | I26: Pre-fresh cows | J26: All Heifers | O26: Heifer# in herd | Q26: =IF(E42=1,Z28,Z28-0.5*AD28) -> 38.76248201 | R26: =IF(E42=1,AA28,AA28-0.5*AD28) -> 37.93111511 | S26: =IF(E42=1,AB28,IF(E40<24,0,((R26*E40/24)-R26)+AE28)) -> 3.160926259 | T26: =SUM(Q26:S26) -> 79.85452338 | U26: =SUM(R26:S26) -> 41.09204137 | Z26: group 1 | AA26: group 2 | AB26: group 2 | AC26: Replacement | AD26: Annual | AE26: (>24 mths)
C27: Make your choice here: | E27: 3 | O27: Frcn in each group: | Q27: =Q26/$T$26 -> 0.4854137295 | R27: =R26/$T$26 -> 0.4750027112 | S27: =S26/$T$26 -> 0.03958355927 | T27: =SUM(Q27:S27) -> 1 | U27: =SUM(R27:S27) -> 0.5145862705 | W27: Total Cows | X27: Calf born | Y27: Calf alive | Z27: Heifer alive | AA27: Heifer # | AB27: Heifer # | AC27: only | AD27: Heifer sold | AE27: Purchased | AF27: Total Heifers
O28: Frcn H>24mths/all H>12 mths | R28: =R27/SUM(R27:S27) -> 0.9230769231 | S28: =S27/SUM(R27:S27) -> 0.07692307692 | T28: --- | U28: =SUM(R28:S28) -> 1 | W28: =IF(E27=3,SUM(R98:T98),SUM(R98:U98)) -> 107 | X28: =E31*12/E33 -> 92.37410072 | Y28: =E31*12/E33*(1-(E39/100)) -> 83.13669065 | Z28: =Y28*0.5 -> 41.56834532 | AA28: =Z28*0.98 -> 40.73697842 | AB28: =IF(E40<24,0,(AA28*E40/24)-AA28) -> 3.394748201 | AC28: =E31*E34/100 -> 38.52 | AD28: =IF(SUM(AA28:AB28)<AC28,0,IF(E42=1,0,SUM(AA28:AB28)-AC28)) -> 5.611726619 | AE28: =IF(AC28<SUM(AA28:AB28),0,(AC28-SUM(AA28:AB28))) -> 0 | AF28: =T26 -> 79.85452338
A29: 1.2. Herd Structure: Cows | L29: Breed | M29: Mature BW (kg) | AA29: Note: Mortality Heifer> 1 yr = 2%
B30: Breed | E30: Holstein | F30: Breed will influence mature body weight and some heifer growth parameters | L30: Holstein | M30: 682 | O30: Actual days in each group | Q30: =365-(1.5*30.4) -> 319.4 | R30: =IF(E40>24,365,E40*30.4-365) -> 365 | S30: =IF(E40<24,0,(E40-24)*30.4) -> 60.8 | T30: =SUM(Q30:S30) -> 745.2 | U30: =SUM(R30:S30) -> 425.8
B31: Total cow (dry and lactating) | D31: Heads | E31: 107 | L31: Brown Swiss | M31: 682 | O31: Frcn days in each group | Q31: =Q30/$T$30 -> 0.4286097692 | R31: =R30/$T$30 -> 0.4898013956 | S31: =S30/$T$30 -> 0.08158883521 | T31: =SUM(Q31:S31) -> 1 | U31: =SUM(R31:S31) -> 0.5713902308
B32: Cow body weight (BW) | D32: Kg | E32: 624 | F32: Average body weight of cows in the herd will influence level of feed (dry matter) intake | L32: Guernsey | M32: 500 | O32: Frcn H>24mths/all H>12 mths | R32: =R31/SUM(R31:S31) -> 0.8572099577 | S32: =S31/SUM(R31:S31) -> 0.1427900423 | T32: --- | U32: =SUM(R32:S32) -> 1 | AO32: Calving interval
B33: Calving interval | D33: Months | E33: 13.9 | F33: Calving interval will influence number of heifer born and duration of a lactation | L33: Ayrshire | M33: 545 | AO33: 423 | AP33: days
B34: Culling rate | D34: % | E34: 36 | F34: Culling rate will influence number of heifers needed to maintain herd size and number of animal sold | L34: Jersey | M34: 454 | AO34: =AO33/30.4 -> 13.91447368 | AP34: months
F35: =52+21+74 -> 147 | L35: Milk. Shorthorn | M35: 568 | O35: Midpoint Age (mth) | Q35: 6 | R35: =IF(E40>24,18,12+(E40-12)/2) -> 18 | S35: =IF(E40>24,(E40-24)/2,"NA") -> 1 | U35: =IF(E40<24,R35,(12+E40)/2) -> 19
A36: 1.3. Herd Structure: Heifers | O36: Mature BW,kg | P36: =IF(E30="Holstein",682,IF(E30="Brown Swiss",682,IF(E30="Guernsey",500,IF(E30="Aryshire",545,IF(E30="Jersey",454,IF(E30="M. Shorthorn",568,0)))))) -> 682
B37: N-CyCLE computes heifer herd size based on calving interval, | O37: % of mature BW at midpoint | Q37: 27.7 | R37: 72.2 | S37: =IF(U35>R35,(U35-R35),"NA") -> 1 | U37: =100*((R37/100)+(3.67*(U35-R35))/100) -> 75.87 | AO37: Culling rate
B38: culling rates and other parameters: | O38: Average BW at midpoint (kg): | Q38: =P36*Q37% -> 188.914 | R38: =P36*R37% -> 492.404 | S38: =IF(E40>24,R38+(6*30.4*T52)+(T52*S35*30.4),"NA") -> 662.644 | T38: =P36*(Q37%*Q27+U37*U27%) -> 357.9655728 | U38: =P36*U37% -> 517.4334 | AP38: out of the herd
B39: Mortality rate | D39: % | E39: 10 | F39: Percent of born heifers that do not survive the first year of life. N-Cycle will assume an additional 2% mortality of Heifers>1 yr of age. | AO39: =AO38/E31*100 -> 0 | AP39: culling rate
B40: Age at 1st calving | D40: Months | E40: 26 | F40: The older a heifer is at first calving, the longer she stays in the replacement herd.
B41: Do you sell heifers? | O41: HERD | R41: GROUP
B42: Choice "1" = keep and raise all heifers | E42: 2 | O42: DESCRIPTION | P42: 1 | Q42: 2 | R42: 3 | S42: 4 | T42: 5
B43: Choice "2" = Raise needed replacement only | O43: SUMMARY | P43: =F25 -> Early lactation | Q43: =G25 -> Mid-late lac. | R43: =IF($E$27=4,H26,H25) -> Dry cows | S43: =IF($E$27=4,I26,I25) -> Heifers<1yr old | T43: =IF($E$27=4,J26,J25) -> Heifers>1yr old | AO43: =AO44/((R99+0.59*S99)*0.9) -> 39.56676486 | AP43: Peak milk production (kd/day)
O44: Total Days | P44: 152 | Q44: =ROUNDUP(153+(E33-12)*30.4,0) -> 211 | R44: =IF(R43="Dry cows",60,39) -> 60 | S44: =IF(S43="Pre-fresh Cows",21,ROUNDDOWN(365-(1.5*30.4),0)) -> 319 | T44: =IF(T43="Heifers>1yr old",ROUNDUP(365+(E40-24)*30.4,0),ROUNDUP(730+(E40-24)*30.4,0)) -> 426 | U44: Days during which an animal stays in a group | AO44: =AO45*E33/12 -> 9845.833333 | AP44: kg/cow/lactation
A45: 1.4. Production Parameters | O45: Days in milk | P45: =MEDIAN(0,P44) -> 76 | Q45: =MEDIAN(P44,(P44+Q44)) -> 257.5 | R45: na | S45: na | T45: na | U45: Average days since calving | AO45: 8500 | AP45: kg/cow/year
B46: Average peak milk production | D46: Kg/d | E46: 46.37 | F46: Based on peak milk prodcution N-CyCLE computes milk production for the lactation and a calendar year. | O46: BW, kg | P46: =E32 -> 624 | Q46: =E32 -> 624 | R46: =IF($E$27=4,E32,E32) -> 624 | S46: =IF($E$27=4,E32,Q38) -> 188.914 | T46: =IF($E$27=4,T38,U38) -> 517.4334 | AO46: 3.9 | AP46: kg/hl = | AQ46: =AO46/1.03 -> 3.786407767 | AR46: % fat
B47: Milk performance | D47: Kg/cow/lactation | E47: =(P47*R99)+(Q47*S99) -> 11538.75717 | O47: Milk yield, kg/d | P47: =E46*0.9 -> 41.733 | Q47: =P47*0.59 -> 24.62247 | R47: 0 | S47: 0 | T47: 0 | U47: Milk yield and composition influence nutritional requirements and exports of nutrients from the farm | AO47: 3.32 | AP47: kg/hl = | AQ47: =AO47/1.03 -> 3.223300971 | AR47: % protein
B48: Milk performance | D48: Kg/cow/365 day | E48: =E47*12/E33 -> 9961.516981 | O48: FCM, kg/d | P48: =(0.4*P47)+(15*(P49/100)*P47) -> 35.848647 | Q48: =(0.4*Q47)+(15*(Q49/100)*Q47) -> 23.80992849 | R48: 0 | S48: 0 | T48: 0 | U48: FCM = Fat-corrected milk, a standardized way to express milk production in dairy cows | AO48: =12.9949-AO46-AO47 -> 5.7749 | AP48: kg/hl = | AQ48: =AO48/1.03 -> 5.606699029 | AR48: % other solid
B49: Milk composition | F49: Milk composition is used to compute yields of milk components and milk price | O49: Milk fat, % | P49: =E50*0.85 -> 3.06 | Q49: =E50*1.05 -> 3.78 | R49: 0 | S49: 0 | T49: 0
B50: Milk Fat | D50: % | E50: 3.6 | O50: Milk CP , % | P50: =E51*0.85 -> 2.635 | Q50: =E51*1.05 -> 3.255 | R50: 0 | S50: 0 | T50: 0
B51: Milk Crude Protein | D51: % | E51: 3.1 | O51: Pregnancy, Days | P51: =IF(P45<($E$33*30-280),0,(P45-($E$33*30-280))) -> 0 | Q51: =IF(Q45<($E$33*30-280),0,(Q45-($E$33*30-280))) -> 120.5 | R51: =IF(E27=3,280-R44/2,280-(R44/2+S44)) -> 250 | S51: =IF(E27=3,0,(280-S44/2)) -> 0 | T51: =IF($E$27=3,IF((T44/2+S44)<($E$40*30-280),0,(T44/2+S44-($E$40*30-280))),IF((T44/2)<($E$40*30-280),0,(T44/2-($E$40*30-280)))) -> 32 | U51: When cows are in late gestations, nutrient requirements are adjusted accordingly.
B52: Other solids | D52: % | E52: 5.7 | O52: Growth, kg/d | P52: 0 | Q52: 0 | R52: 0 | S52: =IF($E$27=4,0,0.8) -> 0.8 | T52: =IF($E$27=4,0.8,0.8) -> 0.8 | U52: Heifer growth rate is assumed to be optimal: 0.8 kg of average daily gain
A55: 2. Economic Inputs | I55: Back to top
A56: 2.1. Milk Incomes
B57: Milk sold | D57: Kg/year | E57: =E48*E31*(1-E59%) -> 1012588.201
B58: Milk sold | D58: hl/year | E58: =E57/103 -> 9830.953409 | F58: =E58*(E66+3+0.5+1.5) -> 403153.4616
B59: Milk wasted (%) | D59: % | E59: 5 | J59: Discarded milk for various reasons (mastitis, etc.).
G60: $/lb | H60: $/cwt | I60: $/kg
B61: Milk fat price | D61: $/kg | E61: =G61*2.20462291469134 -> 3.772109807 | G61: 1.711 | AO61: =(1-AO62/(E48*E31))*100 -> 100 | AP61: milk wasted (%)
B62: Milk protein price | D62: $/kg | E62: =G62*2.20462291469134 -> 6.355927863 | G62: 2.883 | AP62: milk sold (kg)
B63: Milk other solid price | D63: $/kg | E63: =G63*2.20462291469134 -> 0.4607661892 | G63: 0.209
B64: Hauling cost | D64: $/hl | E64: =G64*2.20462291469134*100 -> 0.4761985496 | F64: FPLQ 2011 | G64: =H64/100 -> 0.00216 | H64: 0.216
B65: Marketing cost | D65: $/kg | E65: =G65*2.20462291469134*100 -> 0.4872216641 | G65: =H65/100 -> 0.00221 | H65: 0.221
B66: Milk price | D66: $/hl | E66: =(E50%*E61+E51%*E62+E52%*E63)*103-(E64+E65*1.03) -> 36.00858226 | G66: =E66*0.45436/100 -> 0.1636085944 | H66: =G66*100 -> 16.36085944 | I66: =E66/1.03/100 -> 0.3495978861
A68: 2.2. Other incomes
G69: $/lb | H69: $/cwt | I69: $/kg
B70: Livestock ($/hl) | D70: $/hl | E70: =G70*2.2*103 -> 2.837032 | G70: =H70/100 -> 0.01252 | H70: 1.252
B71: Other Income ($/hl) | D71: $/hl | E71: =G71*2.2*103 -> 1.97142 | G71: =H71/100 -> 0.0087 | H71: 0.87
B72: Total Other Income | D72: $/hl | E72: =SUM(E70:E71) -> 4.808452 | G72: =E72*0.45436/100 -> 0.02184768251 | H72: =G72*100 -> 2.184768251 | I72: =E72/1.03/100 -> 0.046684
A74: 2.3. Variable costs (other than feed purchased, crop-related expenses and storage costs)
H75: $/cwt | I75: $/kg
B76: Breeding fees | D76: $/hl | E76: -- | H76: --
B77: Health | D77: $/hl | E77: =H77*2.20462291469134 -> 2.248715373 | H77: 1.02
B78: Bedding | D78: $/hl | E78: =H78*2.20462291469134 -> 0.6613868744 | H78: 0.3
B79: Supplies | D79: $/hl | E79: =H79*2.20462291469134 -> 3.328980601 | H79: 1.51
B80: DHI | D80: $/hl | E80: =H80*2.20462291469134 -> 0.8598029367 | H80: 0.39
B81: Other | D81: $/hl | E81: =H81*2.20462291469134 -> 0.08818491659 | H81: 0.04
B82: Total | D82: $/hl | E82: =SUM(E76:E81) -> 7.187070702 | I82: =E82/1.03/100 -> 0.06977738546
A84: 2.4. Fixed costs
G85: $/lb | H85: $/cwt | I85: $/kg
B86: Labor | D86: $ | E86: =G86*2.20462291469134*$E$57 -> 37950.37757 | G86: =H86/100 -> 0.017 | H86: 1.7
B87: Taxes and Insurance | D87: $ | E87: =G87*2.20462291469134*$E$57 -> 6250.650424 | G87: =H87/100 -> 0.0028 | H87: 0.28
B88: Depreciation | D88: $ | E88: =G88*2.20462291469134*$E$57 -> 87509.10593 | G88: =H88/100 -> 0.0392 | H88: 3.92
B89: Interest | D89: $ | E89: =G89*2.20462291469134*$E$57 -> 0 | G89: =H89/100 -> 0
B90: Other | D90: $ | E90: =G90*2.20462291469134*$E$57 -> 17189.28867 | G90: =H90/100 -> 0.0077 | H90: 0.77
B91: Total | D91: $ | E91: =SUM(E86:E90) -> 148899.4226
A94: 3. Ration Composition | I94: Back to top
A95: 3.1 Amount of Feed Dry Matter (DM) | O95: RATION COMPOSITION COMPUTATION AREA
B96: GROUPS | G96: GROUP | T96: GROUP
E97: 1 | F97: 2 | G97: 3 | H97: 4 | I97: 5 | R97: 1 | S97: 2 | T97: 3 | U97: 4 | V97: 5
E98: =P43 -> Early lactation | F98: =Q43 -> Mid-late lac. | G98: =R43 -> Dry cows | H98: =S43 -> Heifers<1yr old | I98: =T43 -> Heifers>1yr old | O98: Animals | Q98: # | R98: =ROUNDDOWN(E31*((E33-2)/E33)*(5/(E33-2)),0) -> 38 | S98: =ROUNDUP(E31*((E33-2)/E33)*(1-(5/(E33-2))),0) -> 54 | T98: =IF($E$27=4,ROUNDDOWN(E31*((2/E33)*(39/60)),0),E31-SUM(R98:S98)) -> 15 | U98: =IF($E$27=4,E31-(SUM(R98:T98)),Q26) -> 38.76248201 | V98: =IF($E$27=4,T26,U26) -> 41.09204137
B99: DMI, Predicted (NRC 2001) | D99: kg/d | E99: =(((P46^0.75)*0.0968)+(0.372*P48)-0.293)*(1-EXP(-0.192*((P45/7)+3.67))) -> 23.58355328 | F99: =(((Q46^0.75)*0.0968)+(0.372*Q48)-0.293)*(1-EXP(-0.192*((Q45/7)+3.67))) -> 20.64103004 | G99: =IF($E$27=4,0.018*R46,0.018*R46) -> 11.232 | H99: =IF($E$27=4,(((1.71-0.69*EXP(0.35*(-10.5)))%)*(S46*0.82))*E34/100+(((1.97-0.75*EXP(0.16*(-10.5)))%)*S46)*(1-E34/100),R111) -> 5.0251124 | I99: =IF($E$27=4,U111,V111) -> 12.40369764 | O99: Actual days | Q99: # | R99: =P44 -> 152 | S99: =Q44 -> 211 | T99: =R44 -> 60 | U99: =S44 -> 319 | V99: =T44 -> 426
D100: % | E100: 0 | F100: 0 | G100: 0 | H100: 0 | I100: 0 | O100: 365-day basis | Q100: # | R100: =R99*365/(E33*30.4) -> 131.294964 | S100: =S99*365/(E33*30.4) -> 182.2581409 | T100: =T99*365/(E33*30.4) -> 51.82695949 | U100: =IF($E$27=4,U99*365/(E33*30.4),365) -> 365 | V100: =IF($E$27=4,V99*365/T30,IF(V99<365,V99,365)) -> 365
B101: DM Consumed | D101: kg/d | E101: =E99+(E99*E100/100) -> 23.58355328 | F101: =F99+(F99*F100/100) -> 20.64103004 | G101: =G99+(G99*G100/100) -> 11.232 | H101: =H99+(H99*H100/100) -> 5.0251124 | I101: =I99+(I99*I100/100) -> 12.40369764
O102: DM Consumed | Q102: % BW | R102: =E101/P46% -> 3.779415589 | S102: =F101/Q46% -> 3.307857378 | T102: =G101/R46% -> 1.8 | U102: =H101/S46% -> 2.66 | V102: =I101/T46% -> 2.39715829
A103: 3.2 Ration Composition | O103: DM Consumed | Q103: tonnes/yr | R103: =(E101*R100*R98)/1000 -> 117.6632676 | S103: =(F101*S100*S98)/1000 -> 203.147771 | T103: =(G101*T100*T98)/1000 -> 8.731806134 | U103: =(H101*U100*U98)/1000 -> 71.09682759 | V103: =(I101*V100*V98)/1000 -> 186.0380387
B104: ENl, Mcal/kg DM | D104: MINIMUM | E104: =R134*(1+J104)/E101 -> 1.673516099 | F104: =S134*(1+J104)/F101 -> 1.478636463 | G104: =T134*(1+J104)/G101 -> 1.319502365 | H104: =U134*(1+J104)/H101 -> 1.429837516 | I104: =V134*(1+J104)/I101 -> 1.308344535 | J104: 0.1 | K104: Desired adjustment above NRC guidelines | O104: DM consumed | Q104: tonnes/yr | R104: per Cow: | S104: =IF(E27=3,R103/R98+S103/S98+T103/T98,R103/R98+S103/S98+T103/T98+U103/U98) -> 7.440517948 | U104: per Heifer: | V104: =IF(E27=4,V103/V98,(U103/U98)*Q27+(V103/V98)*U27) -> 3.220041338
D105: MAXIMUM | E105: =E104*(1+J105) -> 2.008219319 | F105: =F104*(1+J105) -> 1.774363756 | G105: =G104*(1+J105) -> 1.583402839 | H105: =H104*(1+J105) -> 1.715805019 | I105: =I104*(1+J105) -> 1.570013442 | J105: 0.2 | K105: Maximum excess allowed in ration (Max/Min)
O106: Heifer group Selection: | R106: 2H (<1yr) | S106: 2H (>1yr) | T106: 2H (>1yr) | U106: All together | V106: 2H(>1yr)
B107: EE, % of ration DM | D107: MAXIMUM | E107: 6.5 | F107: 6.5 | G107: 5 | H107: 4.5 | I107: 4.5 | O107: Heifer group Selection: | R107: (a) | S107: (b) | T107: [c] | U107: (a+b+c) | V107: (b+c)
O108: Age span: | R108: 2-12-mths | S108: 12-24 mths | T108: > 24 mths | U108: >2 mths | V108: >12 mths
B109: Forage NDF, % of ration DM | D109: MINIMUM | E109: 17 | F109: 18 | G109: 24 | H109: 18 | I109: 18 | O109: Dry Matter Intake (DMI)
B110: NDF, % of Ration DM | D110: MINIMUM | E110: 25 | F110: 28 | G110: =IF($E$27=4,32,30) -> 30 | H110: =IF(E27=4,28,28) -> 28 | I110: 28 | O110: DMI, % of midpoint BW | Q110: % of midpoint BW | R110: 2.66 | S110: 2.43 | T110: =IF(E40>24,2.2,"NA") -> 2.2 | V110: =SUMPRODUCT(S110:T110,R32:S32) -> 2.39715829
D111: MAXIMUM | E111: 100 | F111: 100 | G111: 100 | H111: 100 | I111: 100 | O111: DMI | Q111: kg/d at midpoint BW | R111: =R110%*Q38 -> 5.0251124 | S111: =S110%*R38 -> 11.9654172 | T111: =IF(E40>24,T110%*S38,"NA") -> 14.578168 | U111: =Q38*R110%*Q27+U38*V110%*U27 -> 8.822031062 | V111: =U38*V110% -> 12.40369764
B113: NFC, % of ration DM | D113: MINIMUM | E113: 0 | F113: 0 | G113: 0 | H113: 0 | I113: 0 | O113: Calcualtions/assumption for estimation of for NE needs and RDP/RUP fraction in rations of animal groups
D114: MAXIMUM | E114: 42 | F114: 40 | G114: 38 | H114: 42 | I114: 40
R115: =P42 -> 1 | S115: 2 | T115: 3 | U115: 4 | V115: 5
B116: RDP, % of ration DM | D116: MINIMUM | E116: =R144/1000*(1+$J116)/E101% -> 10.89707828 | F116: =S144/1000*(1+$J116)/F101% -> 9.944996859 | G116: =T144/1000*(1+$J116)/G101% -> 9.167549711 | H116: =U144/1000*(1+$J116)/H101% -> 9.861683211 | I116: =V144/1000*(1+$J116)/I101% -> 9.130600799 | J116: 0.1 | R116: Early lactation | S116: Mid-late lac. | T116: Dry cows | U116: Heifers<1yr old | V116: Heifers>1yr old
D117: MAXIMUM | E117: =E116*(1+$J$117) -> 13.62134784 | F117: =F116*(1+$J$117) -> 12.43124607 | G117: =G116*(1+$J$117) -> 11.45943714 | H117: =H116*(1+$J$117) -> 12.32710401 | I117: =I116*(1+$J$117) -> 11.413251 | J117: 0.25 | O117: Animals | R117: =R98 -> 38 | S117: =S98 -> 54 | T117: =T98 -> 15 | U117: =U98 -> 38.76248201 | V117: =V98 -> 41.09204137
B118: RUP, % of ration DM | D118: MINIMUM | E118: =R145/1000*(1+$J118)/E101% -> 5.688107504 | F118: =S145/1000*(1+$J118)/F101% -> 5.024756479 | G118: =T145/1000*(1+$J118)/G101% -> 2.504204801 | H118: =U145/1000*(1+$J118)/H101% -> 5.314139775 | I118: =V145/1000*(1+$J118)/I101% -> 2.88464512 | J118: 0.1 | O118: Days | R118: =R100 -> 131.294964 | S118: =S100 -> 182.2581409 | T118: =T100 -> 51.82695949 | U118: =U100 -> 365 | V118: =V100 -> 365
O119: Frcn days | R119: =R100/(SUM(R100:S100)) -> 0.4187327824 | S119: =S100/(SUM(R100:S100)) -> 0.5812672176 | T119: =T100/(SUM(T100:V100)) -> 0.06628955277 | U119: =U100/(SUM(T100:V100)) -> 0.4668552236 | V119: =V100/SUM(T100:V100) -> 0.4668552236
B120: Crude Protein (CP) | D120: MINIMUM | E120: =E116+E118 -> 16.58518578 | F120: =F116+F118 -> 14.96975334 | G120: =G116+G118 -> 11.67175451 | H120: =H116+H118 -> 15.17582299 | I120: =I116+I118 -> 12.01524592 | O120: Frcn animals | R120: =R98/SUM(R98:S98) -> 0.4130434783 | S120: =S98/SUM(R98:S98) -> 0.5869565217 | T120: =T98/SUM(T98:V98) -> 0.1581368971 | U120: =U98/SUM(T98:V98) -> 0.4086519086 | V120: =V98/SUM(T98:V98) -> 0.4332111944
D121: MAXIMUM | E121: =E118+E117 -> 19.30945535 | F121: =F118+F117 -> 17.45600255 | G121: =G118+G117 -> 13.96364194 | H121: =H118+H117 -> 17.64124379 | I121: =I118+I117 -> 14.29789612 | O121: Overall Frcn | R121: =R120*R119 -> 0.1729548449 | S121: =S120*S119 -> 0.3411785843 | T121: =T120*T119 -> 0.01048282418 | U121: =U120*U119 -> 0.1907812781 | V121: =V120*V119 -> 0.202246909
D122: MAX. / MIN. | E122: =E121/E120 -> 1.164259213 | F122: =F121/F120 -> 1.166084848 | G122: =G121/G120 -> 1.19636186 | H122: =H121/H120 -> 1.16245714 | I122: =I121/I120 -> 1.189979482 | Q122: Total | R122: =SUM(R121:S121) -> 0.5141334292 | T122: =SUM(T121:V121) -> 0.4035110114
B123: Macro-Minerals, % of ration DM | O123: Overall Weight | R123: =R121/R122 -> 0.3364006989 | S123: =S121/R122 -> 0.6635993011 | T123: =T121/T122 -> 0.02597902879 | U123: =U121/T122 -> 0.4728031523 | V123: =V121/T122 -> 0.5012178189
B124: Available P | D124: MINIMUM | E124: =((1*E101/(10*E101)+0.002*P46/(10*E101))+0.9*P47/(10*E101))*(1+J124) -> 0.2777817879 | F124: =((1*F101/(10*F101)+0.002*Q46/(10*F101))+(0.02743*EXP((0.05527-0.000075*Q51)*Q51)-0.02743*EXP((0.05527-0.000075*(Q51-1))*(Q51-1)))/(10*F101)+0.9*Q47/(10*F101))*(1+J124) -> 0.2254176121 | G124: =((1*G101/(10*G101)+0.002*R46/(10*G101))+(0.02743*EXP((0.05527-0.000075*R51)*R51)-0.02743*EXP((0.05527-0.000075*(R51-1))*(R51-1)))/(10*G101))*(1+J124) -> 0.1585184486 | H124: =IF($E$27=4,((1*H101/(10*H101)+0.002*S46/(10*H101))+(0.02743*EXP((0.05527-0.000075*S51)*S51)-0.02743*EXP((0.05527-0.000075*(S51-1))*(S51-1)))/(10*H101))*(1+J124),((1*H101/(10*H101)+0.002*S46/(10*H101))+(((1.2+(4.635*P46^0.22)*(S46^(-0.22)))*S52)/(10*H101))*(1+J124))) -> 0.2283514105 | I124: =((1*I101/(10*I101)+0.002*T46/(10*I101))+(((1.2+(4.635*P46^0.22)*(T46^(-0.22)))*T52)/(10*I101))+IF(T51>190,(0.02743*EXP((0.05527-0.000075*T51)*T51)-0.02743*EXP((0.05527-0.000075*(T51-1))*T51-1))/(10*I101),0))*(1+J124) -> 0.1545962238 | J124: 0.05 | K124: Desired adjustment above NRC guidelines | O124: NRC Energy needs, Mcal/d
D125: MAXIMUM | E125: =E124*(1+$J$125) -> 0.4166726818 | F125: =F124*(1+$J$125) -> 0.3381264181 | G125: =G124*(1+$J$125) -> 0.2377776729 | H125: =H124*(1+$J$125) -> 0.3425271158 | I125: =I124*(1+$J$125) -> 0.2318943357 | J125: 0.5 | K125: Maximum excess allowed in ration (Max/Min) | O125: NE for maintenance | R125: =(P46^0.75*0.08) -> 9.987997598 | S125: =(Q46^0.75*0.08) -> 9.987997598 | T125: =(R46^0.75*0.08) -> 9.987997598 | U125: =IF(E27=3,(S46*0.96)^0.75*0.086,S46^0.75*0.08) -> 4.250108173 | V125: =((T46*0.96)^0.75*0.086) -> 9.04883606
M126: Max/Min | O126: NE for lactation | R126: =(0.0929*P49+0.0547*P50+0.192)*P47 -> 25.89150793 | S126: =(0.0929*Q49+0.0547*Q50+0.192)*Q47 -> 17.7579839 | T126: 0 | U126: 0 | V126: 0
B127: Available Mg required | E127: =0.003*P46/(10*E101)+(0.15*P47)/(10*E101) -> 0.0344814452 | F127: =0.003*Q46/(10*F101)+0.33/(10*F101)+(0.15*Q47)/(10*F101) -> 0.02856141622 | G127: =0.003*R46/(10*G101)+0.33/(10*G101) -> 0.01960470085 | H127: =0.003*S46/(10*H101)+0.45*S52/(10*H101)+IF(S51>190,0.33/(10*H101),0) -> 0.01844221435 | I127: =0.003*T46/(10*I101)+0.45*T52/(10*I101)+IF(T51>190,0.33/(10*I101),0) -> 0.01541717845 | J127: 0.05 | K127: Desired adjustment above NRC | O127: NE for pregnancy | R127: =IF(P51>190,(0.00318*P51-0.0352)/0.218,0) -> 0 | S127: =IF(Q51>190,(0.00318*Q51-0.0352)/0.218,0) -> 0 | T127: =IF(R51>190,(0.00318*R51-0.0352)/0.218,0) -> 3.485321101 | U127: =IF(S51>190,(0.00318*S51-0.0352)/0.218,0) -> 0 | V127: =IF(T51>190,(0.00318*T51-0.0352)/0.218,0) -> 0
B128: Min. Available Mg Desired | D128: % DM | E128: =E127+E127*$J$127 -> 0.03620551746 | F128: =F127+F127*$J$127 -> 0.02998948703 | G128: =G127+G127*$J$127 -> 0.0205849359 | H128: =H127+H127*$J$127 -> 0.01936432506 | I128: =I127+I127*$J$127 -> 0.01618803737 | K128: Excess allowed in diet (Max/Min) | M128: =Optimization!Q194 -> 3 | O128: NE for growth | U128: =IF(E27=3,0.0635*(0.891*(S46*0.96)*(478/(0.96*P36)))^0.75*(0.956*0.96*S52)^1.097,0) -> 1.619631888 | V128: =0.0635*(0.891*(T46*0.96)*(478/(0.96*P36)))^0.75*(0.956*0.96*T52)^1.097 -> 3.448331862 | W128: NEm for heifers
O129: a (from Gosselin, 2002 p. 108) | U129: =0.8967*H101 -> 4.506018289 | V129: =0.8967*I101 -> 11.12239568
B130: Available K required | E130: =(0.038*P46+6.1*E101)/(10*E101)+1.5*P47/(10*E101) -> 0.9759817458 | F130: =(0.038*Q46+6.1*F101)/(10*F101)+1.027/(10*F101)+1.5*Q47/(10*F101) -> 0.9087869544 | G130: =(0.038*R46+2.6*G101)/(10*G101)+1.027/(10*G101) -> 0.4802546296 | H130: =IF($E$27=4,(0.038*S46+2.6*H101)/(10*H101)+1.027/(10*H101),(0.038*S46+2.6*H101)/(10*H101)+1.6*S52/(10*H101)) -> 0.4283292099 | I130: =(0.038*T46+2.6*I101)/(10*I101)+1.6*T52/(10*I101)+IF(T51>190,1.027/(10*I101),0) -> 0.4288405329 | J130: 0.05 | K130: Desired adjustment above NRC | O130: b | U130: =-0.8967*U125-0.4443*H101-U128 -> -7.663361326 | V130: =-0.8967*V125-0.4443*I101-V128 -> -17.07338602
B131: Min. Available K Desired | D131: % DM | E131: =E130+E130*$J$130 -> 1.024780833 | F131: =F130+F130*$J$130 -> 0.9542263021 | G131: =G130+G130*$J$130 -> 0.5042673611 | H131: =H130+H130*$J$130 -> 0.4497456704 | I131: =I130+I130*$J$130 -> 0.4502825595 | K131: Excess allowed in diet (Max/Min) | M131: =Optimization!Q193 -> 10 | O131: c | U131: =0.4443*U125 -> 1.888323061 | V131: =0.4443*V125 -> 4.020397861 | W131: NEg for heifers
O132: [NEm] | U132: =(-U130+(U130^2-4*U129*U131)^0.5)/(2*U129) -> 1.40173079 | V132: =(-V130+(V130^2-4*V129*V131)^0.5)/(2*V129) -> 1.244621026
B133: Available Ca required | E133: =(0.031*P46)/(10*E101)+1.22*P47/(10*E101) -> 0.297912105 | F133: =((0.031*Q46)/(10*F101))+(((0.02456*EXP((0.05581-0.00007*Q51)*Q51))-(0.02456*EXP((0.05581-0.00007*(Q51-1))*(Q51-1))))/(10*F101))+1.22*P47/(10*F101) -> 0.3417539609 | G133: =(0.0154*R46)/(10*G101)+((0.02456*EXP((0.05581-0.00007*R51)*R51))-(0.02456*EXP((0.05581-0.00007*(R51-1))*(R51-1))))/(10*G101) -> 0.1507830982 | H133: =IF($E$27=4,(0.0154*S46/(10*H101))+((0.02456*EXP((0.05581-0.00007*S51)*S51))-(0.02456*EXP((0.05581-0.00007*(S51-1))*(S51-1))))/(10*H101),(((9.83*(S46^0.22)*(S46^(-0.22)))*S52)+0.0154*S46)/(10*H101)) -> 0.2143887488 | I133: =IF($E$27=4,((((9.83*(P46^0.22)*(T46^(-0.22)))*T52)+0.0154*T46)/(10*I101))+(((0.02456*EXP((0.05581-0.00007*T51)*T51))-(0.02456*EXP((0.05581-0.00007*(T51-1))*(T51-1))))/(10*I101)),(((9.83*(P46^0.22)*(T46^(-0.22)))*T52)+0.0154*T46)/(10*I101))+IF(T51>190,(((0.02456*EXP((0.05581-0.00007*T51)*T51))-(0.02456*EXP((0.05581-0.00007*(T51-1))*(T51-1))))/(10*I101)),0) -> 0.1303097902 | J133: 0.05 | K133: Desired adjustment above NRC | O133: [ME discounted] | U133: =U132+0.6412/0.8936 -> 2.119277791 | V133: =V132+0.6412/0.8936 -> 1.962168027
B134: Min. Available Ca Desired | D134: % DM | E134: =E133+E133*$J$133 -> 0.3128077102 | F134: =F133+F133*$J$133 -> 0.3588416589 | G134: =G133+G133*$J$133 -> 0.1583222531 | H134: =H133+H133*$J$133 -> 0.2251081862 | I134: =I133+I133*$J$133 -> 0.1368252797 | K134: Excess allowed in diet (Max/Min) | M134: =Optimization!Q191 -> 2 | Q134: Total NEl | R134: =SUM(R125:R128) -> 35.87950553 | S134: =SUM(S125:S128) -> 27.7459815 | T134: =SUM(T125:T128) -> 13.4733187 | U134: =IF(E27=3,(0.703*U133-0.19)*H101,SUM(U125:U128)) -> 6.531903845 | V134: =(0.703*V133-0.19)*I101 -> 14.75300912 | W134: For heifer groups, NEl calcuated from ME
O135: Estimated discounted EM (< 3% FAT) | R135: =(R134/E101+0.19)/0.703*E101 -> 57.41163677 | S135: =(S134/F101+0.19)/0.703*F101 -> 45.04662476 | T135: =(T134/G101+0.19)/0.703*G101 -> 22.20113613 | U135: =(U134/H101+0.19)/0.703*H101 -> 10.64960911 | V135: =(V134/I101+0.19)/0.703*I101 -> 24.33813894
B136: Min. Available Na required Desired | E136: =(0.038*P46)/(10*E101)+0.63*P47/(10*E101) -> 0.2120282275 | F136: =(0.038*Q46)/(10*F101)+0.63*Q47/(10*F101)+IF(Q51>190,1.39/(10*F101),0) -> 0.1900300326 | G136: =(1.5*(R46/100))/(10*G101)+IF(R51>190,1.39/(10*G101),0) -> 0.09570868946 | H136: =IF($E$27=4,(1.5*(S46/100))/(10*H101)+IF(S51>190,1.39/(10*H101),0),(1.5*(S46/100))/(10*H101)+IF(S51>190,1.39/(10*H101),0)+(1.4*S52/(10*H101))) -> 0.07867903611 | I136: =(1.5*(T46/100))/(10*I101)+(1.4*T52/(10*I101))+IF(T51>190,1.39/(10*I101),0) -> 0.07160365606 | J136: 0.05 | K136: Desired adjustment above NRC | O136: Estimated discounted ED | R136: =(R135/E101+0.45)/1.01*E101 -> 67.35072846 | S136: =(S135/F101+0.45)/1.01*F101 -> 53.7971171 | T136: =(T135/G101+0.45)/1.01*G101 -> 26.98567934 | U136: =IF(E27=3,U135/0.82,(U135/H101+0.45)/1.01*H101) -> 12.98732818 | V136: =V135/0.82 -> 29.68065724
B137: Min. Available Na Desired | D137: % DM | E137: =E136+E136*$J$136 -> 0.2226296389 | F137: =F136+F136*$J$136 -> 0.1995315342 | G137: =G136+G136*$J$136 -> 0.1004941239 | H137: =H136+H136*$J$136 -> 0.08261298792 | I137: =I136+I136*$J$136 -> 0.07518383886 | K137: Excess allowed in diet (Max/Min) | M137: =Optimization!Q195 -> 5 | O137: NRC Protein needs, g/d
O138: MP microbial | R138: =0.64*0.13*R136/4.409*1000 -> 1270.941394 | S138: =0.64*0.13*S136/4.409*1000 -> 1015.178077 | T138: =0.64*0.13*T136/4.409*1000 -> 509.2330508 | U138: =0.64*0.13*U136/4.409*1000 -> 245.0772748 | V138: =0.64*0.13*V136/4.409*1000 -> 560.0886102 | W138: Using 4,409 McalDE/kg of TDN
B139: Available Cl required | E139: =(2.25*P46/100)/(10*E101)+1.15*P47/(10*E101) -> 0.2630347907 | F139: =(2.25*Q46/100)/(10*F101)+IF(Q51>190,1/(10*F101))+1.15*Q47/(10*F101) -> 0.2052021649 | G139: =(2.25*R46/100)/(10*G101)+IF(R51>190,1/(10*G101)) -> 0.1339031339 | H139: =IF($E$27=4,(2.25*S46/100)/(10*H101)+IF(S51>190,1/(10*H101)),(2.25*S46/100)/(10*H101)+(1*S52)/(10*H101)) -> 0.1005065081 | I139: =(2.25*T46/100)/(10*I101)+(1*T52)/(10*I101)+IF(T51>190,1/(10*I101)) -> 0.1003108255 | J139: 0.05 | K139: Desired adjustment above NRC | O139: MP maintenance | R139: =(0.3*P46^0.6)+(4.1*P46^0.5)+((E101*1000*0.03)-(0.5*(R138/0.8-R138)))+(E101*11.8*0.4/0.67) -> 831.461438 | S139: =(0.3*Q46^0.6)+(4.1*Q46^0.5)+((F101*1000*0.03)-(0.5*(S138/0.8-S138)))+(F101*11.8*0.4/0.67) -> 754.4267379 | T139: =(0.3*R46^0.6)+(4.1*R46^0.5)+((G101*1000*0.03)-(0.5*(T138/0.8-T138)))+(G101*11.8*0.4/0.67) -> 469.114455 | U139: =(0.3*S46^0.6)+(4.1*S46^0.5)+((H101*1000*0.03)-(0.5*(U138/0.8-U138)))+(H101*11.8*0.4/0.67) -> 218.8366965 | V139: =(0.3*T46^0.6)+(4.1*T46^0.5)+((I101*1000*0.03)-(0.5*(V138/0.8-V138)))+(I101*11.8*0.4/0.67) -> 495.4922536
B140: Min. Available Cl Desired | D140: % DM | E140: =E139+E139*$J$139 -> 0.2761865302 | F140: =F139+F139*$J$139 -> 0.2154622732 | G140: =G139+G139*$J$139 -> 0.1405982906 | H140: =H139+H139*$J$139 -> 0.1055318335 | I140: =I139+I139*$J$139 -> 0.1053263668 | K140: Excess allowed in diet (Max/Min) | M140: =Optimization!Q196 -> 5 | O140: MP lactation | R140: =P47*P50%*0.93/0.67*1000 -> 1526.400047 | S140: =Q47*Q50%*0.93/0.67*1000 -> 1112.47627 | T140: =R47*R50%*0.93/0.67*1000 -> 0 | U140: =S47*S50%*0.93/0.67*1000 -> 0 | V140: =T47*T50%*0.93/0.67*1000 -> 0
O141: MP pregnancy | R141: =IF(P51>190,(((0.69*P51)-69.2)*(P36*0.06275/45))/0.33,0) -> 0 | S141: =IF(Q51>190,(((0.69*Q51)-69.2)*(P36*0.06275/45))/0.33,0) -> 0 | T141: =IF(R51>190,(((0.69*R51)-69.2)*(P36*0.06275/45))/0.33,0) -> 297.6952963 | U141: =IF(S51>190,(((0.69*S51)-69.2)*(P36*0.06275/45))/0.33,0) -> 0 | V141: =IF(T51>190,(((0.69*T51)-69.2)*(P36*0.06275/45))/0.33,0) -> 0
B142: Total S required | E142: 0.2 | F142: 0.2 | G142: 0.2 | H142: 0.2 | I142: 0.2 | J142: 0.05 | K142: Desired adjustment above NRC | O142: MP growth | U142: =IF(E27=3,(S52*(268-(29.4*(U128/S52))))/(83.4-(0.114*(S46*0.96*478/(0.96*P36))))%,0) -> 244.1711064 | V142: =(T52*(268-(29.4*(V128/T52))))/(83.4-(0.114*(T46*0.96*478/(0.96*P36))))% -> 268.7287712
B143: Min. Total S Desired | D143: % DM | E143: =E142+E142*$J$142 -> 0.21 | F143: =F142+F142*$J$142 -> 0.21 | G143: =G142+G142*$J$142 -> 0.21 | H143: =H142+H142*$J$142 -> 0.21 | I143: =I142+I142*$J$142 -> 0.21 | Q143: Total | R143: =SUM(R139:R142) -> 2357.861485 | S143: =SUM(S139:S142) -> 1866.903007 | T143: =SUM(T139:T142) -> 766.8097513 | U143: =SUM(U139:U142) -> 463.0078029 | V143: =SUM(V139:V142)*1.15 -> 878.8541785
O144: RDP requirements | R144: =R138/0.64/0.85 -> 2336.289328 | S144: =S138/0.64/0.85 -> 1866.136172 | T144: =T138/0.64/0.85 -> 936.0901668 | U144: =U138/0.64/0.85 -> 450.5096962 | V144: =V138/0.64/0.85 -> 1029.574651
B145: DCAD | D145: mEq/kg | O145: RUP requirements | R145: =(R143-(R138+(E101*11.8*0.4)))/0.8 -> 1219.507149 | S145: =(S143-(S138+(F101*11.8*0.4)))/0.8 -> 942.8740854 | T145: =(T143-(T138+(G101*11.8*0.4)))/0.8 -> 255.7020757 | U145: =(U143-(U138+(H101*11.8*0.4)))/0.8 -> 242.7649971 | V145: =(V143-(V138+(I101*11.8*0.4)))/0.8 -> 325.2751443 | W145: Assuming diet RUP digestibility of .80
A146: 3.3 Pasture management | Q146: Total | R146: =SUM(R144:R145) -> 3555.796477 | S146: =SUM(S144:S145) -> 2809.010257 | T146: =SUM(T144:T145) -> 1191.792243 | U146: =SUM(U144:U145) -> 693.2746933 | V146: =SUM(V144:V145) -> 1354.849795
O147: Estimated % Concentrate in diet (%DM) | R147: 50 | S147: 35 | T147: 10 | U147: 40 | V147: 15
B148: Pasture period | D148: d | E148: 0 | F148: 0 | G148: 0 | H148: 0 | I148: 0 | O148: Kp, %/h | R148: =3.054+0.614*R147 -> 33.754 | S148: =3.054+0.614*S147 -> 24.544 | T148: =3.054+0.614*T147 -> 9.194 | U148: =3.054+0.614*U147 -> 27.614 | V148: =3.054+0.614*V147 -> 12.264
B149: Fraction of manure on pasture during pasture period | D149: % | E149: 50 | F149: 50 | G149: 100 | H149: 100 | I149: 100 | O149: pX, Total TDN/Maintenance TDN | R149: 4 | S149: 3 | T149: 1.3 | U149: 2 | V149: 2 | W149: À calculer
B150: % of forages to be provided with pasture during pasture period | D150: % | E150: 80 | F150: 80 | G150: 90 | H150: 90 | I150: 90 | O150: TDN 1x in diet, % | R150: =R136/4.409/E101/(1-(R149-1)*4%)% -> 73.60550329 | S150: =S136/4.409/F101/(1-(S149-1)*4%)% -> 64.25393227 | T150: =T136/4.409/G101/(1-(T149-1)*4%)% -> 55.15427971 | U150: =U136/4.409/H101/(1-(U149-1)*4%)% -> 61.0608299 | V150: =V136/4.409/I101/(1-(V149-1)*4%)% -> 56.5341687 | W150: estimated using 4% discount by Xmaintenance
A151: 4. Feed Inputs | I151: Back to top
A152: 4.1. Feeds, Feed Prices and Allowable Changes in Feed Inventory | O152: FEED COMPOSITION, COSTS
H153: Purchase | J153: Change in Silage and Pasture Inventory | R153: Feed analysis for up to 10 home-grown feeds and 12 purchased feeds
B154: NRC 2001 | E154: NRC 2001 | F154: N-CyCLE | H154: Price | J154: Allowable Inventroy change | R154: Pasture | S154: Feeds produced / purchased | AA154: Feeds purchased only
B155: Feedname | E155: Feed # | F155: Feedcode | H155: $/t DM | J155: Tons per year | R155: 1 | S155: 2 | T155: 3 | U155: 4 | V155: 5 | W155: 6 | X155: 7 | Y155: 8 | Z155: 9 | AA155: - - - - FORAGES - - - - | AG155: - - - - - - - - - - - - - - - - - - - - - - - - - - - - - - - - - CONCENTRATES - - - - - - - - - - - - - - - - - - - - - - - - - - - - - - | AL155: - - - - - - - - - - - MINERALS - - - - - - - - - - - - -
B156: Home grown or Purchased | J156: Minimum | K156: Maximum | R156: GrPast-49 | S156: CoSi-35 | T156: AlSi-83 | U156: MxSi-74 | V156: GrHy-52 | W156: SBw-108 | X156: CoGr-27 | Y156: Barley-8 | Z156: Wheat-116 | AA156: Brewers grains-16 | AB156: Canola-19 | AC156: FatCa-40 | AD156: SBMx-104 | AE156: SBM48-107 | AF156: CGM-25 | AG156: CoDi-23 | AH156: Bld Meal-14 | AI156: Urea | AJ156: SoyHull-103 | AK156: CottonSd-w-37 | AL156: CaCO3 | AM156: NaH2PO4.H20 | AN156: MgO | AO156: CaSO4.2H20 | AP156: NaCl | AQ156: MgSO4.7H20
B157: Grasses, cool season, Pasture intensively managed | E157: 49 | F157: =R156 -> GrPast-49 | H157: 122 | I157: =F157 -> GrPast-49 | J157: 0 | K157: 0 | O157: Unit resource, t DM | R157: 1 | S157: 1 | T157: 1 | U157: 1 | V157: 1 | W157: 1 | X157: 1 | Y157: 0 | Z157: 1 | AA157: 1 | AB157: 1 | AC157: 1 | AD157: 1 | AE157: 1 | AF157: 1 | AG157: 1 | AH157: 1 | AI157: 1 | AJ157: 1 | AK157: 1 | AL157: 1 | AM157: 1 | AN157: 1 | AO157: 1 | AP157: 1 | AQ157: 1
B158: Corn silage normal, 32-38% M | E158: 35 | F158: =S156 -> CoSi-35 | H158: 110 | I158: =F158 -> CoSi-35 | J158: 0 | K158: 0 | O158: Fd type (S=Silage, H=Hay, P=Pasture; C=Concentrate, AP=Animal protein, FA=Fatty acid, M=Mineral) | R158: P | S158: S | T158: S | U158: S | V158: H | W158: C | X158: C | Y158: C | Z158: C | AA158: C | AB158: C | AC158: FA | AD158: C | AE158: C | AF158: C | AG158: C | AH158: AP | AI158: M | AJ158: C | AK158: C | AL158: M | AM158: M | AN158: M | AO158: M | AP158: M | AQ158: M
B159: Alfalfa silage, mid maturity, 40-46% NDF | E159: 83 | F159: =T156 -> AlSi-83 | H159: 205 | I159: =F159 -> AlSi-83 | J159: 0 | K159: 0 | O159: DM, (%) | R159: 20.1 | S159: 35.2 | T159: 43.5 | U159: 45.5 | V159: 85.8 | W159: 90 | X159: 88.1 | Y159: 91 | Z159: 89.4 | AA159: 90.7 | AB159: 90.3 | AC159: 95.3 | AD159: 89.6 | AE159: 89.5 | AF159: 86.4 | AG159: 90.2 | AH159: 90.2 | AI159: 100 | AJ159: 90.9 | AK159: 90.1 | AL159: 100 | AM159: 97 | AN159: 98 | AO159: 97 | AP159: 100 | AQ159: 98
B160: Grass-legumes mixture, silage, mid maturity | E160: 71 | F160: =U156 -> MxSi-74 | H160: 157 | I160: =F160 -> MxSi-74 | J160: 0 | K160: 0 | O160: EE, (%) | R160: 2.7 | S160: 3.13 | T160: 2.74 | U160: 2.84 | V160: 2.42 | W160: 19.2 | X160: 4.2 | Y160: 2.2 | Z160: 2.3 | AA160: 5.2 | AB160: 5.4 | AC160: 84.5 | AD160: 8.1 | AE160: 1.1 | AF160: 2.5 | AG160: 10 | AH160: 1.2 | AI160: 0 | AJ160: 2.7 | AK160: 19.3 | AL160: 0 | AM160: 0 | AN160: 0 | AO160: 0 | AP160: 0 | AQ160: 0
B161: Grasses, cool season, hay, mid maturity | E161: 52 | F161: =V156 -> GrHy-52 | H161: 160 | J161: * If min = 0 and max = 0, then amount produced = amount used | O161: FNDF, (%) | R161: =IF(OR(R158="P",R158="S",R158="H"),R162,0) -> 45.8 | S161: =IF(OR(S158="P",S158="S",S158="H"),S162,0) -> 43.01 | T161: 44.72 | U161: 50.43 | V161: 60.43 | W161: 0 | X161: 0 | Y161: 0 | Z161: 0 | AA161: =IF(OR(AA158="P",AA158="S",AA158="H"),AA162,0) -> 0 | AB161: =IF(OR(AB158="P",AB158="S",AB158="H"),AB162,0) -> 0 | AC161: 0 | AD161: 0 | AE161: 0 | AF161: 0 | AG161: 0 | AH161: 0 | AI161: 0 | AJ161: 0 | AK161: =AK162*0.33 -> 16.599 | AL161: 0 | AM161: 0 | AN161: 0 | AO161: 0 | AP161: 0 | AQ161: 0
B162: Soybean, whole | E162: 108 | F162: =W156 -> SBw-108 | H162: 425 | J162: * If min = 0 and max > 0 then amount produced > amount used | O162: NDF, (%) | R162: 45.8 | S162: 43.01 | T162: 44.72 | U162: 50.43 | V162: 60.43 | W162: 19.5 | X162: 9.5 | Y162: 20.8 | Z162: 13.4 | AA162: 47.4 | AB162: 29.8 | AC162: 0 | AD162: 21.7 | AE162: 9.8 | AF162: 11.1 | AG162: 38.8 | AH162: 0 | AI162: 0 | AJ162: 60.3 | AK162: 50.3 | AL162: 0 | AM162: 0 | AN162: 0 | AO162: 0 | AP162: 0 | AQ162: 0
B163: Corn, grain, ground, dry | E163: 27 | F163: =X156 -> CoGr-27 | H163: 200 | J163: and the excess is sold. | O163: NFC, (%) | R163: =100-(R162-R165)-R167-R160-R186 -> 25.5 | S163: =100-(S162-S165)-S167-S160-S186 -> 42.63 | T163: =100-(T162-T165)-T167-T160-T186 -> 25.58 | U163: 24.21 | V163: 20.42 | W163: 18.5 | X163: 76.1 | Y163: 63.5 | Z163: 69.8 | AA163: =100-(AA162-AA165)-AA167-AA160-AA186 -> 23 | AB163: =100-(AB162-AB165)-AB167-AB160-AB186 -> 25.9 | AC163: =100-(AC162-AC165)-AC167-AC160-AC186 -> 0 | AD163: 28 | AE163: 29.6 | AF163: 21.7 | AG163: 24.9 | AH163: 0.8 | AI163: 0 | AJ163: 21.8 | AK163: 5.1 | AL163: 0 | AM163: 0 | AN163: 0 | AO163: 0 | AP163: 0 | AQ163: 0
B164: Barley, grain, rolled | E164: 8 | F164: Barley-8 | H164: 171 | J164: * If min < 0 and max = 0 then amount produced < amount used | O164: ADL (lignin), (%) | R164: 2.1 | S164: 2.83 | T164: 6.86 | U164: 5.97 | V164: 5.26 | W164: 1.2 | X164: 0.9 | Y164: 2.1 | Z164: 1.7 | AA164: 5 | AB164: 9.5 | AC164: 0 | AD164: 1.5 | AE164: 0.5 | AF164: 1.5 | AG164: 4.3 | AH164: 0 | AI164: 0 | AJ164: 2.5 | AK164: 7.9 | AL164: 0 | AM164: 0 | AN164: 0 | AO164: 0 | AP164: 0 | AQ164: 0
B165: Wheat, grain, rolled | E165: 116 | F165: =Z156 -> Wheat-116 | H165: 262 | J165: and the deficit is purchased | O165: NDICP, (%) | R165: 3.9 | S165: 1.3 | T165: 3.1 | U165: 3.1 | V165: 3.9 | W165: 2.3 | X165: 0.7 | Y165: 1.8 | Z165: 1.7 | AA165: 9.1 | AB165: 6.3 | AC165: 0 | AD165: 9.6 | AE165: 0.7 | AF165: 3.6 | AG165: 8.6 | AH165: 0 | AI165: 0 | AJ165: 3.5 | AK165: 2.4 | AL165: 0 | AM165: 0 | AN165: 0 | AO165: 0 | AP165: 0 | AQ165: 0
J166: * If min < 0 and max > 0 then N-CyCLE decides whether one should | O166: ADICP, (%) | R166: 1.1 | S166: 0.8 | T166: 1.8 | U166: 1.6 | V166: 1.2 | W166: 0.6 | X166: 0.3 | Y166: 0.5 | Z166: 0.2 | AA166: 3.5 | AB166: 2.4 | AC166: 0 | AD166: 0.4 | AE166: 0.4 | AF166: 3 | AG166: 5 | AH166: 0 | AI166: 0 | AJ166: 1 | AK166: 1.9 | AL166: 0 | AM166: 0 | AN166: 0 | AO166: 0 | AP166: 0 | AQ166: 0
J167: overproduce or underproduce. | O167: CP, (%) | R167: 20.1 | S167: 8.23 | T167: 19.26 | U167: 16.52 | V167: 11.83 | W167: 39.2 | X167: 9.4 | Y167: 12.4 | Z167: 14.2 | AA167: 29.2 | AB167: 37.8 | AC167: 0 | AD167: 46.3 | AE167: 53.8 | AF167: 65 | AG167: 29.7 | AH167: 95.5 | AI167: 281 | AJ167: 13.9 | AK167: 23.5 | AL167: 0 | AM167: 0 | AN167: 0 | AO167: 0 | AP167: 0 | AQ167: 0
B168: Purchased only | J168: * For Pasture, 0 should be used for Minimum and Maximum. | O168: A fraction , %CP | R168: 30.7 | S168: 51.3 | T168: 57.3 | U168: 42.4 | V168: 36.7 | W168: 27.8 | X168: 23.9 | Y168: 30.2 | Z168: 27.1 | AA168: 18.3 | AB168: 23.2 | AC168: 0 | AD168: 8.7 | AE168: 15 | AF168: 3.9 | AG168: 28.5 | AH168: 10.1 | AI168: 100 | AJ168: 22.5 | AK168: 45.4 | AL168: 0 | AM168: 0 | AN168: 0 | AO168: 0 | AP168: 0 | AQ168: 0
B169: Brewers grains | E169: 16 | F169: =AA156 -> Brewers grains-16 | H169: 353 | O169: B fraction, % CP | R169: 63.5 | S169: 30.2 | T169: 35.3 | U169: 48.1 | V169: 51.7 | W169: 70.2 | X169: 72.5 | Y169: 61.2 | Z169: 65.1 | AA169: 64.6 | AB169: 70.4 | AC169: 0 | AD169: 91.3 | AE169: 84.4 | AF169: 90.9 | AG169: 63.3 | AH169: 60.9 | AI169: 0 | AJ169: 72.2 | AK169: 46.7 | AL169: 0 | AM169: 0 | AN169: 0 | AO169: 0 | AP169: 0 | AQ169: 0
B170: Canola meal | E170: 19 | F170: =AB156 -> Canola-19 | H170: 346 | O170: C fraction, % CP | R170: 5.8 | S170: 18.5 | T170: 7.4 | U170: 9.5 | V170: 11.6 | W170: 2 | X170: 3.6 | Y170: 8.6 | Z170: 7.8 | AA170: 17.1 | AB170: 6.4 | AC170: 0 | AD170: 0 | AE170: 0.6 | AF170: 5.2 | AG170: 8.2 | AH170: 29 | AI170: 0 | AJ170: 5.3 | AK170: 7.9 | AL170: 0 | AM170: 0 | AN170: 0 | AO170: 0 | AP170: 0 | AQ170: 0
B171: Fats and Oils, calcium soaps | E171: 40 | F171: =AC156 -> FatCa-40 | H171: 1100 | O171: Kd of fraction B, %/h | R171: 12.3 | S171: 4.4 | T171: 12.2 | U171: 15.5 | V171: 8.1 | W171: 10.9 | X171: 4.9 | Y171: 22.7 | Z171: 18.8 | AA171: 4.7 | AB171: 10.4 | AC171: 0 | AD171: 2.4 | AE171: 7.5 | AF171: 2.3 | AG171: 3.6 | AH171: 1.9 | AI171: 0 | AJ171: 6.2 | AK171: 15.7 | AL171: 0 | AM171: 0 | AN171: 0 | AO171: 0 | AP171: 0 | AQ171: 0
B172: Soybean meal, expellers | E172: 104 | F172: =AD156 -> SBMx-104 | H172: 524 | O172: Ca, (%) | R172: 0.56 | S172: 0.2 | T172: 1.27 | U172: 0.99 | V172: 0.57 | W172: 0.32 | X172: 0.04 | Y172: 0.06 | Z172: 0.05 | AA172: 0.3 | AB172: 0.75 | AC172: 12 | AD172: 0.36 | AE172: 0.35 | AF172: 0.06 | AG172: 0.22 | AH172: 0.3 | AI172: 0 | AJ172: 0.63 | AK172: 0.17 | AL172: 39.39 | AM172: 0 | AN172: 0 | AO172: 23.28 | AP172: 0 | AQ172: 0
B173: Soybean meal, solvent | E173: 107 | F173: =AE156 -> SBM48-107 | H173: 387 | O173: Ca availibility (%) | R173: 0.3 | S173: 0.6 | T173: 0.3 | U173: 0.3 | V173: 0.3 | W173: 0.6 | X173: 0.6 | Y173: 0.6 | Z173: 0.6 | AA173: 0.6 | AB173: 0.6 | AC173: 0.8 | AD173: 0.6 | AE173: 0.6 | AF173: 0.6 | AG173: 0.6 | AH173: 0.6 | AI173: 0 | AJ173: 0.6 | AK173: 0.6 | AL173: 0.75 | AM173: 0 | AN173: 0 | AO173: 0.7 | AP173: 0 | AQ173: 0
B174: Corn gluten meal, dried | E174: 25 | F174: =AF156 -> CGM-25 | H174: 618 | O174: P, (%) | R174: 0.44 | S174: 0.26 | T174: 0.35 | U174: 0.34 | V174: 0.25 | W174: 0.6 | X174: 0.3 | Y174: 0.39 | Z174: 0.43 | AA174: 0.67 | AB174: 1.1 | AC174: 0 | AD174: 0.66 | AE174: 0.7 | AF174: 0.6 | AG174: 0.83 | AH174: 0.3 | AI174: 0 | AJ174: 0.17 | AK174: 0.6 | AL174: 0.04 | AM174: 22.5 | AN174: 0 | AO174: 0 | AP174: 0 | AQ174: 0
B175: Corn distillers grain with solubles, dried | E175: 23 | F175: =AG156 -> CoDi-23 | H175: 181 | O175: P availibility (%) | R175: 0.64 | S175: 0.7 | T175: 0.64 | U175: 0.64 | V175: 0.64 | W175: 0.7 | X175: 0.7 | Y175: 0.7 | Z175: 0.7 | AA175: 0.7 | AB175: 0.7 | AC175: 0 | AD175: 0.7 | AE175: 0.7 | AF175: 0.7 | AG175: 0.7 | AH175: 0.7 | AI175: 0 | AJ175: 0.7 | AK175: 0.7 | AL175: 0.7 | AM175: 0.9 | AN175: 0 | AO175: 0 | AP175: 0 | AQ175: 0
B176: Blood meal ring dried | E176: 14 | F176: =AH156 -> Bld Meal-14 | H176: 1026 | O176: K, (%) | R176: 3.36 | S176: 0.99 | T176: 2.57 | U176: 2.42 | V176: 1.85 | W176: 1.99 | X176: 0.42 | Y176: 0.56 | Z176: 0.5 | AA176: 0.5 | AB176: 1.41 | AC176: 0 | AD176: 2.12 | AE176: 2.41 | AF176: 0.46 | AG176: 1.1 | AH176: 0.33 | AI176: 0 | AJ176: 1.51 | AK176: 1.13 | AL176: 0.06 | AM176: 0 | AN176: 0 | AO176: 0 | AP176: 0 | AQ176: 0
B177: Urea | F177: =AI156 -> Urea | H177: 631 | O177: K availibility (%) | R177: 0.9 | S177: 0.9 | T177: 0.9 | U177: 0.9 | V177: 0.9 | W177: 0.9 | X177: 0.9 | Y177: 0.9 | Z177: 0.9 | AA177: 0.9 | AB177: 0.9 | AC177: 0 | AD177: 0.9 | AE177: 0.9 | AF177: 0.9 | AG177: 0.9 | AH177: 0.9 | AI177: 0 | AJ177: 0.9 | AK177: 0.9 | AL177: 0.9 | AM177: 0 | AN177: 0 | AO177: 0 | AP177: 0.9 | AQ177: 0
B178: Soybean hulls | E178: 103 | F178: =AJ156 -> SoyHull-103 | H178: 225 | O178: Mg, (%) | R178: 0.2 | S178: 0.15 | T178: 0.26 | U178: 0.24 | V178: 0.17 | W178: 0.25 | X178: 0.12 | Y178: 0.14 | Z178: 0.15 | AA178: 0.26 | AB178: 0.53 | AC178: 0 | AD178: 0.3 | AE178: 0.29 | AF178: 0.14 | AG178: 0.33 | AH178: 0.03 | AI178: 0 | AJ178: 0.25 | AK178: 0.37 | AL178: 0.05 | AM178: 0 | AN178: 56.2 | AO178: 0 | AP178: 0 | AQ178: 9.8
B179: CottonSd-w-37 | E179: 37 | F179: CottonSd-w-37 | H179: 288 | O179: Mg availibility (%) | R179: 0.16 | S179: 0.16 | T179: 0.16 | U179: 0.16 | V179: 0.16 | W179: 0.16 | X179: 0.16 | Y179: 0.16 | Z179: 0.16 | AA179: 0.16 | AB179: 0.16 | AC179: 0 | AD179: 0.16 | AE179: 0.16 | AF179: 0.16 | AG179: 0.16 | AH179: 0.16 | AI179: 0 | AJ179: 0.16 | AK179: 0.16 | AL179: 0.16 | AM179: 0 | AN179: 0.7 | AO179: 0 | AP179: 0 | AQ179: 0.9
B180: Calcium carbonate | F180: =AL156 -> CaCO3 | H180: ='Scenario 2'!H180*0.9 -> 253.2654 | O180: Na, (%) | R180: 0.02 | S180: 0.01 | T180: 0.02 | U180: 0.08 | V180: 0.08 | W180: 0.01 | X180: 0.02 | Y180: 0.02 | Z180: 0.01 | AA180: 0.04 | AB180: 0.07 | AC180: 0 | AD180: 0.04 | AE180: 0.03 | AF180: 0.05 | AG180: 0.3 | AH180: 0.4 | AI180: 0 | AJ180: 0.01 | AK180: 0.02 | AL180: 0.06 | AM180: 16.68 | AN180: 0 | AO180: 0 | AP180: 39.34 | AQ180: 0
B181: Sodium phosphate, monobasic | F181: =AM156 -> NaH2PO4.H20 | H181: ='Scenario 2'!H181*0.9 -> 705.159 | O181: Na availibility (%) | R181: 0.9 | S181: 0.9 | T181: 0.9 | U181: 0.9 | V181: 0.9 | W181: 0.9 | X181: 0.9 | Y181: 0.9 | Z181: 0.9 | AA181: 0.9 | AB181: 0.9 | AC181: 0 | AD181: 0.9 | AE181: 0.9 | AF181: 0.9 | AG181: 0.9 | AH181: 0.9 | AI181: 0 | AJ181: 0.9 | AK181: 0.9 | AL181: 0.9 | AM181: 0.9 | AN181: 0 | AO181: 0 | AP181: 0.9 | AQ181: 0
B182: Magnesium Oxide | F182: =AN156 -> MgO | H182: ='Scenario 2'!H182*0.9 -> 690.156 | O182: Cl, (%) | R182: 0.56 | S182: 0.29 | T182: 0.61 | U182: 0.43 | V182: 0.92 | W182: 0.04 | X182: 0.08 | Y182: 0.13 | Z182: 0.11 | AA182: 0.07 | AB182: 0.04 | AC182: 0 | AD182: 0.1 | AE182: 0.13 | AF182: 0.11 | AG182: 0.26 | AH182: 0.33 | AI182: 0 | AJ182: 0.05 | AK182: 0.06 | AL182: 0 | AM182: 0 | AN182: 0 | AO182: 0 | AP182: 60.663 | AQ182: 0
B183: Calcium Sulfate | F183: =AO156 -> CaSO4.2H20 | H183: ='Scenario 2'!H183*0.9 -> 454.545 | O183: Cl availibility (%) | R183: 0.9 | S183: 0.9 | T183: 0.9 | U183: 0.9 | V183: 0.9 | W183: 0.9 | X183: 0.9 | Y183: 0.9 | Z183: 0.9 | AA183: 0.9 | AB183: 0.9 | AC183: 0 | AD183: 0.9 | AE183: 0.9 | AF183: 0.9 | AG183: 0.9 | AH183: 0.9 | AI183: 0 | AJ183: 0.9 | AK183: 0.9 | AL183: 0.9 | AM183: 0 | AN183: 0 | AO183: 0 | AP183: 0.9 | AQ183: 0
B184: Sodium chloride | F184: =AP156 -> NaCl | H184: ='Scenario 2'!H184*0.9 -> 321.426 | O184: S, (%) | R184: 0.2 | S184: 0.14 | T184: 0.28 | U184: 0.26 | V184: 0.24 | W184: 0.31 | X184: 0.1 | Y184: 0.12 | Z184: 0.15 | AA184: 0.38 | AB184: 0.73 | AC184: 0 | AD184: 0.34 | AE184: 0.39 | AF184: 0.86 | AG184: 0.44 | AH184: 0.77 | AI184: 0 | AJ184: 0.12 | AK184: 0.23 | AL184: 0 | AM184: 0 | AN184: 0 | AO184: 18.62 | AP184: 0 | AQ184: 13.31
B185: Magesium sulfate heptahydrate | F185: =AQ156 -> MgSO4.7H20 | H185: ='Scenario 2'!H185*0.9 -> 545.94 | O185: DCAD (meq/kg) | R185: =(R176*10000/39.0983)+(R180*10000/22.9898)-(R182*10000/35.453)-(R184*10000/16.065) -> 585.6220673 | S185: 88.61328823 | T185: 319.6663708 | U185: 370.6209301 | V185: 99.07281184 | W185: 309.0746726 | X185: 31.30885327 | Y185: 40.56343364 | Z185: 7.834877992 | AA185: =(AA176*10000/39.0983)+(AA180*10000/22.9898)-(AA182*10000/35.453)-(AA184*10000/16.065) -> -111.0016921 | AB185: =(AB176*10000/39.0983)+(AB180*10000/22.9898)-(AB182*10000/35.453)-(AB184*10000/16.065) -> -74.60875085 | AC185: =(AC176*10000/39.0983)+(AC180*10000/22.9898)-(AC182*10000/35.453)-(AC184*10000/16.065) -> 0 | AD185: 319.7755145 | AE185: 350.0123144 | AF185: -426.951285 | AG185: 64.61094604 | AH185: -313.9909617 | AI185: 0 | AJ185: 301.7560808 | AK185: 137.6224405 | AL185: =(AL176*10000/39.0983)+(AL180*10000/22.9898)-(AL182*10000/35.453)-(AL184*10000/16.065) -> 41.44446641 | AM185: 7255.391521 | AN185: 0 | AO185: -11590.41394 | AP185: 1.113818515 | AQ185: -8285.091815
O186: Ash, (%) | R186: 9.8 | S186: 4.3 | T186: 10.8 | U186: 9.1 | V186: 8.8 | W186: 5.9 | X186: 1.5 | Y186: 2.9 | Z186: 2 | AA186: 4.3 | AB186: 7.4 | AC186: 15.5 | AD186: 5.5 | AE186: 6.4 | AF186: 3.3 | AG186: 5.2 | AH186: 2.5 | AI186: 100 | AJ186: 4.8 | AK186: 4.2 | AL186: 100 | AM186: 100 | AN186: 100 | AO186: 100 | AP186: 100 | AQ186: 100
A187: 4.2. Additional Costs
B188: Transportation cost of: | O188: Price, $/t DM | R188: =H157 -> 122 | S188: =H158 -> 110 | T188: =H159 -> 205 | U188: =H160 -> 157 | V188: =H161 -> 160 | W188: =H162 -> 425 | X188: =H163 -> 200 | Y188: =H164 -> 171 | Z188: =H165 -> 262 | AA188: =H169 -> 353 | AB188: =H170 -> 346 | AC188: =H171 -> 1100 | AD188: =H172 -> 524 | AE188: =H173 -> 387 | AF188: =H174 -> 618 | AG188: =H175 -> 181 | AH188: =H176 -> 1026 | AI188: =H177 -> 631 | AJ188: =H178 -> 225 | AK188: =H179 -> 288 | AL188: =H180 -> 253.2654 | AM188: =H181 -> 705.159 | AN188: =H182 -> 690.156 | AO188: =H183 -> 454.545 | AP188: =H184 -> 321.426 | AQ188: =H185 -> 545.94
B189: Purchased forages, $/t DM | H189: 0 | O189: Transport, $/t DM | R189: =H189 -> 0 | S189: =H189 -> 0 | T189: =H189 -> 0 | U189: =H189 -> 0 | V189: =H189 -> 0 | W189: =H190 -> 0 | X189: =H190 -> 0 | Y189: =H190 -> 0 | Z189: =H190 -> 0 | AA189: =H190 -> 0 | AB189: =H190 -> 0 | AC189: =$H$190 -> 0 | AD189: 0 | AE189: 0 | AF189: 0 | AG189: 0 | AH189: 0 | AI189: 0 | AJ189: 0 | AK189: =$H$190 -> 0 | AL189: 0 | AM189: 0 | AN189: =$H$190 -> 0 | AO189: =$H$190 -> 0 | AP189: =$H$190 -> 0 | AQ189: =H190 -> 0
B190: Purchased concentrates & minerals, $/t DM | H190: 0 | O190: Storage costs, $/t DM | R190: =IF(OR(R158="S",R158="H"),$H$192,IF(OR(R158="C",R158="PA"),$H$193,IF(R158="M",$H$194,0))) -> 0 | S190: =IF(OR(S158="S",S158="H"),$H$192,IF(OR(S158="C",S158="PA"),$H$193,IF(S158="M",$H$194,0))) -> 4.19 | T190: =IF(OR(T158="S",T158="H"),$H$192,IF(OR(T158="C",T158="PA"),$H$193,IF(T158="M",$H$194,0))) -> 4.19 | U190: 4.19 | V190: 4.19 | W190: 2 | X190: 2 | Y190: 2 | Z190: 2 | AA190: 2 | AB190: 2 | AC190: 0 | AD190: 2 | AE190: 2 | AF190: 2 | AG190: 2 | AH190: 0 | AI190: 1.3 | AJ190: 2 | AK190: =H193 -> 2 | AL190: 1.3 | AM190: 1.3 | AN190: 1.3 | AO190: 1.3 | AP190: 1.3 | AQ190: 1.3
B191: Storage costs of: | O191: Field & storage losses, % | R191: =I198 -> 15 | S191: =D198 -> 17 | T191: =E198 -> 17 | U191: =E198 -> 17 | V191: 18 | W191: 3 | X191: =G198 -> 3 | Y191: =G198 -> 3 | Z191: =G198 -> 3
B192: Forages, S/t DM | H192: 4.19 | O192: Refusals, % of used | R192: 0 | S192: =D199 -> 5 | T192: =E199 -> 5 | U192: 5 | V192: 10 | W192: 2 | X192: =G199 -> 2 | Y192: =G199 -> 2 | Z192: =G199 -> 2 | AA192: =G199 -> 2 | AB192: =G199 -> 2 | AC192: =G199 -> 2 | AD192: =G199 -> 2 | AE192: =G199 -> 2 | AF192: =G199 -> 2 | AG192: =G199 -> 2 | AH192: =G199 -> 2 | AI192: =H199 -> 1 | AJ192: =G199 -> 2 | AK192: =G199 -> 2 | AL192: =H199 -> 1 | AM192: =H199 -> 1 | AN192: 1 | AO192: 1 | AP192: =H199 -> 1 | AQ192: =H199 -> 1
B193: Concentrates, $/t DM | H193: 2 | O193: *Inventory Change | V193: * If min = 0 and max = 0, then amount produced = amount used
B194: Minerals, $/t DM | H194: 1.3 | O194: Minimum, t | R194: =J157 -> 0 | S194: =J158 -> 0 | T194: =J159 -> 0 | U194: =J160 -> 0 | V194: * If min = 0 and max > 0 then amount produced > amount used and the excess is sold
O195: Maximum, t | R195: =K157 -> 0 | S195: =K158 -> 0 | T195: =K159 -> 0 | U195: =K160 -> 0 | V195: * If min < 0 and max = 0 then amount produced < amount used and the deficit is purchased
A196: 4.3. Feed Losses | V196: * If min < 0 and max > 0 then N-CyCLE decides whether one should overproduce or underproduce
D197: =F158 -> CoSi-35 | E197: Other Silages | F197: Hays | G197: Concentrates | H197: Minerals | I197: Pastures
B198: Field & storage losses, % | D198: 17 | E198: 17 | F198: 18 | G198: 3 | I198: 15
B199: Refusals, % of used | D199: 5 | E199: 5 | F199: 10 | G199: 2 | H199: 1 | R199: =R156 -> GrPast-49 | S199: CoSi-35 | T199: AlSi-83 | U199: MxSi-74 | V199: GrHy-52 | W199: SBw-108 | X199: CoGr-27 | Y199: Barley-8 | Z199: Wheat-116 | AA199: Brewers grains-16 | AB199: Canola-19 | AC199: FatCa-40 | AD199: SBMx-104 | AE199: SBM48-107 | AF199: CGM-25 | AG199: CoDi-23 | AH199: Bld Meal-14 | AI199: Urea | AJ199: SoyHull-103 | AK199: CottonSd-w-37 | AL199: CaCO3 | AM199: NaH2PO4.H20 | AN199: MgO | AO199: CaSO4.2H20 | AP199: NaCl | AQ199: MgSO4.7H20
O200: =B203 -> CoGr-27 | R200: =IF($O200=R$199,1,0) -> 0 | S200: =IF($O200=S$199,1,0) -> 0 | T200: =IF($O200=T$199,1,0) -> 0 | U200: 0 | V200: 0 | W200: 0 | X200: 1 | Y200: 0 | Z200: 0 | AA200: 0 | AB200: 0 | AC200: 0 | AD200: 0 | AE200: 0 | AF200: 0 | AG200: 0 | AH200: 0 | AI200: =IF($O200=AI$199,1,0) -> 0 | AJ200: 0 | AK200: 0 | AL200: 0 | AM200: 0 | AN200: 0 | AO200: 0 | AP200: 0 | AQ200: 0
A201: 4.4. Feed with limits in Rations | O201: =B204 -> SoyHull-103 | R201: =IF($O201=R$199,1,0) -> 0 | S201: 0 | T201: 0 | U201: 0 | V201: 0 | W201: 0 | X201: 0 | Y201: 0 | Z201: 0 | AA201: 0 | AB201: 0 | AC201: 0 | AD201: 0 | AE201: 0 | AF201: 0 | AG201: 0 | AH201: 0 | AI201: 0 | AJ201: 1 | AK201: 0 | AL201: 0 | AM201: 0 | AN201: 0 | AO201: 0 | AP201: 0 | AQ201: 0
B202: Maximum (upper limit) of feed in ration DM of any animal group (% of feed ingredient mix, dry matter basis) | O202: Wheat-116 | R202: 0 | S202: 0 | T202: 0 | U202: 0 | V202: 0 | W202: 0 | X202: 0 | Y202: 0 | Z202: 1 | AA202: 0 | AB202: 0 | AC202: 0 | AD202: 0 | AE202: 0 | AF202: 0 | AG202: 0 | AH202: 0 | AI202: 0 | AJ202: 0 | AK202: 0 | AL202: 0 | AM202: 0 | AN202: 0 | AO202: 0 | AP202: 0 | AQ202: 0
B203: CoGr-27 | H203: 40 | O203: CoSi-35 | R203: 0 | S203: 1 | T203: 0 | U203: 0 | V203: 0 | W203: 0 | X203: 0 | Y203: 0 | Z203: 0 | AA203: 0 | AB203: 0 | AC203: 0 | AD203: 0 | AE203: 0 | AF203: 0 | AG203: 0 | AH203: 0 | AI203: 0 | AJ203: 0 | AK203: 0 | AL203: 0 | AM203: 0 | AN203: 0 | AO203: 0 | AP203: 0 | AQ203: 0
B204: SoyHull-103 | H204: 10 | O204: GrHy-52 | R204: 0 | S204: 0 | T204: 0 | U204: 0 | V204: 1 | W204: 0 | X204: 0 | Y204: 0 | Z204: 0 | AA204: 0 | AB204: 0 | AC204: 0 | AD204: 0 | AE204: 0 | AF204: 0 | AG204: 0 | AH204: 0 | AI204: 0 | AJ204: 0 | AK204: 0 | AL204: 0 | AM204: 0 | AN204: 0 | AO204: 0 | AP204: 0 | AQ204: 0
B205: Wheat-116 | H205: 20 | O205: CoDi-23 | R205: 0 | S205: 0 | T205: 0 | U205: 0 | V205: 0 | W205: 0 | X205: 0 | Y205: 0 | Z205: 0 | AA205: 0 | AB205: 0 | AC205: 0 | AD205: 0 | AE205: 0 | AF205: 0 | AG205: 1 | AH205: 0 | AI205: 0 | AJ205: 0 | AK205: 0 | AL205: 0 | AM205: 0 | AN205: 0 | AO205: 0 | AP205: 0 | AQ205: 0
B206: CoSi-35 | H206: 40 | O206: Bld Meal-14 | R206: 0 | S206: 0 | T206: 0 | U206: 0 | V206: 0 | W206: 0 | X206: 0 | Y206: 0 | Z206: 0 | AA206: 0 | AB206: 0 | AC206: 0 | AD206: 0 | AE206: 0 | AF206: 0 | AG206: 0 | AH206: 1 | AI206: 0 | AJ206: 0 | AK206: 0 | AL206: 0 | AM206: 0 | AN206: 0 | AO206: 0 | AP206: 0 | AQ206: 0
B207: GrHy-52 | H207: 10 | O207: CottonSd-w-37 | R207: 0 | S207: 0 | T207: 0 | U207: 0 | V207: 0 | W207: 0 | X207: 0 | Y207: 0 | Z207: 0 | AA207: 0 | AB207: 0 | AC207: 0 | AD207: 0 | AE207: 0 | AF207: 0 | AG207: 0 | AH207: 0 | AI207: 0 | AJ207: 0 | AK207: 1 | AL207: 0 | AM207: 0 | AN207: 0 | AO207: 0 | AP207: 0 | AQ207: 0
B208: CoDi-23 | H208: 15 | O208: Urea | R208: 0 | S208: 0 | T208: 0 | U208: 0 | V208: 0 | W208: 0 | X208: 0 | Y208: 0 | Z208: 0 | AA208: 0 | AB208: 0 | AC208: 0 | AD208: 0 | AE208: 0 | AF208: 0 | AG208: 0 | AH208: 0 | AI208: 1 | AJ208: 0 | AK208: 0 | AL208: 0 | AM208: 0 | AN208: 0 | AO208: 0 | AP208: 0 | AQ208: 0
B209: Bld Meal-14 | H209: 5 | O209: NaCl | R209: 0 | S209: 0 | T209: 0 | U209: 0 | V209: 0 | W209: 0 | X209: 0 | Y209: 0 | Z209: 0 | AA209: 0 | AB209: 0 | AC209: 0 | AD209: 0 | AE209: 0 | AF209: 0 | AG209: 0 | AH209: 0 | AI209: 0 | AJ209: 0 | AK209: 0 | AL209: 0 | AM209: 0 | AN209: 0 | AO209: 0 | AP209: 1 | AQ209: 0
B210: CottonSd-w-37 | H210: 20 | O210: Desired upper Limit (% of ration DM) | R210: =IF(SUM(R200:R209)=0,0,VLOOKUP(R$199,$B$203:$H$212,7,FALSE)) -> 0 | S210: =IF(SUM(S200:S209)=0,0,VLOOKUP(S$199,$B$203:$H$212,7,FALSE)) -> 40 | T210: 0 | U210: 0 | V210: 10 | W210: 0 | X210: 40 | Y210: 0 | Z210: 20 | AA210: 0 | AB210: 0 | AC210: 0 | AD210: 0 | AE210: 0 | AF210: 0 | AG210: 15 | AH210: 5 | AI210: 1.5 | AJ210: 10 | AK210: 20 | AL210: 0 | AM210: 0 | AN210: 0 | AO210: 0 | AP210: 3.5 | AQ210: 0
B211: Urea | H211: 1.5 | R211: Leave blank if no limit is desired
B212: NaCl | H212: 3.5
A214: 4.5. Drinking Water Composition:
B215: K, mg/l | H215: 5
B216: Na, mg/l | H216: 74
B217: Cl, mg/l | H217: 75
B218: S, mg/l | H218: 19
A220: 5.0 Manure and Fertilizers | I220: Back to top
A221: 5.1. Manure Production and Nutrient Excretion | O221: MANURE NUTRIENTS, COSTS AND NUTRIENT LOSSES
G222: GROUP | O222: 5.1. Manure Production and Nutrient Excretion | U222: GROUP | X222: Note that cells highlighted in blue are used in N-CyCLE calcualtions | AD222: For advance users only: Process-based model (Proportions of N entering a management level)
E223: 1 | F223: 2 | G223: 3 | H223: 4 | I223: 5 | S223: 1 | T223: 2 | U223: 3 | V223: 4 | W223: 5 | X223: but others are literature estimates based on your earlier inputs | AD223: Method of collection/storage: | AG223: N | AH223: P2O5 | AI223: K2O | AJ223: Na | AK223: Cl | AL223: S
E224: =E98 -> Early lactation | F224: =F98 -> Mid-late lac. | G224: =G98 -> Dry cows | H224: =H98 -> Heifers<1yr old | I224: =I98 -> Heifers>1yr old | S224: =P43 -> Early lactation | T224: =Q43 -> Mid-late lac. | U224: =R43 -> Dry cows | V224: =S43 -> Heifers<1yr old | W224: =T43 -> Heifers>1yr old | X224: Note the differences between the two references listed here! | AD224: Liquid manure (L) | AG224: 0.7 | AH224: 1 | AI224: 1 | AJ224: 1 | AK224: 1 | AL224: 1
D225: Daily manure excretion, kg as-is | E225: =S226 -> 68.83099947 | F225: =T226 -> 63.5759622 | G225: =U226 -> 35.572 | H225: =V233 -> 15.3209254 | I225: =W233 -> 27.16554454 | P225: As Described in ASAE, 2005 | S225: =(P47*0.954)+(P46*0.037)+(P45*0.017)+(P49/100*186.72)+(P50/100*0.94*1141.48)-33.06 -> 65.12023212 | T225: =(Q47*0.954)+(Q46*0.037)+(Q45*0.017)+(Q49/100*186.72)+(Q50/100*0.94*1141.48)-33.06 -> 59.87921594 | U225: =R46*0.022+21.844 -> 35.572 | V225: =IF($E$27=4,0,0) -> 0 | AD225: Solid manure (S) | AG225: 0.65 | AH225: 1 | AI225: 1 | AJ225: 1 | AK225: 1 | AL225: 1
R226: Daily manure excretion, kg as-is | S226: =(P47*0.172)+(E101*2.207)+(P49/100*171.83)+(P50*0.94/100*505.31)-8.17 -> 68.83099947 | T226: =(Q47*0.172)+(F101*2.207)+(Q49/100*171.83)+(Q50*0.94/100*505.31)-8.17 -> 63.5759622 | U226: =R46*0.022+21.844 -> 35.572 | V226: =IF($E$27=4,((S46*0.022)+21.844),((H101*3.886)-(S46*0.029)+5.641)) -> 19.69008079 | W226: =(I101*3.886)-(T46*0.029)+5.641 -> 38.83620045 | X226: Weight of "fresh" feces + urine excreted per day | AD226: Type of storage facility:
... 176 more rows

Sheet Scenario 2
G4: 1. Herd description | I4: 4. Feed inputs
G6: 2. Economic Inputs | I6: 5. Manure and Fertilizers
G8: 3. Ration Composition | I8: 6. Crops and Rotations
R18: =28/12 -> 2.333333333
A21: 1. Herd Description
A22: 1.1 Herd Structure | O22: HERD DYNAMIC COMPUTATION AREA
B23: N-CyCLE can model the nutritional requirements of up to 5 groups | H23: GROUP | O23: Heifer group Selection: | Q23: 2H (<1yr) | R23: 2H (>1yr) | S23: 2H (>1yr) | T23: All together | U23: 2H(>1yr) | AC23: Annual
C24: Your choices are as follows: | F24: 1 | G24: 2 | H24: 3 | I24: 4 | J24: 5 | O24: Heifer group Selection: | Q24: (a) | R24: (b) | S24: [c] | T24: (a+b+c) | U24: (b+c) | AC24: (yr 2) Heifers | AE24: Annual
C25: "3" groups of cows and two groups of heifers: | F25: Early lactation | G25: Mid-late lac. | H25: Dry cows | I25: Heifers<1yr old | J25: Heifers>1yr old | O25: Age span: | Q25: 2-12-mths | R25: 12-24 mths | S25: > 24 mths | T25: >2 mths | U25: >12 mths | Z25: 2-12 mths | AA25: 12-24 mths | AB25: > 24 mths | AC25: Needed for | AE25: Heifers
C26: "4" groups of cows and one group of heifers: | F26: Early lactation | G26: Mid-late lac. | H26: Early dry cows | I26: Pre-fresh cows | J26: All Heifers | O26: Heifer# in herd | Q26: =IF(E42=1,Z28,Z28-0.5*AD28) -> 30.44634965 | R26: =IF(E42=1,AA28,AA28-0.5*AD28) -> 29.78928671 | S26: =IF(E42=1,AB28,IF(E40<24,0,((R26*E40/24)-R26)+AE28)) -> 3.723660839 | T26: =SUM(Q26:S26) -> 63.9592972 | U26: =SUM(R26:S26) -> 33.51294755 | Z26: group 1 | AA26: group 2 | AB26: group 2 | AC26: Replacement | AD26: Annual | AE26: (>24 mths)
C27: Make your choice here: | E27: 3 | O27: Frcn in each group: | Q27: =Q26/$T$26 -> 0.4760269575 | R27: =R26/$T$26 -> 0.4657538156 | S27: =S26/$T$26 -> 0.05821922695 | T27: =SUM(Q27:S27) -> 1 | U27: =SUM(R27:S27) -> 0.5239730425 | W27: Total Cows | X27: Calf born | Y27: Calf alive | Z27: Heifer alive | AA27: Heifer # | AB27: Heifer # | AC27: only | AD27: Heifer sold | AE27: Purchased | AF27: Total Heifers
O28: Frcn H>24mths/all H>12 mths | R28: =R27/SUM(R27:S27) -> 0.8888888889 | S28: =S27/SUM(R27:S27) -> 0.1111111111 | T28: --- | U28: =SUM(R28:S28) -> 1 | W28: =IF(E27=3,SUM(R98:T98),SUM(R98:U98)) -> 87 | X28: =E31*12/E33 -> 73.00699301 | Y28: =E31*12/E33*(1-(E39/100)) -> 65.70629371 | Z28: =Y28*0.5 -> 32.85314685 | AA28: =Z28*0.98 -> 32.19608392 | AB28: =IF(E40<24,0,(AA28*E40/24)-AA28) -> 4.02451049 | AC28: =E31*E34/100 -> 31.407 | AD28: =IF(SUM(AA28:AB28)<AC28,0,IF(E42=1,0,SUM(AA28:AB28)-AC28)) -> 4.813594406 | AE28: =IF(AC28<SUM(AA28:AB28),0,(AC28-SUM(AA28:AB28))) -> 0 | AF28: =T26 -> 63.9592972
A29: 1.2. Herd Structure: Cows | L29: Breed | M29: Mature BW (kg) | AA29: Note: Mortality Heifer> 1 yr = 2%
B30: Breed | E30: Holstein | F30: Breed will influence mature body weight and some heifer growth parameters | L30: Holstein | M30: 682 | O30: Actual days in each group | Q30: =365-(1.5*30.4) -> 319.4 | R30: =IF(E40>24,365,E40*30.4-365) -> 365 | S30: =IF(E40<24,0,(E40-24)*30.4) -> 91.2 | T30: =SUM(Q30:S30) -> 775.6 | U30: =SUM(R30:S30) -> 456.2
B31: Total cow (dry and lactating) | D31: Heads | E31: 87 | L31: Brown Swiss | M31: 682 | O31: Frcn days in each group | Q31: =Q30/$T$30 -> 0.4118102114 | R31: =R30/$T$30 -> 0.4706034038 | S31: =S30/$T$30 -> 0.1175863847 | T31: =SUM(Q31:S31) -> 1 | U31: =SUM(R31:S31) -> 0.5881897886
B32: Cow body weight (BW) | D32: Kg | E32: 647 | F32: Average body weight of cows in the herd will influence level of feed (dry matter) intake | L32: Guernsey | M32: 500 | O32: Frcn H>24mths/all H>12 mths | R32: =R31/SUM(R31:S31) -> 0.8000876808 | S32: =S31/SUM(R31:S31) -> 0.1999123192 | T32: --- | U32: =SUM(R32:S32) -> 1 | AO32: Calving interval
B33: Calving interval | D33: Months | E33: 14.3 | F33: Calving interval will influence number of heifer born and duration of a lactation | L33: Ayrshire | M33: 545 | AO33: 423 | AP33: days
B34: Culling rate | D34: % | E34: 36.1 | F34: Culling rate will influence number of heifers needed to maintain herd size and number of animal sold | L34: Jersey | M34: 454 | AO34: =AO33/30.4 -> 13.91447368 | AP34: months
L35: Milk. Shorthorn | M35: 568 | O35: Midpoint Age (mth) | Q35: 6 | R35: =IF(E40>24,18,12+(E40-12)/2) -> 18 | S35: =IF(E40>24,(E40-24)/2,"NA") -> 1.5 | U35: =IF(E40<24,R35,(12+E40)/2) -> 19.5
A36: 1.3. Herd Structure: Heifers | O36: Mature BW,kg | P36: =IF(E30="Holstein",682,IF(E30="Brown Swiss",682,IF(E30="Guernsey",500,IF(E30="Aryshire",545,IF(E30="Jersey",454,IF(E30="M. Shorthorn",568,0)))))) -> 682
B37: N-CyCLE computes heifer herd size based on calving interval, | O37: % of mature BW at midpoint | Q37: 27.7 | R37: 72.2 | S37: =IF(U35>R35,(U35-R35),"NA") -> 1.5 | U37: =100*((R37/100)+(3.67*(U35-R35))/100) -> 77.705 | AO37: Culling rate
B38: culling rates and other parameters: | O38: Average BW at midpoint (kg): | Q38: =P36*Q37% -> 188.914 | R38: =P36*R37% -> 492.404 | S38: =IF(E40>24,R38+(6*30.4*T52)+(T52*S35*30.4),"NA") -> 674.804 | T38: =P36*(Q37%*Q27+U37*U27%) -> 367.606675 | U38: =P36*U37% -> 529.9481 | AP38: out of the herd
B39: Mortality rate | D39: % | E39: 10 | F39: Percent of born heifers that do not survive the first year of life. N-Cycle will assume an additional 2% mortality of Heifers>1 yr of age. | AO39: =AO38/E31*100 -> 0 | AP39: culling rate
B40: Age at 1st calving | D40: Months | E40: 27 | F40: The older a heifer is at first calving, the longer she stays in the replacement herd.
B41: Do you sell heifers? | O41: HERD | R41: GROUP
B42: Choice "1" = keep and raise all heifers | E42: 2 | O42: DESCRIPTION | P42: 1 | Q42: 2 | R42: 3 | S42: 4 | T42: 5
B43: Choice "2" = Raise needed replacement only | O43: SUMMARY | P43: =F25 -> Early lactation | Q43: =G25 -> Mid-late lac. | R43: =IF($E$27=4,H26,H25) -> Dry cows | S43: =IF($E$27=4,I26,I25) -> Heifers<1yr old | T43: =IF($E$27=4,J26,J25) -> Heifers>1yr old | AO43: =AO44/((R99+0.59*S99)*0.9) -> 39.68907018 | AP43: Peak milk production (kd/day)
O44: Total Days | P44: 152 | Q44: =ROUNDUP(153+(E33-12)*30.4,0) -> 223 | R44: =IF(R43="Dry cows",60,39) -> 60 | S44: =IF(S43="Pre-fresh Cows",21,ROUNDDOWN(365-(1.5*30.4),0)) -> 319 | T44: =IF(T43="Heifers>1yr old",ROUNDUP(365+(E40-24)*30.4,0),ROUNDUP(730+(E40-24)*30.4,0)) -> 457 | U44: Days during which an animal stays in a group | AO44: =AO45*E33/12 -> 10129.16667 | AP44: kg/cow/lactation
A45: 1.4. Production Parameters | O45: Days in milk | P45: =MEDIAN(0,P44) -> 76 | Q45: =MEDIAN(P44,(P44+Q44)) -> 263.5 | R45: na | S45: na | T45: na | U45: Average days since calving | AO45: 8500 | AP45: kg/cow/year
B46: Average peak milk production | D46: Kg/d | E46: 40.6 | F46: Based on peak milk prodcution N-CyCLE computes milk production for the lactation and a calendar year. | O46: BW, kg | P46: =E32 -> 647 | Q46: =E32 -> 647 | R46: =IF($E$27=4,E32,E32) -> 647 | S46: =IF($E$27=4,E32,Q38) -> 188.914 | T46: =IF($E$27=4,T38,U38) -> 529.9481 | AO46: 3.9 | AP46: kg/hl = | AQ46: =AO46/1.03 -> 3.786407767 | AR46: % fat
B47: Milk performance | D47: Kg/cow/lactation | E47: =(P47*R99)+(Q47*S99) -> 10361.6478 | O47: Milk yield, kg/d | P47: =E46*0.9 -> 36.54 | Q47: =P47*0.59 -> 21.5586 | R47: 0 | S47: 0 | T47: 0 | U47: Milk yield and composition influence nutritional requirements and exports of nutrients from the farm | AO47: 3.32 | AP47: kg/hl = | AQ47: =AO47/1.03 -> 3.223300971 | AR47: % protein
B48: Milk performance | D48: Kg/cow/365 day | E48: =E47*12/E33 -> 8695.089063 | F48: =8444*1.03 -> 8697.32 | G48: =F48*E31/100 -> 7566.6684 | O48: FCM, kg/d | P48: =(0.4*P47)+(15*(P49/100)*P47) -> 32.785515 | Q48: =(0.4*Q47)+(15*(Q49/100)*Q47) -> 21.86581005 | R48: 0 | S48: 0 | T48: 0 | U48: FCM = Fat-corrected milk, a standardized way to express milk production in dairy cows | AO48: =12.9949-AO46-AO47 -> 5.7749 | AP48: kg/hl = | AQ48: =AO48/1.03 -> 5.606699029 | AR48: % other solid
B49: Milk composition | F49: Milk composition is used to compute yields of milk components and milk price | O49: Milk fat, % | P49: =E50*0.85 -> 3.315 | Q49: =E50*1.05 -> 4.095 | R49: 0 | S49: 0 | T49: 0
B50: Milk Fat | D50: % | E50: 3.9 | O50: Milk CP , % | P50: =E51*0.85 -> 2.7744 | Q50: =E51*1.05 -> 3.4272 | R50: 0 | S50: 0 | T50: 0
B51: Milk Crude Protein | D51: % | E51: 3.264 | O51: Pregnancy, Days | P51: =IF(P45<($E$33*30-280),0,(P45-($E$33*30-280))) -> 0 | Q51: =IF(Q45<($E$33*30-280),0,(Q45-($E$33*30-280))) -> 114.5 | R51: =IF(E27=3,280-R44/2,280-(R44/2+S44)) -> 250 | S51: =IF(E27=3,0,(280-S44/2)) -> 0 | T51: =IF($E$27=3,IF((T44/2+S44)<($E$40*30-280),0,(T44/2+S44-($E$40*30-280))),IF((T44/2)<($E$40*30-280),0,(T44/2-($E$40*30-280)))) -> 17.5 | U51: When cows are in late gestations, nutrient requirements are adjusted accordingly.
B52: Other solids | D52: % | E52: 5.5 | O52: Growth, kg/d | P52: 0 | Q52: 0 | R52: 0 | S52: =IF($E$27=4,0,0.8) -> 0.8 | T52: =IF($E$27=4,0.8,0.8) -> 0.8 | U52: Heifer growth rate is assumed to be optimal: 0.8 kg of average daily gain
A55: 2. Economic Inputs | I55: Back to top
A56: 2.1. Milk Incomes
B57: Milk sold | D57: Kg/year | E57: =E48*E31*(1-E59%) -> 718649.1111
B58: Milk sold | D58: hl/year | E58: =E57/103 -> 6977.175835 | F58: =E58*(E66+3+0.5+1.5) -> 546109.1632
B59: Milk wasted (%) | D59: % | E59: 5 | J59: Discarded milk for various reasons (mastitis, etc.).
G60: $/lb | H60: $/cwt | I60: $/kg
B61: Milk fat price | D61: $/kg | E61: 9.7125 | G61: - | AO61: =(1-AO62/(E48*E31))*100 -> 100 | AP61: milk wasted (%)
B62: Milk protein price | D62: $/kg | E62: 8.5942 | G62: - | AP62: milk sold (kg)
B63: Milk other solid price | D63: $/kg | E63: 1.7115 | G63: -
B64: Hauling cost | D64: $/hl | E64: 2.5603 | F64: FPLQ 2011 | H64: -
B65: Marketing cost | D65: $/kg | E65: =0.0349+0.0008+0.1002 -> 0.1359 | H65: -
B66: Milk price | D66: $/hl | E66: =((E50%*E61+E51%*E62+E52%*E63)*103-E64-SUM(E50:E52)%*E65*103) -> 73.27080414 | G66: - | H66: - | I66: =E66/1.03/100 -> 0.7113670304
A68: 2.2. Other incomes
G69: $/lb | H69: $/cwt | I69: $/kg
B70: Livestock ($/hl) | D70: $/hl | E70: 0
B71: Other Income ($/hl) | D71: $/hl | E71: =(11320+3925)/((E57/100)/1.03) -> 2.184981482
B72: Total Other Income | D72: $/hl | E72: =SUM(E70:E71) -> 2.184981482 | I72: =E72/1.03/100 -> 0.02121341245
A74: 2.3. Variable costs (other than feed purchased, crop-related expenses and storage costs)
H75: $/cwt | I75: $/kg
B76: Breeding fees | D76: $/hl | E76: =9395/((E57/100)/1.03) -> 1.346533357 | H76: -
B77: Health | D77: $/hl | E77: =18106/((E57/100)/1.03) -> 2.595032779 | H77: -
B78: Bedding | D78: $/hl | E78: =6380/2/E57*100*1.03 -> 0.4572050462 | H78: -
B79: Supplies | D79: $/hl | E79: 0 | H79: -
B80: DHI | D80: $/hl | E80: 0 | H80: -
B81: Other | D81: $/hl | E81: =18670/(E57/100/1.03) -> 2.675867778 | H81: -
B82: Total | D82: $/hl | E82: =SUM(E76:E81) -> 7.074638961 | I82: =E82/1.03/100 -> 0.06868581515
A84: 2.4. Fixed costs
G85: $/lb | H85: $/cwt | I85: $/kg
B86: Labor | D86: $ | E86: 93876 | G86: - | H86: -
B87: Taxes and Insurance | D87: $ | E87: 34802 | G87: - | H87: -
B88: Depreciation | D88: $ | E88: 78447 | G88: - | H88: -
B89: Interest | D89: $ | E89: =61590+2978 -> 64568
B90: Other | D90: $ | E90: =15979+13928+6874 -> 36781 | G90: - | H90: -
B91: Total | D91: $ | E91: =SUM(E86:E90) -> 308474
A94: 3. Ration Composition | I94: Back to top
A95: 3.1 Amount of Feed Dry Matter (DM) | O95: RATION COMPOSITION COMPUTATION AREA
B96: GROUPS | G96: GROUP | T96: GROUP
E97: 1 | F97: 2 | G97: 3 | H97: 4 | I97: 5 | R97: 1 | S97: 2 | T97: 3 | U97: 4 | V97: 5
E98: =P43 -> Early lactation | F98: =Q43 -> Mid-late lac. | G98: =R43 -> Dry cows | H98: =S43 -> Heifers<1yr old | I98: =T43 -> Heifers>1yr old | O98: Animals | Q98: # | R98: =ROUNDDOWN(E31*((E33-2)/E33)*(5/(E33-2)),0) -> 30 | S98: =ROUNDUP(E31*((E33-2)/E33)*(1-(5/(E33-2))),0) -> 45 | T98: =IF($E$27=4,ROUNDDOWN(E31*((2/E33)*(39/60)),0),E31-SUM(R98:S98)) -> 12 | U98: =IF($E$27=4,E31-(SUM(R98:T98)),Q26) -> 30.44634965 | V98: =IF($E$27=4,T26,U26) -> 33.51294755
B99: DMI, Predicted (NRC 2001) | D99: kg/d | E99: =(((P46^0.75)*0.0968)+(0.372*P48)-0.293)*(1-EXP(-0.192*((P45/7)+3.67))) -> 22.8262461 | F99: =(((Q46^0.75)*0.0968)+(0.372*Q48)-0.293)*(1-EXP(-0.192*((Q45/7)+3.67))) -> 20.25186212 | G99: =IF($E$27=4,0.018*R46,0.018*R46) -> 11.646 | H99: =IF($E$27=4,(((1.71-0.69*EXP(0.35*(-10.5)))%)*(S46*0.82))*E34/100+(((1.97-0.75*EXP(0.16*(-10.5)))%)*S46)*(1-E34/100),R111) -> 5.0251124 | I99: =IF($E$27=4,U111,V111) -> 12.63406958 | O99: Actual days | Q99: # | R99: =P44 -> 152 | S99: =Q44 -> 223 | T99: =R44 -> 60 | U99: =S44 -> 319 | V99: =T44 -> 457
D100: % | E100: 0 | F100: 0 | G100: 0 | H100: 0 | I100: 0 | O100: 365-day basis | Q100: # | R100: =R99*365/(E33*30.4) -> 127.6223776 | S100: =S99*365/(E33*30.4) -> 187.2354619 | T100: =T99*365/(E33*30.4) -> 50.37725432 | U100: =IF($E$27=4,U99*365/(E33*30.4),365) -> 365 | V100: =IF($E$27=4,V99*365/T30,IF(V99<365,V99,365)) -> 365
B101: DM Consumed | D101: kg/d | E101: =E99+(E99*E100/100) -> 22.8262461 | F101: =F99+(F99*F100/100) -> 20.25186212 | G101: =G99+(G99*G100/100) -> 11.646 | H101: =H99+(H99*H100/100) -> 5.0251124 | I101: =I99+(I99*I100/100) -> 12.63406958
O102: DM Consumed | Q102: % BW | R102: =E101/P46% -> 3.528013307 | S102: =F101/Q46% -> 3.130117793 | T102: =G101/R46% -> 1.8 | U102: =H101/S46% -> 2.66 | V102: =I101/T46% -> 2.384020167
A103: 3.2 Ration Composition | O103: DM Consumed | Q103: tonnes/yr | R103: =(E101*R100*R98)/1000 -> 87.39419397 | S103: =(F101*S100*S98)/1000 -> 170.6340041 | T103: =(G101*T100*T98)/1000 -> 7.040322046 | U103: =(H101*U100*U98)/1000 -> 55.84366014 | V103: =(I101*V100*V98)/1000 -> 154.5427925
B104: ENl, Mcal/kg DM | D104: MINIMUM | E104: =R134*(1+J104)/E101 -> 1.642166739 | F104: =S134*(1+J104)/F101 -> 1.447254611 | G104: =T134*(1+J104)/G101 -> 1.298556915 | H104: =U134*(1+J104)/H101 -> 1.429837516 | I104: =V134*(1+J104)/I101 -> 1.307982851 | J104: 0.1 | K104: Desired adjustment above NRC guidelines | O104: DM consumed | Q104: tonnes/yr | R104: per Cow: | S104: =IF(E27=3,R103/R98+S103/S98+T103/T98,R103/R98+S103/S98+T103/T98+U103/U98) -> 7.291700061 | U104: per Heifer: | V104: =IF(E27=4,V103/V98,(U103/U98)*Q27+(V103/V98)*U27) -> 3.289380307
D105: MAXIMUM | E105: =E104*(1+J105) -> 1.970600087 | F105: =F104*(1+J105) -> 1.736705533 | G105: =G104*(1+J105) -> 1.558268298 | H105: =H104*(1+J105) -> 1.715805019 | I105: =I104*(1+J105) -> 1.569579422 | J105: 0.2 | K105: Maximum excess allowed in ration (Max/Min)
O106: Heifer group Selection: | R106: 2H (<1yr) | S106: 2H (>1yr) | T106: 2H (>1yr) | U106: All together | V106: 2H(>1yr)
B107: EE, % of ration DM | D107: MAXIMUM | E107: 6.5 | F107: 6.5 | G107: 5 | H107: 4.5 | I107: 4.5 | O107: Heifer group Selection: | R107: (a) | S107: (b) | T107: [c] | U107: (a+b+c) | V107: (b+c)
O108: Age span: | R108: 2-12-mths | S108: 12-24 mths | T108: > 24 mths | U108: >2 mths | V108: >12 mths
B109: Forage NDF, % of ration DM | D109: MINIMUM | E109: 17 | F109: 18 | G109: 24 | H109: 18 | I109: 18 | O109: Dry Matter Intake (DMI)
B110: NDF, % of Ration DM | D110: MINIMUM | E110: 25 | F110: 28 | G110: =IF($E$27=4,32,30) -> 30 | H110: =IF(E27=4,28,28) -> 28 | I110: 28 | O110: DMI, % of midpoint BW | Q110: % of midpoint BW | R110: 2.66 | S110: 2.43 | T110: =IF(E40>24,2.2,"NA") -> 2.2 | V110: =SUMPRODUCT(S110:T110,R32:S32) -> 2.384020167
D111: MAXIMUM | E111: 100 | F111: 100 | G111: 100 | H111: 100 | I111: 100 | O111: DMI | Q111: kg/d at midpoint BW | R111: =R110%*Q38 -> 5.0251124 | S111: =S110%*R38 -> 11.9654172 | T111: =IF(E40>24,T110%*S38,"NA") -> 14.845688 | U111: =Q38*R110%*Q27+U38*V110%*U27 -> 9.012000842 | V111: =U38*V110% -> 12.63406958
B113: NFC, % of ration DM | D113: MINIMUM | E113: 0 | F113: 0 | G113: 0 | H113: 0 | I113: 0 | O113: Calcualtions/assumption for estimation of for NE needs and RDP/RUP fraction in rations of animal groups
D114: MAXIMUM | E114: 42 | F114: 40 | G114: 38 | H114: 42 | I114: 40
R115: =P42 -> 1 | S115: 2 | T115: 3 | U115: 4 | V115: 5
B116: RDP, % of ration DM | D116: MINIMUM | E116: =R144/1000*(1+$J116)/E101% -> 10.74392147 | F116: =S144/1000*(1+$J116)/F101% -> 9.791681311 | G116: =T144/1000*(1+$J116)/G101% -> 9.065221038 | H116: =U144/1000*(1+$J116)/H101% -> 9.861683211 | I116: =V144/1000*(1+$J116)/I101% -> 9.128424369 | J116: 0.1 | R116: Early lactation | S116: Mid-late lac. | T116: Dry cows | U116: Heifers<1yr old | V116: Heifers>1yr old
D117: MAXIMUM | E117: =E116*(1+$J$117) -> 13.42990183 | F117: =F116*(1+$J$117) -> 12.23960164 | G117: =G116*(1+$J$117) -> 11.3315263 | H117: =H116*(1+$J$117) -> 12.32710401 | I117: =I116*(1+$J$117) -> 11.41053046 | J117: 0.25 | O117: Animals | R117: =R98 -> 30 | S117: =S98 -> 45 | T117: =T98 -> 12 | U117: =U98 -> 30.44634965 | V117: =V98 -> 33.51294755
B118: RUP, % of ration DM | D118: MINIMUM | E118: =R145/1000*(1+$J118)/E101% -> 5.418022723 | F118: =S145/1000*(1+$J118)/F101% -> 4.724208209 | G118: =T145/1000*(1+$J118)/G101% -> 2.427938434 | H118: =U145/1000*(1+$J118)/H101% -> 5.314139775 | I118: =V145/1000*(1+$J118)/I101% -> 2.841584748 | J118: 0.1 | O118: Days | R118: =R100 -> 127.6223776 | S118: =S100 -> 187.2354619 | T118: =T100 -> 50.37725432 | U118: =U100 -> 365 | V118: =V100 -> 365
O119: Frcn days | R119: =R100/(SUM(R100:S100)) -> 0.4053333333 | S119: =S100/(SUM(R100:S100)) -> 0.5946666667 | T119: =T100/(SUM(T100:V100)) -> 0.06455500086 | U119: =U100/(SUM(T100:V100)) -> 0.4677224996 | V119: =V100/SUM(T100:V100) -> 0.4677224996
B120: Crude Protein (CP) | D120: MINIMUM | E120: =E116+E118 -> 16.16194419 | F120: =F116+F118 -> 14.51588952 | G120: =G116+G118 -> 11.49315947 | H120: =H116+H118 -> 15.17582299 | I120: =I116+I118 -> 11.97000912 | O120: Frcn animals | R120: =R98/SUM(R98:S98) -> 0.4 | S120: =S98/SUM(R98:S98) -> 0.6 | T120: =T98/SUM(T98:V98) -> 0.1579793448 | U120: =U98/SUM(T98:V98) -> 0.4008245307 | V120: =V98/SUM(T98:V98) -> 0.4411961246
D121: MAXIMUM | E121: =E118+E117 -> 18.84792456 | F121: =F118+F117 -> 16.96380985 | G121: =G118+G117 -> 13.75946473 | H121: =H118+H117 -> 17.64124379 | I121: =I118+I117 -> 14.25211521 | O121: Overall Frcn | R121: =R120*R119 -> 0.1621333333 | S121: =S120*S119 -> 0.3568 | T121: =T120*T119 -> 0.01019835674 | U121: =U120*U119 -> 0.1874746514 | V121: =V120*V119 -> 0.2063573542
D122: MAX. / MIN. | E122: =E121/E120 -> 1.166191662 | F122: =F121/F120 -> 1.168637294 | G122: =G121/G120 -> 1.197187315 | H122: =H121/H120 -> 1.16245714 | I122: =I121/I120 -> 1.190651993 | Q122: Total | R122: =SUM(R121:S121) -> 0.5189333333 | T122: =SUM(T121:V121) -> 0.4040303623
B123: Macro-Minerals, % of ration DM | O123: Overall Weight | R123: =R121/R122 -> 0.3124357657 | S123: =S121/R122 -> 0.6875642343 | T123: =T121/T122 -> 0.02524156026 | U123: =U121/T122 -> 0.4640112944 | V123: =V121/T122 -> 0.5107471454
B124: Available P | D124: MINIMUM | E124: =((1*E101/(10*E101)+0.002*P46/(10*E101))+0.9*P47/(10*E101))*(1+J124) -> 0.2622269038 | F124: =((1*F101/(10*F101)+0.002*Q46/(10*F101))+(0.02743*EXP((0.05527-0.000075*Q51)*Q51)-0.02743*EXP((0.05527-0.000075*(Q51-1))*(Q51-1)))/(10*F101)+0.9*Q47/(10*F101))*(1+J124) -> 0.2134228538 | G124: =((1*G101/(10*G101)+0.002*R46/(10*G101))+(0.02743*EXP((0.05527-0.000075*R51)*R51)-0.02743*EXP((0.05527-0.000075*(R51-1))*(R51-1)))/(10*G101))*(1+J124) -> 0.1570306727 | H124: =IF($E$27=4,((1*H101/(10*H101)+0.002*S46/(10*H101))+(0.02743*EXP((0.05527-0.000075*S51)*S51)-0.02743*EXP((0.05527-0.000075*(S51-1))*(S51-1)))/(10*H101))*(1+J124),((1*H101/(10*H101)+0.002*S46/(10*H101))+(((1.2+(4.635*P46^0.22)*(S46^(-0.22)))*S52)/(10*H101))*(1+J124))) -> 0.2291570828 | I124: =((1*I101/(10*I101)+0.002*T46/(10*I101))+(((1.2+(4.635*P46^0.22)*(T46^(-0.22)))*T52)/(10*I101))+IF(T51>190,(0.02743*EXP((0.05527-0.000075*T51)*T51)-0.02743*EXP((0.05527-0.000075*(T51-1))*T51-1))/(10*I101),0))*(1+J124) -> 0.1539868915 | J124: 0.05 | K124: Desired adjustment above NRC guidelines | O124: NRC Energy needs, Mcal/d
D125: MAXIMUM | E125: =E124*(1+$J$125) -> 0.3933403558 | F125: =F124*(1+$J$125) -> 0.3201342806 | G125: =G124*(1+$J$125) -> 0.2355460091 | H125: =H124*(1+$J$125) -> 0.3437356242 | I125: =I124*(1+$J$125) -> 0.2309803372 | J125: 0.5 | K125: Maximum excess allowed in ration (Max/Min) | O125: NE for maintenance | R125: =(P46^0.75*0.08) -> 10.26285511 | S125: =(Q46^0.75*0.08) -> 10.26285511 | T125: =(R46^0.75*0.08) -> 10.26285511 | U125: =IF(E27=3,(S46*0.96)^0.75*0.086,S46^0.75*0.08) -> 4.250108173 | V125: =((T46*0.96)^0.75*0.086) -> 9.212486843
M126: Max/Min | O126: NE for lactation | R126: =(0.0929*P49+0.0547*P50+0.192)*P47 -> 23.813965 | S126: =(0.0929*Q49+0.0547*Q50+0.192)*Q47 -> 16.38223656 | T126: 0 | U126: 0 | V126: 0
B127: Available Mg required | E127: =0.003*P46/(10*E101)+(0.15*P47)/(10*E101) -> 0.03251520188 | F127: =0.003*Q46/(10*F101)+0.33/(10*F101)+(0.15*Q47)/(10*F101) -> 0.02718164862 | G127: =0.003*R46/(10*G101)+0.33/(10*G101) -> 0.0195002576 | H127: =0.003*S46/(10*H101)+0.45*S52/(10*H101)+IF(S51>190,0.33/(10*H101),0) -> 0.01844221435 | I127: =0.003*T46/(10*I101)+0.45*T52/(10*I101)+IF(T51>190,0.33/(10*I101),0) -> 0.01543322433 | J127: 0.05 | K127: Desired adjustment above NRC | O127: NE for pregnancy | R127: =IF(P51>190,(0.00318*P51-0.0352)/0.218,0) -> 0 | S127: =IF(Q51>190,(0.00318*Q51-0.0352)/0.218,0) -> 0 | T127: =IF(R51>190,(0.00318*R51-0.0352)/0.218,0) -> 3.485321101 | U127: =IF(S51>190,(0.00318*S51-0.0352)/0.218,0) -> 0 | V127: =IF(T51>190,(0.00318*T51-0.0352)/0.218,0) -> 0
B128: Min. Available Mg Desired | D128: % DM | E128: =E127+E127*$J$127 -> 0.03414096197 | F128: =F127+F127*$J$127 -> 0.02854073105 | G128: =G127+G127*$J$127 -> 0.02047527048 | H128: =H127+H127*$J$127 -> 0.01936432506 | I128: =I127+I127*$J$127 -> 0.01620488555 | K128: Excess allowed in diet (Max/Min) | M128: =Optimization!Q194 -> 3 | O128: NE for growth | U128: =IF(E27=3,0.0635*(0.891*(S46*0.96)*(478/(0.96*P36)))^0.75*(0.956*0.96*S52)^1.097,0) -> 1.619631888 | V128: =0.0635*(0.891*(T46*0.96)*(478/(0.96*P36)))^0.75*(0.956*0.96*T52)^1.097 -> 3.510695928 | W128: NEm for heifers
O129: a (from Gosselin, 2002 p. 108) | U129: =0.8967*H101 -> 4.506018289 | V129: =0.8967*I101 -> 11.32897019
B130: Available K required | E130: =(0.038*P46+6.1*E101)/(10*E101)+1.5*P47/(10*E101) -> 0.9578276702 | F130: =(0.038*Q46+6.1*F101)/(10*F101)+1.027/(10*F101)+1.5*Q47/(10*F101) -> 0.8961509705 | G130: =(0.038*R46+2.6*G101)/(10*G101)+1.027/(10*G101) -> 0.4799295896 | H130: =IF($E$27=4,(0.038*S46+2.6*H101)/(10*H101)+1.027/(10*H101),(0.038*S46+2.6*H101)/(10*H101)+1.6*S52/(10*H101)) -> 0.4283292099 | I130: =(0.038*T46+2.6*I101)/(10*I101)+1.6*T52/(10*I101)+IF(T51>190,1.027/(10*I101),0) -> 0.4295259605 | J130: 0.05 | K130: Desired adjustment above NRC | O130: b | U130: =-0.8967*U125-0.4443*H101-U128 -> -7.663361326 | V130: =-0.8967*V125-0.4443*I101-V128 -> -17.38484999
B131: Min. Available K Desired | D131: % DM | E131: =E130+E130*$J$130 -> 1.005719054 | F131: =F130+F130*$J$130 -> 0.940958519 | G131: =G130+G130*$J$130 -> 0.503926069 | H131: =H130+H130*$J$130 -> 0.4497456704 | I131: =I130+I130*$J$130 -> 0.4510022585 | K131: Excess allowed in diet (Max/Min) | M131: =Optimization!Q193 -> 10 | O131: c | U131: =0.4443*U125 -> 1.888323061 | V131: =0.4443*V125 -> 4.093107904 | W131: NEg for heifers
O132: [NEm] | U132: =(-U130+(U130^2-4*U129*U131)^0.5)/(2*U129) -> 1.40173079 | V132: =(-V130+(V130^2-4*V129*V131)^0.5)/(2*V129) -> 1.244153311
B133: Available Ca required | E133: =(0.031*P46)/(10*E101)+1.22*P47/(10*E101) -> 0.2831643877 | F133: =((0.031*Q46)/(10*F101))+(((0.02456*EXP((0.05581-0.00007*Q51)*Q51))-(0.02456*EXP((0.05581-0.00007*(Q51-1))*(Q51-1))))/(10*F101))+1.22*P47/(10*F101) -> 0.3202876482 | G133: =(0.0154*R46)/(10*G101)+((0.02456*EXP((0.05581-0.00007*R51)*R51))-(0.02456*EXP((0.05581-0.00007*(R51-1))*(R51-1))))/(10*G101) -> 0.1484643447 | H133: =IF($E$27=4,(0.0154*S46/(10*H101))+((0.02456*EXP((0.05581-0.00007*S51)*S51))-(0.02456*EXP((0.05581-0.00007*(S51-1))*(S51-1))))/(10*H101),(((9.83*(S46^0.22)*(S46^(-0.22)))*S52)+0.0154*S46)/(10*H101)) -> 0.2143887488 | I133: =IF($E$27=4,((((9.83*(P46^0.22)*(T46^(-0.22)))*T52)+0.0154*T46)/(10*I101))+(((0.02456*EXP((0.05581-0.00007*T51)*T51))-(0.02456*EXP((0.05581-0.00007*(T51-1))*(T51-1))))/(10*I101)),(((9.83*(P46^0.22)*(T46^(-0.22)))*T52)+0.0154*T46)/(10*I101))+IF(T51>190,(((0.02456*EXP((0.05581-0.00007*T51)*T51))-(0.02456*EXP((0.05581-0.00007*(T51-1))*(T51-1))))/(10*I101)),0) -> 0.1296348693 | J133: 0.05 | K133: Desired adjustment above NRC | O133: [ME discounted] | U133: =U132+0.6412/0.8936 -> 2.119277791 | V133: =V132+0.6412/0.8936 -> 1.961700312
B134: Min. Available Ca Desired | D134: % DM | E134: =E133+E133*$J$133 -> 0.2973226071 | F134: =F133+F133*$J$133 -> 0.3363020306 | G134: =G133+G133*$J$133 -> 0.155887562 | H134: =H133+H133*$J$133 -> 0.2251081862 | I134: =I133+I133*$J$133 -> 0.1361166128 | K134: Excess allowed in diet (Max/Min) | M134: =Optimization!Q191 -> 2 | Q134: Total NEl | R134: =SUM(R125:R128) -> 34.0768201 | S134: =SUM(S125:S128) -> 26.64509167 | T134: =SUM(T125:T128) -> 13.74817621 | U134: =IF(E27=3,(0.703*U133-0.19)*H101,SUM(U125:U128)) -> 6.531903845 | V134: =(0.703*V133-0.19)*I101 -> 15.02286032 | W134: For heifer groups, NEl calcuated from ME
O135: Estimated discounted EM (< 3% FAT) | R135: =(R134/E101+0.19)/0.703*E101 -> 54.64268401 | S135: =(S134/F101+0.19)/0.703*F101 -> 43.37545586 | T135: =(T134/G101+0.19)/0.703*G101 -> 22.70400599 | U135: =(U134/H101+0.19)/0.703*H101 -> 10.64960911 | V135: =(V134/I101+0.19)/0.703*I101 -> 24.78425823
B136: Min. Available Na required Desired | E136: =(0.038*P46)/(10*E101)+0.63*P47/(10*E101) -> 0.2085590412 | F136: =(0.038*Q46)/(10*F101)+0.63*Q47/(10*F101)+IF(Q51>190,1.39/(10*F101),0) -> 0.188466215 | G136: =(1.5*(R46/100))/(10*G101)+IF(R51>190,1.39/(10*G101),0) -> 0.09526876181 | H136: =IF($E$27=4,(1.5*(S46/100))/(10*H101)+IF(S51>190,1.39/(10*H101),0),(1.5*(S46/100))/(10*H101)+IF(S51>190,1.39/(10*H101),0)+(1.4*S52/(10*H101))) -> 0.07867903611 | I136: =(1.5*(T46/100))/(10*I101)+(1.4*T52/(10*I101))+IF(T51>190,1.39/(10*I101),0) -> 0.07178384958 | J136: 0.05 | K136: Desired adjustment above NRC | O136: Estimated discounted ED | R136: =(R135/E101+0.45)/1.01*E101 -> 64.27177699 | S136: =(S135/F101+0.45)/1.01*F101 -> 51.96910278 | T136: =(T135/G101+0.45)/1.01*G101 -> 27.66802573 | U136: =IF(E27=3,U135/0.82,(U135/H101+0.45)/1.01*H101) -> 12.98732818 | V136: =V135/0.82 -> 30.22470516
B137: Min. Available Na Desired | D137: % DM | E137: =E136+E136*$J$136 -> 0.2189869933 | F137: =F136+F136*$J$136 -> 0.1978895257 | G137: =G136+G136*$J$136 -> 0.1000321999 | H137: =H136+H136*$J$136 -> 0.08261298792 | I137: =I136+I136*$J$136 -> 0.07537304205 | K137: Excess allowed in diet (Max/Min) | M137: =Optimization!Q195 -> 5 | O137: NRC Protein needs, g/d
O138: MP microbial | R138: =0.64*0.13*R136/4.409*1000 -> 1212.840065 | S138: =0.64*0.13*S136/4.409*1000 -> 980.6825474 | T138: =0.64*0.13*T136/4.409*1000 -> 522.109263 | U138: =0.64*0.13*U136/4.409*1000 -> 245.0772748 | V138: =0.64*0.13*V136/4.409*1000 -> 570.3550622 | W138: Using 4,409 McalDE/kg of TDN
B139: Available Cl required | E139: =(2.25*P46/100)/(10*E101)+1.15*P47/(10*E101) -> 0.2478659862 | F139: =(2.25*Q46/100)/(10*F101)+IF(Q51>190,1/(10*F101))+1.15*Q47/(10*F101) -> 0.1943025771 | G139: =(2.25*R46/100)/(10*G101)+IF(R51>190,1/(10*G101)) -> 0.1335866392 | H139: =IF($E$27=4,(2.25*S46/100)/(10*H101)+IF(S51>190,1/(10*H101)),(2.25*S46/100)/(10*H101)+(1*S52)/(10*H101)) -> 0.1005065081 | I139: =(2.25*T46/100)/(10*I101)+(1*T52)/(10*I101)+IF(T51>190,1/(10*I101)) -> 0.1007104811 | J139: 0.05 | K139: Desired adjustment above NRC | O139: MP maintenance | R139: =(0.3*P46^0.6)+(4.1*P46^0.5)+((E101*1000*0.03)-(0.5*(R138/0.8-R138)))+(E101*11.8*0.4/0.67) -> 812.853421 | S139: =(0.3*Q46^0.6)+(4.1*Q46^0.5)+((F101*1000*0.03)-(0.5*(S138/0.8-S138)))+(F101*11.8*0.4/0.67) -> 746.5056326 | T139: =(0.3*R46^0.6)+(4.1*R46^0.5)+((G101*1000*0.03)-(0.5*(T138/0.8-T138)))+(G101*11.8*0.4/0.67) -> 485.0250577 | U139: =(0.3*S46^0.6)+(4.1*S46^0.5)+((H101*1000*0.03)-(0.5*(U138/0.8-U138)))+(H101*11.8*0.4/0.67) -> 218.8366965 | V139: =(0.3*T46^0.6)+(4.1*T46^0.5)+((I101*1000*0.03)-(0.5*(V138/0.8-V138)))+(I101*11.8*0.4/0.67) -> 504.0482308
B140: Min. Available Cl Desired | D140: % DM | E140: =E139+E139*$J$139 -> 0.2602592855 | F140: =F139+F139*$J$139 -> 0.2040177059 | G140: =G139+G139*$J$139 -> 0.1402659711 | H140: =H139+H139*$J$139 -> 0.1055318335 | I140: =I139+I139*$J$139 -> 0.1057460051 | K140: Excess allowed in diet (Max/Min) | M140: =Optimization!Q196 -> 5 | O140: MP lactation | R140: =P47*P50%*0.93/0.67*1000 -> 1407.167398 | S140: =Q47*Q50%*0.93/0.67*1000 -> 1025.57671 | T140: =R47*R50%*0.93/0.67*1000 -> 0 | U140: =S47*S50%*0.93/0.67*1000 -> 0 | V140: =T47*T50%*0.93/0.67*1000 -> 0
O141: MP pregnancy | R141: =IF(P51>190,(((0.69*P51)-69.2)*(P36*0.06275/45))/0.33,0) -> 0 | S141: =IF(Q51>190,(((0.69*Q51)-69.2)*(P36*0.06275/45))/0.33,0) -> 0 | T141: =IF(R51>190,(((0.69*R51)-69.2)*(P36*0.06275/45))/0.33,0) -> 297.6952963 | U141: =IF(S51>190,(((0.69*S51)-69.2)*(P36*0.06275/45))/0.33,0) -> 0 | V141: =IF(T51>190,(((0.69*T51)-69.2)*(P36*0.06275/45))/0.33,0) -> 0
B142: Total S required | E142: 0.2 | F142: 0.2 | G142: 0.2 | H142: 0.2 | I142: 0.2 | J142: 0.05 | K142: Desired adjustment above NRC | O142: MP growth | U142: =IF(E27=3,(S52*(268-(29.4*(U128/S52))))/(83.4-(0.114*(S46*0.96*478/(0.96*P36))))%,0) -> 244.1711064 | V142: =(T52*(268-(29.4*(V128/T52))))/(83.4-(0.114*(T46*0.96*478/(0.96*P36))))% -> 270.8078111
B143: Min. Total S Desired | D143: % DM | E143: =E142+E142*$J$142 -> 0.21 | F143: =F142+F142*$J$142 -> 0.21 | G143: =G142+G142*$J$142 -> 0.21 | H143: =H142+H142*$J$142 -> 0.21 | I143: =I142+I142*$J$142 -> 0.21 | Q143: Total | R143: =SUM(R139:R142) -> 2220.020819 | S143: =SUM(S139:S142) -> 1772.082342 | T143: =SUM(T139:T142) -> 782.720354 | U143: =SUM(U139:U142) -> 463.0078029 | V143: =SUM(V139:V142)*1.15 -> 891.0844481
O144: RDP requirements | R144: =R138/0.64/0.85 -> 2229.485413 | S144: =S138/0.64/0.85 -> 1802.725271 | T144: =T138/0.64/0.85 -> 959.7596746 | U144: =U138/0.64/0.85 -> 450.5096962 | V144: =V138/0.64/0.85 -> 1048.446806
B145: DCAD | D145: mEq/kg | O145: RUP requirements | R145: =(R143-(R138+(E101*11.8*0.4)))/0.8 -> 1124.301091 | S145: =(S143-(S138+(F101*11.8*0.4)))/0.8 -> 869.763757 | T145: =(T143-(T138+(G101*11.8*0.4)))/0.8 -> 257.0524637 | U145: =(U143-(U138+(H101*11.8*0.4)))/0.8 -> 242.7649971 | V145: =(V143-(V138+(I101*11.8*0.4)))/0.8 -> 326.3707219 | W145: Assuming diet RUP digestibility of .80
A146: 3.3 Pasture management | Q146: Total | R146: =SUM(R144:R145) -> 3353.786504 | S146: =SUM(S144:S145) -> 2672.489028 | T146: =SUM(T144:T145) -> 1216.812138 | U146: =SUM(U144:U145) -> 693.2746933 | V146: =SUM(V144:V145) -> 1374.817527
O147: Estimated % Concentrate in diet (%DM) | R147: 50 | S147: 35 | T147: 10 | U147: 40 | V147: 15
B148: Pasture period | D148: d | E148: 0 | F148: 0 | G148: 0 | H148: 0 | I148: 0 | O148: Kp, %/h | R148: =3.054+0.614*R147 -> 33.754 | S148: =3.054+0.614*S147 -> 24.544 | T148: =3.054+0.614*T147 -> 9.194 | U148: =3.054+0.614*U147 -> 27.614 | V148: =3.054+0.614*V147 -> 12.264
B149: Fraction of manure on pasture during pasture period | D149: % | E149: 50 | F149: 50 | G149: 100 | H149: 100 | I149: 100 | O149: pX, Total TDN/Maintenance TDN | R149: 4 | S149: 3 | T149: 1.3 | U149: 2 | V149: 2 | W149: À calculer
B150: % of forages to be provided with pasture during pasture period | D150: % | E150: 80 | F150: 80 | G150: 90 | H150: 90 | I150: 90 | O150: TDN 1x in diet, % | R150: =R136/4.409/E101/(1-(R149-1)*4%)% -> 72.57098893 | S150: =S136/4.409/F101/(1-(S149-1)*4%)% -> 63.26337119 | T150: =T136/4.409/G101/(1-(T149-1)*4%)% -> 54.53864473 | U150: =U136/4.409/H101/(1-(U149-1)*4%)% -> 61.0608299 | V150: =V136/4.409/I101/(1-(V149-1)*4%)% -> 56.52069285 | W150: estimated using 4% discount by Xmaintenance
A151: 4. Feed Inputs | I151: Back to top
A152: 4.1. Feeds, Feed Prices and Allowable Changes in Feed Inventory | O152: FEED COMPOSITION, COSTS
H153: Purchase | J153: Change in Silage and Pasture Inventory | R153: Feed analysis for up to 10 home-grown feeds and 12 purchased feeds
B154: NRC 2001 | E154: NRC 2001 | F154: N-CyCLE | H154: Price | J154: Allowable Inventroy change | R154: Pasture | S154: Feeds produced / purchased | AA154: Feeds purchased only
B155: Feedname | E155: Feed # | F155: Feedcode | H155: $/t DM | J155: Tons per year | R155: 1 | S155: 2 | T155: 3 | U155: 4 | V155: 5 | W155: 6 | X155: 7 | Y155: 8 | Z155: 9 | AA155: - - - - FORAGES - - - - | AG155: - - - - - - - - - - - - - - - - - - - - - - - - - - - - - - - - - CONCENTRATES - - - - - - - - - - - - - - - - - - - - - - - - - - - - - - | AL155: - - - - - - - - - - - MINERALS - - - - - - - - - - - - -
B156: Home grown or Purchased | J156: Minimum | K156: Maximum | R156: GrPast-49 | S156: CoSi-35 | T156: AlSi-83 | U156: MxSi-71 | V156: GrHy-52 | W156: SBw-108 | X156: CoGr-27 | Y156: Barley-8 | Z156: Wheat-116 | AA156: Brewers grains-16 | AB156: Canola-19 | AC156: FatCa-40 | AD156: SBMx-104 | AE156: SBM48-107 | AF156: CGM-25 | AG156: CoDi-23 | AH156: Bld Meal-14 | AI156: Urea | AJ156: SoyHull-103 | AK156: Beet pulp-11 | AL156: CaCO3 | AM156: NaH2PO4.H20 | AN156: MgO | AO156: CaSO4.2H20 | AP156: NaCl | AQ156: MgSO4.7H20
B157: Grasses, cool season, Pasture intensively managed | E157: 49 | F157: =R156 -> GrPast-49 | H157: 0 | I157: =F157 -> GrPast-49 | J157: 0 | K157: 0 | O157: Unit resource, t DM | R157: 1 | S157: 1 | T157: 1 | U157: 1 | V157: 1 | W157: 1 | X157: 1 | Y157: 1 | Z157: 1 | AA157: 1 | AB157: 1 | AC157: 1 | AD157: 1 | AE157: 1 | AF157: 1 | AG157: 1 | AH157: 1 | AI157: 1 | AJ157: 1 | AK157: 1 | AL157: 1 | AM157: 1 | AN157: 1 | AO157: 1 | AP157: 1 | AQ157: 1
B158: Corn silage normal, 32-38% M | E158: 35 | F158: =S156 -> CoSi-35 | H158: 94.86666667 | I158: =F158 -> CoSi-35 | J158: 0 | K158: 0 | O158: Fd type (S=Silage, H=Hay, P=Pasture; C=Concentrate, AP=Animal protein, FA=Fatty acid, M=Mineral) | R158: P | S158: S | T158: S | U158: S | V158: H | W158: C | X158: C | Y158: C | Z158: C | AA158: C | AB158: C | AC158: FA | AD158: C | AE158: C | AF158: C | AG158: C | AH158: AP | AI158: M | AJ158: C | AK158: C | AL158: M | AM158: M | AN158: M | AO158: M | AP158: M | AQ158: M
B159: Alfalfa silage, mid maturity, 40-46% NDF | E159: 83 | F159: =T156 -> AlSi-83 | H159: 174 | I159: =F159 -> AlSi-83 | J159: 0 | K159: 0 | O159: DM, (%) | R159: 20.1 | S159: 35.2 | T159: 43.5 | U159: 45.5 | V159: 85.8 | W159: 90 | X159: 88.1 | Y159: 91 | Z159: 89.4 | AA159: 90.7 | AB159: 90.3 | AC159: 95.3 | AD159: 89.6 | AE159: 89.5 | AF159: 86.4 | AG159: 90.2 | AH159: 90.2 | AI159: 100 | AJ159: 90.9 | AK159: 88.3 | AL159: 100 | AM159: 97 | AN159: 98 | AO159: 97 | AP159: 100 | AQ159: 98
B160: Grass-legumes mixture, silage, mid maturity | E160: 71 | F160: =U156 -> MxSi-71 | H160: 152.3333333 | I160: =F160 -> MxSi-71 | J160: 0 | K160: 0 | O160: EE, (%) | R160: 2.7 | S160: 3.13 | T160: 2.74 | U160: 2.84 | V160: 2.42 | W160: 19.2 | X160: 4.2 | Y160: 2.2 | Z160: 2.3 | AA160: 5.2 | AB160: 5.4 | AC160: 84.5 | AD160: 8.1 | AE160: 1.1 | AF160: 2.5 | AG160: 10 | AH160: 1.2 | AI160: 0 | AJ160: 2.7 | AK160: 1.1 | AL160: 0 | AM160: 0 | AN160: 0 | AO160: 0 | AP160: 0 | AQ160: 0
B161: Grasses, cool season, hay, mid maturity | E161: 52 | F161: =V156 -> GrHy-52 | H161: 154.1666667 | J161: * If min = 0 and max = 0, then amount produced = amount used | O161: FNDF, (%) | R161: =IF(OR(R158="P",R158="S",R158="H"),R162,0) -> 45.8 | S161: =IF(OR(S158="P",S158="S",S158="H"),S162,0) -> 43.01 | T161: 44.72 | U161: 50.43 | V161: 60.43 | W161: 0 | X161: 0 | Y161: 0 | Z161: 0 | AA161: =IF(OR(AA158="P",AA158="S",AA158="H"),AA162,0) -> 0 | AB161: =IF(OR(AB158="P",AB158="S",AB158="H"),AB162,0) -> 0 | AC161: 0 | AD161: 0 | AE161: 0 | AF161: 0 | AG161: 0 | AH161: 0 | AI161: 0 | AJ161: 0 | AK161: 0 | AL161: 0 | AM161: 0 | AN161: 0 | AO161: 0 | AP161: 0 | AQ161: 0
B162: Soybean, seed, whole roasted | E162: 108 | F162: =W156 -> SBw-108 | H162: 444.44 | J162: * If min = 0 and max > 0 then amount produced > amount used | O162: NDF, (%) | R162: 45.8 | S162: 43.01 | T162: 44.72 | U162: 50.43 | V162: 60.43 | W162: 19.5 | X162: 9.5 | Y162: 20.8 | Z162: 13.4 | AA162: 47.4 | AB162: 29.8 | AC162: 0 | AD162: 21.7 | AE162: 9.8 | AF162: 11.1 | AG162: 38.8 | AH162: 0 | AI162: 0 | AJ162: 60.3 | AK162: 45.8 | AL162: 0 | AM162: 0 | AN162: 0 | AO162: 0 | AP162: 0 | AQ162: 0
B163: Corn, grain, ground, dry | E163: 27 | F163: =X156 -> CoGr-27 | H163: 252.81 | J163: and the excess is sold. | O163: NFC, (%) | R163: =100-(R162-R165)-R167-R160-R186 -> 25.5 | S163: =100-(S162-S165)-S167-S160-S186 -> 42.63 | T163: =100-(T162-T165)-T167-T160-T186 -> 25.58 | U163: 24.21 | V163: 20.42 | W163: 18.5 | X163: 76.1 | Y163: 63.5 | Z163: 69.8 | AA163: =100-(AA162-AA165)-AA167-AA160-AA186 -> 23 | AB163: =100-(AB162-AB165)-AB167-AB160-AB186 -> 25.9 | AC163: =100-(AC162-AC165)-AC167-AC160-AC186 -> 0 | AD163: 28 | AE163: 29.6 | AF163: 21.7 | AG163: 24.9 | AH163: 0.8 | AI163: 0 | AJ163: 21.8 | AK163: 41.3 | AL163: 0 | AM163: 0 | AN163: 0 | AO163: 0 | AP163: 0 | AQ163: 0
B164: Barley, grain, rolled | E164: 8 | F164: =Y156 -> Barley-8 | H164: 198.86 | J164: * If min < 0 and max = 0 then amount produced < amount used | O164: ADL (lignin), (%) | R164: 2.1 | S164: 2.83 | T164: 6.86 | U164: 5.97 | V164: 5.26 | W164: 1.2 | X164: 0.9 | Y164: 2.1 | Z164: 1.7 | AA164: 5 | AB164: 9.5 | AC164: 0 | AD164: 1.5 | AE164: 0.5 | AF164: 1.5 | AG164: 4.3 | AH164: 0 | AI164: 0 | AJ164: 2.5 | AK164: 1.6 | AL164: 0 | AM164: 0 | AN164: 0 | AO164: 0 | AP164: 0 | AQ164: 0
B165: Wheat, grain, rolled | E165: 116 | F165: =Z156 -> Wheat-116 | H165: 231.81 | J165: and the deficit is purchased | O165: NDICP, (%) | R165: 3.9 | S165: 1.3 | T165: 3.1 | U165: 3.1 | V165: 3.9 | W165: 2.3 | X165: 0.7 | Y165: 1.8 | Z165: 1.7 | AA165: 9.1 | AB165: 6.3 | AC165: 0 | AD165: 9.6 | AE165: 0.7 | AF165: 3.6 | AG165: 8.6 | AH165: 0 | AI165: 0 | AJ165: 3.5 | AK165: 5.5 | AL165: 0 | AM165: 0 | AN165: 0 | AO165: 0 | AP165: 0 | AQ165: 0
J166: * If min < 0 and max > 0 then N-CyCLE decides whether one should | O166: ADICP, (%) | R166: 1.1 | S166: 0.8 | T166: 1.8 | U166: 1.6 | V166: 1.2 | W166: 0.6 | X166: 0.3 | Y166: 0.5 | Z166: 0.2 | AA166: 3.5 | AB166: 2.4 | AC166: 0 | AD166: 0.4 | AE166: 0.4 | AF166: 3 | AG166: 5 | AH166: 0 | AI166: 0 | AJ166: 1 | AK166: 0.6 | AL166: 0 | AM166: 0 | AN166: 0 | AO166: 0 | AP166: 0 | AQ166: 0
J167: overproduce or underproduce. | O167: CP, (%) | R167: 20.1 | S167: 8.23 | T167: 19.26 | U167: 16.52 | V167: 11.83 | W167: 39.2 | X167: 9.4 | Y167: 12.4 | Z167: 14.2 | AA167: 29.2 | AB167: 37.8 | AC167: 0 | AD167: 46.3 | AE167: 53.8 | AF167: 65 | AG167: 29.7 | AH167: 95.5 | AI167: 281 | AJ167: 13.9 | AK167: 10 | AL167: 0 | AM167: 0 | AN167: 0 | AO167: 0 | AP167: 0 | AQ167: 0
B168: Purchased only | J168: * For Pasture, 0 should be used for Minimum and Maximum. | O168: A fraction , %CP | R168: 30.7 | S168: 51.3 | T168: 57.3 | U168: 42.4 | V168: 36.7 | W168: 27.8 | X168: 23.9 | Y168: 30.2 | Z168: 27.1 | AA168: 18.3 | AB168: 23.2 | AC168: 0 | AD168: 8.7 | AE168: 15 | AF168: 3.9 | AG168: 28.5 | AH168: 10.1 | AI168: 100 | AJ168: 22.5 | AK168: 4.5 | AL168: 0 | AM168: 0 | AN168: 0 | AO168: 0 | AP168: 0 | AQ168: 0
B169: Brewers grains | E169: 16 | F169: =AA156 -> Brewers grains-16 | H169: 266.67 | O169: B fraction, % CP | R169: 63.5 | S169: 30.2 | T169: 35.3 | U169: 48.1 | V169: 51.7 | W169: 70.2 | X169: 72.5 | Y169: 61.2 | Z169: 65.1 | AA169: 64.6 | AB169: 70.4 | AC169: 0 | AD169: 91.3 | AE169: 84.4 | AF169: 90.9 | AG169: 63.3 | AH169: 60.9 | AI169: 0 | AJ169: 72.2 | AK169: 90.5 | AL169: 0 | AM169: 0 | AN169: 0 | AO169: 0 | AP169: 0 | AQ169: 0
B170: Canola meal | E170: 19 | F170: =AB156 -> Canola-19 | H170: 375 | O170: C fraction, % CP | R170: 5.8 | S170: 18.5 | T170: 7.4 | U170: 9.5 | V170: 11.6 | W170: 2 | X170: 3.6 | Y170: 8.6 | Z170: 7.8 | AA170: 17.1 | AB170: 6.4 | AC170: 0 | AD170: 0 | AE170: 0.6 | AF170: 5.2 | AG170: 8.2 | AH170: 29 | AI170: 0 | AJ170: 5.3 | AK170: 5 | AL170: 0 | AM170: 0 | AN170: 0 | AO170: 0 | AP170: 0 | AQ170: 0
B171: Fats and Oils, calcium soaps | E171: 40 | F171: =AC156 -> FatCa-40 | H171: 1530.61 | O171: Kd of fraction B, %/h | R171: 12.3 | S171: 4.4 | T171: 12.2 | U171: 15.5 | V171: 8.1 | W171: 10.9 | X171: 4.9 | Y171: 22.7 | Z171: 18.8 | AA171: 4.7 | AB171: 10.4 | AC171: 0 | AD171: 2.4 | AE171: 7.5 | AF171: 2.3 | AG171: 3.6 | AH171: 1.9 | AI171: 0 | AJ171: 6.2 | AK171: 2 | AL171: 0 | AM171: 0 | AN171: 0 | AO171: 0 | AP171: 0 | AQ171: 0
B172: Soybean meal, expellers | E172: 104 | F172: =AD156 -> SBMx-104 | H172: 738.64 | O172: Ca, (%) | R172: 0.56 | S172: 0.2 | T172: 1.27 | U172: 0.99 | V172: 0.57 | W172: 0.32 | X172: 0.04 | Y172: 0.06 | Z172: 0.05 | AA172: 0.3 | AB172: 0.75 | AC172: 12 | AD172: 0.36 | AE172: 0.35 | AF172: 0.06 | AG172: 0.22 | AH172: 0.3 | AI172: 0 | AJ172: 0.63 | AK172: 0.91 | AL172: 39.39 | AM172: 0 | AN172: 0 | AO172: 23.28 | AP172: 0 | AQ172: 0
B173: Soybean meal, solvent | E173: 107 | F173: =AE156 -> SBM48-107 | H173: 511.11 | O173: Ca availibility (%) | R173: 0.3 | S173: 0.6 | T173: 0.3 | U173: 0.3 | V173: 0.3 | W173: 0.6 | X173: 0.6 | Y173: 0.6 | Z173: 0.6 | AA173: 0.6 | AB173: 0.6 | AC173: 0.8 | AD173: 0.6 | AE173: 0.6 | AF173: 0.6 | AG173: 0.6 | AH173: 0.6 | AI173: 0 | AJ173: 0.6 | AK173: 0.6 | AL173: 0.75 | AM173: 0 | AN173: 0 | AO173: 0.7 | AP173: 0 | AQ173: 0
B174: Corn gluten meal, dried | E174: 25 | F174: =AF156 -> CGM-25 | H174: 786.05 | O174: P, (%) | R174: 0.44 | S174: 0.23 | T174: 0.32 | U174: 0.31 | V174: 0.25 | W174: 0.6 | X174: 0.3 | Y174: 0.39 | Z174: 0.43 | AA174: 0.67 | AB174: 1.1 | AC174: 0 | AD174: 0.66 | AE174: 0.7 | AF174: 0.6 | AG174: 0.83 | AH174: 0.3 | AI174: 0 | AJ174: 0.17 | AK174: 0.09 | AL174: 0.04 | AM174: 22.5 | AN174: 0 | AO174: 0 | AP174: 0 | AQ174: 0
B175: Corn distillers grain with solubles, dried | E175: 23 | F175: =AG156 -> CoDi-23 | H175: 241.76 | O175: P availibility (%) | R175: 0.64 | S175: 0.7 | T175: 0.64 | U175: 0.64 | V175: 0.64 | W175: 0.7 | X175: 0.7 | Y175: 0.7 | Z175: 0.7 | AA175: 0.7 | AB175: 0.7 | AC175: 0 | AD175: 0.7 | AE175: 0.7 | AF175: 0.7 | AG175: 0.7 | AH175: 0.7 | AI175: 0 | AJ175: 0.7 | AK175: 0.7 | AL175: 0.7 | AM175: 0.9 | AN175: 0 | AO175: 0 | AP175: 0 | AQ175: 0
B176: Blood meal ring dried | E176: 14 | F176: =AH156 -> Bld Meal-14 | H176: 616.25 | O176: K, (%) | R176: 3.36 | S176: 0.99 | T176: 2.57 | U176: 2.42 | V176: 1.85 | W176: 1.99 | X176: 0.42 | Y176: 0.56 | Z176: 0.5 | AA176: 0.5 | AB176: 1.41 | AC176: 0 | AD176: 2.12 | AE176: 2.41 | AF176: 0.46 | AG176: 1.1 | AH176: 0.33 | AI176: 0 | AJ176: 1.51 | AK176: 0.96 | AL176: 0.06 | AM176: 0 | AN176: 0 | AO176: 0 | AP176: 0 | AQ176: 0
B177: Urea | F177: =AI156 -> Urea | H177: 867.35 | O177: K availibility (%) | R177: 0.9 | S177: 0.9 | T177: 0.9 | U177: 0.9 | V177: 0.9 | W177: 0.9 | X177: 0.9 | Y177: 0.9 | Z177: 0.9 | AA177: 0.9 | AB177: 0.9 | AC177: 0 | AD177: 0.9 | AE177: 0.9 | AF177: 0.9 | AG177: 0.9 | AH177: 0.9 | AI177: 0 | AJ177: 0.9 | AK177: 0.9 | AL177: 0.9 | AM177: 0 | AN177: 0 | AO177: 0 | AP177: 0.9 | AQ177: 0
B178: Soybean hulls, | E178: 103 | F178: =AJ156 -> SoyHull-103 | H178: 247.25 | O178: Mg, (%) | R178: 0.2 | S178: 0.15 | T178: 0.26 | U178: 0.24 | V178: 0.17 | W178: 0.25 | X178: 0.12 | Y178: 0.14 | Z178: 0.15 | AA178: 0.26 | AB178: 0.53 | AC178: 0 | AD178: 0.3 | AE178: 0.29 | AF178: 0.14 | AG178: 0.33 | AH178: 0.03 | AI178: 0 | AJ178: 0.25 | AK178: 0.23 | AL178: 0.05 | AM178: 0 | AN178: 56.2 | AO178: 0 | AP178: 0 | AQ178: 9.8
B179: =+AK156 -> Beet pulp-11 | E179: 11 | F179: =AK156 -> Beet pulp-11 | H179: 466.48 | O179: Mg availibility (%) | R179: 0.16 | S179: 0.16 | T179: 0.16 | U179: 0.16 | V179: 0.16 | W179: 0.16 | X179: 0.16 | Y179: 0.16 | Z179: 0.16 | AA179: 0.16 | AB179: 0.16 | AC179: 0 | AD179: 0.16 | AE179: 0.16 | AF179: 0.16 | AG179: 0.16 | AH179: 0.16 | AI179: 0 | AJ179: 0.16 | AK179: 0.16 | AL179: 0.16 | AM179: 0 | AN179: 0.7 | AO179: 0 | AP179: 0 | AQ179: 0.9
B180: Calcium carbonate | F180: =AL156 -> CaCO3 | H180: 281.406 | O180: Na, (%) | R180: 0.02 | S180: 0.01 | T180: 0.02 | U180: 0.08 | V180: 0.08 | W180: 0.01 | X180: 0.02 | Y180: 0.02 | Z180: 0.01 | AA180: 0.04 | AB180: 0.07 | AC180: 0 | AD180: 0.04 | AE180: 0.03 | AF180: 0.05 | AG180: 0.3 | AH180: 0.4 | AI180: 0 | AJ180: 0.01 | AK180: 0.31 | AL180: 0.06 | AM180: 16.68 | AN180: 0 | AO180: 0 | AP180: 39.34 | AQ180: 0
B181: Sodium phosphate, monobasic | F181: =AM156 -> NaH2PO4.H20 | H181: 783.51 | O181: Na availibility (%) | R181: 0.9 | S181: 0.9 | T181: 0.9 | U181: 0.9 | V181: 0.9 | W181: 0.9 | X181: 0.9 | Y181: 0.9 | Z181: 0.9 | AA181: 0.9 | AB181: 0.9 | AC181: 0 | AD181: 0.9 | AE181: 0.9 | AF181: 0.9 | AG181: 0.9 | AH181: 0.9 | AI181: 0 | AJ181: 0.9 | AK181: 0.9 | AL181: 0.9 | AM181: 0.9 | AN181: 0 | AO181: 0 | AP181: 0.9 | AQ181: 0
B182: Magnesium Oxide | F182: =AN156 -> MgO | H182: 766.84 | O182: Cl, (%) | R182: 0.56 | S182: 0.29 | T182: 0.61 | U182: 0.43 | V182: 0.92 | W182: 0.04 | X182: 0.08 | Y182: 0.13 | Z182: 0.11 | AA182: 0.07 | AB182: 0.04 | AC182: 0 | AD182: 0.1 | AE182: 0.13 | AF182: 0.11 | AG182: 0.26 | AH182: 0.33 | AI182: 0 | AJ182: 0.05 | AK182: 0.18 | AL182: 0 | AM182: 0 | AN182: 0 | AO182: 0 | AP182: 60.663 | AQ182: 0
B183: Calcium Sulfate | F183: =AO156 -> CaSO4.2H20 | H183: 505.05 | O183: Cl availibility (%) | R183: 0.9 | S183: 0.9 | T183: 0.9 | U183: 0.9 | V183: 0.9 | W183: 0.9 | X183: 0.9 | Y183: 0.9 | Z183: 0.9 | AA183: 0.9 | AB183: 0.9 | AC183: 0 | AD183: 0.9 | AE183: 0.9 | AF183: 0.9 | AG183: 0.9 | AH183: 0.9 | AI183: 0 | AJ183: 0.9 | AK183: 0.9 | AL183: 0.9 | AM183: 0 | AN183: 0 | AO183: 0 | AP183: 0.9 | AQ183: 0
B184: Sodium chloride | F184: =AP156 -> NaCl | H184: 357.14 | O184: S, (%) | R184: 0.2 | S184: 0.14 | T184: 0.28 | U184: 0.26 | V184: 0.24 | W184: 0.31 | X184: 0.1 | Y184: 0.12 | Z184: 0.15 | AA184: 0.38 | AB184: 0.73 | AC184: 0 | AD184: 0.34 | AE184: 0.39 | AF184: 0.86 | AG184: 0.44 | AH184: 0.77 | AI184: 0 | AJ184: 0.12 | AK184: 0.3 | AL184: 0 | AM184: 0 | AN184: 0 | AO184: 18.62 | AP184: 0 | AQ184: 13.31
B185: Magesium sulfate heptahydrate | F185: =AQ156 -> MgSO4.7H20 | H185: 606.6 | O185: DCAD (meq/kg) | R185: =(R176*10000/39.0983)+(R180*10000/22.9898)-(R182*10000/35.453)-(R184*10000/16.065) -> 585.6220673 | S185: 88.61328823 | T185: 319.6663708 | U185: 370.6209301 | V185: 99.07281184 | W185: 309.0746726 | X185: 31.30885327 | Y185: 40.56343364 | Z185: 7.834877992 | AA185: =(AA176*10000/39.0983)+(AA180*10000/22.9898)-(AA182*10000/35.453)-(AA184*10000/16.065) -> -111.0016921 | AB185: =(AB176*10000/39.0983)+(AB180*10000/22.9898)-(AB182*10000/35.453)-(AB184*10000/16.065) -> -74.60875085 | AC185: =(AC176*10000/39.0983)+(AC180*10000/22.9898)-(AC182*10000/35.453)-(AC184*10000/16.065) -> 0 | AD185: 319.7755145 | AE185: 350.0123144 | AF185: -426.951285 | AG185: 64.61094604 | AH185: -313.9909617 | AI185: 0 | AJ185: 301.7560808 | AK185: =(AK176*10000/39.0983)+(AK180*10000/22.9898)-(AK182*10000/35.453)-(AK184*10000/16.065) -> 142.8645734 | AL185: =(AL176*10000/39.0983)+(AL180*10000/22.9898)-(AL182*10000/35.453)-(AL184*10000/16.065) -> 41.44446641 | AM185: 7255.391521 | AN185: 0 | AO185: -11590.41394 | AP185: 1.113818515 | AQ185: -8285.091815
O186: Ash, (%) | R186: 9.8 | S186: 4.3 | T186: 10.8 | U186: 9.1 | V186: 8.8 | W186: 5.9 | X186: 1.5 | Y186: 2.9 | Z186: 2 | AA186: 4.3 | AB186: 7.4 | AC186: 15.5 | AD186: 5.5 | AE186: 6.4 | AF186: 3.3 | AG186: 5.2 | AH186: 2.5 | AI186: 100 | AJ186: 4.8 | AK186: 7.3 | AL186: 100 | AM186: 100 | AN186: 100 | AO186: 100 | AP186: 100 | AQ186: 100
A187: 4.2. Additional Costs
B188: Transportation cost of: | O188: Price, $/t DM | R188: =H157 -> 0 | S188: =H158 -> 94.86666667 | T188: =H159 -> 174 | U188: =H160 -> 152.3333333 | V188: =H161 -> 154.1666667 | W188: =H162 -> 444.44 | X188: =H163 -> 252.81 | Y188: =H164 -> 198.86 | Z188: =H165 -> 231.81 | AA188: =H169 -> 266.67 | AB188: =H170 -> 375 | AC188: =H171 -> 1530.61 | AD188: =H172 -> 738.64 | AE188: =H173 -> 511.11 | AF188: =H174 -> 786.05 | AG188: =H175 -> 241.76 | AH188: =H176 -> 616.25 | AI188: =H177 -> 867.35 | AJ188: =H178 -> 247.25 | AK188: =H179 -> 466.48 | AL188: =H180 -> 281.406 | AM188: =H181 -> 783.51 | AN188: =H182 -> 766.84 | AO188: =H183 -> 505.05 | AP188: =H184 -> 357.14 | AQ188: =H185 -> 606.6
B189: Purchased forages, $/t DM | H189: 0 | O189: Transport, $/t DM | R189: =H189 -> 0 | S189: =H189 -> 0 | T189: =H189 -> 0 | U189: =H189 -> 0 | V189: =H189 -> 0 | W189: =H190 -> 0 | X189: =H190 -> 0 | Y189: =H190 -> 0 | Z189: =H190 -> 0 | AA189: =H190 -> 0 | AB189: =H190 -> 0 | AC189: =$H$190 -> 0 | AD189: 0 | AE189: 0 | AF189: 0 | AG189: 0 | AH189: 0 | AI189: 0 | AJ189: 0 | AK189: 0 | AL189: 0 | AM189: 0 | AN189: =$H$190 -> 0 | AO189: =$H$190 -> 0 | AP189: =$H$190 -> 0 | AQ189: =H190 -> 0
B190: Purchased concentrates & minerals, $/t DM | H190: 0 | O190: Storage costs, $/t DM | R190: =IF(OR(R158="S",R158="H"),$H$192,IF(OR(R158="C",R158="PA"),$H$193,IF(R158="M",$H$194,0))) -> 0 | S190: =IF(OR(S158="S",S158="H"),$H$192,IF(OR(S158="C",S158="PA"),$H$193,IF(S158="M",$H$194,0))) -> 4.19 | T190: =IF(OR(T158="S",T158="H"),$H$192,IF(OR(T158="C",T158="PA"),$H$193,IF(T158="M",$H$194,0))) -> 4.19 | U190: 4.19 | V190: 4.19 | W190: 2 | X190: 2 | Y190: 2 | Z190: 2 | AA190: 2 | AB190: 2 | AC190: 0 | AD190: 2 | AE190: 2 | AF190: 2 | AG190: 2 | AH190: 0 | AI190: 1.3 | AJ190: 2 | AK190: 2 | AL190: 1.3 | AM190: 1.3 | AN190: 1.3 | AO190: 1.3 | AP190: 1.3 | AQ190: 1.3
B191: Storage costs of: | O191: Field & storage losses, % | R191: =I198 -> 15 | S191: =D198 -> 17 | T191: =E198 -> 17 | U191: =E198 -> 17 | V191: 18 | W191: 3 | X191: =G198 -> 3 | Y191: =G198 -> 3 | Z191: =G198 -> 3
B192: Forages, S/t DM | H192: 4.19 | O192: Refusals, % of used | R192: 0 | S192: =D199 -> 5 | T192: =E199 -> 5 | U192: 5 | V192: 10 | W192: 2 | X192: =G199 -> 2 | Y192: =G199 -> 2 | Z192: =G199 -> 2 | AA192: =G199 -> 2 | AB192: =G199 -> 2 | AC192: =G199 -> 2 | AD192: =G199 -> 2 | AE192: =G199 -> 2 | AF192: =G199 -> 2 | AG192: =G199 -> 2 | AH192: =G199 -> 2 | AI192: =H199 -> 1 | AJ192: =G199 -> 2 | AK192: =G199 -> 2 | AL192: =H199 -> 1 | AM192: =H199 -> 1 | AN192: 1 | AO192: 1 | AP192: =H199 -> 1 | AQ192: =H199 -> 1
B193: Concentrates, $/t DM | H193: 2 | O193: *Inventory Change | V193: * If min = 0 and max = 0, then amount produced = amount used
B194: Minerals, $/t DM | H194: 1.3 | O194: Minimum, t | R194: =J157 -> 0 | S194: =J158 -> 0 | T194: =J159 -> 0 | U194: =J160 -> 0 | V194: * If min = 0 and max > 0 then amount produced > amount used and the excess is sold
O195: Maximum, t | R195: =K157 -> 0 | S195: =K158 -> 0 | T195: =K159 -> 0 | U195: =K160 -> 0 | V195: * If min < 0 and max = 0 then amount produced < amount used and the deficit is purchased
A196: 4.3. Feed Losses | V196: * If min < 0 and max > 0 then N-CyCLE decides whether one should overproduce or underproduce
D197: =F158 -> CoSi-35 | E197: Other Silages | F197: Hays | G197: Concentrates | H197: Minerals | I197: Pastures
B198: Field & storage losses, % | D198: 17 | E198: 17 | F198: 18 | G198: 3 | I198: 15
B199: Refusals, % of used | D199: 5 | E199: 5 | F199: 10 | G199: 2 | H199: 1 | R199: =R156 -> GrPast-49 | S199: CoSi-35 | T199: AlSi-83 | U199: MxSi-71 | V199: GrHy-52 | W199: SBw-108 | X199: CoGr-27 | Y199: Barley-8 | Z199: Wheat-116 | AA199: Brewers grains-16 | AB199: Canola-19 | AC199: FatCa-40 | AD199: SBMx-104 | AE199: SBM48-107 | AF199: CGM-25 | AG199: CoDi-23 | AH199: Bld Meal-14 | AI199: Urea | AJ199: SoyHull-103 | AK199: Beet pulp-11 | AL199: CaCO3 | AM199: NaH2PO4.H20 | AN199: MgO | AO199: CaSO4.2H20 | AP199: NaCl | AQ199: MgSO4.7H20
O200: =B203 -> CoGr-27 | R200: =IF($O200=R$199,1,0) -> 0 | S200: =IF($O200=S$199,1,0) -> 0 | T200: =IF($O200=T$199,1,0) -> 0 | U200: 0 | V200: 0 | W200: 0 | X200: 1 | Y200: 0 | Z200: 0 | AA200: 0 | AB200: 0 | AC200: 0 | AD200: 0 | AE200: 0 | AF200: 0 | AG200: 0 | AH200: 0 | AI200: =IF($O200=AI$199,1,0) -> 0 | AJ200: 0 | AK200: 0 | AL200: 0 | AM200: 0 | AN200: 0 | AO200: 0 | AP200: 0 | AQ200: 0
A201: 4.4. Feed with limits in Rations | O201: =B204 -> Barley-8 | R201: =IF($O201=R$199,1,0) -> 0 | S201: 0 | T201: 0 | U201: 0 | V201: 0 | W201: 0 | X201: 0 | Y201: 1 | Z201: 0 | AA201: 0 | AB201: 0 | AC201: 0 | AD201: 0 | AE201: 0 | AF201: 0 | AG201: 0 | AH201: 0 | AI201: 0 | AJ201: 0 | AK201: 0 | AL201: 0 | AM201: 0 | AN201: 0 | AO201: 0 | AP201: 0 | AQ201: 0
B202: Maximum (upper limit) of feed in ration DM of any animal group (% of feed ingredient mix, dry matter basis) | O202: Wheat-116 | R202: 0 | S202: 0 | T202: 0 | U202: 0 | V202: 0 | W202: 0 | X202: 0 | Y202: 0 | Z202: 1 | AA202: 0 | AB202: 0 | AC202: 0 | AD202: 0 | AE202: 0 | AF202: 0 | AG202: 0 | AH202: 0 | AI202: 0 | AJ202: 0 | AK202: 0 | AL202: 0 | AM202: 0 | AN202: 0 | AO202: 0 | AP202: 0 | AQ202: 0
B203: CoGr-27 | H203: 40 | O203: CoSi-35 | R203: 0 | S203: 1 | T203: 0 | U203: 0 | V203: 0 | W203: 0 | X203: 0 | Y203: 0 | Z203: 0 | AA203: 0 | AB203: 0 | AC203: 0 | AD203: 0 | AE203: 0 | AF203: 0 | AG203: 0 | AH203: 0 | AI203: 0 | AJ203: 0 | AK203: 0 | AL203: 0 | AM203: 0 | AN203: 0 | AO203: 0 | AP203: 0 | AQ203: 0
B204: Barley-8 | H204: 20 | O204: GrHy-52 | R204: 0 | S204: 0 | T204: 0 | U204: 0 | V204: 1 | W204: 0 | X204: 0 | Y204: 0 | Z204: 0 | AA204: 0 | AB204: 0 | AC204: 0 | AD204: 0 | AE204: 0 | AF204: 0 | AG204: 0 | AH204: 0 | AI204: 0 | AJ204: 0 | AK204: 0 | AL204: 0 | AM204: 0 | AN204: 0 | AO204: 0 | AP204: 0 | AQ204: 0
B205: Wheat-116 | H205: 20 | O205: CoDi-23 | R205: 0 | S205: 0 | T205: 0 | U205: 0 | V205: 0 | W205: 0 | X205: 0 | Y205: 0 | Z205: 0 | AA205: 0 | AB205: 0 | AC205: 0 | AD205: 0 | AE205: 0 | AF205: 0 | AG205: 1 | AH205: 0 | AI205: 0 | AJ205: 0 | AK205: 0 | AL205: 0 | AM205: 0 | AN205: 0 | AO205: 0 | AP205: 0 | AQ205: 0
B206: CoSi-35 | H206: 40 | O206: Bld Meal-14 | R206: 0 | S206: 0 | T206: 0 | U206: 0 | V206: 0 | W206: 0 | X206: 0 | Y206: 0 | Z206: 0 | AA206: 0 | AB206: 0 | AC206: 0 | AD206: 0 | AE206: 0 | AF206: 0 | AG206: 0 | AH206: 1 | AI206: 0 | AJ206: 0 | AK206: 0 | AL206: 0 | AM206: 0 | AN206: 0 | AO206: 0 | AP206: 0 | AQ206: 0
B207: GrHy-52 | H207: 10 | O207: Beet pulp-11 | R207: 0 | S207: 0 | T207: 0 | U207: 0 | V207: 0 | W207: 0 | X207: 0 | Y207: 0 | Z207: 0 | AA207: 0 | AB207: 0 | AC207: 0 | AD207: 0 | AE207: 0 | AF207: 0 | AG207: 0 | AH207: 0 | AI207: 0 | AJ207: 0 | AK207: 1 | AL207: 0 | AM207: 0 | AN207: 0 | AO207: 0 | AP207: 0 | AQ207: 0
B208: CoDi-23 | H208: 15 | O208: Urea | R208: 0 | S208: 0 | T208: 0 | U208: 0 | V208: 0 | W208: 0 | X208: 0 | Y208: 0 | Z208: 0 | AA208: 0 | AB208: 0 | AC208: 0 | AD208: 0 | AE208: 0 | AF208: 0 | AG208: 0 | AH208: 0 | AI208: 1 | AJ208: 0 | AK208: 0 | AL208: 0 | AM208: 0 | AN208: 0 | AO208: 0 | AP208: 0 | AQ208: 0
B209: Bld Meal-14 | H209: 10 | O209: NaCl | R209: 0 | S209: 0 | T209: 0 | U209: 0 | V209: 0 | W209: 0 | X209: 0 | Y209: 0 | Z209: 0 | AA209: 0 | AB209: 0 | AC209: 0 | AD209: 0 | AE209: 0 | AF209: 0 | AG209: 0 | AH209: 0 | AI209: 0 | AJ209: 0 | AK209: 0 | AL209: 0 | AM209: 0 | AN209: 0 | AO209: 0 | AP209: 1 | AQ209: 0
B210: =B179 -> Beet pulp-11 | H210: 20 | O210: Desired upper Limit (% of ration DM) | R210: =IF(SUM(R200:R209)=0,0,VLOOKUP(R$199,$B$203:$H$212,7,FALSE)) -> 0 | S210: =IF(SUM(S200:S209)=0,0,VLOOKUP(S$199,$B$203:$H$212,7,FALSE)) -> 40 | T210: 0 | U210: 0 | V210: 10 | W210: 0 | X210: 40 | Y210: 20 | Z210: 20 | AA210: 0 | AB210: 0 | AC210: 0 | AD210: 0 | AE210: 0 | AF210: 0 | AG210: 15 | AH210: 10 | AI210: 1.5 | AJ210: 0 | AK210: 20 | AL210: 0 | AM210: 0 | AN210: 0 | AO210: 0 | AP210: 3.5 | AQ210: 0
B211: Urea | H211: 1.5 | R211: Leave blank if no limit is desired
B212: NaCl | H212: 3.5
A214: 4.5. Drinking Water Composition:
B215: K, mg/l | H215: 5
B216: Na, mg/l | H216: 74
B217: Cl, mg/l | H217: 75
B218: S, mg/l | H218: 19
A220: 5.0 Manure and Fertilizers | I220: Back to top
A221: 5.1. Manure Production and Nutrient Excretion | O221: MANURE NUTRIENTS, COSTS AND NUTRIENT LOSSES
G222: GROUP | O222: 5.1. Manure Production and Nutrient Excretion | U222: GROUP | X222: Note that cells highlighted in blue are used in N-CyCLE calcualtions | AD222: For advance users only: Process-based model (Proportions of N entering a management level)
E223: 1 | F223: 2 | G223: 3 | H223: 4 | I223: 5 | S223: 1 | T223: 2 | U223: 3 | V223: 4 | W223: 5 | X223: but others are literature estimates based on your earlier inputs | AD223: Method of collection/storage: | AG223: N | AH223: P2O5 | AI223: K2O | AJ223: Na | AK223: Cl | AL223: S
E224: =E98 -> Early lactation | F224: =F98 -> Mid-late lac. | G224: =G98 -> Dry cows | H224: =H98 -> Heifers<1yr old | I224: =I98 -> Heifers>1yr old | S224: =P43 -> Early lactation | T224: =Q43 -> Mid-late lac. | U224: =R43 -> Dry cows | V224: =S43 -> Heifers<1yr old | W224: =T43 -> Heifers>1yr old | X224: Note the differences between the two references listed here! | AD224: Liquid manure (L) | AG224: 0.7 | AH224: 1 | AI224: 1 | AJ224: 1 | AK224: 1 | AL224: 1
D225: Daily manure excretion, kg as-is | E225: =S226 -> 67.36673104 | F225: =T226 -> 63.54928266 | G225: =U226 -> 36.078 | H225: =V233 -> 15.3209254 | I225: =W233 -> 27.39206061 | P225: As Described in ASAE, 2005 | S225: =(P47*0.954)+(P46*0.037)+(P45*0.017)+(P49/100*186.72)+(P50/100*0.94*1141.48)-33.06 -> 62.98899585 | T225: =(Q47*0.954)+(Q46*0.037)+(Q45*0.017)+(Q49/100*186.72)+(Q50/100*0.94*1141.48)-33.06 -> 60.34514281 | U225: =R46*0.022+21.844 -> 36.078 | V225: =IF($E$27=4,0,0) -> 0 | AD225: Solid manure (S) | AG225: 0.65 | AH225: 1 | AI225: 1 | AJ225: 1 | AK225: 1 | AL225: 1
R226: Daily manure excretion, kg as-is | S226: =(P47*0.172)+(E101*2.207)+(P49/100*171.83)+(P50*0.94/100*505.31)-8.17 -> 67.36673104 | T226: =(Q47*0.172)+(F101*2.207)+(Q49/100*171.83)+(Q50*0.94/100*505.31)-8.17 -> 63.54928266 | U226: =R46*0.022+21.844 -> 36.078 | V226: =IF($E$27=4,((S46*0.022)+21.844),((H101*3.886)-(S46*0.029)+5.641)) -> 19.69008079 | W226: =(I101*3.886)-(T46*0.029)+5.641 -> 39.36849947 | X226: Weight of "fresh" feces + urine excreted per day | AD226: Type of storage facility:
... 176 more rows

Sheet Inputs
B8: Scenario | C8: 1
A21: 1. Herd description
B22: Number of group (total=5)
B23: 3C- 2H (3); 4C-1H (4) | C23: =IF($C$8=1,'Scenario 1'!E27,'Scenario 2'!E27) -> 3
A29: 1.1. Herd structure: Cows
B30: Breed | C30: =IF($C$8=1,'Scenario 1'!E30,'Scenario 2'!E30) -> Holstein
B31: Total cow number | C31: =IF($C$8=1,'Scenario 1'!E31,'Scenario 2'!E31) -> 107 | D31: Total cows
B32: Herd BW (kg) | C32: =IF($C$8=1,'Scenario 1'!E32,'Scenario 2'!E32) -> 624 | D32: kg
B33: Calving interval | C33: =IF($C$8=1,'Scenario 1'!E33,'Scenario 2'!E33) -> 13.9 | D33: months
B34: Culling rate | C34: =IF($C$8=1,'Scenario 1'!E34,'Scenario 2'!E34) -> 36 | D34: %
A38: 1.2. Herd structure: Replacement heifers
B39: Mortality rate (heifers < 1yr) | C39: =IF($C$8=1,'Scenario 1'!E39,'Scenario 2'!E39) -> 10 | D39: %
B40: Age at first calving | C40: =IF($C$8=1,'Scenario 1'!E40,'Scenario 2'!E40) -> 26 | D40: Months
B42: Heifer: Grow all (1) vs. | C42: =IF($C$8=1,'Scenario 1'!E42,'Scenario 2'!E42) -> 2
B43: only for replacement (2)
A45: 1.3. Herd production parameters
B46: Peak milk production, kg/d | C46: =IF(C8=1,'Scenario 1'!E46,'Scenario 2'!E46) -> 46.37 | D46: kg/d
B47: Milk performance, kg/cow/lactation | C47: =IF(C8=1,'Scenario 1'!E47,'Scenario 2'!E47) -> 11538.75717 | D47: kg/cow/Lactation
B48: Milk performance, kg/cow/365 day | C48: =IF(C8=1,'Scenario 1'!E48,'Scenario 2'!E48) -> 9961.516981 | D48: Kg/cow/365-day
B49: Milk composition
B50: Fat, % | C50: =IF($C$8=1,'Scenario 1'!E50,'Scenario 2'!E50) -> 3.6 | D50: %
B51: Protein, % | C51: =IF($C$8=1,'Scenario 1'!E51,'Scenario 2'!E51) -> 3.1 | D51: %
B52: Other solid, % | C52: =IF($C$8=1,'Scenario 1'!E52,'Scenario 2'!E52) -> 5.7 | D52: %
A54: 1.4 Herd Description: Summary
B55: Items | E55: GROUP
C56: 1 | D56: 2 | E56: 3 | F56: 4 | G56: 5
C57: =IF($C$8=1,'Scenario 1'!P43,'Scenario 2'!P43) -> Early lactation | D57: =IF($C$8=1,'Scenario 1'!Q43,'Scenario 2'!Q43) -> Mid-late lac. | E57: =IF($C$8=1,'Scenario 1'!R43,'Scenario 2'!R43) -> Dry cows | F57: =IF($C$8=1,'Scenario 1'!S43,'Scenario 2'!S43) -> Heifers<1yr old | G57: =IF($C$8=1,'Scenario 1'!T43,'Scenario 2'!T43) -> Heifers>1yr old
B58: Total Days | C58: =IF($C$8=1,'Scenario 1'!P44,'Scenario 2'!P44) -> 152 | D58: =IF($C$8=1,'Scenario 1'!Q44,'Scenario 2'!Q44) -> 211 | E58: =IF($C$8=1,'Scenario 1'!R44,'Scenario 2'!R44) -> 60 | F58: =IF($C$8=1,'Scenario 1'!S44,'Scenario 2'!S44) -> 319 | G58: =IF($C$8=1,'Scenario 1'!T44,'Scenario 2'!T44) -> 426
B59: Days in milk | C59: =IF($C$8=1,'Scenario 1'!P45,'Scenario 2'!P45) -> 76 | D59: =IF($C$8=1,'Scenario 1'!Q45,'Scenario 2'!Q45) -> 257.5 | E59: =IF($C$8=1,'Scenario 1'!R45,'Scenario 2'!R45) -> na | F59: =IF($C$8=1,'Scenario 1'!S45,'Scenario 2'!S45) -> na | G59: =IF($C$8=1,'Scenario 1'!T45,'Scenario 2'!T45) -> na
B60: BW, kg | C60: =IF($C$8=1,'Scenario 1'!P46,'Scenario 2'!P46) -> 624 | D60: =IF($C$8=1,'Scenario 1'!Q46,'Scenario 2'!Q46) -> 624 | E60: =IF($C$8=1,'Scenario 1'!R46,'Scenario 2'!R46) -> 624 | F60: =IF($C$8=1,'Scenario 1'!S46,'Scenario 2'!S46) -> 188.914 | G60: =IF($C$8=1,'Scenario 1'!T46,'Scenario 2'!T46) -> 517.4334
B61: Milk yield, kg/d | C61: =IF($C$8=1,'Scenario 1'!P47,'Scenario 2'!P47) -> 41.733 | D61: =IF($C$8=1,'Scenario 1'!Q47,'Scenario 2'!Q47) -> 24.62247 | E61: =IF($C$8=1,'Scenario 1'!R47,'Scenario 2'!R47) -> 0 | F61: =IF($C$8=1,'Scenario 1'!S47,'Scenario 2'!S47) -> 0 | G61: =IF($C$8=1,'Scenario 1'!T47,'Scenario 2'!T47) -> 0
B62: FCM, kg/d | C62: =IF($C$8=1,'Scenario 1'!P48,'Scenario 2'!P48) -> 35.848647 | D62: =IF($C$8=1,'Scenario 1'!Q48,'Scenario 2'!Q48) -> 23.80992849 | E62: =IF($C$8=1,'Scenario 1'!R48,'Scenario 2'!R48) -> 0 | F62: =IF($C$8=1,'Scenario 1'!S48,'Scenario 2'!S48) -> 0 | G62: =IF($C$8=1,'Scenario 1'!T48,'Scenario 2'!T48) -> 0
B63: Milk fat, % | C63: =IF($C$8=1,'Scenario 1'!P49,'Scenario 2'!P49) -> 3.06 | D63: =IF($C$8=1,'Scenario 1'!Q49,'Scenario 2'!Q49) -> 3.78 | E63: =IF($C$8=1,'Scenario 1'!R49,'Scenario 2'!R49) -> 0 | F63: =IF($C$8=1,'Scenario 1'!S49,'Scenario 2'!S49) -> 0 | G63: =IF($C$8=1,'Scenario 1'!T49,'Scenario 2'!T49) -> 0
B64: Milk CP , % | C64: =IF($C$8=1,'Scenario 1'!P50,'Scenario 2'!P50) -> 2.635 | D64: =IF($C$8=1,'Scenario 1'!Q50,'Scenario 2'!Q50) -> 3.255 | E64: =IF($C$8=1,'Scenario 1'!R50,'Scenario 2'!Q50) -> 0 | F64: =IF($C$8=1,'Scenario 1'!S50,'Scenario 2'!Q50) -> 0 | G64: =IF($C$8=1,'Scenario 1'!T50,'Scenario 2'!Q50) -> 0
B65: Pregnancy, Days | C65: =IF($C$8=1,'Scenario 1'!P51,'Scenario 2'!P51) -> 0 | D65: =IF($C$8=1,'Scenario 1'!Q51,'Scenario 2'!Q51) -> 120.5 | E65: =IF($C$8=1,'Scenario 1'!R51,'Scenario 2'!R51) -> 250 | F65: =IF($C$8=1,'Scenario 1'!S51,'Scenario 2'!S51) -> 0 | G65: =IF($C$8=1,'Scenario 1'!T51,'Scenario 2'!T51) -> 32
B66: Growth, kg/d | C66: =IF($C$8=1,'Scenario 1'!P52,'Scenario 2'!P52) -> 0 | D66: =IF($C$8=1,'Scenario 1'!Q52,'Scenario 2'!Q52) -> 0 | E66: =IF($C$8=1,'Scenario 1'!R52,'Scenario 2'!R52) -> 0 | F66: =IF($C$8=1,'Scenario 1'!S52,'Scenario 2'!S52) -> 0.8 | G66: =IF($C$8=1,'Scenario 1'!T52,'Scenario 2'!T52) -> 0.8
A69: 2. Economic inputs
A70: 2.1. Milk Incomes
B71: Milk sold | C71: =IF($C$8=1,'Scenario 1'!E57,'Scenario 2'!E57) -> 1012588.201 | D71: Kg/year
B72: Milk sold | C72: =IF($C$8=1,'Scenario 1'!E58,'Scenario 2'!E58) -> 9830.953409 | D72: hl/year
B73: Milk wasted (%) | C73: =IF($C$8=1,'Scenario 1'!E59,'Scenario 2'!E59) -> 5 | D73: %
E74: $/lb | F74: $/cwt
B75: Milk fat price | C75: =IF($C$8=1,'Scenario 1'!E61,'Scenario 2'!E61) -> 3.772109807 | D75: S/kg | E75: =IF($C$8=1,'Scenario 1'!G61,'Scenario 2'!G61) -> 1.711
B76: Milk protein price | C76: =IF($C$8=1,'Scenario 1'!E62,'Scenario 2'!E62) -> 6.355927863 | D76: $/kg | E76: =IF($C$8=1,'Scenario 1'!G62,'Scenario 2'!G62) -> 2.883
B77: Milk other solid price | C77: =IF($C$8=1,'Scenario 1'!E63,'Scenario 2'!E63) -> 0.4607661892 | D77: S/kg | E77: =IF($C$8=1,'Scenario 1'!G63,'Scenario 2'!G63) -> 0.209
B78: Hauling cost | C78: =IF($C$8=1,'Scenario 1'!E64,'Scenario 2'!E64) -> 0.4761985496 | D78: $/hl | F78: =IF($C$8=1,'Scenario 1'!H64,'Scenario 2'!H64) -> 0.216
B79: Marketing cost | C79: =IF($C$8=1,'Scenario 1'!E65,'Scenario 2'!E65) -> 0.4872216641 | D79: $/kg | F79: =IF($C$8=1,'Scenario 1'!H65,'Scenario 2'!H65) -> 0.221
B80: Milk Price ($/hl) | D80: =IF($C$8=1,'Scenario 1'!E66,'Scenario 2'!E66) -> 36.00858226 | E80: =IF($C$8=1,'Scenario 1'!G66,"-") -> 0.1636085944 | F80: =IF($C$8=1,'Scenario 1'!H66,"-") -> 16.36085944
A82: 2.2. Other incomes | E82: $/lb | F82: $/cwt
B83: Livestock | C83: =IF($C$8=1,'Scenario 1'!E70,'Scenario 2'!E70) -> 2.837032 | D83: $/hl | E83: =IF($C$8=1,'Scenario 1'!G70,'Scenario 2'!G69) -> 0.01252 | F83: =IF($C$8=1,'Scenario 1'!H70,'Scenario 2'!H69) -> 1.252
B84: Other Income | C84: =IF($C$8=1,'Scenario 1'!E71,'Scenario 2'!E71) -> 1.97142 | D84: $/hl
B85: Total ($/hl) | D85: =IF($C$8=1,'Scenario 1'!E72,'Scenario 2'!E72) -> 4.808452
A87: 2.3. Variable costs (other than feed purchased, crop-related expenses and storage costs) | F87: $/cwt
B88: Breeding fees | C88: =IF($C$8=1,'Scenario 1'!E76,'Scenario 2'!E76) -> -- | D88: $/hl | F88: =IF($C$8=1,'Scenario 1'!H76,'Scenario 2'!H76) -> --
B89: Health | C89: =IF($C$8=1,'Scenario 1'!E77,'Scenario 2'!E77) -> 2.248715373 | D89: $/hl | F89: =IF($C$8=1,'Scenario 1'!H77,'Scenario 2'!H77) -> 1.02
B90: Bedding | C90: =IF($C$8=1,'Scenario 1'!E78,'Scenario 2'!E78) -> 0.6613868744 | D90: $/hl | F90: =IF($C$8=1,'Scenario 1'!H78,'Scenario 2'!H78) -> 0.3
B91: Supplies | C91: =IF($C$8=1,'Scenario 1'!E79,'Scenario 2'!E79) -> 3.328980601 | D91: $/hl | F91: =IF($C$8=1,'Scenario 1'!H79,'Scenario 2'!H79) -> 1.51
B92: DHI | C92: =IF($C$8=1,'Scenario 1'!E80,'Scenario 2'!E80) -> 0.8598029367 | D92: $/hl | F92: =IF($C$8=1,'Scenario 1'!H80,'Scenario 2'!H80) -> 0.39
B93: Other | C93: =IF($C$8=1,'Scenario 1'!E81,'Scenario 2'!E81) -> 0.08818491659 | D93: $/hl | F93: =IF($C$8=1,'Scenario 1'!H81,'Scenario 2'!H81) -> 0.04
B94: Total ($/hl) | D94: =IF($C$8=1,'Scenario 1'!E82,'Scenario 2'!E82) -> 7.187070702
A96: 2.4. Fixed costs | E96: $/lb | F96: $/cwt
B97: Labor | C97: =IF($C$8=1,'Scenario 1'!E86,'Scenario 2'!E86) -> 37950.37757 | D97: $ | E97: =IF($C$8=1,'Scenario 1'!G86,'Scenario 2'!G86) -> 0.017 | F97: =IF($C$8=1,'Scenario 1'!H86,'Scenario 2'!H86) -> 1.7
B98: Taxes and Insurance | C98: =IF($C$8=1,'Scenario 1'!E87,'Scenario 2'!E87) -> 6250.650424 | D98: $ | E98: =IF($C$8=1,'Scenario 1'!G87,'Scenario 2'!G87) -> 0.0028 | F98: =IF($C$8=1,'Scenario 1'!H87,'Scenario 2'!H87) -> 0.28
B99: Depreciation | C99: =IF($C$8=1,'Scenario 1'!E88,'Scenario 2'!E88) -> 87509.10593 | D99: $ | E99: =IF($C$8=1,'Scenario 1'!G88,'Scenario 2'!G88) -> 0.0392 | F99: =IF($C$8=1,'Scenario 1'!H88,'Scenario 2'!H88) -> 3.92
B100: Interest | C100: =IF($C$8=1,'Scenario 1'!E89,'Scenario 2'!E89) -> 0 | D100: $
B101: Other | C101: =IF($C$8=1,'Scenario 1'!E90,'Scenario 2'!E90) -> 17189.28867 | D101: $ | E101: =IF($C$8=1,'Scenario 1'!G90,'Scenario 2'!G90) -> 0.0077 | F101: =IF($C$8=1,'Scenario 1'!H90,'Scenario 2'!H90) -> 0.77
B102: Total ($) | D102: =IF($C$8=1,'Scenario 1'!E91,'Scenario 2'!E91) -> 148899.4226
A109: 3. Ration Composition
F111: GROUP
D112: 1 | E112: 2 | F112: 3 | G112: 4 | H112: 5
D113: =IF($C$8=1,'Scenario 1'!P43,'Scenario 2'!P43) -> Early lactation | E113: =IF($C$8=1,'Scenario 1'!Q43,'Scenario 2'!Q43) -> Mid-late lac. | F113: =IF($C$8=1,'Scenario 1'!R43,'Scenario 2'!R43) -> Dry cows | G113: =IF($C$8=1,'Scenario 1'!S43,'Scenario 2'!S43) -> Heifers<1yr old | H113: =IF($C$8=1,'Scenario 1'!T43,'Scenario 2'!T43) -> Heifers>1yr old
A114: 3.1 Amount of Feed Dry Matter (DM)
B115: Animal | C115: # | D115: =IF($C$8=1,'Scenario 1'!R98,'Scenario 2'!R98) -> 38 | E115: =IF($C$8=1,'Scenario 1'!S98,'Scenario 2'!S98) -> 54 | F115: =IF($C$8=1,'Scenario 1'!T98,'Scenario 2'!T98) -> 15 | G115: =IF($C$8=1,'Scenario 1'!U98,'Scenario 2'!U98) -> 38.76248201 | H115: =IF($C$8=1,'Scenario 1'!V98,'Scenario 2'!V98) -> 41.09204137
B117: Actual days | C117: # | D117: =IF($C$8=1,'Scenario 1'!R99,'Scenario 2'!R99) -> 152 | E117: =IF($C$8=1,'Scenario 1'!S99,'Scenario 2'!S99) -> 211 | F117: =IF($C$8=1,'Scenario 1'!T99,'Scenario 2'!T99) -> 60 | G117: =IF($C$8=1,'Scenario 1'!U99,'Scenario 2'!U99) -> 319 | H117: =IF($C$8=1,'Scenario 1'!V99,'Scenario 2'!V99) -> 426
B118: 365-day basis | C118: # | D118: =IF($C$8=1,'Scenario 1'!R100,'Scenario 2'!R100) -> 131.294964 | E118: =IF($C$8=1,'Scenario 1'!S100,'Scenario 2'!S100) -> 182.2581409 | F118: =IF($C$8=1,'Scenario 1'!T100,'Scenario 2'!T100) -> 51.82695949 | G118: =IF($C$8=1,'Scenario 1'!U100,'Scenario 2'!U100) -> 365 | H118: =IF($C$8=1,'Scenario 1'!V100,'Scenario 2'!V100) -> 365
B120: DMI, Predicted (NRC 2001) | C120: kg/d | D120: =IF($C$8=1,'Scenario 1'!E99,'Scenario 2'!E99) -> 23.58355328 | E120: =IF($C$8=1,'Scenario 1'!F99,'Scenario 2'!F99) -> 20.64103004 | F120: =IF($C$8=1,'Scenario 1'!G99,'Scenario 2'!G99) -> 11.232 | G120: =IF($C$8=1,'Scenario 1'!H99,'Scenario 2'!H99) -> 5.0251124 | H120: =IF($C$8=1,'Scenario 1'!I99,'Scenario 2'!I99) -> 12.40369764
B121: Adjustement factor | C121: % | D121: =IF($C$8=1,'Scenario 1'!E100,'Scenario 2'!E100) -> 0 | E121: =IF($C$8=1,'Scenario 1'!F100,'Scenario 2'!F100) -> 0 | F121: =IF($C$8=1,'Scenario 1'!G100,'Scenario 2'!G100) -> 0 | G121: =IF($C$8=1,'Scenario 1'!H100,'Scenario 2'!H100) -> 0 | H121: =IF($C$8=1,'Scenario 1'!I100,'Scenario 2'!I100) -> 0
B122: DM Consumed | C122: kg/d | D122: =IF($C$8=1,'Scenario 1'!E101,'Scenario 2'!E101) -> 23.58355328 | E122: =IF($C$8=1,'Scenario 1'!F101,'Scenario 2'!F101) -> 20.64103004 | F122: =IF($C$8=1,'Scenario 1'!G101,'Scenario 2'!G101) -> 11.232 | G122: =IF($C$8=1,'Scenario 1'!H101,'Scenario 2'!H101) -> 5.0251124 | H122: =IF($C$8=1,'Scenario 1'!I101,'Scenario 2'!I101) -> 12.40369764
B123: DM Consumed | C123: % BW | D123: =IF($C$8=1,'Scenario 1'!R102,'Scenario 2'!R102) -> 3.779415589 | E123: =IF($C$8=1,'Scenario 1'!S102,'Scenario 2'!S102) -> 3.307857378 | F123: =IF($C$8=1,'Scenario 1'!T102,'Scenario 2'!T102) -> 1.8 | G123: =IF($C$8=1,'Scenario 1'!U102,'Scenario 2'!U102) -> 2.66 | H123: =IF($C$8=1,'Scenario 1'!V102,'Scenario 2'!V102) -> 2.39715829
B124: DM Consumed | C124: tonnes/yr | D124: =IF($C$8=1,'Scenario 1'!R103,'Scenario 2'!R103) -> 117.6632676 | E124: =IF($C$8=1,'Scenario 1'!S103,'Scenario 2'!S103) -> 203.147771 | F124: =IF($C$8=1,'Scenario 1'!T103,'Scenario 2'!T103) -> 8.731806134 | G124: =IF($C$8=1,'Scenario 1'!U103,'Scenario 2'!U103) -> 71.09682759 | H124: =IF($C$8=1,'Scenario 1'!V103,'Scenario 2'!V103) -> 186.0380387
B125: DM Consumed | C125: tonnes/yr | D125: =D122*D115/1000*365 -> 327.103884 | E125: =E122*E115/1000*365 -> 406.834702 | F125: =F122*F115/1000*365 -> 61.4952 | G125: =G122*G115/1000*365 -> 71.09682759 | H125: =H122*H115/1000*365 -> 186.0380387
B126: DM consumed | C126: tonnes/yr | D126: per Cow: | E126: =IF($C$8=1,'Scenario 1'!S104,'Scenario 2'!S104) -> 7.440517948 | G126: per Heifer: | H126: =IF($C$8=1,'Scenario 1'!V104,'Scenario 2'!V104) -> 3.220041338
A128: 3.2 Ration Composition
B129: ENl, Mcal/kg DM | C129: MINIMUM | D129: =IF($C$8=1,'Scenario 1'!E104,'Scenario 2'!E104) -> 1.673516099 | E129: =IF($C$8=1,'Scenario 1'!F104,'Scenario 2'!F104) -> 1.478636463 | F129: =IF($C$8=1,'Scenario 1'!G104,'Scenario 2'!G104) -> 1.319502365 | G129: =IF($C$8=1,'Scenario 1'!H104,'Scenario 2'!H104) -> 1.429837516 | H129: =IF($C$8=1,'Scenario 1'!I104,'Scenario 2'!I104) -> 1.308344535 | I129: =IF($C$8=1,'Scenario 1'!J104,'Scenario 2'!J104) -> 0.1 | J129: Desired adjustment above NRC guidelines
C130: MAXIMUM | D130: =IF($C$8=1,'Scenario 1'!E105,'Scenario 2'!E105) -> 2.008219319 | E130: =IF($C$8=1,'Scenario 1'!F105,'Scenario 2'!F105) -> 1.774363756 | F130: =IF($C$8=1,'Scenario 1'!G105,'Scenario 2'!G105) -> 1.583402839 | G130: =IF($C$8=1,'Scenario 1'!H105,'Scenario 2'!H105) -> 1.715805019 | H130: =IF($C$8=1,'Scenario 1'!I105,'Scenario 2'!I105) -> 1.570013442 | I130: =IF($C$8=1,'Scenario 1'!J105,'Scenario 2'!J105) -> 0.2 | J130: Maximum excess allowed in ration (Max/Min)
B132: EE, % of ration DM | C132: MAXIMUM | D132: =IF($C$8=1,'Scenario 1'!E107,'Scenario 2'!E107) -> 6.5 | E132: =IF($C$8=1,'Scenario 1'!F107,'Scenario 2'!F107) -> 6.5 | F132: =IF($C$8=1,'Scenario 1'!G107,'Scenario 2'!G107) -> 5 | G132: =IF($C$8=1,'Scenario 1'!H107,'Scenario 2'!H107) -> 4.5 | H132: =IF($C$8=1,'Scenario 1'!I107,'Scenario 2'!I107) -> 4.5
B134: Forage NDF, % of ration DM | C134: MINIMUM | D134: =IF($C$8=1,'Scenario 1'!E109,'Scenario 2'!E109) -> 17 | E134: =IF($C$8=1,'Scenario 1'!F109,'Scenario 2'!F109) -> 18 | F134: =IF($C$8=1,'Scenario 1'!G109,'Scenario 2'!G109) -> 24 | G134: =IF($C$8=1,'Scenario 1'!H109,'Scenario 2'!H109) -> 18 | H134: =IF($C$8=1,'Scenario 1'!I109,'Scenario 2'!I109) -> 18
B135: NDF, % of Ration DM | C135: MINIMUM | D135: =IF($C$8=1,'Scenario 1'!E110,'Scenario 2'!E110) -> 25 | E135: =IF($C$8=1,'Scenario 1'!F110,'Scenario 2'!F110) -> 28 | F135: =IF($C$8=1,'Scenario 1'!G110,'Scenario 2'!G110) -> 30 | G135: =IF($C$8=1,'Scenario 1'!H110,'Scenario 2'!H110) -> 28 | H135: =IF($C$8=1,'Scenario 1'!I110,'Scenario 2'!I110) -> 28
C136: MAXIMUM | D136: =IF($C$8=1,'Scenario 1'!E111,'Scenario 2'!E111) -> 100 | E136: =IF($C$8=1,'Scenario 1'!F111,'Scenario 2'!F111) -> 100 | F136: =IF($C$8=1,'Scenario 1'!G111,'Scenario 2'!G111) -> 100 | G136: =IF($C$8=1,'Scenario 1'!H111,'Scenario 2'!H111) -> 100 | H136: =IF($C$8=1,'Scenario 1'!I111,'Scenario 2'!I111) -> 100
B138: NFC, % of ration DM | C138: MINIMUM | D138: =IF($C$8=1,'Scenario 1'!E113,'Scenario 2'!E113) -> 0 | E138: =IF($C$8=1,'Scenario 1'!F113,'Scenario 2'!F113) -> 0 | F138: =IF($C$8=1,'Scenario 1'!G113,'Scenario 2'!G113) -> 0 | G138: =IF($C$8=1,'Scenario 1'!H113,'Scenario 2'!H113) -> 0 | H138: =IF($C$8=1,'Scenario 1'!I113,'Scenario 2'!I113) -> 0
C139: MAXIMUM | D139: =IF($C$8=1,'Scenario 1'!E114,'Scenario 2'!E114) -> 42 | E139: =IF($C$8=1,'Scenario 1'!F114,'Scenario 2'!F114) -> 40 | F139: =IF($C$8=1,'Scenario 1'!G114,'Scenario 2'!G114) -> 38 | G139: =IF($C$8=1,'Scenario 1'!H114,'Scenario 2'!H114) -> 42 | H139: =IF($C$8=1,'Scenario 1'!I114,'Scenario 2'!I114) -> 40
B141: RDP, % of ration DM | C141: MINIMUM | D141: =IF($C$8=1,'Scenario 1'!E116,'Scenario 2'!E116) -> 10.89707828 | E141: =IF($C$8=1,'Scenario 1'!F116,'Scenario 2'!F116) -> 9.944996859 | F141: =IF($C$8=1,'Scenario 1'!G116,'Scenario 2'!G116) -> 9.167549711 | G141: =IF($C$8=1,'Scenario 1'!H116,'Scenario 2'!H116) -> 9.861683211 | H141: =IF($C$8=1,'Scenario 1'!I116,'Scenario 2'!I116) -> 9.130600799 | I141: =IF($C$8=1,'Scenario 1'!J116,'Scenario 2'!J116) -> 0.1 | J141: Desired adjustment above NRC guidelines
C142: MAXIMUM | D142: =IF($C$8=1,'Scenario 1'!E117,'Scenario 2'!E117) -> 13.62134784 | E142: =IF($C$8=1,'Scenario 1'!F117,'Scenario 2'!F117) -> 12.43124607 | F142: =IF($C$8=1,'Scenario 1'!G117,'Scenario 2'!G117) -> 11.45943714 | G142: =IF($C$8=1,'Scenario 1'!H117,'Scenario 2'!H117) -> 12.32710401 | H142: =IF($C$8=1,'Scenario 1'!I117,'Scenario 2'!I117) -> 11.413251 | I142: =IF($C$8=1,'Scenario 1'!J117,'Scenario 2'!J117) -> 0.25 | J142: Maximum excess allowed in ration (Max/Min)
B143: RUP, % of ration DM | C143: MINIMUM | D143: =IF($C$8=1,'Scenario 1'!E118,'Scenario 2'!E118) -> 5.688107504 | E143: =IF($C$8=1,'Scenario 1'!F118,'Scenario 2'!F118) -> 5.024756479 | F143: =IF($C$8=1,'Scenario 1'!G118,'Scenario 2'!G118) -> 2.504204801 | G143: =IF($C$8=1,'Scenario 1'!H118,'Scenario 2'!H118) -> 5.314139775 | H143: =IF($C$8=1,'Scenario 1'!I118,'Scenario 2'!I118) -> 2.88464512 | I143: =IF($C$8=1,'Scenario 1'!J118,'Scenario 2'!J118) -> 0.1 | J143: Desired adjustment above NRC guidelines
B145: Crude Protein (CP) | C145: MINIMUM | D145: =IF($C$8=1,'Scenario 1'!E120,'Scenario 2'!E120) -> 16.58518578 | E145: =IF($C$8=1,'Scenario 1'!F120,'Scenario 2'!F120) -> 14.96975334 | F145: =IF($C$8=1,'Scenario 1'!G120,'Scenario 2'!G120) -> 11.67175451 | G145: =IF($C$8=1,'Scenario 1'!H120,'Scenario 2'!H120) -> 15.17582299 | H145: =IF($C$8=1,'Scenario 1'!I120,'Scenario 2'!I120) -> 12.01524592
C146: MAXIMUM | D146: =IF($C$8=1,'Scenario 1'!E121,'Scenario 2'!E121) -> 19.30945535 | E146: =IF($C$8=1,'Scenario 1'!F121,'Scenario 2'!F121) -> 17.45600255 | F146: =IF($C$8=1,'Scenario 1'!G121,'Scenario 2'!G121) -> 13.96364194 | G146: =IF($C$8=1,'Scenario 1'!H121,'Scenario 2'!H121) -> 17.64124379 | H146: =IF($C$8=1,'Scenario 1'!I121,'Scenario 2'!I121) -> 14.29789612
C147: MAX/MIN | D147: =IF($C$8=1,'Scenario 1'!E122,'Scenario 2'!E122) -> 1.164259213 | E147: =IF($C$8=1,'Scenario 1'!F122,'Scenario 2'!F122) -> 1.166084848 | F147: =IF($C$8=1,'Scenario 1'!G122,'Scenario 2'!G122) -> 1.19636186 | G147: =IF($C$8=1,'Scenario 1'!H122,'Scenario 2'!H122) -> 1.16245714 | H147: =IF($C$8=1,'Scenario 1'!I122,'Scenario 2'!I122) -> 1.189979482
B149: Available P | C149: MINIMUM | D149: =IF($C$8=1,'Scenario 1'!E124,'Scenario 2'!E124) -> 0.2777817879 | E149: =IF($C$8=1,'Scenario 1'!F124,'Scenario 2'!F124) -> 0.2254176121 | F149: =IF($C$8=1,'Scenario 1'!G124,'Scenario 2'!G124) -> 0.1585184486 | G149: =IF($C$8=1,'Scenario 1'!H124,'Scenario 2'!H124) -> 0.2283514105 | H149: =IF($C$8=1,'Scenario 1'!I124,'Scenario 2'!I124) -> 0.1545962238 | I149: =IF($C$8=1,'Scenario 1'!J124,'Scenario 2'!J124) -> 0.05 | J149: Desired adjustment above NRC guidelines
C150: MAXIMUM | D150: =IF($C$8=1,'Scenario 1'!E125,'Scenario 2'!E125) -> 0.4166726818 | E150: =IF($C$8=1,'Scenario 1'!F125,'Scenario 2'!F125) -> 0.3381264181 | F150: =IF($C$8=1,'Scenario 1'!G125,'Scenario 2'!G125) -> 0.2377776729 | G150: =IF($C$8=1,'Scenario 1'!H125,'Scenario 2'!H125) -> 0.3425271158 | H150: =IF($C$8=1,'Scenario 1'!I125,'Scenario 2'!I125) -> 0.2318943357 | I150: =IF($C$8=1,'Scenario 1'!J125,'Scenario 2'!J125) -> 0.5 | J150: Maximum excess allowed in ration (Max/Min)
B152: Available Mg required | D152: =IF($C$8=1,'Scenario 1'!E127,'Scenario 2'!E127) -> 0.0344814452 | E152: =IF($C$8=1,'Scenario 1'!F127,'Scenario 2'!F127) -> 0.02856141622 | F152: =IF($C$8=1,'Scenario 1'!G127,'Scenario 2'!G127) -> 0.01960470085 | G152: =IF($C$8=1,'Scenario 1'!H127,'Scenario 2'!H127) -> 0.01844221435 | H152: =IF($C$8=1,'Scenario 1'!I127,'Scenario 2'!I127) -> 0.01541717845 | I152: =IF($C$8=1,'Scenario 1'!J127,'Scenario 2'!J127) -> 0.05
B153: Available desired Mg | C153: % DM | D153: =IF($C$8=1,'Scenario 1'!E128,'Scenario 2'!E128) -> 0.03620551746 | E153: =IF($C$8=1,'Scenario 1'!F128,'Scenario 2'!F128) -> 0.02998948703 | F153: =IF($C$8=1,'Scenario 1'!G128,'Scenario 2'!G128) -> 0.0205849359 | G153: =IF($C$8=1,'Scenario 1'!H128,'Scenario 2'!H128) -> 0.01936432506 | H153: =IF($C$8=1,'Scenario 1'!I128,'Scenario 2'!I128) -> 0.01618803737
B155: Available K required | D155: =IF($C$8=1,'Scenario 1'!E130,'Scenario 2'!E130) -> 0.9759817458 | E155: =IF($C$8=1,'Scenario 1'!F130,'Scenario 2'!F130) -> 0.9087869544 | F155: =IF($C$8=1,'Scenario 1'!G130,'Scenario 2'!G130) -> 0.4802546296 | G155: =IF($C$8=1,'Scenario 1'!H130,'Scenario 2'!H130) -> 0.4283292099 | H155: =IF($C$8=1,'Scenario 1'!I130,'Scenario 2'!I130) -> 0.4288405329 | I155: =IF($C$8=1,'Scenario 1'!J130,'Scenario 2'!J130) -> 0.05
B156: Available desired K | C156: % DM | D156: =IF($C$8=1,'Scenario 1'!E131,'Scenario 2'!E131) -> 1.024780833 | E156: =IF($C$8=1,'Scenario 1'!F131,'Scenario 2'!F131) -> 0.9542263021 | F156: =IF($C$8=1,'Scenario 1'!G131,'Scenario 2'!G131) -> 0.5042673611 | G156: =IF($C$8=1,'Scenario 1'!H131,'Scenario 2'!H131) -> 0.4497456704 | H156: =IF($C$8=1,'Scenario 1'!I131,'Scenario 2'!I131) -> 0.4502825595
B158: Available Ca required | D158: =IF($C$8=1,'Scenario 1'!E133,'Scenario 2'!E133) -> 0.297912105 | E158: =IF($C$8=1,'Scenario 1'!F133,'Scenario 2'!F133) -> 0.3417539609 | F158: =IF($C$8=1,'Scenario 1'!G133,'Scenario 2'!G133) -> 0.1507830982 | G158: =IF($C$8=1,'Scenario 1'!H133,'Scenario 2'!H133) -> 0.2143887488 | H158: =IF($C$8=1,'Scenario 1'!I133,'Scenario 2'!I133) -> 0.1303097902 | I158: =IF($C$8=1,'Scenario 1'!J133,'Scenario 2'!J133) -> 0.05
B159: Available desired Ca | C159: % DM | D159: =IF($C$8=1,'Scenario 1'!E134,'Scenario 2'!E134) -> 0.3128077102 | E159: =IF($C$8=1,'Scenario 1'!F134,'Scenario 2'!F134) -> 0.3588416589 | F159: =IF($C$8=1,'Scenario 1'!G134,'Scenario 2'!G134) -> 0.1583222531 | G159: =IF($C$8=1,'Scenario 1'!H134,'Scenario 2'!H134) -> 0.2251081862 | H159: =IF($C$8=1,'Scenario 1'!I134,'Scenario 2'!I134) -> 0.1368252797
B161: Available Na required | D161: =IF($C$8=1,'Scenario 1'!E136,'Scenario 2'!E136) -> 0.2120282275 | E161: =IF($C$8=1,'Scenario 1'!F136,'Scenario 2'!F136) -> 0.1900300326 | F161: =IF($C$8=1,'Scenario 1'!G136,'Scenario 2'!G136) -> 0.09570868946 | G161: =IF($C$8=1,'Scenario 1'!H136,'Scenario 2'!H136) -> 0.07867903611 | H161: =IF($C$8=1,'Scenario 1'!I136,'Scenario 2'!I136) -> 0.07160365606 | I161: =IF($C$8=1,'Scenario 1'!J136,'Scenario 2'!J136) -> 0.05
B162: Available desired Na | C162: % DM | D162: =IF($C$8=1,'Scenario 1'!E137,'Scenario 2'!E137) -> 0.2226296389 | E162: =IF($C$8=1,'Scenario 1'!F137,'Scenario 2'!F137) -> 0.1995315342 | F162: =IF($C$8=1,'Scenario 1'!G137,'Scenario 2'!G137) -> 0.1004941239 | G162: =IF($C$8=1,'Scenario 1'!H137,'Scenario 2'!H137) -> 0.08261298792 | H162: =IF($C$8=1,'Scenario 1'!I137,'Scenario 2'!I137) -> 0.07518383886
B164: Available Cl required | D164: =IF($C$8=1,'Scenario 1'!E139,'Scenario 2'!E139) -> 0.2630347907 | E164: =IF($C$8=1,'Scenario 1'!F139,'Scenario 2'!F139) -> 0.2052021649 | F164: =IF($C$8=1,'Scenario 1'!G139,'Scenario 2'!G139) -> 0.1339031339 | G164: =IF($C$8=1,'Scenario 1'!H139,'Scenario 2'!H139) -> 0.1005065081 | H164: =IF($C$8=1,'Scenario 1'!I139,'Scenario 2'!I139) -> 0.1003108255 | I164: =IF($C$8=1,'Scenario 1'!J139,'Scenario 2'!J139) -> 0.05
B165: Available desired Cl | C165: % DM | D165: =IF($C$8=1,'Scenario 1'!E140,'Scenario 2'!E140) -> 0.2761865302 | E165: =IF($C$8=1,'Scenario 1'!F140,'Scenario 2'!F140) -> 0.2154622732 | F165: =IF($C$8=1,'Scenario 1'!G140,'Scenario 2'!G140) -> 0.1405982906 | G165: =IF($C$8=1,'Scenario 1'!H140,'Scenario 2'!H140) -> 0.1055318335 | H165: =IF($C$8=1,'Scenario 1'!I140,'Scenario 2'!I140) -> 0.1053263668
B167: Available S required | D167: =IF($C$8=1,'Scenario 1'!E142,'Scenario 2'!E142) -> 0.2 | E167: =IF($C$8=1,'Scenario 1'!F142,'Scenario 2'!F142) -> 0.2 | F167: =IF($C$8=1,'Scenario 1'!G142,'Scenario 2'!G142) -> 0.2 | G167: =IF($C$8=1,'Scenario 1'!H142,'Scenario 2'!H142) -> 0.2 | H167: =IF($C$8=1,'Scenario 1'!I142,'Scenario 2'!I142) -> 0.2 | I167: =IF($C$8=1,'Scenario 1'!J142,'Scenario 2'!J142) -> 0.05
B168: Available desired S | C168: % DM | D168: =IF($C$8=1,'Scenario 1'!E143,'Scenario 2'!E143) -> 0.21 | E168: =IF($C$8=1,'Scenario 1'!F143,'Scenario 2'!F143) -> 0.21 | F168: =IF($C$8=1,'Scenario 1'!G143,'Scenario 2'!G143) -> 0.21 | G168: =IF($C$8=1,'Scenario 1'!H143,'Scenario 2'!H143) -> 0.21 | H168: =IF($C$8=1,'Scenario 1'!I143,'Scenario 2'!I143) -> 0.21
B170: DCAD | C170: mEq/kg | D170: =IF($C$8=1,'Scenario 1'!E145,'Scenario 2'!E145) -> 0 | E170: =IF($C$8=1,'Scenario 1'!F145,'Scenario 2'!F145) -> 0 | F170: =IF($C$8=1,'Scenario 1'!G145,'Scenario 2'!G145) -> 0 | G170: =IF($C$8=1,'Scenario 1'!H145,'Scenario 2'!H145) -> 0 | H170: =IF($C$8=1,'Scenario 1'!I145,'Scenario 2'!I145) -> 0
A172: 3.3 Pasture management
B173: Pasture period | C173: d | D173: =IF($C$8=1,'Scenario 1'!E148,'Scenario 2'!E148) -> 0 | E173: =IF($C$8=1,'Scenario 1'!F148,'Scenario 2'!F148) -> 0 | F173: =IF($C$8=1,'Scenario 1'!G148,'Scenario 2'!G148) -> 0 | G173: =IF($C$8=1,'Scenario 1'!H148,'Scenario 2'!H148) -> 0 | H173: =IF($C$8=1,'Scenario 1'!I148,'Scenario 2'!I148) -> 0
B174: Fraction of manure on pasture during pasture period | C174: % | D174: =IF($C$8=1,'Scenario 1'!E149,'Scenario 2'!E149) -> 50 | E174: =IF($C$8=1,'Scenario 1'!F149,'Scenario 2'!F149) -> 50 | F174: =IF($C$8=1,'Scenario 1'!G149,'Scenario 2'!G149) -> 100 | G174: =IF($C$8=1,'Scenario 1'!H149,'Scenario 2'!H149) -> 100 | H174: =IF($C$8=1,'Scenario 1'!I149,'Scenario 2'!I149) -> 100
B175: % of forages to be provided with pasture during pasture period | C175: % | D175: =IF($C$8=1,'Scenario 1'!E150,'Scenario 2'!E150) -> 80 | E175: =IF($C$8=1,'Scenario 1'!F150,'Scenario 2'!F150) -> 80 | F175: =IF($C$8=1,'Scenario 1'!G150,'Scenario 2'!G150) -> 90 | G175: =IF($C$8=1,'Scenario 1'!H150,'Scenario 2'!H150) -> 90 | H175: =IF($C$8=1,'Scenario 1'!I150,'Scenario 2'!I150) -> 90
A176: 4. Feed Inputs
A178: 4.1. Feed Composition: | C178: Feed analysis for up to 10 home-grown feeds and 15 purchased feeds
C179: Pasture | D179: Feeds produced / purchased | L179: Feeds purchased only
C180: 1 | D180: 2 | E180: 3 | F180: 4 | G180: 5 | H180: 6 | I180: 7 | J180: 8 | K180: 9 | L180: - - - - FORAGES - - - - | R180: - - - - - - - - - - - - - - - - - - - - - - - - - - - - - - - - - CONCENTRATES - - - - - - - - - - - - - - - - - - - - - - - - - - - - - - | W180: - - - - - - - - - - - MINERALS - - - - - - - - - - - - -
C181: =IF($C$8=1,'Scenario 1'!R156,'Scenario 2'!R156) -> GrPast-49 | D181: =IF($C$8=1,'Scenario 1'!S156,'Scenario 2'!S156) -> CoSi-35 | E181: =IF($C$8=1,'Scenario 1'!T156,'Scenario 2'!T156) -> AlSi-83 | F181: =IF($C$8=1,'Scenario 1'!U156,'Scenario 2'!U156) -> MxSi-74 | G181: =IF($C$8=1,'Scenario 1'!V156,'Scenario 2'!V156) -> GrHy-52 | H181: =IF($C$8=1,'Scenario 1'!W156,'Scenario 2'!W156) -> SBw-108 | I181: =IF($C$8=1,'Scenario 1'!X156,'Scenario 2'!X156) -> CoGr-27 | J181: =IF($C$8=1,'Scenario 1'!Y156,'Scenario 2'!Y156) -> Barley-8 | K181: =IF($C$8=1,'Scenario 1'!Z156,'Scenario 2'!Z156) -> Wheat-116 | L181: =IF($C$8=1,'Scenario 1'!AA156,'Scenario 2'!AA156) -> Brewers grains-16 | M181: =IF($C$8=1,'Scenario 1'!AB156,'Scenario 2'!AB156) -> Canola-19 | N181: =IF($C$8=1,'Scenario 1'!AC156,'Scenario 2'!AC156) -> FatCa-40 | O181: =IF($C$8=1,'Scenario 1'!AD156,'Scenario 2'!AD156) -> SBMx-104 | P181: =IF($C$8=1,'Scenario 1'!AE156,'Scenario 2'!AE156) -> SBM48-107 | Q181: =IF($C$8=1,'Scenario 1'!AF156,'Scenario 2'!AF156) -> CGM-25 | R181: =IF($C$8=1,'Scenario 1'!AG156,'Scenario 2'!AG156) -> CoDi-23 | S181: =IF($C$8=1,'Scenario 1'!AH156,'Scenario 2'!AH156) -> Bld Meal-14 | T181: =IF($C$8=1,'Scenario 1'!AI156,'Scenario 2'!AI156) -> Urea | U181: =IF($C$8=1,'Scenario 1'!AJ156,'Scenario 2'!AJ156) -> SoyHull-103 | V181: =IF($C$8=1,'Scenario 1'!AK156,'Scenario 2'!AK156) -> CottonSd-w-37 | W181: =IF($C$8=1,'Scenario 1'!AL156,'Scenario 2'!AL156) -> CaCO3 | X181: =IF($C$8=1,'Scenario 1'!AM156,'Scenario 2'!AM156) -> NaH2PO4.H20 | Y181: =IF($C$8=1,'Scenario 1'!AN156,'Scenario 2'!AN156) -> MgO | Z181: =IF($C$8=1,'Scenario 1'!AO156,'Scenario 2'!AO156) -> CaSO4.2H20 | AA181: =IF($C$8=1,'Scenario 1'!AP156,'Scenario 2'!AP156) -> NaCl | AB181: =IF($C$8=1,'Scenario 1'!AQ156,'Scenario 2'!AQ156) -> MgSO4.7H20
B182: Unit resource, t DM | C182: =IF($C$8=1,'Scenario 1'!R157,'Scenario 2'!R157) -> 1 | D182: =IF($C$8=1,'Scenario 1'!S157,'Scenario 2'!S157) -> 1 | E182: =IF($C$8=1,'Scenario 1'!T157,'Scenario 2'!T157) -> 1 | F182: =IF($C$8=1,'Scenario 1'!U157,'Scenario 2'!U157) -> 1 | G182: =IF($C$8=1,'Scenario 1'!V157,'Scenario 2'!V157) -> 1 | H182: =IF($C$8=1,'Scenario 1'!W157,'Scenario 2'!W157) -> 1 | I182: =IF($C$8=1,'Scenario 1'!X157,'Scenario 2'!X157) -> 1 | J182: =IF($C$8=1,'Scenario 1'!Y157,'Scenario 2'!Y157) -> 0 | K182: =IF($C$8=1,'Scenario 1'!Z157,'Scenario 2'!Z157) -> 1 | L182: =IF($C$8=1,'Scenario 1'!AA157,'Scenario 2'!AA157) -> 1 | M182: =IF($C$8=1,'Scenario 1'!AB157,'Scenario 2'!AB157) -> 1 | N182: =IF($C$8=1,'Scenario 1'!AC157,'Scenario 2'!AC157) -> 1 | O182: =IF($C$8=1,'Scenario 1'!AD157,'Scenario 2'!AD157) -> 1 | P182: =IF($C$8=1,'Scenario 1'!AE157,'Scenario 2'!AE157) -> 1 | Q182: =IF($C$8=1,'Scenario 1'!AF157,'Scenario 2'!AF157) -> 1 | R182: =IF($C$8=1,'Scenario 1'!AG157,'Scenario 2'!AG157) -> 1 | S182: =IF($C$8=1,'Scenario 1'!AH157,'Scenario 2'!AH157) -> 1 | T182: =IF($C$8=1,'Scenario 1'!AI157,'Scenario 2'!AI157) -> 1 | U182: =IF($C$8=1,'Scenario 1'!AJ157,'Scenario 2'!AJ157) -> 1 | V182: =IF($C$8=1,'Scenario 1'!AK157,'Scenario 2'!AK157) -> 1 | W182: =IF($C$8=1,'Scenario 1'!AL157,'Scenario 2'!AL157) -> 1 | X182: =IF($C$8=1,'Scenario 1'!AM157,'Scenario 2'!AM157) -> 1 | Y182: =IF($C$8=1,'Scenario 1'!AN157,'Scenario 2'!AN157) -> 1 | Z182: =IF($C$8=1,'Scenario 1'!AO157,'Scenario 2'!AO157) -> 1 | AA182: =IF($C$8=1,'Scenario 1'!AP157,'Scenario 2'!AP157) -> 1 | AB182: =IF($C$8=1,'Scenario 1'!AQ157,'Scenario 2'!AQ157) -> 1
B183: Fd type (S=Silage, H=Hay, P=Pasture; C=Concentrate, AP=Animal protein, FA=Fatty acid, M=Mineral) | C183: =IF($C$8=1,'Scenario 1'!R158,'Scenario 2'!R158) -> P | D183: =IF($C$8=1,'Scenario 1'!S158,'Scenario 2'!S158) -> S | E183: =IF($C$8=1,'Scenario 1'!T158,'Scenario 2'!T158) -> S | F183: =IF($C$8=1,'Scenario 1'!U158,'Scenario 2'!U158) -> S | G183: =IF($C$8=1,'Scenario 1'!V158,'Scenario 2'!V158) -> H | H183: =IF($C$8=1,'Scenario 1'!W158,'Scenario 2'!W158) -> C | I183: =IF($C$8=1,'Scenario 1'!X158,'Scenario 2'!X158) -> C | J183: =IF($C$8=1,'Scenario 1'!Y158,'Scenario 2'!Y158) -> C | K183: =IF($C$8=1,'Scenario 1'!Z158,'Scenario 2'!Z158) -> C | L183: =IF($C$8=1,'Scenario 1'!AA158,'Scenario 2'!AA158) -> C | M183: =IF($C$8=1,'Scenario 1'!AB158,'Scenario 2'!AB158) -> C | N183: =IF($C$8=1,'Scenario 1'!AC158,'Scenario 2'!AC158) -> FA | O183: =IF($C$8=1,'Scenario 1'!AD158,'Scenario 2'!AD158) -> C | P183: =IF($C$8=1,'Scenario 1'!AE158,'Scenario 2'!AE158) -> C | Q183: =IF($C$8=1,'Scenario 1'!AF158,'Scenario 2'!AF158) -> C | R183: =IF($C$8=1,'Scenario 1'!AG158,'Scenario 2'!AG158) -> C | S183: =IF($C$8=1,'Scenario 1'!AH158,'Scenario 2'!AH158) -> AP | T183: =IF($C$8=1,'Scenario 1'!AI158,'Scenario 2'!AI158) -> M | U183: =IF($C$8=1,'Scenario 1'!AJ158,'Scenario 2'!AJ158) -> C | V183: =IF($C$8=1,'Scenario 1'!AK158,'Scenario 2'!AK158) -> C | W183: =IF($C$8=1,'Scenario 1'!AL158,'Scenario 2'!AL158) -> M | X183: =IF($C$8=1,'Scenario 1'!AM158,'Scenario 2'!AM158) -> M | Y183: =IF($C$8=1,'Scenario 1'!AN158,'Scenario 2'!AN158) -> M | Z183: =IF($C$8=1,'Scenario 1'!AO158,'Scenario 2'!AO158) -> M | AA183: =IF($C$8=1,'Scenario 1'!AP158,'Scenario 2'!AP158) -> M | AB183: =IF($C$8=1,'Scenario 1'!AQ158,'Scenario 2'!AQ158) -> M
B184: DM, (%) | C184: =IF($C$8=1,'Scenario 1'!R159,'Scenario 2'!R159) -> 20.1 | D184: =IF($C$8=1,'Scenario 1'!S159,'Scenario 2'!S159) -> 35.2 | E184: =IF($C$8=1,'Scenario 1'!T159,'Scenario 2'!T159) -> 43.5 | F184: =IF($C$8=1,'Scenario 1'!U159,'Scenario 2'!U159) -> 45.5 | G184: =IF($C$8=1,'Scenario 1'!V159,'Scenario 2'!V159) -> 85.8 | H184: =IF($C$8=1,'Scenario 1'!W159,'Scenario 2'!W159) -> 90 | I184: =IF($C$8=1,'Scenario 1'!X159,'Scenario 2'!X159) -> 88.1 | J184: =IF($C$8=1,'Scenario 1'!Y159,'Scenario 2'!Y159) -> 91 | K184: =IF($C$8=1,'Scenario 1'!Z159,'Scenario 2'!Z159) -> 89.4 | L184: =IF($C$8=1,'Scenario 1'!AA159,'Scenario 2'!AA159) -> 90.7 | M184: =IF($C$8=1,'Scenario 1'!AB159,'Scenario 2'!AB159) -> 90.3 | N184: =IF($C$8=1,'Scenario 1'!AC159,'Scenario 2'!AC159) -> 95.3 | O184: =IF($C$8=1,'Scenario 1'!AD159,'Scenario 2'!AD159) -> 89.6 | P184: =IF($C$8=1,'Scenario 1'!AE159,'Scenario 2'!AE159) -> 89.5 | Q184: =IF($C$8=1,'Scenario 1'!AF159,'Scenario 2'!AF159) -> 86.4 | R184: =IF($C$8=1,'Scenario 1'!AG159,'Scenario 2'!AG159) -> 90.2 | S184: =IF($C$8=1,'Scenario 1'!AH159,'Scenario 2'!AH159) -> 90.2 | T184: =IF($C$8=1,'Scenario 1'!AI159,'Scenario 2'!AI159) -> 100 | U184: =IF($C$8=1,'Scenario 1'!AJ159,'Scenario 2'!AJ159) -> 90.9 | V184: =IF($C$8=1,'Scenario 1'!AK159,'Scenario 2'!AK159) -> 90.1 | W184: =IF($C$8=1,'Scenario 1'!AL159,'Scenario 2'!AL159) -> 100 | X184: =IF($C$8=1,'Scenario 1'!AM159,'Scenario 2'!AM159) -> 97 | Y184: =IF($C$8=1,'Scenario 1'!AN159,'Scenario 2'!AN159) -> 98 | Z184: =IF($C$8=1,'Scenario 1'!AO159,'Scenario 2'!AO159) -> 97 | AA184: =IF($C$8=1,'Scenario 1'!AP159,'Scenario 2'!AP159) -> 100 | AB184: =IF($C$8=1,'Scenario 1'!AQ159,'Scenario 2'!AQ159) -> 98
B185: EE, (%) | C185: =IF($C$8=1,'Scenario 1'!R160,'Scenario 2'!R160) -> 2.7 | D185: =IF($C$8=1,'Scenario 1'!S160,'Scenario 2'!S160) -> 3.13 | E185: =IF($C$8=1,'Scenario 1'!T160,'Scenario 2'!T160) -> 2.74 | F185: =IF($C$8=1,'Scenario 1'!U160,'Scenario 2'!U160) -> 2.84 | G185: =IF($C$8=1,'Scenario 1'!V160,'Scenario 2'!V160) -> 2.42 | H185: =IF($C$8=1,'Scenario 1'!W160,'Scenario 2'!W160) -> 19.2 | I185: =IF($C$8=1,'Scenario 1'!X160,'Scenario 2'!X160) -> 4.2 | J185: =IF($C$8=1,'Scenario 1'!Y160,'Scenario 2'!Y160) -> 2.2 | K185: =IF($C$8=1,'Scenario 1'!Z160,'Scenario 2'!Z160) -> 2.3 | L185: =IF($C$8=1,'Scenario 1'!AA160,'Scenario 2'!AA160) -> 5.2 | M185: =IF($C$8=1,'Scenario 1'!AB160,'Scenario 2'!AB160) -> 5.4 | N185: =IF($C$8=1,'Scenario 1'!AC160,'Scenario 2'!AC160) -> 84.5 | O185: =IF($C$8=1,'Scenario 1'!AD160,'Scenario 2'!AD160) -> 8.1 | P185: =IF($C$8=1,'Scenario 1'!AE160,'Scenario 2'!AE160) -> 1.1 | Q185: =IF($C$8=1,'Scenario 1'!AF160,'Scenario 2'!AF160) -> 2.5 | R185: =IF($C$8=1,'Scenario 1'!AG160,'Scenario 2'!AG160) -> 10 | S185: =IF($C$8=1,'Scenario 1'!AH160,'Scenario 2'!AH160) -> 1.2 | T185: =IF($C$8=1,'Scenario 1'!AI160,'Scenario 2'!AI160) -> 0 | U185: =IF($C$8=1,'Scenario 1'!AJ160,'Scenario 2'!AJ160) -> 2.7 | V185: =IF($C$8=1,'Scenario 1'!AK160,'Scenario 2'!AK160) -> 19.3 | W185: =IF($C$8=1,'Scenario 1'!AL160,'Scenario 2'!AL160) -> 0 | X185: =IF($C$8=1,'Scenario 1'!AM160,'Scenario 2'!AM160) -> 0 | Y185: =IF($C$8=1,'Scenario 1'!AN160,'Scenario 2'!AN160) -> 0 | Z185: =IF($C$8=1,'Scenario 1'!AO160,'Scenario 2'!AO160) -> 0 | AA185: =IF($C$8=1,'Scenario 1'!AP160,'Scenario 2'!AP160) -> 0 | AB185: =IF($C$8=1,'Scenario 1'!AQ160,'Scenario 2'!AQ160) -> 0
B186: FNDF, (%) | C186: =IF($C$8=1,'Scenario 1'!R161,'Scenario 2'!R161) -> 45.8 | D186: =IF($C$8=1,'Scenario 1'!S161,'Scenario 2'!S161) -> 43.01 | E186: =IF($C$8=1,'Scenario 1'!T161,'Scenario 2'!T161) -> 44.72 | F186: =IF($C$8=1,'Scenario 1'!U161,'Scenario 2'!U161) -> 50.43 | G186: =IF($C$8=1,'Scenario 1'!V161,'Scenario 2'!V161) -> 60.43 | H186: =IF($C$8=1,'Scenario 1'!W161,'Scenario 2'!W161) -> 0 | I186: =IF($C$8=1,'Scenario 1'!X161,'Scenario 2'!X161) -> 0 | J186: =IF($C$8=1,'Scenario 1'!Y161,'Scenario 2'!Y161) -> 0 | K186: =IF($C$8=1,'Scenario 1'!Z161,'Scenario 2'!Z161) -> 0 | L186: =IF($C$8=1,'Scenario 1'!AA161,'Scenario 2'!AA161) -> 0 | M186: =IF($C$8=1,'Scenario 1'!AB161,'Scenario 2'!AB161) -> 0 | N186: =IF($C$8=1,'Scenario 1'!AC161,'Scenario 2'!AC161) -> 0 | O186: =IF($C$8=1,'Scenario 1'!AD161,'Scenario 2'!AD161) -> 0 | P186: =IF($C$8=1,'Scenario 1'!AE161,'Scenario 2'!AE161) -> 0 | Q186: =IF($C$8=1,'Scenario 1'!AF161,'Scenario 2'!AF161) -> 0 | R186: =IF($C$8=1,'Scenario 1'!AG161,'Scenario 2'!AG161) -> 0 | S186: =IF($C$8=1,'Scenario 1'!AH161,'Scenario 2'!AH161) -> 0 | T186: =IF($C$8=1,'Scenario 1'!AI161,'Scenario 2'!AI161) -> 0 | U186: =IF($C$8=1,'Scenario 1'!AJ161,'Scenario 2'!AJ161) -> 0 | V186: =IF($C$8=1,'Scenario 1'!AK161,'Scenario 2'!AK161) -> 16.599 | W186: =IF($C$8=1,'Scenario 1'!AL161,'Scenario 2'!AL161) -> 0 | X186: =IF($C$8=1,'Scenario 1'!AM161,'Scenario 2'!AM161) -> 0 | Y186: =IF($C$8=1,'Scenario 1'!AN161,'Scenario 2'!AN161) -> 0 | Z186: =IF($C$8=1,'Scenario 1'!AO161,'Scenario 2'!AO161) -> 0 | AA186: =IF($C$8=1,'Scenario 1'!AP161,'Scenario 2'!AP161) -> 0 | AB186: =IF($C$8=1,'Scenario 1'!AQ161,'Scenario 2'!AQ161) -> 0
B187: NDF, (%) | C187: =IF($C$8=1,'Scenario 1'!R162,'Scenario 2'!R162) -> 45.8 | D187: =IF($C$8=1,'Scenario 1'!S162,'Scenario 2'!S162) -> 43.01 | E187: =IF($C$8=1,'Scenario 1'!T162,'Scenario 2'!T162) -> 44.72 | F187: =IF($C$8=1,'Scenario 1'!U162,'Scenario 2'!U162) -> 50.43 | G187: =IF($C$8=1,'Scenario 1'!V162,'Scenario 2'!V162) -> 60.43 | H187: =IF($C$8=1,'Scenario 1'!W162,'Scenario 2'!W162) -> 19.5 | I187: =IF($C$8=1,'Scenario 1'!X162,'Scenario 2'!X162) -> 9.5 | J187: =IF($C$8=1,'Scenario 1'!Y162,'Scenario 2'!Y162) -> 20.8 | K187: =IF($C$8=1,'Scenario 1'!Z162,'Scenario 2'!Z162) -> 13.4 | L187: =IF($C$8=1,'Scenario 1'!AA162,'Scenario 2'!AA162) -> 47.4 | M187: =IF($C$8=1,'Scenario 1'!AB162,'Scenario 2'!AB162) -> 29.8 | N187: =IF($C$8=1,'Scenario 1'!AC162,'Scenario 2'!AC162) -> 0 | O187: =IF($C$8=1,'Scenario 1'!AD162,'Scenario 2'!AD162) -> 21.7 | P187: =IF($C$8=1,'Scenario 1'!AE162,'Scenario 2'!AE162) -> 9.8 | Q187: =IF($C$8=1,'Scenario 1'!AF162,'Scenario 2'!AF162) -> 11.1 | R187: =IF($C$8=1,'Scenario 1'!AG162,'Scenario 2'!AG162) -> 38.8 | S187: =IF($C$8=1,'Scenario 1'!AH162,'Scenario 2'!AH162) -> 0 | T187: =IF($C$8=1,'Scenario 1'!AI162,'Scenario 2'!AI162) -> 0 | U187: =IF($C$8=1,'Scenario 1'!AJ162,'Scenario 2'!AJ162) -> 60.3 | V187: =IF($C$8=1,'Scenario 1'!AK162,'Scenario 2'!AK162) -> 50.3 | W187: =IF($C$8=1,'Scenario 1'!AL162,'Scenario 2'!AL162) -> 0 | X187: =IF($C$8=1,'Scenario 1'!AM162,'Scenario 2'!AM162) -> 0 | Y187: =IF($C$8=1,'Scenario 1'!AN162,'Scenario 2'!AN162) -> 0 | Z187: =IF($C$8=1,'Scenario 1'!AO162,'Scenario 2'!AO162) -> 0 | AA187: =IF($C$8=1,'Scenario 1'!AP162,'Scenario 2'!AP162) -> 0 | AB187: =IF($C$8=1,'Scenario 1'!AQ162,'Scenario 2'!AQ162) -> 0
B188: NFC, (%) | C188: =IF($C$8=1,'Scenario 1'!R163,'Scenario 2'!R163) -> 25.5 | D188: =IF($C$8=1,'Scenario 1'!S163,'Scenario 2'!S163) -> 42.63 | E188: =IF($C$8=1,'Scenario 1'!T163,'Scenario 2'!T163) -> 25.58 | F188: =IF($C$8=1,'Scenario 1'!U163,'Scenario 2'!U163) -> 24.21 | G188: =IF($C$8=1,'Scenario 1'!V163,'Scenario 2'!V163) -> 20.42 | H188: =IF($C$8=1,'Scenario 1'!W163,'Scenario 2'!W163) -> 18.5 | I188: =IF($C$8=1,'Scenario 1'!X163,'Scenario 2'!X163) -> 76.1 | J188: =IF($C$8=1,'Scenario 1'!Y163,'Scenario 2'!Y163) -> 63.5 | K188: =IF($C$8=1,'Scenario 1'!Z163,'Scenario 2'!Z163) -> 69.8 | L188: =IF($C$8=1,'Scenario 1'!AA163,'Scenario 2'!AA163) -> 23 | M188: =IF($C$8=1,'Scenario 1'!AB163,'Scenario 2'!AB163) -> 25.9 | N188: =IF($C$8=1,'Scenario 1'!AC163,'Scenario 2'!AC163) -> 0 | O188: =IF($C$8=1,'Scenario 1'!AD163,'Scenario 2'!AD163) -> 28 | P188: =IF($C$8=1,'Scenario 1'!AE163,'Scenario 2'!AE163) -> 29.6 | Q188: =IF($C$8=1,'Scenario 1'!AF163,'Scenario 2'!AF163) -> 21.7 | R188: =IF($C$8=1,'Scenario 1'!AG163,'Scenario 2'!AG163) -> 24.9 | S188: =IF($C$8=1,'Scenario 1'!AH163,'Scenario 2'!AH163) -> 0.8 | T188: =IF($C$8=1,'Scenario 1'!AI163,'Scenario 2'!AI163) -> 0 | U188: =IF($C$8=1,'Scenario 1'!AJ163,'Scenario 2'!AJ163) -> 21.8 | V188: =IF($C$8=1,'Scenario 1'!AK163,'Scenario 2'!AK163) -> 5.1 | W188: =IF($C$8=1,'Scenario 1'!AL163,'Scenario 2'!AL163) -> 0 | X188: =IF($C$8=1,'Scenario 1'!AM163,'Scenario 2'!AM163) -> 0 | Y188: =IF($C$8=1,'Scenario 1'!AN163,'Scenario 2'!AN163) -> 0 | Z188: =IF($C$8=1,'Scenario 1'!AO163,'Scenario 2'!AO163) -> 0 | AA188: =IF($C$8=1,'Scenario 1'!AP163,'Scenario 2'!AP163) -> 0 | AB188: =IF($C$8=1,'Scenario 1'!AQ163,'Scenario 2'!AQ163) -> 0
B189: ADL (lignin), (%) | C189: =IF($C$8=1,'Scenario 1'!R164,'Scenario 2'!R164) -> 2.1 | D189: =IF($C$8=1,'Scenario 1'!S164,'Scenario 2'!S164) -> 2.83 | E189: =IF($C$8=1,'Scenario 1'!T164,'Scenario 2'!T164) -> 6.86 | F189: =IF($C$8=1,'Scenario 1'!U164,'Scenario 2'!U164) -> 5.97 | G189: =IF($C$8=1,'Scenario 1'!V164,'Scenario 2'!V164) -> 5.26 | H189: =IF($C$8=1,'Scenario 1'!W164,'Scenario 2'!W164) -> 1.2 | I189: =IF($C$8=1,'Scenario 1'!X164,'Scenario 2'!X164) -> 0.9 | J189: =IF($C$8=1,'Scenario 1'!Y164,'Scenario 2'!Y164) -> 2.1 | K189: =IF($C$8=1,'Scenario 1'!Z164,'Scenario 2'!Z164) -> 1.7 | L189: =IF($C$8=1,'Scenario 1'!AA164,'Scenario 2'!AA164) -> 5 | M189: =IF($C$8=1,'Scenario 1'!AB164,'Scenario 2'!AB164) -> 9.5 | N189: =IF($C$8=1,'Scenario 1'!AC164,'Scenario 2'!AC164) -> 0 | O189: =IF($C$8=1,'Scenario 1'!AD164,'Scenario 2'!AD164) -> 1.5 | P189: =IF($C$8=1,'Scenario 1'!AE164,'Scenario 2'!AE164) -> 0.5 | Q189: =IF($C$8=1,'Scenario 1'!AF164,'Scenario 2'!AF164) -> 1.5 | R189: =IF($C$8=1,'Scenario 1'!AG164,'Scenario 2'!AG164) -> 4.3 | S189: =IF($C$8=1,'Scenario 1'!AH164,'Scenario 2'!AH164) -> 0 | T189: =IF($C$8=1,'Scenario 1'!AI164,'Scenario 2'!AI164) -> 0 | U189: =IF($C$8=1,'Scenario 1'!AJ164,'Scenario 2'!AJ164) -> 2.5 | V189: =IF($C$8=1,'Scenario 1'!AK164,'Scenario 2'!AK164) -> 7.9 | W189: =IF($C$8=1,'Scenario 1'!AL164,'Scenario 2'!AL164) -> 0 | X189: =IF($C$8=1,'Scenario 1'!AM164,'Scenario 2'!AM164) -> 0 | Y189: =IF($C$8=1,'Scenario 1'!AN164,'Scenario 2'!AN164) -> 0 | Z189: =IF($C$8=1,'Scenario 1'!AO164,'Scenario 2'!AO164) -> 0 | AA189: =IF($C$8=1,'Scenario 1'!AP164,'Scenario 2'!AP164) -> 0 | AB189: =IF($C$8=1,'Scenario 1'!AQ164,'Scenario 2'!AQ164) -> 0
B190: NDICP, (%) | C190: =IF($C$8=1,'Scenario 1'!R165,'Scenario 2'!R165) -> 3.9 | D190: =IF($C$8=1,'Scenario 1'!S165,'Scenario 2'!S165) -> 1.3 | E190: =IF($C$8=1,'Scenario 1'!T165,'Scenario 2'!T165) -> 3.1 | F190: =IF($C$8=1,'Scenario 1'!U165,'Scenario 2'!U165) -> 3.1 | G190: =IF($C$8=1,'Scenario 1'!V165,'Scenario 2'!V165) -> 3.9 | H190: =IF($C$8=1,'Scenario 1'!W165,'Scenario 2'!W165) -> 2.3 | I190: =IF($C$8=1,'Scenario 1'!X165,'Scenario 2'!X165) -> 0.7 | J190: =IF($C$8=1,'Scenario 1'!Y165,'Scenario 2'!Y165) -> 1.8 | K190: =IF($C$8=1,'Scenario 1'!Z165,'Scenario 2'!Z165) -> 1.7 | L190: =IF($C$8=1,'Scenario 1'!AA165,'Scenario 2'!AA165) -> 9.1 | M190: =IF($C$8=1,'Scenario 1'!AB165,'Scenario 2'!AB165) -> 6.3 | N190: =IF($C$8=1,'Scenario 1'!AC165,'Scenario 2'!AC165) -> 0 | O190: =IF($C$8=1,'Scenario 1'!AD165,'Scenario 2'!AD165) -> 9.6 | P190: =IF($C$8=1,'Scenario 1'!AE165,'Scenario 2'!AE165) -> 0.7 | Q190: =IF($C$8=1,'Scenario 1'!AF165,'Scenario 2'!AF165) -> 3.6 | R190: =IF($C$8=1,'Scenario 1'!AG165,'Scenario 2'!AG165) -> 8.6 | S190: =IF($C$8=1,'Scenario 1'!AH165,'Scenario 2'!AH165) -> 0 | T190: =IF($C$8=1,'Scenario 1'!AI165,'Scenario 2'!AI165) -> 0 | U190: =IF($C$8=1,'Scenario 1'!AJ165,'Scenario 2'!AJ165) -> 3.5 | V190: =IF($C$8=1,'Scenario 1'!AK165,'Scenario 2'!AK165) -> 2.4 | W190: =IF($C$8=1,'Scenario 1'!AL165,'Scenario 2'!AL165) -> 0 | X190: =IF($C$8=1,'Scenario 1'!AM165,'Scenario 2'!AM165) -> 0 | Y190: =IF($C$8=1,'Scenario 1'!AN165,'Scenario 2'!AN165) -> 0 | Z190: =IF($C$8=1,'Scenario 1'!AO165,'Scenario 2'!AO165) -> 0 | AA190: =IF($C$8=1,'Scenario 1'!AP165,'Scenario 2'!AP165) -> 0 | AB190: =IF($C$8=1,'Scenario 1'!AQ165,'Scenario 2'!AQ165) -> 0
B191: ADICP, (%) | C191: =IF($C$8=1,'Scenario 1'!R166,'Scenario 2'!R166) -> 1.1 | D191: =IF($C$8=1,'Scenario 1'!S166,'Scenario 2'!S166) -> 0.8 | E191: =IF($C$8=1,'Scenario 1'!T166,'Scenario 2'!T166) -> 1.8 | F191: =IF($C$8=1,'Scenario 1'!U166,'Scenario 2'!U166) -> 1.6 | G191: =IF($C$8=1,'Scenario 1'!V166,'Scenario 2'!V166) -> 1.2 | H191: =IF($C$8=1,'Scenario 1'!W166,'Scenario 2'!W166) -> 0.6 | I191: =IF($C$8=1,'Scenario 1'!X166,'Scenario 2'!X166) -> 0.3 | J191: =IF($C$8=1,'Scenario 1'!Y166,'Scenario 2'!Y166) -> 0.5 | K191: =IF($C$8=1,'Scenario 1'!Z166,'Scenario 2'!Z166) -> 0.2 | L191: =IF($C$8=1,'Scenario 1'!AA166,'Scenario 2'!AA166) -> 3.5 | M191: =IF($C$8=1,'Scenario 1'!AB166,'Scenario 2'!AB166) -> 2.4 | N191: =IF($C$8=1,'Scenario 1'!AC166,'Scenario 2'!AC166) -> 0 | O191: =IF($C$8=1,'Scenario 1'!AD166,'Scenario 2'!AD166) -> 0.4 | P191: =IF($C$8=1,'Scenario 1'!AE166,'Scenario 2'!AE166) -> 0.4 | Q191: =IF($C$8=1,'Scenario 1'!AF166,'Scenario 2'!AF166) -> 3 | R191: =IF($C$8=1,'Scenario 1'!AG166,'Scenario 2'!AG166) -> 5 | S191: =IF($C$8=1,'Scenario 1'!AH166,'Scenario 2'!AH166) -> 0 | T191: =IF($C$8=1,'Scenario 1'!AI166,'Scenario 2'!AI166) -> 0 | U191: =IF($C$8=1,'Scenario 1'!AJ166,'Scenario 2'!AJ166) -> 1 | V191: =IF($C$8=1,'Scenario 1'!AK166,'Scenario 2'!AK166) -> 1.9 | W191: =IF($C$8=1,'Scenario 1'!AL166,'Scenario 2'!AL166) -> 0 | X191: =IF($C$8=1,'Scenario 1'!AM166,'Scenario 2'!AM166) -> 0 | Y191: =IF($C$8=1,'Scenario 1'!AN166,'Scenario 2'!AN166) -> 0 | Z191: =IF($C$8=1,'Scenario 1'!AO166,'Scenario 2'!AO166) -> 0 | AA191: =IF($C$8=1,'Scenario 1'!AP166,'Scenario 2'!AP166) -> 0 | AB191: =IF($C$8=1,'Scenario 1'!AQ166,'Scenario 2'!AQ166) -> 0
B192: CP, (%) | C192: =IF($C$8=1,'Scenario 1'!R167,'Scenario 2'!R167) -> 20.1 | D192: =IF($C$8=1,'Scenario 1'!S167,'Scenario 2'!S167) -> 8.23 | E192: =IF($C$8=1,'Scenario 1'!T167,'Scenario 2'!T167) -> 19.26 | F192: =IF($C$8=1,'Scenario 1'!U167,'Scenario 2'!U167) -> 16.52 | G192: =IF($C$8=1,'Scenario 1'!V167,'Scenario 2'!V167) -> 11.83 | H192: =IF($C$8=1,'Scenario 1'!W167,'Scenario 2'!W167) -> 39.2 | I192: =IF($C$8=1,'Scenario 1'!X167,'Scenario 2'!X167) -> 9.4 | J192: =IF($C$8=1,'Scenario 1'!Y167,'Scenario 2'!Y167) -> 12.4 | K192: =IF($C$8=1,'Scenario 1'!Z167,'Scenario 2'!Z167) -> 14.2 | L192: =IF($C$8=1,'Scenario 1'!AA167,'Scenario 2'!AA167) -> 29.2 | M192: =IF($C$8=1,'Scenario 1'!AB167,'Scenario 2'!AB167) -> 37.8 | N192: =IF($C$8=1,'Scenario 1'!AC167,'Scenario 2'!AC167) -> 0 | O192: =IF($C$8=1,'Scenario 1'!AD167,'Scenario 2'!AD167) -> 46.3 | P192: =IF($C$8=1,'Scenario 1'!AE167,'Scenario 2'!AE167) -> 53.8 | Q192: =IF($C$8=1,'Scenario 1'!AF167,'Scenario 2'!AF167) -> 65 | R192: =IF($C$8=1,'Scenario 1'!AG167,'Scenario 2'!AG167) -> 29.7 | S192: =IF($C$8=1,'Scenario 1'!AH167,'Scenario 2'!AH167) -> 95.5 | T192: =IF($C$8=1,'Scenario 1'!AI167,'Scenario 2'!AI167) -> 281 | U192: =IF($C$8=1,'Scenario 1'!AJ167,'Scenario 2'!AJ167) -> 13.9 | V192: =IF($C$8=1,'Scenario 1'!AK167,'Scenario 2'!AK167) -> 23.5 | W192: =IF($C$8=1,'Scenario 1'!AL167,'Scenario 2'!AL167) -> 0 | X192: =IF($C$8=1,'Scenario 1'!AM167,'Scenario 2'!AM167) -> 0 | Y192: =IF($C$8=1,'Scenario 1'!AN167,'Scenario 2'!AN167) -> 0 | Z192: =IF($C$8=1,'Scenario 1'!AO167,'Scenario 2'!AO167) -> 0 | AA192: =IF($C$8=1,'Scenario 1'!AP167,'Scenario 2'!AP167) -> 0 | AB192: =IF($C$8=1,'Scenario 1'!AQ167,'Scenario 2'!AQ167) -> 0
B193: A fraction , %CP | C193: =IF($C$8=1,'Scenario 1'!R168,'Scenario 2'!R168) -> 30.7 | D193: =IF($C$8=1,'Scenario 1'!S168,'Scenario 2'!S168) -> 51.3 | E193: =IF($C$8=1,'Scenario 1'!T168,'Scenario 2'!T168) -> 57.3 | F193: =IF($C$8=1,'Scenario 1'!U168,'Scenario 2'!U168) -> 42.4 | G193: =IF($C$8=1,'Scenario 1'!V168,'Scenario 2'!V168) -> 36.7 | H193: =IF($C$8=1,'Scenario 1'!W168,'Scenario 2'!W168) -> 27.8 | I193: =IF($C$8=1,'Scenario 1'!X168,'Scenario 2'!X168) -> 23.9 | J193: =IF($C$8=1,'Scenario 1'!Y168,'Scenario 2'!Y168) -> 30.2 | K193: =IF($C$8=1,'Scenario 1'!Z168,'Scenario 2'!Z168) -> 27.1 | L193: =IF($C$8=1,'Scenario 1'!AA168,'Scenario 2'!AA168) -> 18.3 | M193: =IF($C$8=1,'Scenario 1'!AB168,'Scenario 2'!AB168) -> 23.2 | N193: =IF($C$8=1,'Scenario 1'!AC168,'Scenario 2'!AC168) -> 0 | O193: =IF($C$8=1,'Scenario 1'!AD168,'Scenario 2'!AD168) -> 8.7 | P193: =IF($C$8=1,'Scenario 1'!AE168,'Scenario 2'!AE168) -> 15 | Q193: =IF($C$8=1,'Scenario 1'!AF168,'Scenario 2'!AF168) -> 3.9 | R193: =IF($C$8=1,'Scenario 1'!AG168,'Scenario 2'!AG168) -> 28.5 | S193: =IF($C$8=1,'Scenario 1'!AH168,'Scenario 2'!AH168) -> 10.1 | T193: =IF($C$8=1,'Scenario 1'!AI168,'Scenario 2'!AI168) -> 100 | U193: =IF($C$8=1,'Scenario 1'!AJ168,'Scenario 2'!AJ168) -> 22.5 | V193: =IF($C$8=1,'Scenario 1'!AK168,'Scenario 2'!AK168) -> 45.4 | W193: =IF($C$8=1,'Scenario 1'!AL168,'Scenario 2'!AL168) -> 0 | X193: =IF($C$8=1,'Scenario 1'!AM168,'Scenario 2'!AM168) -> 0 | Y193: =IF($C$8=1,'Scenario 1'!AN168,'Scenario 2'!AN168) -> 0 | Z193: =IF($C$8=1,'Scenario 1'!AO168,'Scenario 2'!AO168) -> 0 | AA193: =IF($C$8=1,'Scenario 1'!AP168,'Scenario 2'!AP168) -> 0 | AB193: =IF($C$8=1,'Scenario 1'!AQ168,'Scenario 2'!AQ168) -> 0
B194: B fraction, % CP | C194: =IF($C$8=1,'Scenario 1'!R169,'Scenario 2'!R169) -> 63.5 | D194: =IF($C$8=1,'Scenario 1'!S169,'Scenario 2'!S169) -> 30.2 | E194: =IF($C$8=1,'Scenario 1'!T169,'Scenario 2'!T169) -> 35.3 | F194: =IF($C$8=1,'Scenario 1'!U169,'Scenario 2'!U169) -> 48.1 | G194: =IF($C$8=1,'Scenario 1'!V169,'Scenario 2'!V169) -> 51.7 | H194: =IF($C$8=1,'Scenario 1'!W169,'Scenario 2'!W169) -> 70.2 | I194: =IF($C$8=1,'Scenario 1'!X169,'Scenario 2'!X169) -> 72.5 | J194: =IF($C$8=1,'Scenario 1'!Y169,'Scenario 2'!Y169) -> 61.2 | K194: =IF($C$8=1,'Scenario 1'!Z169,'Scenario 2'!Z169) -> 65.1 | L194: =IF($C$8=1,'Scenario 1'!AA169,'Scenario 2'!AA169) -> 64.6 | M194: =IF($C$8=1,'Scenario 1'!AB169,'Scenario 2'!AB169) -> 70.4 | N194: =IF($C$8=1,'Scenario 1'!AC169,'Scenario 2'!AC169) -> 0 | O194: =IF($C$8=1,'Scenario 1'!AD169,'Scenario 2'!AD169) -> 91.3 | P194: =IF($C$8=1,'Scenario 1'!AE169,'Scenario 2'!AE169) -> 84.4 | Q194: =IF($C$8=1,'Scenario 1'!AF169,'Scenario 2'!AF169) -> 90.9 | R194: =IF($C$8=1,'Scenario 1'!AG169,'Scenario 2'!AG169) -> 63.3 | S194: =IF($C$8=1,'Scenario 1'!AH169,'Scenario 2'!AH169) -> 60.9 | T194: =IF($C$8=1,'Scenario 1'!AI169,'Scenario 2'!AI169) -> 0 | U194: =IF($C$8=1,'Scenario 1'!AJ169,'Scenario 2'!AJ169) -> 72.2 | V194: =IF($C$8=1,'Scenario 1'!AK169,'Scenario 2'!AK169) -> 46.7 | W194: =IF($C$8=1,'Scenario 1'!AL169,'Scenario 2'!AL169) -> 0 | X194: =IF($C$8=1,'Scenario 1'!AM169,'Scenario 2'!AM169) -> 0 | Y194: =IF($C$8=1,'Scenario 1'!AN169,'Scenario 2'!AN169) -> 0 | Z194: =IF($C$8=1,'Scenario 1'!AO169,'Scenario 2'!AO169) -> 0 | AA194: =IF($C$8=1,'Scenario 1'!AP169,'Scenario 2'!AP169) -> 0 | AB194: =IF($C$8=1,'Scenario 1'!AQ169,'Scenario 2'!AQ169) -> 0
B195: C fraction, % CP | C195: =IF($C$8=1,'Scenario 1'!R170,'Scenario 2'!R170) -> 5.8 | D195: =IF($C$8=1,'Scenario 1'!S170,'Scenario 2'!S170) -> 18.5 | E195: =IF($C$8=1,'Scenario 1'!T170,'Scenario 2'!T170) -> 7.4 | F195: =IF($C$8=1,'Scenario 1'!U170,'Scenario 2'!U170) -> 9.5 | G195: =IF($C$8=1,'Scenario 1'!V170,'Scenario 2'!V170) -> 11.6 | H195: =IF($C$8=1,'Scenario 1'!W170,'Scenario 2'!W170) -> 2 | I195: =IF($C$8=1,'Scenario 1'!X170,'Scenario 2'!X170) -> 3.6 | J195: =IF($C$8=1,'Scenario 1'!Y170,'Scenario 2'!Y170) -> 8.6 | K195: =IF($C$8=1,'Scenario 1'!Z170,'Scenario 2'!Z170) -> 7.8 | L195: =IF($C$8=1,'Scenario 1'!AA170,'Scenario 2'!AA170) -> 17.1 | M195: =IF($C$8=1,'Scenario 1'!AB170,'Scenario 2'!AB170) -> 6.4 | N195: =IF($C$8=1,'Scenario 1'!AC170,'Scenario 2'!AC170) -> 0 | O195: =IF($C$8=1,'Scenario 1'!AD170,'Scenario 2'!AD170) -> 0 | P195: =IF($C$8=1,'Scenario 1'!AE170,'Scenario 2'!AE170) -> 0.6 | Q195: =IF($C$8=1,'Scenario 1'!AF170,'Scenario 2'!AF170) -> 5.2 | R195: =IF($C$8=1,'Scenario 1'!AG170,'Scenario 2'!AG170) -> 8.2 | S195: =IF($C$8=1,'Scenario 1'!AH170,'Scenario 2'!AH170) -> 29 | T195: =IF($C$8=1,'Scenario 1'!AI170,'Scenario 2'!AI170) -> 0 | U195: =IF($C$8=1,'Scenario 1'!AJ170,'Scenario 2'!AJ170) -> 5.3 | V195: =IF($C$8=1,'Scenario 1'!AK170,'Scenario 2'!AK170) -> 7.9 | W195: =IF($C$8=1,'Scenario 1'!AL170,'Scenario 2'!AL170) -> 0 | X195: =IF($C$8=1,'Scenario 1'!AM170,'Scenario 2'!AM170) -> 0 | Y195: =IF($C$8=1,'Scenario 1'!AN170,'Scenario 2'!AN170) -> 0 | Z195: =IF($C$8=1,'Scenario 1'!AO170,'Scenario 2'!AO170) -> 0 | AA195: =IF($C$8=1,'Scenario 1'!AP170,'Scenario 2'!AP170) -> 0 | AB195: =IF($C$8=1,'Scenario 1'!AQ170,'Scenario 2'!AQ170) -> 0
B196: Kd of fraction B, %/h | C196: =IF($C$8=1,'Scenario 1'!R171,'Scenario 2'!R171) -> 12.3 | D196: =IF($C$8=1,'Scenario 1'!S171,'Scenario 2'!S171) -> 4.4 | E196: =IF($C$8=1,'Scenario 1'!T171,'Scenario 2'!T171) -> 12.2 | F196: =IF($C$8=1,'Scenario 1'!U171,'Scenario 2'!U171) -> 15.5 | G196: =IF($C$8=1,'Scenario 1'!V171,'Scenario 2'!V171) -> 8.1 | H196: =IF($C$8=1,'Scenario 1'!W171,'Scenario 2'!W171) -> 10.9 | I196: =IF($C$8=1,'Scenario 1'!X171,'Scenario 2'!X171) -> 4.9 | J196: =IF($C$8=1,'Scenario 1'!Y171,'Scenario 2'!Y171) -> 22.7 | K196: =IF($C$8=1,'Scenario 1'!Z171,'Scenario 2'!Z171) -> 18.8 | L196: =IF($C$8=1,'Scenario 1'!AA171,'Scenario 2'!AA171) -> 4.7 | M196: =IF($C$8=1,'Scenario 1'!AB171,'Scenario 2'!AB171) -> 10.4 | N196: =IF($C$8=1,'Scenario 1'!AC171,'Scenario 2'!AC171) -> 0 | O196: =IF($C$8=1,'Scenario 1'!AD171,'Scenario 2'!AD171) -> 2.4 | P196: =IF($C$8=1,'Scenario 1'!AE171,'Scenario 2'!AE171) -> 7.5 | Q196: =IF($C$8=1,'Scenario 1'!AF171,'Scenario 2'!AF171) -> 2.3 | R196: =IF($C$8=1,'Scenario 1'!AG171,'Scenario 2'!AG171) -> 3.6 | S196: =IF($C$8=1,'Scenario 1'!AH171,'Scenario 2'!AH171) -> 1.9 | T196: =IF($C$8=1,'Scenario 1'!AI171,'Scenario 2'!AI171) -> 0 | U196: =IF($C$8=1,'Scenario 1'!AJ171,'Scenario 2'!AJ171) -> 6.2 | V196: =IF($C$8=1,'Scenario 1'!AK171,'Scenario 2'!AK171) -> 15.7 | W196: =IF($C$8=1,'Scenario 1'!AL171,'Scenario 2'!AL171) -> 0 | X196: =IF($C$8=1,'Scenario 1'!AM171,'Scenario 2'!AM171) -> 0 | Y196: =IF($C$8=1,'Scenario 1'!AN171,'Scenario 2'!AN171) -> 0 | Z196: =IF($C$8=1,'Scenario 1'!AO171,'Scenario 2'!AO171) -> 0 | AA196: =IF($C$8=1,'Scenario 1'!AP171,'Scenario 2'!AP171) -> 0 | AB196: =IF($C$8=1,'Scenario 1'!AQ171,'Scenario 2'!AQ171) -> 0
B197: Ca, (%) | C197: =IF($C$8=1,'Scenario 1'!R172,'Scenario 2'!R172) -> 0.56 | D197: =IF($C$8=1,'Scenario 1'!S172,'Scenario 2'!S172) -> 0.2 | E197: =IF($C$8=1,'Scenario 1'!T172,'Scenario 2'!T172) -> 1.27 | F197: =IF($C$8=1,'Scenario 1'!U172,'Scenario 2'!U172) -> 0.99 | G197: =IF($C$8=1,'Scenario 1'!V172,'Scenario 2'!V172) -> 0.57 | H197: =IF($C$8=1,'Scenario 1'!W172,'Scenario 2'!W172) -> 0.32 | I197: =IF($C$8=1,'Scenario 1'!X172,'Scenario 2'!X172) -> 0.04 | J197: =IF($C$8=1,'Scenario 1'!Y172,'Scenario 2'!Y172) -> 0.06 | K197: =IF($C$8=1,'Scenario 1'!Z172,'Scenario 2'!Z172) -> 0.05 | L197: =IF($C$8=1,'Scenario 1'!AA172,'Scenario 2'!AA172) -> 0.3 | M197: =IF($C$8=1,'Scenario 1'!AB172,'Scenario 2'!AB172) -> 0.75 | N197: =IF($C$8=1,'Scenario 1'!AC172,'Scenario 2'!AC172) -> 12 | O197: =IF($C$8=1,'Scenario 1'!AD172,'Scenario 2'!AD172) -> 0.36 | P197: =IF($C$8=1,'Scenario 1'!AE172,'Scenario 2'!AE172) -> 0.35 | Q197: =IF($C$8=1,'Scenario 1'!AF172,'Scenario 2'!AF172) -> 0.06 | R197: =IF($C$8=1,'Scenario 1'!AG172,'Scenario 2'!AG172) -> 0.22 | S197: =IF($C$8=1,'Scenario 1'!AH172,'Scenario 2'!AH172) -> 0.3 | T197: =IF($C$8=1,'Scenario 1'!AI172,'Scenario 2'!AI172) -> 0 | U197: =IF($C$8=1,'Scenario 1'!AJ172,'Scenario 2'!AJ172) -> 0.63 | V197: =IF($C$8=1,'Scenario 1'!AK172,'Scenario 2'!AK172) -> 0.17 | W197: =IF($C$8=1,'Scenario 1'!AL172,'Scenario 2'!AL172) -> 39.39 | X197: =IF($C$8=1,'Scenario 1'!AM172,'Scenario 2'!AM172) -> 0 | Y197: =IF($C$8=1,'Scenario 1'!AN172,'Scenario 2'!AN172) -> 0 | Z197: =IF($C$8=1,'Scenario 1'!AO172,'Scenario 2'!AO172) -> 23.28 | AA197: =IF($C$8=1,'Scenario 1'!AP172,'Scenario 2'!AP172) -> 0 | AB197: =IF($C$8=1,'Scenario 1'!AQ172,'Scenario 2'!AQ172) -> 0
B198: Ca availibility (%) | C198: =IF($C$8=1,'Scenario 1'!R173,'Scenario 2'!R173) -> 0.3 | D198: =IF($C$8=1,'Scenario 1'!S173,'Scenario 2'!S173) -> 0.6 | E198: =IF($C$8=1,'Scenario 1'!T173,'Scenario 2'!T173) -> 0.3 | F198: =IF($C$8=1,'Scenario 1'!U173,'Scenario 2'!U173) -> 0.3 | G198: =IF($C$8=1,'Scenario 1'!V173,'Scenario 2'!V173) -> 0.3 | H198: =IF($C$8=1,'Scenario 1'!W173,'Scenario 2'!W173) -> 0.6 | I198: =IF($C$8=1,'Scenario 1'!X173,'Scenario 2'!X173) -> 0.6 | J198: =IF($C$8=1,'Scenario 1'!Y173,'Scenario 2'!Y173) -> 0.6 | K198: =IF($C$8=1,'Scenario 1'!Z173,'Scenario 2'!Z173) -> 0.6 | L198: =IF($C$8=1,'Scenario 1'!AA173,'Scenario 2'!AA173) -> 0.6 | M198: =IF($C$8=1,'Scenario 1'!AB173,'Scenario 2'!AB173) -> 0.6 | N198: =IF($C$8=1,'Scenario 1'!AC173,'Scenario 2'!AC173) -> 0.8 | O198: =IF($C$8=1,'Scenario 1'!AD173,'Scenario 2'!AD173) -> 0.6 | P198: =IF($C$8=1,'Scenario 1'!AE173,'Scenario 2'!AE173) -> 0.6 | Q198: =IF($C$8=1,'Scenario 1'!AF173,'Scenario 2'!AF173) -> 0.6 | R198: =IF($C$8=1,'Scenario 1'!AG173,'Scenario 2'!AG173) -> 0.6 | S198: =IF($C$8=1,'Scenario 1'!AH173,'Scenario 2'!AH173) -> 0.6 | T198: =IF($C$8=1,'Scenario 1'!AI173,'Scenario 2'!AI173) -> 0 | U198: =IF($C$8=1,'Scenario 1'!AJ173,'Scenario 2'!AJ173) -> 0.6 | V198: =IF($C$8=1,'Scenario 1'!AK173,'Scenario 2'!AK173) -> 0.6 | W198: =IF($C$8=1,'Scenario 1'!AL173,'Scenario 2'!AL173) -> 0.75 | X198: =IF($C$8=1,'Scenario 1'!AM173,'Scenario 2'!AM173) -> 0 | Y198: =IF($C$8=1,'Scenario 1'!AN173,'Scenario 2'!AN173) -> 0 | Z198: =IF($C$8=1,'Scenario 1'!AO173,'Scenario 2'!AO173) -> 0.7 | AA198: =IF($C$8=1,'Scenario 1'!AP173,'Scenario 2'!AP173) -> 0 | AB198: =IF($C$8=1,'Scenario 1'!AQ173,'Scenario 2'!AQ173) -> 0
B199: P, (%) | C199: =IF($C$8=1,'Scenario 1'!R174,'Scenario 2'!R174) -> 0.44 | D199: =IF($C$8=1,'Scenario 1'!S174,'Scenario 2'!S174) -> 0.26 | E199: =IF($C$8=1,'Scenario 1'!T174,'Scenario 2'!T174) -> 0.35 | F199: =IF($C$8=1,'Scenario 1'!U174,'Scenario 2'!U174) -> 0.34 | G199: =IF($C$8=1,'Scenario 1'!V174,'Scenario 2'!V174) -> 0.25 | H199: =IF($C$8=1,'Scenario 1'!W174,'Scenario 2'!W174) -> 0.6 | I199: =IF($C$8=1,'Scenario 1'!X174,'Scenario 2'!X174) -> 0.3 | J199: =IF($C$8=1,'Scenario 1'!Y174,'Scenario 2'!Y174) -> 0.39 | K199: =IF($C$8=1,'Scenario 1'!Z174,'Scenario 2'!Z174) -> 0.43 | L199: =IF($C$8=1,'Scenario 1'!AA174,'Scenario 2'!AA174) -> 0.67 | M199: =IF($C$8=1,'Scenario 1'!AB174,'Scenario 2'!AB174) -> 1.1 | N199: =IF($C$8=1,'Scenario 1'!AC174,'Scenario 2'!AC174) -> 0 | O199: =IF($C$8=1,'Scenario 1'!AD174,'Scenario 2'!AD174) -> 0.66 | P199: =IF($C$8=1,'Scenario 1'!AE174,'Scenario 2'!AE174) -> 0.7 | Q199: =IF($C$8=1,'Scenario 1'!AF174,'Scenario 2'!AF174) -> 0.6 | R199: =IF($C$8=1,'Scenario 1'!AG174,'Scenario 2'!AG174) -> 0.83 | S199: =IF($C$8=1,'Scenario 1'!AH174,'Scenario 2'!AH174) -> 0.3 | T199: =IF($C$8=1,'Scenario 1'!AI174,'Scenario 2'!AI174) -> 0 | U199: =IF($C$8=1,'Scenario 1'!AJ174,'Scenario 2'!AJ174) -> 0.17 | V199: =IF($C$8=1,'Scenario 1'!AK174,'Scenario 2'!AK174) -> 0.6 | W199: =IF($C$8=1,'Scenario 1'!AL174,'Scenario 2'!AL174) -> 0.04 | X199: =IF($C$8=1,'Scenario 1'!AM174,'Scenario 2'!AM174) -> 22.5 | Y199: =IF($C$8=1,'Scenario 1'!AN174,'Scenario 2'!AN174) -> 0 | Z199: =IF($C$8=1,'Scenario 1'!AO174,'Scenario 2'!AO174) -> 0 | AA199: =IF($C$8=1,'Scenario 1'!AP174,'Scenario 2'!AP174) -> 0 | AB199: =IF($C$8=1,'Scenario 1'!AQ174,'Scenario 2'!AQ174) -> 0
B200: P availibility (%) | C200: =IF($C$8=1,'Scenario 1'!R175,'Scenario 2'!R175) -> 0.64 | D200: =IF($C$8=1,'Scenario 1'!S175,'Scenario 2'!S175) -> 0.7 | E200: =IF($C$8=1,'Scenario 1'!T175,'Scenario 2'!T175) -> 0.64 | F200: =IF($C$8=1,'Scenario 1'!U175,'Scenario 2'!U175) -> 0.64 | G200: =IF($C$8=1,'Scenario 1'!V175,'Scenario 2'!V175) -> 0.64 | H200: =IF($C$8=1,'Scenario 1'!W175,'Scenario 2'!W175) -> 0.7 | I200: =IF($C$8=1,'Scenario 1'!X175,'Scenario 2'!X175) -> 0.7 | J200: =IF($C$8=1,'Scenario 1'!Y175,'Scenario 2'!Y175) -> 0.7 | K200: =IF($C$8=1,'Scenario 1'!Z175,'Scenario 2'!Z175) -> 0.7 | L200: =IF($C$8=1,'Scenario 1'!AA175,'Scenario 2'!AA175) -> 0.7 | M200: =IF($C$8=1,'Scenario 1'!AB175,'Scenario 2'!AB175) -> 0.7 | N200: =IF($C$8=1,'Scenario 1'!AC175,'Scenario 2'!AC175) -> 0 | O200: =IF($C$8=1,'Scenario 1'!AD175,'Scenario 2'!AD175) -> 0.7 | P200: =IF($C$8=1,'Scenario 1'!AE175,'Scenario 2'!AE175) -> 0.7 | Q200: =IF($C$8=1,'Scenario 1'!AF175,'Scenario 2'!AF175) -> 0.7 | R200: =IF($C$8=1,'Scenario 1'!AG175,'Scenario 2'!AG175) -> 0.7 | S200: =IF($C$8=1,'Scenario 1'!AH175,'Scenario 2'!AH175) -> 0.7 | T200: =IF($C$8=1,'Scenario 1'!AI175,'Scenario 2'!AI175) -> 0 | U200: =IF($C$8=1,'Scenario 1'!AJ175,'Scenario 2'!AJ175) -> 0.7 | V200: =IF($C$8=1,'Scenario 1'!AK175,'Scenario 2'!AK175) -> 0.7 | W200: =IF($C$8=1,'Scenario 1'!AL175,'Scenario 2'!AL175) -> 0.7 | X200: =IF($C$8=1,'Scenario 1'!AM175,'Scenario 2'!AM175) -> 0.9 | Y200: =IF($C$8=1,'Scenario 1'!AN175,'Scenario 2'!AN175) -> 0 | Z200: =IF($C$8=1,'Scenario 1'!AO175,'Scenario 2'!AO175) -> 0 | AA200: =IF($C$8=1,'Scenario 1'!AP175,'Scenario 2'!AP175) -> 0 | AB200: =IF($C$8=1,'Scenario 1'!AQ175,'Scenario 2'!AQ175) -> 0
B201: K, (%) | C201: =IF($C$8=1,'Scenario 1'!R176,'Scenario 2'!R176) -> 3.36 | D201: =IF($C$8=1,'Scenario 1'!S176,'Scenario 2'!S176) -> 0.99 | E201: =IF($C$8=1,'Scenario 1'!T176,'Scenario 2'!T176) -> 2.57 | F201: =IF($C$8=1,'Scenario 1'!U176,'Scenario 2'!U176) -> 2.42 | G201: =IF($C$8=1,'Scenario 1'!V176,'Scenario 2'!V176) -> 1.85 | H201: =IF($C$8=1,'Scenario 1'!W176,'Scenario 2'!W176) -> 1.99 | I201: =IF($C$8=1,'Scenario 1'!X176,'Scenario 2'!X176) -> 0.42 | J201: =IF($C$8=1,'Scenario 1'!Y176,'Scenario 2'!Y176) -> 0.56 | K201: =IF($C$8=1,'Scenario 1'!Z176,'Scenario 2'!Z176) -> 0.5 | L201: =IF($C$8=1,'Scenario 1'!AA176,'Scenario 2'!AA176) -> 0.5 | M201: =IF($C$8=1,'Scenario 1'!AB176,'Scenario 2'!AB176) -> 1.41 | N201: =IF($C$8=1,'Scenario 1'!AC176,'Scenario 2'!AC176) -> 0 | O201: =IF($C$8=1,'Scenario 1'!AD176,'Scenario 2'!AD176) -> 2.12 | P201: =IF($C$8=1,'Scenario 1'!AE176,'Scenario 2'!AE176) -> 2.41 | Q201: =IF($C$8=1,'Scenario 1'!AF176,'Scenario 2'!AF176) -> 0.46 | R201: =IF($C$8=1,'Scenario 1'!AG176,'Scenario 2'!AG176) -> 1.1 | S201: =IF($C$8=1,'Scenario 1'!AH176,'Scenario 2'!AH176) -> 0.33 | T201: =IF($C$8=1,'Scenario 1'!AI176,'Scenario 2'!AI176) -> 0 | U201: =IF($C$8=1,'Scenario 1'!AJ176,'Scenario 2'!AJ176) -> 1.51 | V201: =IF($C$8=1,'Scenario 1'!AK176,'Scenario 2'!AK176) -> 1.13 | W201: =IF($C$8=1,'Scenario 1'!AL176,'Scenario 2'!AL176) -> 0.06 | X201: =IF($C$8=1,'Scenario 1'!AM176,'Scenario 2'!AM176) -> 0 | Y201: =IF($C$8=1,'Scenario 1'!AN176,'Scenario 2'!AN176) -> 0 | Z201: =IF($C$8=1,'Scenario 1'!AO176,'Scenario 2'!AO176) -> 0 | AA201: =IF($C$8=1,'Scenario 1'!AP176,'Scenario 2'!AP176) -> 0 | AB201: =IF($C$8=1,'Scenario 1'!AQ176,'Scenario 2'!AQ176) -> 0
B202: K availibility (%) | C202: =IF($C$8=1,'Scenario 1'!R177,'Scenario 2'!R177) -> 0.9 | D202: =IF($C$8=1,'Scenario 1'!S177,'Scenario 2'!S177) -> 0.9 | E202: =IF($C$8=1,'Scenario 1'!T177,'Scenario 2'!T177) -> 0.9 | F202: =IF($C$8=1,'Scenario 1'!U177,'Scenario 2'!U177) -> 0.9 | G202: =IF($C$8=1,'Scenario 1'!V177,'Scenario 2'!V177) -> 0.9 | H202: =IF($C$8=1,'Scenario 1'!W177,'Scenario 2'!W177) -> 0.9 | I202: =IF($C$8=1,'Scenario 1'!X177,'Scenario 2'!X177) -> 0.9 | J202: =IF($C$8=1,'Scenario 1'!Y177,'Scenario 2'!Y177) -> 0.9 | K202: =IF($C$8=1,'Scenario 1'!Z177,'Scenario 2'!Z177) -> 0.9 | L202: =IF($C$8=1,'Scenario 1'!AA177,'Scenario 2'!AA177) -> 0.9 | M202: =IF($C$8=1,'Scenario 1'!AB177,'Scenario 2'!AB177) -> 0.9 | N202: =IF($C$8=1,'Scenario 1'!AC177,'Scenario 2'!AC177) -> 0 | O202: =IF($C$8=1,'Scenario 1'!AD177,'Scenario 2'!AD177) -> 0.9 | P202: =IF($C$8=1,'Scenario 1'!AE177,'Scenario 2'!AE177) -> 0.9 | Q202: =IF($C$8=1,'Scenario 1'!AF177,'Scenario 2'!AF177) -> 0.9 | R202: =IF($C$8=1,'Scenario 1'!AG177,'Scenario 2'!AG177) -> 0.9 | S202: =IF($C$8=1,'Scenario 1'!AH177,'Scenario 2'!AH177) -> 0.9 | T202: =IF($C$8=1,'Scenario 1'!AI177,'Scenario 2'!AI177) -> 0 | U202: =IF($C$8=1,'Scenario 1'!AJ177,'Scenario 2'!AJ177) -> 0.9 | V202: =IF($C$8=1,'Scenario 1'!AK177,'Scenario 2'!AK177) -> 0.9 | W202: =IF($C$8=1,'Scenario 1'!AL177,'Scenario 2'!AL177) -> 0.9 | X202: =IF($C$8=1,'Scenario 1'!AM177,'Scenario 2'!AM177) -> 0 | Y202: =IF($C$8=1,'Scenario 1'!AN177,'Scenario 2'!AN177) -> 0 | Z202: =IF($C$8=1,'Scenario 1'!AO177,'Scenario 2'!AO177) -> 0 | AA202: =IF($C$8=1,'Scenario 1'!AP177,'Scenario 2'!AP177) -> 0.9 | AB202: =IF($C$8=1,'Scenario 1'!AQ177,'Scenario 2'!AQ177) -> 0
B203: Mg, (%) | C203: =IF($C$8=1,'Scenario 1'!R178,'Scenario 2'!R178) -> 0.2 | D203: =IF($C$8=1,'Scenario 1'!S178,'Scenario 2'!S178) -> 0.15 | E203: =IF($C$8=1,'Scenario 1'!T178,'Scenario 2'!T178) -> 0.26 | F203: =IF($C$8=1,'Scenario 1'!U178,'Scenario 2'!U178) -> 0.24 | G203: =IF($C$8=1,'Scenario 1'!V178,'Scenario 2'!V178) -> 0.17 | H203: =IF($C$8=1,'Scenario 1'!W178,'Scenario 2'!W178) -> 0.25 | I203: =IF($C$8=1,'Scenario 1'!X178,'Scenario 2'!X178) -> 0.12 | J203: =IF($C$8=1,'Scenario 1'!Y178,'Scenario 2'!Y178) -> 0.14 | K203: =IF($C$8=1,'Scenario 1'!Z178,'Scenario 2'!Z178) -> 0.15 | L203: =IF($C$8=1,'Scenario 1'!AA178,'Scenario 2'!AA178) -> 0.26 | M203: =IF($C$8=1,'Scenario 1'!AB178,'Scenario 2'!AB178) -> 0.53 | N203: =IF($C$8=1,'Scenario 1'!AC178,'Scenario 2'!AC178) -> 0 | O203: =IF($C$8=1,'Scenario 1'!AD178,'Scenario 2'!AD178) -> 0.3 | P203: =IF($C$8=1,'Scenario 1'!AE178,'Scenario 2'!AE178) -> 0.29 | Q203: =IF($C$8=1,'Scenario 1'!AF178,'Scenario 2'!AF178) -> 0.14 | R203: =IF($C$8=1,'Scenario 1'!AG178,'Scenario 2'!AG178) -> 0.33 | S203: =IF($C$8=1,'Scenario 1'!AH178,'Scenario 2'!AH178) -> 0.03 | T203: =IF($C$8=1,'Scenario 1'!AI178,'Scenario 2'!AI178) -> 0 | U203: =IF($C$8=1,'Scenario 1'!AJ178,'Scenario 2'!AJ178) -> 0.25 | V203: =IF($C$8=1,'Scenario 1'!AK178,'Scenario 2'!AK178) -> 0.37 | W203: =IF($C$8=1,'Scenario 1'!AL178,'Scenario 2'!AL178) -> 0.05 | X203: =IF($C$8=1,'Scenario 1'!AM178,'Scenario 2'!AM178) -> 0 | Y203: =IF($C$8=1,'Scenario 1'!AN178,'Scenario 2'!AN178) -> 56.2 | Z203: =IF($C$8=1,'Scenario 1'!AO178,'Scenario 2'!AO178) -> 0 | AA203: =IF($C$8=1,'Scenario 1'!AP178,'Scenario 2'!AP178) -> 0 | AB203: =IF($C$8=1,'Scenario 1'!AQ178,'Scenario 2'!AQ178) -> 9.8
B204: Mg availibility (%) | C204: =IF($C$8=1,'Scenario 1'!R179,'Scenario 2'!R179) -> 0.16 | D204: =IF($C$8=1,'Scenario 1'!S179,'Scenario 2'!S179) -> 0.16 | E204: =IF($C$8=1,'Scenario 1'!T179,'Scenario 2'!T179) -> 0.16 | F204: =IF($C$8=1,'Scenario 1'!U179,'Scenario 2'!U179) -> 0.16 | G204: =IF($C$8=1,'Scenario 1'!V179,'Scenario 2'!V179) -> 0.16 | H204: =IF($C$8=1,'Scenario 1'!W179,'Scenario 2'!W179) -> 0.16 | I204: =IF($C$8=1,'Scenario 1'!X179,'Scenario 2'!X179) -> 0.16 | J204: =IF($C$8=1,'Scenario 1'!Y179,'Scenario 2'!Y179) -> 0.16 | K204: =IF($C$8=1,'Scenario 1'!Z179,'Scenario 2'!Z179) -> 0.16 | L204: =IF($C$8=1,'Scenario 1'!AA179,'Scenario 2'!AA179) -> 0.16 | M204: =IF($C$8=1,'Scenario 1'!AB179,'Scenario 2'!AB179) -> 0.16 | N204: =IF($C$8=1,'Scenario 1'!AC179,'Scenario 2'!AC179) -> 0 | O204: =IF($C$8=1,'Scenario 1'!AD179,'Scenario 2'!AD179) -> 0.16 | P204: =IF($C$8=1,'Scenario 1'!AE179,'Scenario 2'!AE179) -> 0.16 | Q204: =IF($C$8=1,'Scenario 1'!AF179,'Scenario 2'!AF179) -> 0.16 | R204: =IF($C$8=1,'Scenario 1'!AG179,'Scenario 2'!AG179) -> 0.16 | S204: =IF($C$8=1,'Scenario 1'!AH179,'Scenario 2'!AH179) -> 0.16 | T204: =IF($C$8=1,'Scenario 1'!AI179,'Scenario 2'!AI179) -> 0 | U204: =IF($C$8=1,'Scenario 1'!AJ179,'Scenario 2'!AJ179) -> 0.16 | V204: =IF($C$8=1,'Scenario 1'!AK179,'Scenario 2'!AK179) -> 0.16 | W204: =IF($C$8=1,'Scenario 1'!AL179,'Scenario 2'!AL179) -> 0.16 | X204: =IF($C$8=1,'Scenario 1'!AM179,'Scenario 2'!AM179) -> 0 | Y204: =IF($C$8=1,'Scenario 1'!AN179,'Scenario 2'!AN179) -> 0.7 | Z204: =IF($C$8=1,'Scenario 1'!AO179,'Scenario 2'!AO179) -> 0 | AA204: =IF($C$8=1,'Scenario 1'!AP179,'Scenario 2'!AP179) -> 0 | AB204: =IF($C$8=1,'Scenario 1'!AQ179,'Scenario 2'!AQ179) -> 0.9
B205: Na, (%) | C205: =IF($C$8=1,'Scenario 1'!R180,'Scenario 2'!R180) -> 0.02 | D205: =IF($C$8=1,'Scenario 1'!S180,'Scenario 2'!S180) -> 0.01 | E205: =IF($C$8=1,'Scenario 1'!T180,'Scenario 2'!T180) -> 0.02 | F205: =IF($C$8=1,'Scenario 1'!U180,'Scenario 2'!U180) -> 0.08 | G205: =IF($C$8=1,'Scenario 1'!V180,'Scenario 2'!V180) -> 0.08 | H205: =IF($C$8=1,'Scenario 1'!W180,'Scenario 2'!W180) -> 0.01 | I205: =IF($C$8=1,'Scenario 1'!X180,'Scenario 2'!X180) -> 0.02 | J205: =IF($C$8=1,'Scenario 1'!Y180,'Scenario 2'!Y180) -> 0.02 | K205: =IF($C$8=1,'Scenario 1'!Z180,'Scenario 2'!Z180) -> 0.01 | L205: =IF($C$8=1,'Scenario 1'!AA180,'Scenario 2'!AA180) -> 0.04 | M205: =IF($C$8=1,'Scenario 1'!AB180,'Scenario 2'!AB180) -> 0.07 | N205: =IF($C$8=1,'Scenario 1'!AC180,'Scenario 2'!AC180) -> 0 | O205: =IF($C$8=1,'Scenario 1'!AD180,'Scenario 2'!AD180) -> 0.04 | P205: =IF($C$8=1,'Scenario 1'!AE180,'Scenario 2'!AE180) -> 0.03 | Q205: =IF($C$8=1,'Scenario 1'!AF180,'Scenario 2'!AF180) -> 0.05 | R205: =IF($C$8=1,'Scenario 1'!AG180,'Scenario 2'!AG180) -> 0.3 | S205: =IF($C$8=1,'Scenario 1'!AH180,'Scenario 2'!AH180) -> 0.4 | T205: =IF($C$8=1,'Scenario 1'!AI180,'Scenario 2'!AI180) -> 0 | U205: =IF($C$8=1,'Scenario 1'!AJ180,'Scenario 2'!AJ180) -> 0.01 | V205: =IF($C$8=1,'Scenario 1'!AK180,'Scenario 2'!AK180) -> 0.02 | W205: =IF($C$8=1,'Scenario 1'!AL180,'Scenario 2'!AL180) -> 0.06 | X205: =IF($C$8=1,'Scenario 1'!AM180,'Scenario 2'!AM180) -> 16.68 | Y205: =IF($C$8=1,'Scenario 1'!AN180,'Scenario 2'!AN180) -> 0 | Z205: =IF($C$8=1,'Scenario 1'!AO180,'Scenario 2'!AO180) -> 0 | AA205: =IF($C$8=1,'Scenario 1'!AP180,'Scenario 2'!AP180) -> 39.34 | AB205: =IF($C$8=1,'Scenario 1'!AQ180,'Scenario 2'!AQ180) -> 0
B206: Na availibility (%) | C206: =IF($C$8=1,'Scenario 1'!R181,'Scenario 2'!R181) -> 0.9 | D206: =IF($C$8=1,'Scenario 1'!S181,'Scenario 2'!S181) -> 0.9 | E206: =IF($C$8=1,'Scenario 1'!T181,'Scenario 2'!T181) -> 0.9 | F206: =IF($C$8=1,'Scenario 1'!U181,'Scenario 2'!U181) -> 0.9 | G206: =IF($C$8=1,'Scenario 1'!V181,'Scenario 2'!V181) -> 0.9 | H206: =IF($C$8=1,'Scenario 1'!W181,'Scenario 2'!W181) -> 0.9 | I206: =IF($C$8=1,'Scenario 1'!X181,'Scenario 2'!X181) -> 0.9 | J206: =IF($C$8=1,'Scenario 1'!Y181,'Scenario 2'!Y181) -> 0.9 | K206: =IF($C$8=1,'Scenario 1'!Z181,'Scenario 2'!Z181) -> 0.9 | L206: =IF($C$8=1,'Scenario 1'!AA181,'Scenario 2'!AA181) -> 0.9 | M206: =IF($C$8=1,'Scenario 1'!AB181,'Scenario 2'!AB181) -> 0.9 | N206: =IF($C$8=1,'Scenario 1'!AC181,'Scenario 2'!AC181) -> 0 | O206: =IF($C$8=1,'Scenario 1'!AD181,'Scenario 2'!AD181) -> 0.9 | P206: =IF($C$8=1,'Scenario 1'!AE181,'Scenario 2'!AE181) -> 0.9 | Q206: =IF($C$8=1,'Scenario 1'!AF181,'Scenario 2'!AF181) -> 0.9 | R206: =IF($C$8=1,'Scenario 1'!AG181,'Scenario 2'!AG181) -> 0.9 | S206: =IF($C$8=1,'Scenario 1'!AH181,'Scenario 2'!AH181) -> 0.9 | T206: =IF($C$8=1,'Scenario 1'!AI181,'Scenario 2'!AI181) -> 0 | U206: =IF($C$8=1,'Scenario 1'!AJ181,'Scenario 2'!AJ181) -> 0.9 | V206: =IF($C$8=1,'Scenario 1'!AK181,'Scenario 2'!AK181) -> 0.9 | W206: =IF($C$8=1,'Scenario 1'!AL181,'Scenario 2'!AL181) -> 0.9 | X206: =IF($C$8=1,'Scenario 1'!AM181,'Scenario 2'!AM181) -> 0.9 | Y206: =IF($C$8=1,'Scenario 1'!AN181,'Scenario 2'!AN181) -> 0 | Z206: =IF($C$8=1,'Scenario 1'!AO181,'Scenario 2'!AO181) -> 0 | AA206: =IF($C$8=1,'Scenario 1'!AP181,'Scenario 2'!AP181) -> 0.9 | AB206: =IF($C$8=1,'Scenario 1'!AQ181,'Scenario 2'!AQ181) -> 0
B207: Cl, (%) | C207: =IF($C$8=1,'Scenario 1'!R182,'Scenario 2'!R182) -> 0.56 | D207: =IF($C$8=1,'Scenario 1'!S182,'Scenario 2'!S182) -> 0.29 | E207: =IF($C$8=1,'Scenario 1'!T182,'Scenario 2'!T182) -> 0.61 | F207: =IF($C$8=1,'Scenario 1'!U182,'Scenario 2'!U182) -> 0.43 | G207: =IF($C$8=1,'Scenario 1'!V182,'Scenario 2'!V182) -> 0.92 | H207: =IF($C$8=1,'Scenario 1'!W182,'Scenario 2'!W182) -> 0.04 | I207: =IF($C$8=1,'Scenario 1'!X182,'Scenario 2'!X182) -> 0.08 | J207: =IF($C$8=1,'Scenario 1'!Y182,'Scenario 2'!Y182) -> 0.13 | K207: =IF($C$8=1,'Scenario 1'!Z182,'Scenario 2'!Z182) -> 0.11 | L207: =IF($C$8=1,'Scenario 1'!AA182,'Scenario 2'!AA182) -> 0.07 | M207: =IF($C$8=1,'Scenario 1'!AB182,'Scenario 2'!AB182) -> 0.04 | N207: =IF($C$8=1,'Scenario 1'!AC182,'Scenario 2'!AC182) -> 0 | O207: =IF($C$8=1,'Scenario 1'!AD182,'Scenario 2'!AD182) -> 0.1 | P207: =IF($C$8=1,'Scenario 1'!AE182,'Scenario 2'!AE182) -> 0.13 | Q207: =IF($C$8=1,'Scenario 1'!AF182,'Scenario 2'!AF182) -> 0.11 | R207: =IF($C$8=1,'Scenario 1'!AG182,'Scenario 2'!AG182) -> 0.26 | S207: =IF($C$8=1,'Scenario 1'!AH182,'Scenario 2'!AH182) -> 0.33 | T207: =IF($C$8=1,'Scenario 1'!AI182,'Scenario 2'!AI182) -> 0 | U207: =IF($C$8=1,'Scenario 1'!AJ182,'Scenario 2'!AJ182) -> 0.05 | V207: =IF($C$8=1,'Scenario 1'!AK182,'Scenario 2'!AK182) -> 0.06 | W207: =IF($C$8=1,'Scenario 1'!AL182,'Scenario 2'!AL182) -> 0 | X207: =IF($C$8=1,'Scenario 1'!AM182,'Scenario 2'!AM182) -> 0 | Y207: =IF($C$8=1,'Scenario 1'!AN182,'Scenario 2'!AN182) -> 0 | Z207: =IF($C$8=1,'Scenario 1'!AO182,'Scenario 2'!AO182) -> 0 | AA207: =IF($C$8=1,'Scenario 1'!AP182,'Scenario 2'!AP182) -> 60.663 | AB207: =IF($C$8=1,'Scenario 1'!AQ182,'Scenario 2'!AQ182) -> 0
B208: Cl availibility (%) | C208: =IF($C$8=1,'Scenario 1'!R183,'Scenario 2'!R183) -> 0.9 | D208: =IF($C$8=1,'Scenario 1'!S183,'Scenario 2'!S183) -> 0.9 | E208: =IF($C$8=1,'Scenario 1'!T183,'Scenario 2'!T183) -> 0.9 | F208: =IF($C$8=1,'Scenario 1'!U183,'Scenario 2'!U183) -> 0.9 | G208: =IF($C$8=1,'Scenario 1'!V183,'Scenario 2'!V183) -> 0.9 | H208: =IF($C$8=1,'Scenario 1'!W183,'Scenario 2'!W183) -> 0.9 | I208: =IF($C$8=1,'Scenario 1'!X183,'Scenario 2'!X183) -> 0.9 | J208: =IF($C$8=1,'Scenario 1'!Y183,'Scenario 2'!Y183) -> 0.9 | K208: =IF($C$8=1,'Scenario 1'!Z183,'Scenario 2'!Z183) -> 0.9 | L208: =IF($C$8=1,'Scenario 1'!AA183,'Scenario 2'!AA183) -> 0.9 | M208: =IF($C$8=1,'Scenario 1'!AB183,'Scenario 2'!AB183) -> 0.9 | N208: =IF($C$8=1,'Scenario 1'!AC183,'Scenario 2'!AC183) -> 0 | O208: =IF($C$8=1,'Scenario 1'!AD183,'Scenario 2'!AD183) -> 0.9 | P208: =IF($C$8=1,'Scenario 1'!AE183,'Scenario 2'!AE183) -> 0.9 | Q208: =IF($C$8=1,'Scenario 1'!AF183,'Scenario 2'!AF183) -> 0.9 | R208: =IF($C$8=1,'Scenario 1'!AG183,'Scenario 2'!AG183) -> 0.9 | S208: =IF($C$8=1,'Scenario 1'!AH183,'Scenario 2'!AH183) -> 0.9 | T208: =IF($C$8=1,'Scenario 1'!AI183,'Scenario 2'!AI183) -> 0 | U208: =IF($C$8=1,'Scenario 1'!AJ183,'Scenario 2'!AJ183) -> 0.9 | V208: =IF($C$8=1,'Scenario 1'!AK183,'Scenario 2'!AK183) -> 0.9 | W208: =IF($C$8=1,'Scenario 1'!AL183,'Scenario 2'!AL183) -> 0.9 | X208: =IF($C$8=1,'Scenario 1'!AM183,'Scenario 2'!AM183) -> 0 | Y208: =IF($C$8=1,'Scenario 1'!AN183,'Scenario 2'!AN183) -> 0 | Z208: =IF($C$8=1,'Scenario 1'!AO183,'Scenario 2'!AO183) -> 0 | AA208: =IF($C$8=1,'Scenario 1'!AP183,'Scenario 2'!AP183) -> 0.9 | AB208: =IF($C$8=1,'Scenario 1'!AQ183,'Scenario 2'!AQ183) -> 0
B209: S, (%) | C209: =IF($C$8=1,'Scenario 1'!R184,'Scenario 2'!R184) -> 0.2 | D209: =IF($C$8=1,'Scenario 1'!S184,'Scenario 2'!S184) -> 0.14 | E209: =IF($C$8=1,'Scenario 1'!T184,'Scenario 2'!T184) -> 0.28 | F209: =IF($C$8=1,'Scenario 1'!U184,'Scenario 2'!U184) -> 0.26 | G209: =IF($C$8=1,'Scenario 1'!V184,'Scenario 2'!V184) -> 0.24 | H209: =IF($C$8=1,'Scenario 1'!W184,'Scenario 2'!W184) -> 0.31 | I209: =IF($C$8=1,'Scenario 1'!X184,'Scenario 2'!X184) -> 0.1 | J209: =IF($C$8=1,'Scenario 1'!Y184,'Scenario 2'!Y184) -> 0.12 | K209: =IF($C$8=1,'Scenario 1'!Z184,'Scenario 2'!Z184) -> 0.15 | L209: =IF($C$8=1,'Scenario 1'!AA184,'Scenario 2'!AA184) -> 0.38 | M209: =IF($C$8=1,'Scenario 1'!AB184,'Scenario 2'!AB184) -> 0.73 | N209: =IF($C$8=1,'Scenario 1'!AC184,'Scenario 2'!AC184) -> 0 | O209: =IF($C$8=1,'Scenario 1'!AD184,'Scenario 2'!AD184) -> 0.34 | P209: =IF($C$8=1,'Scenario 1'!AE184,'Scenario 2'!AE184) -> 0.39 | Q209: =IF($C$8=1,'Scenario 1'!AF184,'Scenario 2'!AF184) -> 0.86 | R209: =IF($C$8=1,'Scenario 1'!AG184,'Scenario 2'!AG184) -> 0.44 | S209: =IF($C$8=1,'Scenario 1'!AH184,'Scenario 2'!AH184) -> 0.77 | T209: =IF($C$8=1,'Scenario 1'!AI184,'Scenario 2'!AI184) -> 0 | U209: =IF($C$8=1,'Scenario 1'!AJ184,'Scenario 2'!AJ184) -> 0.12 | V209: =IF($C$8=1,'Scenario 1'!AK184,'Scenario 2'!AK184) -> 0.23 | W209: =IF($C$8=1,'Scenario 1'!AL184,'Scenario 2'!AL184) -> 0 | X209: =IF($C$8=1,'Scenario 1'!AM184,'Scenario 2'!AM184) -> 0 | Y209: =IF($C$8=1,'Scenario 1'!AN184,'Scenario 2'!AN184) -> 0 | Z209: =IF($C$8=1,'Scenario 1'!AO184,'Scenario 2'!AO184) -> 18.62 | AA209: =IF($C$8=1,'Scenario 1'!AP184,'Scenario 2'!AP184) -> 0 | AB209: =IF($C$8=1,'Scenario 1'!AQ184,'Scenario 2'!AQ184) -> 13.31
B210: DCAD (meq/kg) | C210: =IF($C$8=1,'Scenario 1'!R185,'Scenario 2'!R185) -> 585.6220673 | D210: =IF($C$8=1,'Scenario 1'!S185,'Scenario 2'!S185) -> 88.61328823 | E210: =IF($C$8=1,'Scenario 1'!T185,'Scenario 2'!T185) -> 319.6663708 | F210: =IF($C$8=1,'Scenario 1'!U185,'Scenario 2'!U185) -> 370.6209301 | G210: =IF($C$8=1,'Scenario 1'!V185,'Scenario 2'!V185) -> 99.07281184 | H210: =IF($C$8=1,'Scenario 1'!W185,'Scenario 2'!W185) -> 309.0746726 | I210: =IF($C$8=1,'Scenario 1'!X185,'Scenario 2'!X185) -> 31.30885327 | J210: =IF($C$8=1,'Scenario 1'!Y185,'Scenario 2'!Y185) -> 40.56343364 | K210: =IF($C$8=1,'Scenario 1'!Z185,'Scenario 2'!Z185) -> 7.834877992 | L210: =IF($C$8=1,'Scenario 1'!AA185,'Scenario 2'!AA185) -> -111.0016921 | M210: =IF($C$8=1,'Scenario 1'!AB185,'Scenario 2'!AB185) -> -74.60875085 | N210: =IF($C$8=1,'Scenario 1'!AC185,'Scenario 2'!AC185) -> 0 | O210: =IF($C$8=1,'Scenario 1'!AD185,'Scenario 2'!AD185) -> 319.7755145 | P210: =IF($C$8=1,'Scenario 1'!AE185,'Scenario 2'!AE185) -> 350.0123144 | Q210: =IF($C$8=1,'Scenario 1'!AF185,'Scenario 2'!AF185) -> -426.951285 | R210: =IF($C$8=1,'Scenario 1'!AG185,'Scenario 2'!AG185) -> 64.61094604 | S210: =IF($C$8=1,'Scenario 1'!AH185,'Scenario 2'!AH185) -> -313.9909617 | T210: =IF($C$8=1,'Scenario 1'!AI185,'Scenario 2'!AI185) -> 0 | U210: =IF($C$8=1,'Scenario 1'!AJ185,'Scenario 2'!AJ185) -> 301.7560808 | V210: =IF($C$8=1,'Scenario 1'!AK185,'Scenario 2'!AK185) -> 137.6224405 | W210: =IF($C$8=1,'Scenario 1'!AL185,'Scenario 2'!AL185) -> 41.44446641 | X210: =IF($C$8=1,'Scenario 1'!AM185,'Scenario 2'!AM185) -> 7255.391521 | Y210: =IF($C$8=1,'Scenario 1'!AN185,'Scenario 2'!AN185) -> 0 | Z210: =IF($C$8=1,'Scenario 1'!AO185,'Scenario 2'!AO185) -> -11590.41394 | AA210: =IF($C$8=1,'Scenario 1'!AP185,'Scenario 2'!AP185) -> 1.113818515 | AB210: =IF($C$8=1,'Scenario 1'!AQ185,'Scenario 2'!AQ185) -> -8285.091815
B211: Ash, (%) | C211: =IF($C$8=1,'Scenario 1'!R186,'Scenario 2'!R186) -> 9.8 | D211: =IF($C$8=1,'Scenario 1'!S186,'Scenario 2'!S186) -> 4.3 | E211: =IF($C$8=1,'Scenario 1'!T186,'Scenario 2'!T186) -> 10.8 | F211: =IF($C$8=1,'Scenario 1'!U186,'Scenario 2'!U186) -> 9.1 | G211: =IF($C$8=1,'Scenario 1'!V186,'Scenario 2'!V186) -> 8.8 | H211: =IF($C$8=1,'Scenario 1'!W186,'Scenario 2'!W186) -> 5.9 | I211: =IF($C$8=1,'Scenario 1'!X186,'Scenario 2'!X186) -> 1.5 | J211: =IF($C$8=1,'Scenario 1'!Y186,'Scenario 2'!Y186) -> 2.9 | K211: =IF($C$8=1,'Scenario 1'!Z186,'Scenario 2'!Z186) -> 2 | L211: =IF($C$8=1,'Scenario 1'!AA186,'Scenario 2'!AA186) -> 4.3 | M211: =IF($C$8=1,'Scenario 1'!AB186,'Scenario 2'!AB186) -> 7.4 | N211: =IF($C$8=1,'Scenario 1'!AC186,'Scenario 2'!AC186) -> 15.5 | O211: =IF($C$8=1,'Scenario 1'!AD186,'Scenario 2'!AD186) -> 5.5 | P211: =IF($C$8=1,'Scenario 1'!AE186,'Scenario 2'!AE186) -> 6.4 | Q211: =IF($C$8=1,'Scenario 1'!AF186,'Scenario 2'!AF186) -> 3.3 | R211: =IF($C$8=1,'Scenario 1'!AG186,'Scenario 2'!AG186) -> 5.2 | S211: =IF($C$8=1,'Scenario 1'!AH186,'Scenario 2'!AH186) -> 2.5 | T211: =IF($C$8=1,'Scenario 1'!AI186,'Scenario 2'!AI186) -> 100 | U211: =IF($C$8=1,'Scenario 1'!AJ186,'Scenario 2'!AJ186) -> 4.8 | V211: =IF($C$8=1,'Scenario 1'!AK186,'Scenario 2'!AK186) -> 4.2 | W211: =IF($C$8=1,'Scenario 1'!AL186,'Scenario 2'!AL186) -> 100 | X211: =IF($C$8=1,'Scenario 1'!AM186,'Scenario 2'!AM186) -> 100 | Y211: =IF($C$8=1,'Scenario 1'!AN186,'Scenario 2'!AN186) -> 100 | Z211: =IF($C$8=1,'Scenario 1'!AO186,'Scenario 2'!AO186) -> 100 | AA211: =IF($C$8=1,'Scenario 1'!AP186,'Scenario 2'!AP186) -> 100 | AB211: =IF($C$8=1,'Scenario 1'!AQ186,'Scenario 2'!AQ186) -> 100
A213: 4.2. Feed Costs
B214: Price, $/t DM | C214: =IF($C$8=1,'Scenario 1'!R188,'Scenario 2'!R188) -> 122 | D214: =IF($C$8=1,'Scenario 1'!S188,'Scenario 2'!S188) -> 110 | E214: =IF($C$8=1,'Scenario 1'!T188,'Scenario 2'!T188) -> 205 | F214: =IF($C$8=1,'Scenario 1'!U188,'Scenario 2'!U188) -> 157 | G214: =IF($C$8=1,'Scenario 1'!V188,'Scenario 2'!V188) -> 160 | H214: =IF($C$8=1,'Scenario 1'!W188,'Scenario 2'!W188) -> 425 | I214: =IF($C$8=1,'Scenario 1'!X188,'Scenario 2'!X188) -> 200 | J214: =IF($C$8=1,'Scenario 1'!Y188,'Scenario 2'!Y188) -> 171 | K214: =IF($C$8=1,'Scenario 1'!Z188,'Scenario 2'!Z188) -> 262 | L214: =IF($C$8=1,'Scenario 1'!AA188,'Scenario 2'!AA188) -> 353 | M214: =IF($C$8=1,'Scenario 1'!AB188,'Scenario 2'!AB188) -> 346 | N214: =IF($C$8=1,'Scenario 1'!AC188,'Scenario 2'!AC188) -> 1100 | O214: =IF($C$8=1,'Scenario 1'!AD188,'Scenario 2'!AD188) -> 524 | P214: =IF($C$8=1,'Scenario 1'!AE188,'Scenario 2'!AE188) -> 387 | Q214: =IF($C$8=1,'Scenario 1'!AF188,'Scenario 2'!AF188) -> 618 | R214: =IF($C$8=1,'Scenario 1'!AG188,'Scenario 2'!AG188) -> 181 | S214: =IF($C$8=1,'Scenario 1'!AH188,'Scenario 2'!AH188) -> 1026 | T214: =IF($C$8=1,'Scenario 1'!AI188,'Scenario 2'!AI188) -> 631 | U214: =IF($C$8=1,'Scenario 1'!AJ188,'Scenario 2'!AJ188) -> 225 | V214: =IF($C$8=1,'Scenario 1'!AK188,'Scenario 2'!AK188) -> 288 | W214: =IF($C$8=1,'Scenario 1'!AL188,'Scenario 2'!AL188) -> 253.2654 | X214: =IF($C$8=1,'Scenario 1'!AM188,'Scenario 2'!AM188) -> 705.159 | Y214: =IF($C$8=1,'Scenario 1'!AN188,'Scenario 2'!AN188) -> 690.156 | Z214: =IF($C$8=1,'Scenario 1'!AO188,'Scenario 2'!AO188) -> 454.545 | AA214: =IF($C$8=1,'Scenario 1'!AP188,'Scenario 2'!AP188) -> 321.426 | AB214: =IF($C$8=1,'Scenario 1'!AQ188,'Scenario 2'!AQ188) -> 545.94
B215: Transport costs, $/t DM | C215: =IF($C$8=1,'Scenario 1'!R189,'Scenario 2'!R189) -> 0 | D215: =IF($C$8=1,'Scenario 1'!S189,'Scenario 2'!S189) -> 0 | E215: =IF($C$8=1,'Scenario 1'!T189,'Scenario 2'!T189) -> 0 | F215: =IF($C$8=1,'Scenario 1'!U189,'Scenario 2'!U189) -> 0 | G215: =IF($C$8=1,'Scenario 1'!V189,'Scenario 2'!V189) -> 0 | H215: =IF($C$8=1,'Scenario 1'!W189,'Scenario 2'!W189) -> 0 | I215: =IF($C$8=1,'Scenario 1'!X189,'Scenario 2'!X189) -> 0 | J215: =IF($C$8=1,'Scenario 1'!Y189,'Scenario 2'!Y189) -> 0 | K215: =IF($C$8=1,'Scenario 1'!Z189,'Scenario 2'!Z189) -> 0 | L215: =IF($C$8=1,'Scenario 1'!AA189,'Scenario 2'!AA189) -> 0 | M215: =IF($C$8=1,'Scenario 1'!AB189,'Scenario 2'!AB189) -> 0 | N215: =IF($C$8=1,'Scenario 1'!AC189,'Scenario 2'!AC189) -> 0 | O215: =IF($C$8=1,'Scenario 1'!AD189,'Scenario 2'!AD189) -> 0 | P215: =IF($C$8=1,'Scenario 1'!AE189,'Scenario 2'!AE189) -> 0 | Q215: =IF($C$8=1,'Scenario 1'!AF189,'Scenario 2'!AF189) -> 0 | R215: =IF($C$8=1,'Scenario 1'!AG189,'Scenario 2'!AG189) -> 0 | S215: =IF($C$8=1,'Scenario 1'!AH189,'Scenario 2'!AH189) -> 0 | T215: =IF($C$8=1,'Scenario 1'!AI189,'Scenario 2'!AI189) -> 0 | U215: =IF($C$8=1,'Scenario 1'!AJ189,'Scenario 2'!AJ189) -> 0 | V215: =IF($C$8=1,'Scenario 1'!AK189,'Scenario 2'!AK189) -> 0 | W215: =IF($C$8=1,'Scenario 1'!AL189,'Scenario 2'!AL189) -> 0 | X215: =IF($C$8=1,'Scenario 1'!AM189,'Scenario 2'!AM189) -> 0 | Y215: =IF($C$8=1,'Scenario 1'!AN189,'Scenario 2'!AN189) -> 0 | Z215: =IF($C$8=1,'Scenario 1'!AO189,'Scenario 2'!AO189) -> 0 | AA215: =IF($C$8=1,'Scenario 1'!AP189,'Scenario 2'!AP189) -> 0 | AB215: =IF($C$8=1,'Scenario 1'!AQ189,'Scenario 2'!AQ189) -> 0
B216: Storage costs, $/t DM | C216: =IF($C$8=1,'Scenario 1'!R190,'Scenario 2'!R190) -> 0 | D216: =IF($C$8=1,'Scenario 1'!S190,'Scenario 2'!S190) -> 4.19 | E216: =IF($C$8=1,'Scenario 1'!T190,'Scenario 2'!T190) -> 4.19 | F216: =IF($C$8=1,'Scenario 1'!U190,'Scenario 2'!U190) -> 4.19 | G216: =IF($C$8=1,'Scenario 1'!V190,'Scenario 2'!V190) -> 4.19 | H216: =IF($C$8=1,'Scenario 1'!W190,'Scenario 2'!W190) -> 2 | I216: =IF($C$8=1,'Scenario 1'!X190,'Scenario 2'!X190) -> 2 | J216: =IF($C$8=1,'Scenario 1'!Y190,'Scenario 2'!Y190) -> 2 | K216: =IF($C$8=1,'Scenario 1'!Z190,'Scenario 2'!Z190) -> 2 | L216: =IF($C$8=1,'Scenario 1'!AA190,'Scenario 2'!AA190) -> 2 | M216: =IF($C$8=1,'Scenario 1'!AB190,'Scenario 2'!AB190) -> 2 | N216: =IF($C$8=1,'Scenario 1'!AC190,'Scenario 2'!AC190) -> 0 | O216: =IF($C$8=1,'Scenario 1'!AD190,'Scenario 2'!AD190) -> 2 | P216: =IF($C$8=1,'Scenario 1'!AE190,'Scenario 2'!AE190) -> 2 | Q216: =IF($C$8=1,'Scenario 1'!AF190,'Scenario 2'!AF190) -> 2 | R216: =IF($C$8=1,'Scenario 1'!AG190,'Scenario 2'!AG190) -> 2 | S216: =IF($C$8=1,'Scenario 1'!AH190,'Scenario 2'!AH190) -> 0 | T216: =IF($C$8=1,'Scenario 1'!AI190,'Scenario 2'!AI190) -> 1.3 | U216: =IF($C$8=1,'Scenario 1'!AJ190,'Scenario 2'!AJ190) -> 2 | V216: =IF($C$8=1,'Scenario 1'!AK190,'Scenario 2'!AK190) -> 2 | W216: =IF($C$8=1,'Scenario 1'!AL190,'Scenario 2'!AL190) -> 1.3 | X216: =IF($C$8=1,'Scenario 1'!AM190,'Scenario 2'!AM190) -> 1.3 | Y216: =IF($C$8=1,'Scenario 1'!AN190,'Scenario 2'!AN190) -> 1.3 | Z216: =IF($C$8=1,'Scenario 1'!AO190,'Scenario 2'!AO190) -> 1.3 | AA216: =IF($C$8=1,'Scenario 1'!AP190,'Scenario 2'!AP190) -> 1.3 | AB216: =IF($C$8=1,'Scenario 1'!AQ190,'Scenario 2'!AQ190) -> 1.3
B217: Field & storage losses, % | C217: =IF($C$8=1,'Scenario 1'!R191,'Scenario 2'!R191) -> 15 | D217: =IF($C$8=1,'Scenario 1'!S191,'Scenario 2'!S191) -> 17 | E217: =IF($C$8=1,'Scenario 1'!T191,'Scenario 2'!T191) -> 17 | F217: =IF($C$8=1,'Scenario 1'!U191,'Scenario 2'!U191) -> 17 | G217: =IF($C$8=1,'Scenario 1'!V191,'Scenario 2'!V191) -> 18 | H217: =IF($C$8=1,'Scenario 1'!W191,'Scenario 2'!W191) -> 3 | I217: =IF($C$8=1,'Scenario 1'!X191,'Scenario 2'!X191) -> 3 | J217: =IF($C$8=1,'Scenario 1'!Y191,'Scenario 2'!Y191) -> 3 | K217: =IF($C$8=1,'Scenario 1'!Z191,'Scenario 2'!Z191) -> 3
B218: Refusals, % of used | C218: =IF($C$8=1,'Scenario 1'!R192,'Scenario 2'!R192) -> 0 | D218: =IF($C$8=1,'Scenario 1'!S192,'Scenario 2'!S192) -> 5 | E218: =IF($C$8=1,'Scenario 1'!T192,'Scenario 2'!T192) -> 5 | F218: =IF($C$8=1,'Scenario 1'!U192,'Scenario 2'!U192) -> 5 | G218: =IF($C$8=1,'Scenario 1'!V192,'Scenario 2'!V192) -> 10 | H218: =IF($C$8=1,'Scenario 1'!W192,'Scenario 2'!W192) -> 2 | I218: =IF($C$8=1,'Scenario 1'!X192,'Scenario 2'!X192) -> 2 | J218: =IF($C$8=1,'Scenario 1'!Y192,'Scenario 2'!Y192) -> 2 | K218: =IF($C$8=1,'Scenario 1'!Z192,'Scenario 2'!Z192) -> 2 | L218: =IF($C$8=1,'Scenario 1'!AA192,'Scenario 2'!AA192) -> 2 | M218: =IF($C$8=1,'Scenario 1'!AB192,'Scenario 2'!AB192) -> 2 | N218: =IF($C$8=1,'Scenario 1'!AC192,'Scenario 2'!AC192) -> 2 | O218: =IF($C$8=1,'Scenario 1'!AD192,'Scenario 2'!AD192) -> 2 | P218: =IF($C$8=1,'Scenario 1'!AE192,'Scenario 2'!AE192) -> 2 | Q218: =IF($C$8=1,'Scenario 1'!AF192,'Scenario 2'!AF192) -> 2 | R218: =IF($C$8=1,'Scenario 1'!AG192,'Scenario 2'!AG192) -> 2 | S218: =IF($C$8=1,'Scenario 1'!AH192,'Scenario 2'!AH192) -> 2 | T218: =IF($C$8=1,'Scenario 1'!AI192,'Scenario 2'!AI192) -> 1 | U218: =IF($C$8=1,'Scenario 1'!AJ192,'Scenario 2'!AJ192) -> 2 | V218: =IF($C$8=1,'Scenario 1'!AK192,'Scenario 2'!AK192) -> 2 | W218: =IF($C$8=1,'Scenario 1'!AL192,'Scenario 2'!AL192) -> 1 | X218: =IF($C$8=1,'Scenario 1'!AM192,'Scenario 2'!AM192) -> 1 | Y218: =IF($C$8=1,'Scenario 1'!AN192,'Scenario 2'!AN192) -> 1 | Z218: =IF($C$8=1,'Scenario 1'!AO192,'Scenario 2'!AO192) -> 1 | AA218: =IF($C$8=1,'Scenario 1'!AP192,'Scenario 2'!AP192) -> 1 | AB218: =IF($C$8=1,'Scenario 1'!AQ192,'Scenario 2'!AQ192) -> 1
B219: *Inventory Change | G219: * If min = 0 and max = 0, then amount produced = amount used
B220: Minimum, t | C220: =IF($C$8=1,'Scenario 1'!R194,'Scenario 2'!R194) -> 0 | D220: =IF($C$8=1,'Scenario 1'!S194,'Scenario 2'!S194) -> 0 | E220: =IF($C$8=1,'Scenario 1'!T194,'Scenario 2'!T194) -> 0 | F220: =IF($C$8=1,'Scenario 1'!U194,'Scenario 2'!U194) -> 0 | G220: * If min = 0 and max > 0 then amount produced > amount used and the excess is sold
B221: Maximum, t | C221: =IF($C$8=1,'Scenario 1'!R195,'Scenario 2'!R195) -> 0 | D221: =IF($C$8=1,'Scenario 1'!S195,'Scenario 2'!S195) -> 0 | E221: =IF($C$8=1,'Scenario 1'!T195,'Scenario 2'!T195) -> 0 | F221: =IF($C$8=1,'Scenario 1'!U195,'Scenario 2'!U195) -> 0 | G221: * If min < 0 and max = 0 then amount produced < amount used and the deficit is purchased
G222: * If min < 0 and max > 0 then N-CyCLE decides whether one should overproduce or underproduce
A223: 4.3. Feed with limits in Rations
C224: =C181 -> GrPast-49 | D224: CoSi-35 | E224: AlSi-83 | F224: MxSi-74 | G224: GrHy-52 | H224: SBw-108 | I224: CoGr-27 | J224: Barley-8 | K224: Wheat-116 | L224: Brewers grains-16 | M224: Canola-19 | N224: FatCa-40 | O224: SBMx-104 | P224: SBM48-107 | Q224: CGM-25 | R224: CoDi-23 | S224: Bld Meal-14 | T224: Urea | U224: SoyHull-103 | V224: CottonSd-w-37 | W224: CaCO3 | X224: NaH2PO4.H20 | Y224: MgO | Z224: CaSO4.2H20 | AA224: NaCl | AB224: MgSO4.7H20
B225: =IF($C$8=1,'Scenario 1'!O200,'Scenario 2'!O200) -> CoGr-27 | C225: =IF($C$8=1,'Scenario 1'!R200,'Scenario 2'!R200) -> 0 | D225: =IF($C$8=1,'Scenario 1'!S200,'Scenario 2'!S200) -> 0 | E225: =IF($C$8=1,'Scenario 1'!T200,'Scenario 2'!T200) -> 0 | F225: =IF($C$8=1,'Scenario 1'!U200,'Scenario 2'!U200) -> 0 | G225: =IF($C$8=1,'Scenario 1'!V200,'Scenario 2'!V200) -> 0 | H225: =IF($C$8=1,'Scenario 1'!W200,'Scenario 2'!W200) -> 0 | I225: =IF($C$8=1,'Scenario 1'!X200,'Scenario 2'!X200) -> 1 | J225: =IF($C$8=1,'Scenario 1'!Y200,'Scenario 2'!Y200) -> 0 | K225: =IF($C$8=1,'Scenario 1'!Z200,'Scenario 2'!Z200) -> 0 | L225: =IF($C$8=1,'Scenario 1'!AA200,'Scenario 2'!AA200) -> 0 | M225: =IF($C$8=1,'Scenario 1'!AB200,'Scenario 2'!AB200) -> 0 | N225: =IF($C$8=1,'Scenario 1'!AC200,'Scenario 2'!AC200) -> 0 | O225: =IF($C$8=1,'Scenario 1'!AD200,'Scenario 2'!AD200) -> 0 | P225: =IF($C$8=1,'Scenario 1'!AE200,'Scenario 2'!AE200) -> 0 | Q225: =IF($C$8=1,'Scenario 1'!AF200,'Scenario 2'!AF200) -> 0 | R225: =IF($C$8=1,'Scenario 1'!AG200,'Scenario 2'!AG200) -> 0 | S225: =IF($C$8=1,'Scenario 1'!AH200,'Scenario 2'!AH200) -> 0 | T225: =IF($C$8=1,'Scenario 1'!AI200,'Scenario 2'!AI200) -> 0 | U225: =IF($C$8=1,'Scenario 1'!AJ200,'Scenario 2'!AJ200) -> 0 | V225: =IF($C$8=1,'Scenario 1'!AK200,'Scenario 2'!AK200) -> 0 | W225: =IF($C$8=1,'Scenario 1'!AL200,'Scenario 2'!AL200) -> 0 | X225: =IF($C$8=1,'Scenario 1'!AM200,'Scenario 2'!AM200) -> 0 | Y225: =IF($C$8=1,'Scenario 1'!AN200,'Scenario 2'!AN200) -> 0 | Z225: =IF($C$8=1,'Scenario 1'!AO200,'Scenario 2'!AO200) -> 0 | AA225: =IF($C$8=1,'Scenario 1'!AP200,'Scenario 2'!AP200) -> 0 | AB225: =IF($C$8=1,'Scenario 1'!AQ200,'Scenario 2'!AQ200) -> 0
B226: =IF($C$8=1,'Scenario 1'!O201,'Scenario 2'!O201) -> SoyHull-103 | C226: =IF($C$8=1,'Scenario 1'!R201,'Scenario 2'!R201) -> 0 | D226: =IF($C$8=1,'Scenario 1'!S201,'Scenario 2'!S201) -> 0 | E226: =IF($C$8=1,'Scenario 1'!T201,'Scenario 2'!T201) -> 0 | F226: =IF($C$8=1,'Scenario 1'!U201,'Scenario 2'!U201) -> 0 | G226: =IF($C$8=1,'Scenario 1'!V201,'Scenario 2'!V201) -> 0 | H226: =IF($C$8=1,'Scenario 1'!W201,'Scenario 2'!W201) -> 0 | I226: =IF($C$8=1,'Scenario 1'!X201,'Scenario 2'!X201) -> 0 | J226: =IF($C$8=1,'Scenario 1'!Y201,'Scenario 2'!Y201) -> 0 | K226: =IF($C$8=1,'Scenario 1'!Z201,'Scenario 2'!Z201) -> 0 | L226: =IF($C$8=1,'Scenario 1'!AA201,'Scenario 2'!AA201) -> 0 | M226: =IF($C$8=1,'Scenario 1'!AB201,'Scenario 2'!AB201) -> 0 | N226: =IF($C$8=1,'Scenario 1'!AC201,'Scenario 2'!AC201) -> 0 | O226: =IF($C$8=1,'Scenario 1'!AD201,'Scenario 2'!AD201) -> 0 | P226: =IF($C$8=1,'Scenario 1'!AE201,'Scenario 2'!AE201) -> 0 | Q226: =IF($C$8=1,'Scenario 1'!AF201,'Scenario 2'!AF201) -> 0 | R226: =IF($C$8=1,'Scenario 1'!AG201,'Scenario 2'!AG201) -> 0 | S226: =IF($C$8=1,'Scenario 1'!AH201,'Scenario 2'!AH201) -> 0 | T226: =IF($C$8=1,'Scenario 1'!AI201,'Scenario 2'!AI201) -> 0 | U226: =IF($C$8=1,'Scenario 1'!AJ201,'Scenario 2'!AJ201) -> 1 | V226: =IF($C$8=1,'Scenario 1'!AK201,'Scenario 2'!AK201) -> 0 | W226: =IF($C$8=1,'Scenario 1'!AL201,'Scenario 2'!AL201) -> 0 | X226: =IF($C$8=1,'Scenario 1'!AM201,'Scenario 2'!AM201) -> 0 | Y226: =IF($C$8=1,'Scenario 1'!AN201,'Scenario 2'!AN201) -> 0 | Z226: =IF($C$8=1,'Scenario 1'!AO201,'Scenario 2'!AO201) -> 0 | AA226: =IF($C$8=1,'Scenario 1'!AP201,'Scenario 2'!AP201) -> 0 | AB226: =IF($C$8=1,'Scenario 1'!AQ201,'Scenario 2'!AQ201) -> 0
B227: =IF($C$8=1,'Scenario 1'!O202,'Scenario 2'!O202) -> Wheat-116 | C227: =IF($C$8=1,'Scenario 1'!R202,'Scenario 2'!R202) -> 0 | D227: =IF($C$8=1,'Scenario 1'!S202,'Scenario 2'!S202) -> 0 | E227: =IF($C$8=1,'Scenario 1'!T202,'Scenario 2'!T202) -> 0 | F227: =IF($C$8=1,'Scenario 1'!U202,'Scenario 2'!U202) -> 0 | G227: =IF($C$8=1,'Scenario 1'!V202,'Scenario 2'!V202) -> 0 | H227: =IF($C$8=1,'Scenario 1'!W202,'Scenario 2'!W202) -> 0 | I227: =IF($C$8=1,'Scenario 1'!X202,'Scenario 2'!X202) -> 0 | J227: =IF($C$8=1,'Scenario 1'!Y202,'Scenario 2'!Y202) -> 0 | K227: =IF($C$8=1,'Scenario 1'!Z202,'Scenario 2'!Z202) -> 1 | L227: =IF($C$8=1,'Scenario 1'!AA202,'Scenario 2'!AA202) -> 0 | M227: =IF($C$8=1,'Scenario 1'!AB202,'Scenario 2'!AB202) -> 0 | N227: =IF($C$8=1,'Scenario 1'!AC202,'Scenario 2'!AC202) -> 0 | O227: =IF($C$8=1,'Scenario 1'!AD202,'Scenario 2'!AD202) -> 0 | P227: =IF($C$8=1,'Scenario 1'!AE202,'Scenario 2'!AE202) -> 0 | Q227: =IF($C$8=1,'Scenario 1'!AF202,'Scenario 2'!AF202) -> 0 | R227: =IF($C$8=1,'Scenario 1'!AG202,'Scenario 2'!AG202) -> 0 | S227: =IF($C$8=1,'Scenario 1'!AH202,'Scenario 2'!AH202) -> 0 | T227: =IF($C$8=1,'Scenario 1'!AI202,'Scenario 2'!AI202) -> 0 | U227: =IF($C$8=1,'Scenario 1'!AJ202,'Scenario 2'!AJ202) -> 0 | V227: =IF($C$8=1,'Scenario 1'!AK202,'Scenario 2'!AK202) -> 0 | W227: =IF($C$8=1,'Scenario 1'!AL202,'Scenario 2'!AL202) -> 0 | X227: =IF($C$8=1,'Scenario 1'!AM202,'Scenario 2'!AM202) -> 0 | Y227: =IF($C$8=1,'Scenario 1'!AN202,'Scenario 2'!AN202) -> 0 | Z227: =IF($C$8=1,'Scenario 1'!AO202,'Scenario 2'!AO202) -> 0 | AA227: =IF($C$8=1,'Scenario 1'!AP202,'Scenario 2'!AP202) -> 0 | AB227: =IF($C$8=1,'Scenario 1'!AQ202,'Scenario 2'!AQ202) -> 0
B228: =IF($C$8=1,'Scenario 1'!O203,'Scenario 2'!O203) -> CoSi-35 | C228: =IF($C$8=1,'Scenario 1'!R203,'Scenario 2'!R203) -> 0 | D228: =IF($C$8=1,'Scenario 1'!S203,'Scenario 2'!S203) -> 1 | E228: =IF($C$8=1,'Scenario 1'!T203,'Scenario 2'!T203) -> 0 | F228: =IF($C$8=1,'Scenario 1'!U203,'Scenario 2'!U203) -> 0 | G228: =IF($C$8=1,'Scenario 1'!V203,'Scenario 2'!V203) -> 0 | H228: =IF($C$8=1,'Scenario 1'!W203,'Scenario 2'!W203) -> 0 | I228: =IF($C$8=1,'Scenario 1'!X203,'Scenario 2'!X203) -> 0 | J228: =IF($C$8=1,'Scenario 1'!Y203,'Scenario 2'!Y203) -> 0 | K228: =IF($C$8=1,'Scenario 1'!Z203,'Scenario 2'!Z203) -> 0 | L228: =IF($C$8=1,'Scenario 1'!AA203,'Scenario 2'!AA203) -> 0 | M228: =IF($C$8=1,'Scenario 1'!AB203,'Scenario 2'!AB203) -> 0 | N228: =IF($C$8=1,'Scenario 1'!AC203,'Scenario 2'!AC203) -> 0 | O228: =IF($C$8=1,'Scenario 1'!AD203,'Scenario 2'!AD203) -> 0 | P228: =IF($C$8=1,'Scenario 1'!AE203,'Scenario 2'!AE203) -> 0 | Q228: =IF($C$8=1,'Scenario 1'!AF203,'Scenario 2'!AF203) -> 0 | R228: =IF($C$8=1,'Scenario 1'!AG203,'Scenario 2'!AG203) -> 0 | S228: =IF($C$8=1,'Scenario 1'!AH203,'Scenario 2'!AH203) -> 0 | T228: =IF($C$8=1,'Scenario 1'!AI203,'Scenario 2'!AI203) -> 0 | U228: =IF($C$8=1,'Scenario 1'!AJ203,'Scenario 2'!AJ203) -> 0 | V228: =IF($C$8=1,'Scenario 1'!AK203,'Scenario 2'!AK203) -> 0 | W228: =IF($C$8=1,'Scenario 1'!AL203,'Scenario 2'!AL203) -> 0 | X228: =IF($C$8=1,'Scenario 1'!AM203,'Scenario 2'!AM203) -> 0 | Y228: =IF($C$8=1,'Scenario 1'!AN203,'Scenario 2'!AN203) -> 0 | Z228: =IF($C$8=1,'Scenario 1'!AO203,'Scenario 2'!AO203) -> 0 | AA228: =IF($C$8=1,'Scenario 1'!AP203,'Scenario 2'!AP203) -> 0 | AB228: =IF($C$8=1,'Scenario 1'!AQ203,'Scenario 2'!AQ203) -> 0
B229: =IF($C$8=1,'Scenario 1'!O204,'Scenario 2'!O204) -> GrHy-52 | C229: =IF($C$8=1,'Scenario 1'!R204,'Scenario 2'!R204) -> 0 | D229: =IF($C$8=1,'Scenario 1'!S204,'Scenario 2'!S204) -> 0 | E229: =IF($C$8=1,'Scenario 1'!T204,'Scenario 2'!T204) -> 0 | F229: =IF($C$8=1,'Scenario 1'!U204,'Scenario 2'!U204) -> 0 | G229: =IF($C$8=1,'Scenario 1'!V204,'Scenario 2'!V204) -> 1 | H229: =IF($C$8=1,'Scenario 1'!W204,'Scenario 2'!W204) -> 0 | I229: =IF($C$8=1,'Scenario 1'!X204,'Scenario 2'!X204) -> 0 | J229: =IF($C$8=1,'Scenario 1'!Y204,'Scenario 2'!Y204) -> 0 | K229: =IF($C$8=1,'Scenario 1'!Z204,'Scenario 2'!Z204) -> 0 | L229: =IF($C$8=1,'Scenario 1'!AA204,'Scenario 2'!AA204) -> 0 | M229: =IF($C$8=1,'Scenario 1'!AB204,'Scenario 2'!AB204) -> 0 | N229: =IF($C$8=1,'Scenario 1'!AC204,'Scenario 2'!AC204) -> 0 | O229: =IF($C$8=1,'Scenario 1'!AD204,'Scenario 2'!AD204) -> 0 | P229: =IF($C$8=1,'Scenario 1'!AE204,'Scenario 2'!AE204) -> 0 | Q229: =IF($C$8=1,'Scenario 1'!AF204,'Scenario 2'!AF204) -> 0 | R229: =IF($C$8=1,'Scenario 1'!AG204,'Scenario 2'!AG204) -> 0 | S229: =IF($C$8=1,'Scenario 1'!AH204,'Scenario 2'!AH204) -> 0 | T229: =IF($C$8=1,'Scenario 1'!AI204,'Scenario 2'!AI204) -> 0 | U229: =IF($C$8=1,'Scenario 1'!AJ204,'Scenario 2'!AJ204) -> 0 | V229: =IF($C$8=1,'Scenario 1'!AK204,'Scenario 2'!AK204) -> 0 | W229: =IF($C$8=1,'Scenario 1'!AL204,'Scenario 2'!AL204) -> 0 | X229: =IF($C$8=1,'Scenario 1'!AM204,'Scenario 2'!AM204) -> 0 | Y229: =IF($C$8=1,'Scenario 1'!AN204,'Scenario 2'!AN204) -> 0 | Z229: =IF($C$8=1,'Scenario 1'!AO204,'Scenario 2'!AO204) -> 0 | AA229: =IF($C$8=1,'Scenario 1'!AP204,'Scenario 2'!AP204) -> 0 | AB229: =IF($C$8=1,'Scenario 1'!AQ204,'Scenario 2'!AQ204) -> 0
B230: =IF($C$8=1,'Scenario 1'!O205,'Scenario 2'!O205) -> CoDi-23 | C230: =IF($C$8=1,'Scenario 1'!R205,'Scenario 2'!R205) -> 0 | D230: =IF($C$8=1,'Scenario 1'!S205,'Scenario 2'!S205) -> 0 | E230: =IF($C$8=1,'Scenario 1'!T205,'Scenario 2'!T205) -> 0 | F230: =IF($C$8=1,'Scenario 1'!U205,'Scenario 2'!U205) -> 0 | G230: =IF($C$8=1,'Scenario 1'!V205,'Scenario 2'!V205) -> 0 | H230: =IF($C$8=1,'Scenario 1'!W205,'Scenario 2'!W205) -> 0 | I230: =IF($C$8=1,'Scenario 1'!X205,'Scenario 2'!X205) -> 0 | J230: =IF($C$8=1,'Scenario 1'!Y205,'Scenario 2'!Y205) -> 0 | K230: =IF($C$8=1,'Scenario 1'!Z205,'Scenario 2'!Z205) -> 0 | L230: =IF($C$8=1,'Scenario 1'!AA205,'Scenario 2'!AA205) -> 0 | M230: =IF($C$8=1,'Scenario 1'!AB205,'Scenario 2'!AB205) -> 0 | N230: =IF($C$8=1,'Scenario 1'!AC205,'Scenario 2'!AC205) -> 0 | O230: =IF($C$8=1,'Scenario 1'!AD205,'Scenario 2'!AD205) -> 0 | P230: =IF($C$8=1,'Scenario 1'!AE205,'Scenario 2'!AE205) -> 0 | Q230: =IF($C$8=1,'Scenario 1'!AF205,'Scenario 2'!AF205) -> 0 | R230: =IF($C$8=1,'Scenario 1'!AG205,'Scenario 2'!AG205) -> 1 | S230: =IF($C$8=1,'Scenario 1'!AH205,'Scenario 2'!AH205) -> 0 | T230: =IF($C$8=1,'Scenario 1'!AI205,'Scenario 2'!AI205) -> 0 | U230: =IF($C$8=1,'Scenario 1'!AJ205,'Scenario 2'!AJ205) -> 0 | V230: =IF($C$8=1,'Scenario 1'!AK205,'Scenario 2'!AK205) -> 0 | W230: =IF($C$8=1,'Scenario 1'!AL205,'Scenario 2'!AL205) -> 0 | X230: =IF($C$8=1,'Scenario 1'!AM205,'Scenario 2'!AM205) -> 0 | Y230: =IF($C$8=1,'Scenario 1'!AN205,'Scenario 2'!AN205) -> 0 | Z230: =IF($C$8=1,'Scenario 1'!AO205,'Scenario 2'!AO205) -> 0 | AA230: =IF($C$8=1,'Scenario 1'!AP205,'Scenario 2'!AP205) -> 0 | AB230: =IF($C$8=1,'Scenario 1'!AQ205,'Scenario 2'!AQ205) -> 0
B231: =IF($C$8=1,'Scenario 1'!O206,'Scenario 2'!O206) -> Bld Meal-14 | C231: =IF($C$8=1,'Scenario 1'!R206,'Scenario 2'!R206) -> 0 | D231: =IF($C$8=1,'Scenario 1'!S206,'Scenario 2'!S206) -> 0 | E231: =IF($C$8=1,'Scenario 1'!T206,'Scenario 2'!T206) -> 0 | F231: =IF($C$8=1,'Scenario 1'!U206,'Scenario 2'!U206) -> 0 | G231: =IF($C$8=1,'Scenario 1'!V206,'Scenario 2'!V206) -> 0 | H231: =IF($C$8=1,'Scenario 1'!W206,'Scenario 2'!W206) -> 0 | I231: =IF($C$8=1,'Scenario 1'!X206,'Scenario 2'!X206) -> 0 | J231: =IF($C$8=1,'Scenario 1'!Y206,'Scenario 2'!Y206) -> 0 | K231: =IF($C$8=1,'Scenario 1'!Z206,'Scenario 2'!Z206) -> 0 | L231: =IF($C$8=1,'Scenario 1'!AA206,'Scenario 2'!AA206) -> 0 | M231: =IF($C$8=1,'Scenario 1'!AB206,'Scenario 2'!AB206) -> 0 | N231: =IF($C$8=1,'Scenario 1'!AC206,'Scenario 2'!AC206) -> 0 | O231: =IF($C$8=1,'Scenario 1'!AD206,'Scenario 2'!AD206) -> 0 | P231: =IF($C$8=1,'Scenario 1'!AE206,'Scenario 2'!AE206) -> 0 | Q231: =IF($C$8=1,'Scenario 1'!AF206,'Scenario 2'!AF206) -> 0 | R231: =IF($C$8=1,'Scenario 1'!AG206,'Scenario 2'!AG206) -> 0 | S231: =IF($C$8=1,'Scenario 1'!AH206,'Scenario 2'!AH206) -> 1 | T231: =IF($C$8=1,'Scenario 1'!AI206,'Scenario 2'!AI206) -> 0 | U231: =IF($C$8=1,'Scenario 1'!AJ206,'Scenario 2'!AJ206) -> 0 | V231: =IF($C$8=1,'Scenario 1'!AK206,'Scenario 2'!AK206) -> 0 | W231: =IF($C$8=1,'Scenario 1'!AL206,'Scenario 2'!AL206) -> 0 | X231: =IF($C$8=1,'Scenario 1'!AM206,'Scenario 2'!AM206) -> 0 | Y231: =IF($C$8=1,'Scenario 1'!AN206,'Scenario 2'!AN206) -> 0 | Z231: =IF($C$8=1,'Scenario 1'!AO206,'Scenario 2'!AO206) -> 0 | AA231: =IF($C$8=1,'Scenario 1'!AP206,'Scenario 2'!AP206) -> 0 | AB231: =IF($C$8=1,'Scenario 1'!AQ206,'Scenario 2'!AQ206) -> 0
B232: =IF($C$8=1,'Scenario 1'!O207,'Scenario 2'!O207) -> CottonSd-w-37 | C232: =IF($C$8=1,'Scenario 1'!R207,'Scenario 2'!R207) -> 0 | D232: =IF($C$8=1,'Scenario 1'!S207,'Scenario 2'!S207) -> 0 | E232: =IF($C$8=1,'Scenario 1'!T207,'Scenario 2'!T207) -> 0 | F232: =IF($C$8=1,'Scenario 1'!U207,'Scenario 2'!U207) -> 0 | G232: =IF($C$8=1,'Scenario 1'!V207,'Scenario 2'!V207) -> 0 | H232: =IF($C$8=1,'Scenario 1'!W207,'Scenario 2'!W207) -> 0 | I232: =IF($C$8=1,'Scenario 1'!X207,'Scenario 2'!X207) -> 0 | J232: =IF($C$8=1,'Scenario 1'!Y207,'Scenario 2'!Y207) -> 0 | K232: =IF($C$8=1,'Scenario 1'!Z207,'Scenario 2'!Z207) -> 0 | L232: =IF($C$8=1,'Scenario 1'!AA207,'Scenario 2'!AA207) -> 0 | M232: =IF($C$8=1,'Scenario 1'!AB207,'Scenario 2'!AB207) -> 0 | N232: =IF($C$8=1,'Scenario 1'!AC207,'Scenario 2'!AC207) -> 0 | O232: =IF($C$8=1,'Scenario 1'!AD207,'Scenario 2'!AD207) -> 0 | P232: =IF($C$8=1,'Scenario 1'!AE207,'Scenario 2'!AE207) -> 0 | Q232: =IF($C$8=1,'Scenario 1'!AF207,'Scenario 2'!AF207) -> 0 | R232: =IF($C$8=1,'Scenario 1'!AG207,'Scenario 2'!AG207) -> 0 | S232: =IF($C$8=1,'Scenario 1'!AH207,'Scenario 2'!AH207) -> 0 | T232: =IF($C$8=1,'Scenario 1'!AI207,'Scenario 2'!AI207) -> 0 | U232: =IF($C$8=1,'Scenario 1'!AJ207,'Scenario 2'!AJ207) -> 0 | V232: =IF($C$8=1,'Scenario 1'!AK207,'Scenario 2'!AK207) -> 1 | W232: =IF($C$8=1,'Scenario 1'!AL207,'Scenario 2'!AL207) -> 0 | X232: =IF($C$8=1,'Scenario 1'!AM207,'Scenario 2'!AM207) -> 0 | Y232: =IF($C$8=1,'Scenario 1'!AN207,'Scenario 2'!AN207) -> 0 | Z232: =IF($C$8=1,'Scenario 1'!AO207,'Scenario 2'!AO207) -> 0 | AA232: =IF($C$8=1,'Scenario 1'!AP207,'Scenario 2'!AP207) -> 0 | AB232: =IF($C$8=1,'Scenario 1'!AQ207,'Scenario 2'!AQ207) -> 0
B233: =IF($C$8=1,'Scenario 1'!O208,'Scenario 2'!O208) -> Urea | C233: =IF($C$8=1,'Scenario 1'!R208,'Scenario 2'!R208) -> 0 | D233: =IF($C$8=1,'Scenario 1'!S208,'Scenario 2'!S208) -> 0 | E233: =IF($C$8=1,'Scenario 1'!T208,'Scenario 2'!T208) -> 0 | F233: =IF($C$8=1,'Scenario 1'!U208,'Scenario 2'!U208) -> 0 | G233: =IF($C$8=1,'Scenario 1'!V208,'Scenario 2'!V208) -> 0 | H233: =IF($C$8=1,'Scenario 1'!W208,'Scenario 2'!W208) -> 0 | I233: =IF($C$8=1,'Scenario 1'!X208,'Scenario 2'!X208) -> 0 | J233: =IF($C$8=1,'Scenario 1'!Y208,'Scenario 2'!Y208) -> 0 | K233: =IF($C$8=1,'Scenario 1'!Z208,'Scenario 2'!Z208) -> 0 | L233: =IF($C$8=1,'Scenario 1'!AA208,'Scenario 2'!AA208) -> 0 | M233: =IF($C$8=1,'Scenario 1'!AB208,'Scenario 2'!AB208) -> 0 | N233: =IF($C$8=1,'Scenario 1'!AC208,'Scenario 2'!AC208) -> 0 | O233: =IF($C$8=1,'Scenario 1'!AD208,'Scenario 2'!AD208) -> 0 | P233: =IF($C$8=1,'Scenario 1'!AE208,'Scenario 2'!AE208) -> 0 | Q233: =IF($C$8=1,'Scenario 1'!AF208,'Scenario 2'!AF208) -> 0 | R233: =IF($C$8=1,'Scenario 1'!AG208,'Scenario 2'!AG208) -> 0 | S233: =IF($C$8=1,'Scenario 1'!AH208,'Scenario 2'!AH208) -> 0 | T233: =IF($C$8=1,'Scenario 1'!AI208,'Scenario 2'!AI208) -> 1 | U233: =IF($C$8=1,'Scenario 1'!AJ208,'Scenario 2'!AJ208) -> 0 | V233: =IF($C$8=1,'Scenario 1'!AK208,'Scenario 2'!AK208) -> 0 | W233: =IF($C$8=1,'Scenario 1'!AL208,'Scenario 2'!AL208) -> 0 | X233: =IF($C$8=1,'Scenario 1'!AM208,'Scenario 2'!AM208) -> 0 | Y233: =IF($C$8=1,'Scenario 1'!AN208,'Scenario 2'!AN208) -> 0 | Z233: =IF($C$8=1,'Scenario 1'!AO208,'Scenario 2'!AO208) -> 0 | AA233: =IF($C$8=1,'Scenario 1'!AP208,'Scenario 2'!AP208) -> 0 | AB233: =IF($C$8=1,'Scenario 1'!AQ208,'Scenario 2'!AQ208) -> 0
B234: =IF($C$8=1,'Scenario 1'!O209,'Scenario 2'!O209) -> NaCl | C234: =IF($C$8=1,'Scenario 1'!R209,'Scenario 2'!R209) -> 0 | D234: =IF($C$8=1,'Scenario 1'!S209,'Scenario 2'!S209) -> 0 | E234: =IF($C$8=1,'Scenario 1'!T209,'Scenario 2'!T209) -> 0 | F234: =IF($C$8=1,'Scenario 1'!U209,'Scenario 2'!U209) -> 0 | G234: =IF($C$8=1,'Scenario 1'!V209,'Scenario 2'!V209) -> 0 | H234: =IF($C$8=1,'Scenario 1'!W209,'Scenario 2'!W209) -> 0 | I234: =IF($C$8=1,'Scenario 1'!X209,'Scenario 2'!X209) -> 0 | J234: =IF($C$8=1,'Scenario 1'!Y209,'Scenario 2'!Y209) -> 0 | K234: =IF($C$8=1,'Scenario 1'!Z209,'Scenario 2'!Z209) -> 0 | L234: =IF($C$8=1,'Scenario 1'!AA209,'Scenario 2'!AA209) -> 0 | M234: =IF($C$8=1,'Scenario 1'!AB209,'Scenario 2'!AB209) -> 0 | N234: =IF($C$8=1,'Scenario 1'!AC209,'Scenario 2'!AC209) -> 0 | O234: =IF($C$8=1,'Scenario 1'!AD209,'Scenario 2'!AD209) -> 0 | P234: =IF($C$8=1,'Scenario 1'!AE209,'Scenario 2'!AE209) -> 0 | Q234: =IF($C$8=1,'Scenario 1'!AF209,'Scenario 2'!AF209) -> 0 | R234: =IF($C$8=1,'Scenario 1'!AG209,'Scenario 2'!AG209) -> 0 | S234: =IF($C$8=1,'Scenario 1'!AH209,'Scenario 2'!AH209) -> 0 | T234: =IF($C$8=1,'Scenario 1'!AI209,'Scenario 2'!AI209) -> 0 | U234: =IF($C$8=1,'Scenario 1'!AJ209,'Scenario 2'!AJ209) -> 0 | V234: =IF($C$8=1,'Scenario 1'!AK209,'Scenario 2'!AK209) -> 0 | W234: =IF($C$8=1,'Scenario 1'!AL209,'Scenario 2'!AL209) -> 0 | X234: =IF($C$8=1,'Scenario 1'!AM209,'Scenario 2'!AM209) -> 0 | Y234: =IF($C$8=1,'Scenario 1'!AN209,'Scenario 2'!AN209) -> 0 | Z234: =IF($C$8=1,'Scenario 1'!AO209,'Scenario 2'!AO209) -> 0 | AA234: =IF($C$8=1,'Scenario 1'!AP209,'Scenario 2'!AP209) -> 1 | AB234: =IF($C$8=1,'Scenario 1'!AQ209,'Scenario 2'!AQ209) -> 0
B235: Desired Limit (% of ration DM) | C235: =IF($C$8=1,IF('Scenario 1'!R210="","",'Scenario 1'!R210),IF('Scenario 2'!R210="","",'Scenario 2'!R210)) -> 0 | D235: =IF($C$8=1,IF('Scenario 1'!S210="","",'Scenario 1'!S210),IF('Scenario 2'!S210="","",'Scenario 2'!S210)) -> 40 | E235: =IF($C$8=1,IF('Scenario 1'!T210="","",'Scenario 1'!T210),IF('Scenario 2'!T210="","",'Scenario 2'!T210)) -> 0 | F235: =IF($C$8=1,IF('Scenario 1'!U210="","",'Scenario 1'!U210),IF('Scenario 2'!U210="","",'Scenario 2'!U210)) -> 0 | G235: =IF($C$8=1,IF('Scenario 1'!V210="","",'Scenario 1'!V210),IF('Scenario 2'!V210="","",'Scenario 2'!V210)) -> 10 | H235: =IF($C$8=1,IF('Scenario 1'!W210="","",'Scenario 1'!W210),IF('Scenario 2'!W210="","",'Scenario 2'!W210)) -> 0 | I235: =IF($C$8=1,IF('Scenario 1'!X210="","",'Scenario 1'!X210),IF('Scenario 2'!X210="","",'Scenario 2'!X210)) -> 40 | J235: =IF($C$8=1,IF('Scenario 1'!Y210="","",'Scenario 1'!Y210),IF('Scenario 2'!Y210="","",'Scenario 2'!Y210)) -> 0 | K235: =IF($C$8=1,IF('Scenario 1'!Z210="","",'Scenario 1'!Z210),IF('Scenario 2'!Z210="","",'Scenario 2'!Z210)) -> 20 | L235: =IF($C$8=1,IF('Scenario 1'!AA210="","",'Scenario 1'!AA210),IF('Scenario 2'!AA210="","",'Scenario 2'!AA210)) -> 0 | M235: =IF($C$8=1,IF('Scenario 1'!AB210="","",'Scenario 1'!AB210),IF('Scenario 2'!AB210="","",'Scenario 2'!AB210)) -> 0 | N235: =IF($C$8=1,IF('Scenario 1'!AC210="","",'Scenario 1'!AC210),IF('Scenario 2'!AC210="","",'Scenario 2'!AC210)) -> 0 | O235: =IF($C$8=1,IF('Scenario 1'!AD210="","",'Scenario 1'!AD210),IF('Scenario 2'!AD210="","",'Scenario 2'!AD210)) -> 0 | P235: =IF($C$8=1,IF('Scenario 1'!AE210="","",'Scenario 1'!AE210),IF('Scenario 2'!AE210="","",'Scenario 2'!AE210)) -> 0 | Q235: =IF($C$8=1,IF('Scenario 1'!AF210="","",'Scenario 1'!AF210),IF('Scenario 2'!AF210="","",'Scenario 2'!AF210)) -> 0 | R235: =IF($C$8=1,IF('Scenario 1'!AG210="","",'Scenario 1'!AG210),IF('Scenario 2'!AG210="","",'Scenario 2'!AG210)) -> 15 | S235: =IF($C$8=1,IF('Scenario 1'!AH210="","",'Scenario 1'!AH210),IF('Scenario 2'!AH210="","",'Scenario 2'!AH210)) -> 5 | T235: =IF($C$8=1,IF('Scenario 1'!AI210="","",'Scenario 1'!AI210),IF('Scenario 2'!AI210="","",'Scenario 2'!AI210)) -> 1.5 | U235: =IF($C$8=1,IF('Scenario 1'!AJ210="","",'Scenario 1'!AJ210),IF('Scenario 2'!AJ210="","",'Scenario 2'!AJ210)) -> 10 | V235: =IF($C$8=1,IF('Scenario 1'!AK210="","",'Scenario 1'!AK210),IF('Scenario 2'!AK210="","",'Scenario 2'!AK210)) -> 20 | W235: =IF($C$8=1,IF('Scenario 1'!AL210="","",'Scenario 1'!AL210),IF('Scenario 2'!AL210="","",'Scenario 2'!AL210)) -> 0 | X235: =IF($C$8=1,IF('Scenario 1'!AM210="","",'Scenario 1'!AM210),IF('Scenario 2'!AM210="","",'Scenario 2'!AM210)) -> 0 | Y235: =IF($C$8=1,IF('Scenario 1'!AN210="","",'Scenario 1'!AN210),IF('Scenario 2'!AP210="","",'Scenario 2'!AP210)) -> 0 | Z235: =IF($C$8=1,IF('Scenario 1'!AO210="","",'Scenario 1'!AO210),IF('Scenario 2'!AQ210="","",'Scenario 2'!AQ210)) -> 0 | AA235: =IF($C$8=1,IF('Scenario 1'!AP210="","",'Scenario 1'!AP210),IF('Scenario 2'!AP210="","",'Scenario 2'!AP210)) -> 3.5 | AB235: =IF($C$8=1,IF('Scenario 1'!AQ210="","",'Scenario 1'!AQ210),IF('Scenario 2'!AQ210="","",'Scenario 2'!AQ210)) -> 0
A237: 4.4. Drinking Water Composition
C238: Water composition
B239: K, mg/l | C239: =IF($C$8=1,'Scenario 1'!H215,'Scenario 2'!H215) -> 5
B240: Na, mg/l | C240: =IF($C$8=1,'Scenario 1'!H216,'Scenario 2'!H216) -> 74
B241: Cl, mg/l | C241: =IF($C$8=1,'Scenario 1'!H217,'Scenario 2'!H217) -> 75
B242: S, mg/l | C242: =IF($C$8=1,'Scenario 1'!H218,'Scenario 2'!H218) -> 19
A247: 5. Manure and Fertilizers
A248: 5.1. Manure Production and Nutrient Excretion
G249: GROUP
E250: 1 | F250: 2 | G250: 3 | H250: 4 | I250: 5
E251: =C57 -> Early lactation | F251: =D57 -> Mid-late lac. | G251: =E57 -> Dry cows | H251: =F57 -> Heifers<1yr old | I251: =G57 -> Heifers>1yr old | S251: Maximum Frequency of Spreading N-containing commercial Fertilizers
B252: As Described in ASAE, 2005 | E252: =(C61*0.954)+(C60*0.037)+(C59*0.017)+(C63/100*186.72)+(C64/100*0.94*1141.48)-33.06 -> 65.12023212 | F252: =(D61*0.954)+(D60*0.037)+(D59*0.017)+(D63/100*186.72)+(D64/100*0.94*1141.48)-33.06 -> 59.87921594 | G252: =E60*0.022+21.844 -> 35.572 | H252: =IF($E$27=4,0,0) -> 0 | Y252: ROTATION
D253: Daily manure excretion, kg as-is | E253: =IF($C$8=1,'Scenario 1'!S226,'Scenario 2'!S226) -> 68.83099947 | F253: =IF($C$8=1,'Scenario 1'!T226,'Scenario 2'!T226) -> 63.5759622 | G253: =IF($C$8=1,'Scenario 1'!U226,'Scenario 2'!U226) -> 35.572 | H253: =IF($C$8=1,'Scenario 1'!V226,'Scenario 2'!V226) -> 19.69008079 | I253: =IF($C$8=1,'Scenario 1'!W226,'Scenario 2'!W226) -> 38.83620045 | W253: =AC243 -> 0 | X253: =AD243 -> 0 | Y253: =AE243 -> 0 | Z253: =AF243 -> 0 | AA253: =AG243 -> 0
D254: Daily N excretion (based on minimum dietary CP), g/d | E254: =IF($C$8=1,'Scenario 1'!S227,'Scenario 2'!S227) -> 446.3311976 | F254: =IF($C$8=1,'Scenario 1'!T227,'Scenario 2'!T227) -> 378.168246 | G254: =IF($C$8=1,'Scenario 1'!U227,'Scenario 2'!U227) -> 213.1565296 | H254: =IF($C$8=1,'Scenario 1'!V227,'Scenario 2'!V227) -> 111.1303835 | I254: =IF($C$8=1,'Scenario 1'!W227,'Scenario 2'!W227) -> 168.177343 | V254: Max. frequency of N application, yr | W254: =IF($C$8=1,'Scenario 1'!AH258,'Scenario 2'!AH258) -> 3 | X254: =IF($C$8=1,'Scenario 1'!AI258,'Scenario 2'!AI258) -> 3 | Y254: =IF($C$8=1,'Scenario 1'!AJ258,'Scenario 2'!AJ258) -> 3 | Z254: =IF($C$8=1,'Scenario 1'!AK258,'Scenario 2'!AK258) -> 2 | AA254: =IF($C$8=1,'Scenario 1'!AL258,'Scenario 2'!AL258) -> 2
D255: Daily N excretion (based on maximum dietary CP), g/d | E255: =IF($C$8=1,'Scenario 1'!S228,'Scenario 2'!S228) -> 491.3934294 | F255: =IF($C$8=1,'Scenario 1'!T228,'Scenario 2'!T228) -> 414.1621871 | G255: =IF($C$8=1,'Scenario 1'!U228,'Scenario 2'!U228) -> 249.9708881 | H255: =IF($C$8=1,'Scenario 1'!V228,'Scenario 2'!V228) -> 120.8421337 | I255: =IF($C$8=1,'Scenario 1'!W228,'Scenario 2'!W228) -> 190.3721412 | V255: years in the rotation | W255: =IF($C$8=1,'Scenario 1'!AH259,'Scenario 2'!AH259) -> 1 | X255: =IF($C$8=1,'Scenario 1'!AI259,'Scenario 2'!AI259) -> 3 | Y255: =IF($C$8=1,'Scenario 1'!AJ259,'Scenario 2'!AJ259) -> 5 | Z255: =IF($C$8=1,'Scenario 1'!AK259,'Scenario 2'!AK259) -> 8 | AA255: =IF($C$8=1,'Scenario 1'!AL259,'Scenario 2'!AL259) -> 8
D256: Daily P excretion (based on minimum dietary P), g/d | E256: =IF($C$8=1,'Scenario 1'!S229,'Scenario 2'!S229) -> 56.02717992 | F256: =IF($C$8=1,'Scenario 1'!T229,'Scenario 2'!T229) -> 44.30908703 | G256: =IF($C$8=1,'Scenario 1'!U229,'Scenario 2'!U229) -> 21.02898402 | H256: =IF($C$8=1,'Scenario 1'!V229,'Scenario 2'!V229) -> 16.39273578 | I256: =IF($C$8=1,'Scenario 1'!W229,'Scenario 2'!W229) -> 27.3937831
D257: Daily P excretion (based on maximum dietary P), g/d | E257: =IF($C$8=1,'Scenario 1'!S230,'Scenario 2'!S230) -> 102.8206199 | F257: =IF($C$8=1,'Scenario 1'!T230,'Scenario 2'!T230) -> 77.54374204 | G257: =IF($C$8=1,'Scenario 1'!U230,'Scenario 2'!U230) -> 33.7466927 | H257: =IF($C$8=1,'Scenario 1'!V230,'Scenario 2'!V230) -> 24.58910367 | I257: =IF($C$8=1,'Scenario 1'!W230,'Scenario 2'!W230) -> 41.09067464
D258: Daily K excretion (based on required dietary K), g/d | E258: =IF($C$8=1,'Scenario 1'!S231,'Scenario 2'!S231) -> 93.02428429 | F258: =IF($C$8=1,'Scenario 1'!T231,'Scenario 2'!T231) -> 69.7224331 | G258: =IF($C$8=1,'Scenario 1'!U231,'Scenario 2'!U231) -> 62.93256667 | H258: =IF($C$8=1,'Scenario 1'!V231,'Scenario 2'!V231) -> 25.11136161 | I258: =IF($C$8=1,'Scenario 1'!W231,'Scenario 2'!W231) -> 62.05743026
B259: As Described in Nennich et al., 2005
D260: Daily manure excretion, kg as-is | E260: =IF($C$8=1,'Scenario 1'!S233,'Scenario 2'!S233) -> 71.42474512 | F260: =IF($C$8=1,'Scenario 1'!T233,'Scenario 2'!T233) -> 63.685909 | G260: =IF($C$8=1,'Scenario 1'!U233,'Scenario 2'!U233) -> 25.66664 | H260: =IF($C$8=1,'Scenario 1'!V233,'Scenario 2'!V233) -> 15.3209254 | I260: =IF($C$8=1,'Scenario 1'!W233,'Scenario 2'!W233) -> 27.16554454
D261: Daily N excretion (based on minimum dietary CP), g/d | E261: =(E122*E145/100*84.1)+(C60*0.196) -> 382.1655389 | F261: =(F122*F145/100*84.1)+(D60*0.196) -> 232.5567004 | G261: na | H261: =IF($C$8=1,'Scenario 1'!V234,'Scenario 2'!V234) -> 85.83087341 | I261: =IF($C$8=1,'Scenario 1'!W234,'Scenario 2'!W234) -> 168.227343
D262: Daily N excretion (based on maximum dietary CP), g/d | E262: =(E122*E146/100*84.1)+(C60*0.196) -> 425.3246032 | F262: =(F122*F146/100*84.1)+(D60*0.196) -> 254.2061257 | G262: na | H262: =IF($C$8=1,'Scenario 1'!V235,'Scenario 2'!V235) -> 99.77471164 | I262: =IF($C$8=1,'Scenario 1'!W235,'Scenario 2'!W235) -> 190.4221412
D263: Daily P excretion (based on minimum dietary P), g/d | E263: =E122*E149/0.7/100*1000-(C61*0.9) -> 28.90961003 | F263: =F122*F149/0.7/100*1000-(D61*0.9) -> 3.275194354 | G263: na | H263: =IF($C$8=1,'Scenario 1'!V236,'Scenario 2'!V236) -> 10.19677344 | I263: na
D264: Daily P excretion (based on maximum dietary P), g/d | E264: =E122*E150/0.7/100*1000-(C61*0.9) -> 62.14426504 | F264: =F122*F150/0.7/100*1000-(D61*0.9) -> 15.99290303 | G264: na | H264: =IF($C$8=1,'Scenario 1'!V237,'Scenario 2'!V237) -> 15.29516016 | I264: na
D265: Daily K excretion (based on required dietary K), g/d | E265: =E122*7.21+(E156/0.9/100*15944)-164.5 -> 153.3683172 | F265: =F122*7.21+(F156/0.9/100*15944)-164.5 -> 5.816484506 | G265: na | H265: na | I265: na
A269: 5.2 Manure Mangement (Handling) | I269: 5.3. Composition and cost of commercial fertilizers and manure | S269: For advance users: Process-based model (Proportions of N entering a management level)
... 177 more rows

Sheet Optimization
C1: 1. Select Scenario to Optimize: (Go to "Inputs" worksheet and select the desired scenario; the radio button below is only a reminder)
C5: 2. Objective Functions and Overview of Simulation Results | L5: GHG
E6: Net Income | H6: Whole-Farm Balance (kg/y) | L6: Emission
E7: $/y | F7: P | G7: N | H7: K | I7: Na | J7: Cl | K7: S | L7: t CO2 eq
D8: Target Cells: | E8: =E11-E10 -> 111804.3207 | F8: =F23-F30 -> 1227.590267 | G8: =G10-G11 -> 13299.21665 | H8: =H10-H11 -> 4092.614119 | I8: =SUMPRODUCT(B100:F100,T300:X300)*10+SUMPRODUCT(B101:F101,T300:X300)*10+SUMPRODUCT(B102:F102,T300:X300)*10+SUMPRODUCT(B103:F103,T300:X300)*10+SUMPRODUCT(B104:F104,T300:X300)*10+SUMPRODUCT(M496:Q496,Inputs!D$115:H$115)*365/1000+3.4*M385-SUMPRODUCT(B153:AA153,AE161:BD161)*10-Inputs!C71*0.063%-Inputs!C31*Inputs!C34%*Inputs!C32*0.14%-(B262*AB300%+C262*AC300%)*1000-(Inputs!C31*12/Inputs!C33)*0.5*1.39*80/1000-((Inputs!C31*12/Inputs!C33)*0.5-Inputs!C31*Inputs!C34%*(1-Inputs!C39/100))*IF(Inputs!C42=1,Inputs!C32*0.14%,1.39*80/1000) -> 1845.040261 | J8: =SUMPRODUCT(B100:F100,T301:X301)*10+SUMPRODUCT(B101:F101,T301:X301)*10+SUMPRODUCT(B102:F102,T301:X301)*10+SUMPRODUCT(B103:F103,T301:X301)*10+SUMPRODUCT(B104:F104,T301:X301)*10+SUMPRODUCT(M497:Q497,Inputs!D$115:H$115)*365/1000+1*M385-SUMPRODUCT(B153:AA153,AE163:BD163)*10-Inputs!C71*0.115%-Inputs!C31*Inputs!C34%*Inputs!C32*0.1%-(B262*AB301%+C262*AC301%)*1000-(Inputs!C31*12/Inputs!C33)*0.5*1*80/1000-((Inputs!C31*12/Inputs!C33)*0.5-Inputs!C31*Inputs!C34%*(1-Inputs!C39/100))*IF(Inputs!C42=1,Inputs!C32*0.1%,1*80/1000) -> 6643.215121 | K8: =SUMPRODUCT(B100:F100,T302:X302)*10+SUMPRODUCT(B101:F101,T302:X302)*10+SUMPRODUCT(B102:F102,T302:X302)*10+SUMPRODUCT(B103:F103,T302:X302)*10+SUMPRODUCT(B104:F104,T302:X302)*10+SUMPRODUCT(M498:Q498,Inputs!D$115:H$115)*365/1000+5.5*M385-SUMPRODUCT(B153:AA153,AE165:BD165)*10-Inputs!C71*0.014%-Inputs!C31*Inputs!C34%*Inputs!C32*0.15%-(B262*AB302%+C262*AC302%)*1000-(Inputs!C31*12/Inputs!C33)*0.5*45*0.15%-((Inputs!C31*12/Inputs!C33)*0.5-Inputs!C31*Inputs!C34%*(1-Inputs!C39/100))*IF(Inputs!C42=1,Inputs!C32*0.15%,45*0.15%) -> 962.7372843 | L8: =I75 -> 1689.591005
F9: 3500 | G9: 65000 | L9: 805.4363982
C10: Total Costs /Imports | E10: =E15+E14+SUM(E16:E19) -> 371286.1894 | F10: =SUM(F16:F22) -> 3560.837752 | G10: =SUM(G16:G22) -> 25055.10124 | H10: =SUM(H16:H22) -> 7372.202896
C11: Total Incomes / Exports | E11: =SUM(E26:E28) -> 483090.5101 | F11: =SUM(F26:F28) -> 2333.247485 | G11: =SUM(G26:G29) -> 11755.88459 | H11: =SUM(H26:H29) -> 3279.588777
C13: Itemized Costs/Imports
C14: Fixed costs | E14: =Inputs!D102 -> 148899.4226
C15: Variable costs | E15: =Inputs!D94*Inputs!C71/103 -> 70655.75722
C16: Homegrown feeds | E16: =SUM(E34:E36) -> 90863.81907
C17: Purchased feeds | E17: =SUM(E38:E40) -> 34212.45285 | F17: =SUMPRODUCT(IF(B153:AA153>0,0,ABS(B153:AA153)),((AE155:BD155)*10)) -> 1158.014766 | G17: =SUMPRODUCT(IF(B153:AA153>0,0,ABS(B153:AA153)),(((AE148:BD148)*10)/6.25)) -> 7495.394831 | H17: =SUMPRODUCT(IF(B153:AA153>0,0,ABS(B153:AA153)),((AE157:BD157)*10)) -> 1912.45795
C18: Fertilizer | E18: =SUM(E42:E43) -> 20055.19952 | F18: =SUMPRODUCT(B106:F106,(((T298:X298)*0.437)*10)) -> 2402.822985 | G18: =SUMPRODUCT(B106:F106,((T297:X297)*10)) -> 4699.927168 | H18: =SUMPRODUCT(B106:F106,((((T299:X299)*10))*0.83)) -> 5289.151285
C19: Manure spreading | E19: =SUM(E45:E46) -> 6599.538168
C20: Legume N Fixation | G20: =SUMPRODUCT(B84:F84,M400:Q400)*$M$380+SUMPRODUCT(B87:F87,M420:Q420)*$M$381+SUMPRODUCT(B90:F90,M440:Q440)*$M$382+SUMPRODUCT(B93:F93,M460:Q460)*$M$383+SUMPRODUCT(B96:F96,M480:Q480)*$M384 -> 11952.57924
C21: Atmosph. deposition | G21: =6*M385 -> 907.2 | H21: =1*M385 -> 151.2
C22: Drinking water | H22: =SUMPRODUCT(M495:Q495,Inputs!D$115:H$115)*365/1000 -> 19.39366134
C23: Total | E23: =SUM(E14:E22) -> 371286.1894 | F23: =SUM(F14:F22) -> 3560.837752 | G23: =SUM(G14:G22) -> 25055.10124 | H23: =SUM(H14:H22) -> 7372.202896
C25: Itemized Incomes / Exports
C26: Milk | E26: =Inputs!D80*Inputs!C72 -> 353998.6946 | F26: =Inputs!C71*0.09% -> 911.329381 | G26: =Inputs!C71*Inputs!C51%/6.38 -> 4920.09941 | H26: =(Inputs!C71*0.15%) -> 1518.882302
C27: Animal | E27: =Inputs!D85*Inputs!C71/103 -> 47271.66758 | F27: =(Inputs!C31*Inputs!C34%*Inputs!C32*0.72%)+(Inputs!C31*12/Inputs!C33)*0.5*45*0.83%+((Inputs!C31*12/Inputs!C33)*0.5-Inputs!C31*Inputs!C34%*(1-Inputs!C39/100))*IF(Inputs!C42=1,Inputs!C32*0.72%,45*0.83%) -> 194.6158846 | G27: =Inputs!C31*Inputs!C34%*Inputs!C32*2.53%+(Inputs!C31*12/Inputs!C33)*0.5*45*2.88%+((Inputs!C31*12/Inputs!C33)*0.5-Inputs!C31*Inputs!C34%*(1-Inputs!C39/100))*IF(Inputs!C42=1,Inputs!C32*2.53%,45*2.88%) -> 682.9100505 | H27: =Inputs!C31*Inputs!C34%*Inputs!C32*0.16%+(Inputs!C31*12/Inputs!C33)*0.5*45*0.155%+((Inputs!C31*12/Inputs!C33)*0.5-Inputs!C31*Inputs!C34%*(1-Inputs!C39/100))*IF(Inputs!C42=1,Inputs!C32*0.16%,45*0.155%) -> 42.48336853
C28: Crops | E28: =SUMPRODUCT(IF(B144:J144>B152:J152,B153:J153,0),AE169:AM169) -> 81820.14794 | F28: =SUMPRODUCT(IF(B144:J144>B152:J152,B153:J153,0),(AE155:AM155)*10) -> 1227.302219 | G28: =SUMPRODUCT(IF(B144:J144>B152:J152,B153:J153,0),(((AE148:AM148)*10)/6.25)) -> 6152.875125 | H28: =SUMPRODUCT(IF(B144:J144>B152:J152,B153:J153,0),((AE157:AM157)*10)) -> 1718.223107
C29: Manure | F29: =(B262*AB298%+C262*AC298%)*1000/2.29 -> 0 | G29: =(B262*AB297%+C262*AC297%)*1000 -> 0 | H29: =(B262*AB299%+C262*AC299%)*0.833*1000 -> 0 | N29: O/N | O29: CF
C30: Total | E30: =SUM(E26:E28) -> 483090.5101 | F30: =SUM(F26:F29) -> 2333.247485 | G30: =SUM(G26:G29) -> 11755.88459 | H30: =SUM(H26:H29) -> 3279.588777 | M30: Nitrogen | N30: =N348 -> 1.105698383 | O30: 1.142211632
M31: Phosphorus | N31: 1.159745894 | O31: 1.065507248
C32: Further Itemized Costs/Imports | M32: Potassium | N32: 1.758469836 | O32: 1.350326594
C33: Homegrown Feeds | M33: Sodium | N33: 1.016571706 | O33: 2.200208484
C34: Cost of production | E34: =SUM(M380*SUMPRODUCT(B84:F84,M409:Q409),M381*SUMPRODUCT(B87:F87,M429:Q429),M382*SUMPRODUCT(B90:F90,M449:Q449),M383*SUMPRODUCT(M469:Q469,B93:F93),M384*SUMPRODUCT(M489:Q489,B96:F96)) -> 87070.79377 | M34: Chloride | N34: 2.593587559 | O34: 3.622753006
C35: Transport | E35: =SUMPRODUCT(AE170:AM170,B152:J152) -> 0 | M35: Sulfur | N35: 1.127550884 | O35: 1.553399172
C36: Storage | E36: =SUMPRODUCT(B152:J152,AE171:AM171) -> 3793.0253 | M36: *See Note B) for details.
C37: Purchased Feeds
C38: Purchased cost | E38: =SUMPRODUCT(IF(B153:AA153<0,ABS(B153:AA153),0),AE169:BD169) -> 33942.5818
C39: Transport | E39: =SUMPRODUCT(ABS(B153:AA153),AE170:BD170) -> 0
C40: Storage | E40: =SUMPRODUCT(K152:AA152,AN171:BD171) -> 269.8710453
C41: Fertilizer
C42: Purchased cost | E42: =SUMPRODUCT(B100:F100,AI294:AM294)+SUMPRODUCT(B101:F101,AI294:AM294)+SUMPRODUCT(B102:F102,AI294:AM294)+SUMPRODUCT(B103:F103,AI294:AM294)+SUMPRODUCT(B104:F104,AI294:AM294) -> 20055.19952
C43: Spreading cost | E43: 0
C44: Manure | M44: Correction Factor for concentrate used in pasture period
C45: Spreading cost | E45: =SUMPRODUCT(G100:H100,AN296:AO296)+SUMPRODUCT(G101:H101,AN297:AO297)+SUMPRODUCT(G102:H102,AN298:AO298)+SUMPRODUCT(G103:H103,AN299:AO299)+SUMPRODUCT(G104:H104,AN300:AO300) -> 6599.538168
C46: Export spreading Cost | E46: =SUMPRODUCT(G105:H105,AN301:AO301) -> 0 | N46: CF Concentrates | O46: CF forages | P46: CF Concentrates | Q46: CF Forages
M47: Group | N47: Computed | O47: Computed | P47: Used | Q47: Used
C48: Weighted Combined Index (Advance Usage) | G48: =(E8*E51)-(F8*F50*F51)-(G8*G50*G51)-(H8*H50*H51)-(I8*I50*I51)-(J8*J50*J51)-(K8*K50*K51) -> 111804.3207 | M48: 1 | N48: =AA206 ->  | P48: 1 | Q48: 1
M49: 2 | P49: 0 | Q49: 1
C50: Cost of Reducing the Balance, $/kg | F50: 0 | G50: 0 | H50: 0 | I50: 0 | J50: 0 | K50: 0 | M50: 3 | P50: 0 | Q50: 1
C51: Weight factor | E51: 1 | F51: 1 | G51: 1 | H51: 1 | I51: 1 | J51: 1 | K51: 1 | M51: 4 | P51: 0 | Q51: 1
M52: 5 | P52: 0 | Q52: 1
C54: GHG emissions | G54: kg | I54: tons CO2 eq
C55: CH4 | D55: Enteric fermentation | G55: =SUMPRODUCT(B182:F182,BN332:BR332)%/55.65+SUMPRODUCT(B210:F210,BN332:BR332)%/55.65 -> 22148.9349 | I55: =G55*25/1000 -> 553.7233724 | J55: =I55*1000/T$68 -> 0.5849409833
D56: Manure management | G56: =(SUMPRODUCT(B183:F183,BN333:BR333)+SUMPRODUCT(B211:F211,BN334:BR334))*Inputs!G456*0.67*1000 -> 9450.814876 | I56: =G56*25/1000 -> 236.2703719 | J56: =I56*1000/T$68 -> 0.2495907352
D57: Fuel | G57: =Inputs!G475*(SUMPRODUCT(B84:F84,M406:Q406)*M380+SUMPRODUCT(B87:F87,M426:Q426)*M381+SUMPRODUCT(B90:F90,M446:Q446)*M382+SUMPRODUCT(B93:F93,M466:Q466)*M383+SUMPRODUCT(B96:F96,M486:Q486)*M384) -> 1151.040778 | I57: =G57*25/1000 -> 28.77601944 | J57: =I57*1000/T$68 -> 0.03039834319
F58: Total CH4 | G58: =SUM(G55:G57) -> 32750.79055 | I58: =SUM(I55:I57) -> 818.7697638 | J58: 0.8649300617
C59: N2O | D59: Manure management | G59: =SUMPRODUCT(M324:Q324,BN335:BR335)%*44/28*1000 -> 36.85216856 | I59: =G59*298/1000 -> 10.98194623 | J59: 0.01160108232
D60: Manure applied on pasture | G60: =SUMPRODUCT(M335:Q335,BN336:BR336)%*44/28*1000 -> 0 | I60: =G60*298/1000 -> 0 | J60: 0
D61: Synthetic fertilizers | G61: =SUMPRODUCT(B106:F106,T297:X297%)*Inputs!H465*Inputs!H466*44/28*1000 -> 123.0440933 | I61: =G61*298/1000 -> 36.66713979 | J61: 0.03873434619
D62: Organic fertilizers | G62: =AG324*Inputs!H465*1000 -> 188.7862355 | I62: =G62*298/1000 -> 56.25829818 | J62: 0.05943000763
D63: Crop residues | G63: =(SUMPRODUCT(B84:F84,M405:Q405)*Inputs!C313+SUMPRODUCT(B87:F87,M425:Q425)*Inputs!C314+SUMPRODUCT(B90:F90,M445:Q445)*Inputs!C315+SUMPRODUCT(B93:F93,M465:Q465)*Inputs!C316+SUMPRODUCT(B96:F96,M485:Q485)*Inputs!C317)*Inputs!H465*Inputs!H466*44/28 -> 140.9399069 | I63: =G63*298/1000 -> 42.00009227 | J63: 0.04436795789
D64: Indirect N2O emissions - Volatilization | J64: 0
E65: Fertilizers | G65: =SUMPRODUCT(B106:F106,T297:X297%)*1000*Inputs!H467*Inputs!H468*44/28 -> 7.385599835 | I65: =G65*298/1000 -> 2.200908751 | J65: 0.002324990768
E66: Manure | G66: =(SUMPRODUCT(M324:Q324,1-TRANSPOSE(M358:M362))+SUMPRODUCT(M324:Q324,TRANSPOSE(M358:M362),1-TRANSPOSE(Q358:Q362))+SUMPRODUCT(M324:Q324,TRANSPOSE(M358:M362),TRANSPOSE(Q358:Q362),1-TRANSPOSE(T358:T362)))*1000*Inputs!H468*44/28+R335*1000*(1-Inputs!V291)*Inputs!H468*44/28 -> 185.3664078 | I66: =G66*298/1000 -> 55.23918954 | J66: 0.05835344407
D67: Indirect N2O emissions - Leach., Run-Off | J67: 0 | U67: TP
E68: Fertilizers | G68: =SUMPRODUCT(B106:F106,T297:X297%)*1000*Inputs!H473*Inputs!H474*44/28 -> 27.69599938 | I68: =G68*298/1000 -> 8.253407816 | J68: 0.008718715379 | S68: FPCM | T68: =Inputs!C71*(0.1226*Inputs!C50+0.0776*U68+0.2534) -> 946631.1787 | U68: =Inputs!C51-(Inputs!C51*0.19%) -> 3.09411
E69: Crop Residues | G69: =(SUMPRODUCT(M405:Q405,B84:F84)*M380+SUMPRODUCT(M425:Q425,B87:F87)*M381+SUMPRODUCT(M445:Q445,B90:F90)*M382+SUMPRODUCT(M465:Q465,B93:F93)*M383+SUMPRODUCT(M485:Q485,B96:F96)*M384)*Inputs!H473*Inputs!H474*44/28 -> 31.72416873 | I69: =G69*298/1000 -> 9.453802282 | J69: 0.009986785239 | S69: FPCM | T69: =(Inputs!C71*(0.337+0.116*Inputs!C50+0.06*Inputs!C51)) -> 952440.462
E70: Manure | G70: =SUM(AB324:AF324)*1000*Inputs!H473*Inputs!H474*44/28 -> 93.4865812 | I70: =G70*298/1000 -> 27.8590012 | J70: 0.02942962563 | S70: ECM | T70: =(Inputs!C71*(383*Inputs!C50+242*Inputs!C51+783.2)/3140) -> 939127.1845
D71: Fuel | G71: =Inputs!H475*(SUMPRODUCT(B84:F84,M406:Q406)*M380+SUMPRODUCT(B87:F87,M426:Q426)*M381+SUMPRODUCT(B90:F90,M446:Q446)*M382+SUMPRODUCT(B93:F93,M466:Q466)*M383+SUMPRODUCT(B96:F96,M486:Q486)*M384) -> 1973.917732 | I71: =G71*298/1000 -> 588.2274842 | J71: 0.621390355
F72: Total N2O | G72: =SUM(G59:G71) -> 2809.198893 | I72: =SUM(I59:I71) -> 837.1412703 | J72: 0.8843373101
C73: CO2 | D73: Fuel consumption | G73: =Inputs!I475*(SUMPRODUCT(B84:F84,M406:Q406)*M380+SUMPRODUCT(B87:F87,M426:Q426)*M381+SUMPRODUCT(B90:F90,M446:Q446)*M382+SUMPRODUCT(B93:F93,M466:Q466)*M383+SUMPRODUCT(B96:F96,M486:Q486)*M384) -> 33679.97131 | I73: =G73/1000 -> 33.67997131 | J73: 0.03557876823
F74: Total CO2 | G74: =SUM(G73) -> 33679.97131 | I74: =SUM(I73) -> 33.67997131 | J74: 0.03557876823 | S74: Total meat sold/year | T74: =Inputs!C31*Inputs!C34%*Inputs!C32+(Inputs!C31*12/Inputs!C33)*0.5*45+((Inputs!C31*12/Inputs!C33)*0.5-Inputs!C31*Inputs!C34%*(1-Inputs!C39/100))*IF(Inputs!C42=1,Inputs!C32,45) -> 26633.25453
G75: Total eq CO2, tons | I75: =I74+I72+I58 -> 1689.591005 | J75: 1.78484614 | S75: R=kg meat/kgmilk | T75: =T74/T68 -> 0.02813477427
J76: =I75-I71 -> 1101.363521 | K76: Sans N20 fuel | S76: AF to milk | T76: =1-5.7717*T75 -> 0.8376145233
F77: Total kg CO2 eq FPCM (kg/yr) | I77: =(I75*1000)/T68 -> 1.78484614 | J77: =J76*1000/T68 -> 1.163455785 | L77: Milk allocation | M77: =P80*T76 -> 0.8094735453 | N77: TOTAL GHG | P77: =T68*J77 -> 1101363.521 | S77: AF to meat | T77: =1-T76 -> 0.1623854767
F78: TotalCO2 eq/FPCM (kg/yr) | I78: =(I75*1000)/T69 -> 1.77395971 | L78: Beef allocation | M78: =P80*T77 -> 0.1569298811 | N78: Economic Alloc. (cash crops) | P78: =(T78*P77)/T80 -> 186535.9065 | S78: Crop Income/FPCM | T78: =E28/T68 -> 0.08643297388
F79: TotalCO2 eq/ ECM (kg/yr) | I79: =(I75*1000)/T70 -> 1.79910776 | L79: Crop cash allocation | M79: =P79 -> 0.1970523587 | N79: Total GHG/kg FPCM from cash crops | P79: =P78/T68 -> 0.1970523587 | S79: Milk and others income | T79: =(E27+E26)/T68 -> 0.4238930337
N80: Milk and meat GHG (CO2 eq/kg FPCM) | P80: =J77-P79 -> 0.9664034264 | S80: TOTAL | T80: =SUM(T78:T79) -> 0.5103260076
A81: 2. Optimized variables
A82: 2.1. Rotation in each Land Unit
A83: Rotation chosen for | B83: =M391 -> CCC | C83: =N391 -> SCC | D83: =O391 -> CCAAA | E83: =P391 -> CCCSCAAA | F83: =Q391 -> CCCSWAAA
A84: =L380 -> LU 1 | B84: 0 | C84: 0 | D84: 1 | E84: 0 | F84: 0
B86: =M411 -> CCC | C86: =N411 -> SCC | D86: =O411 -> CCAAA | E86: =P411 -> CCCSCAAA | F86: =Q411 -> CCCSWAAA
A87: =L381 -> LU 2 | B87: 1 | C87: 0 | D87: 0 | E87: 0 | F87: 0
B89: =M431 -> CCC | C89: =N431 -> SCC | D89: =O431 -> CCAAA | E89: =P431 -> CCCSCAAA | F89: =Q431 -> CCCSWAAA
A90: =L382 -> LU 3 | B90: 0 | C90: 0 | D90: 0 | E90: 1 | F90: 0
B92: =M451 -> CCC | C92: =N451 -> SCC | D92: =O451 -> CCAAA | E92: =P451 -> CCCSCAAA | F92: =Q451 -> CCCSWAAA
A93: =L383 -> LU 4 | B93: 1 | C93: 0 | D93: 0 | E93: 0 | F93: 0
B95: =M471 -> CCC | C95: =N471 -> SCC | D95: =O471 -> CCAAA | E95: =P471 -> CCCSCAAA | F95: =Q471 -> CCCSWAAA
A96: =L384 -> LU 5 | B96: 0.5881330179 | C96: 0 | D96: 0 | E96: 0.4118669821 | F96: 0
A98: 2.2. Crop Fertilization: | B98: Purchased Inorganic Fertilizer | G98: Manure Application
A99: Fertilizer & manure (t/yr) chosen for | B99: =T295 -> 18-46-0 | C99: 27-0-0 | D99: 0-46-0 | E99: 0-0-60 | F99: 11-52-0 | G99: Solid | H99: Liquid | I99: Pasture
A100: Land Unit 1 | B100: 1.572867082 | C100: 0 | D100: 0 | E100: 3.196719431 | F100: 0 | G100: 0 | H100: 752.3721825 | I100: 0
A101: Land Unit 2 | B101: 0 | C101: 0 | D101: 0 | E101: 0 | F101: 0 | G101: 0 | H101: 0 | I101: 0
A102: Land Unit 3 | B102: 3.756883921 | C102: 0 | D102: 0 | E102: 3.990924313 | F102: 0 | G102: 0 | H102: 1545.751324 | I102: 0
A103: Land Unit 4 | B103: 0 | C103: 0 | D103: 0 | E103: 0 | F103: 0 | G103: 0 | H103: 0 | I103: 0
A104: Land Unit 5 | B104: 6.623402838 | C104: 9.438368432 | D104: 0 | E104: 3.43314197 | F104: 0 | G104: 0 | H104: 2101.568605 | I104: 0
A105: Exported manure | G105: 0 | H105: 0
A106: Total | B106: =SUM(B100:B105) -> 11.95315384 | C106: 9.438368432 | D106: 0 | E106: 10.62078571 | F106: 0 | G106: 0 | H106: 4399.692112 | I106: 0
A109: 2.3.1 Winter Diets:
A110: Ingredients (tons DM) | B110: =AE136 -> GrPast-49 | C110: CoSi-35 | D110: AlSi-83 | E110: MxSi-74 | F110: GrHy-52 | G110: SBw-108 | H110: CoGr-27 | I110: Barley-8 | J110: Wheat-116 | K110: Brewers grains-16 | L110: Canola-19 | M110: FatCa-40 | N110: SBMx-104 | O110: SBM48-107 | P110: CGM-25 | Q110: CoDi-23 | R110: Bld Meal-14 | S110: Urea | T110: SoyHull-103 | U110: CottonSd-w-37 | V110: CaCO3 | W110: NaH2PO4.H20 | X110: MgO | Y110: CaSO4.2H20 | Z110: NaCl | AA110: MgSO4.7H20 | AB110: Total
A111: Group 1 | B111: 0 | C111: 130.8415536 | D111: 34.68533797 | E111: 0 | F111: 0 | G111: 32.91540677 | H111: 71.26745958 | I111: 0 | J111: 0 | K111: 0 | L111: 0 | M111: 0 | N111: 0 | O111: 0 | P111: 0 | Q111: 49.06558259 | R111: 0 | S111: 0.9226810525 | T111: 0 | U111: 3.767656042 | V111: 1.954694878 | W111: 0.01708323042 | X111: 0.04437114857 | Y111: 0.04705500592 | Z111: 1.575002104 | AA111: 0 | AB111: =SUM(B111:AA111) -> 327.103884
A112: Group 2 | B112: 0 | C112: 162.7338808 | D112: 52.19134585 | E112: 126.0862298 | F112: 0 | G112: 0 | H112: 0 | I112: 0 | J112: 0 | K112: 0 | L112: 0 | M112: 0 | N112: 0 | O112: 0 | P112: 1.233900116 | Q112: 61.0252053 | R112: 0 | S112: 0 | T112: 0 | U112: 0 | V112: 2.065800564 | W112: 0 | X112: 0 | Y112: 0 | Z112: 1.498339558 | AA112: 0 | AB112: =SUM(B112:AA112) -> 406.834702
A113: Group 3 | B113: 0 | C113: 24.59808 | D113: 30.60737446 | E113: 0 | F113: 6.14952 | G113: 0 | H113: 0 | I113: 0 | J113: 0 | K113: 0 | L113: 0 | M113: 0 | N113: 0 | O113: 0 | P113: 0 | Q113: 0 | R113: 0 | S113: 0 | T113: 0 | U113: 0 | V113: 0 | W113: 0 | X113: 0 | Y113: 0 | Z113: 0.1402255366 | AA113: 0 | AB113: =SUM(B113:AA113) -> 61.4952
A114: Group 4 | B114: 0 | C114: 28.43873104 | D114: 23.28895222 | E114: 7.660564629 | F114: 0 | G114: 0 | H114: 0 | I114: 0 | J114: 0 | K114: 0 | L114: 0 | M114: 0 | N114: 0 | O114: 0 | P114: 0.9954028983 | Q114: 10.66452414 | R114: 0 | S114: 0 | T114: 0 | U114: 0 | V114: 0 | W114: 0 | X114: 0 | Y114: 0 | Z114: 0.0486526673 | AA114: 0 | AB114: =SUM(B114:AA114) -> 71.09682759
A115: Group 5 | B115: 0 | C115: 74.41521548 | D115: 91.71300184 | E115: 8.744632468 | F115: 10.87558185 | G115: 0 | H115: 0 | I115: 0 | J115: 0 | K115: 0 | L115: 0 | M115: 0 | N115: 0 | O115: 0 | P115: 0 | Q115: 0 | R115: 0 | S115: 0 | T115: 0 | U115: 0 | V115: 0 | W115: 0 | X115: 0 | Y115: 0 | Z115: 0.2896070587 | AA115: 0 | AB115: =SUM(B115:AA115) -> 186.0380387
A116: Composition, % of DM
A117: Group 1 | B117: =B111/SUM($B$111:$AA$111)% -> 0 | C117: =C111/SUM($B$111:$AA$111)% -> 40 | D117: 10.6037683 | E117: 0 | F117: 0 | G117: 10.06267684 | H117: 21.78740855 | I117: 0 | J117: 0 | K117: 0 | L117: 0 | M117: 0 | N117: 0 | O117: 0 | P117: 0 | Q117: 15 | R117: 0 | S117: 0.2820758474 | T117: 0 | U117: 1.151822472 | V117: 0.5975761749 | W117: 0.005222570338 | X117: 0.0135648492 | Y117: 0.01438534002 | Z117: 0.481499053 | AA117: 0 | AB117: =SUM(B117:AA117) -> 100
A118: Group 2 | B118: =B112/SUM($B$112:$AA$112)% -> 0 | C118: 40 | D118: 12.82863669 | E118: 30.99200466 | F118: 0 | G118: 0 | H118: 0 | I118: 0 | J118: 0 | K118: 0 | L118: 0 | M118: 0 | N118: 0 | O118: 0 | P118: 0.3032927402 | Q118: 15 | R118: 0 | S118: 0 | T118: 0 | U118: 0 | V118: 0.5077739322 | W118: 0 | X118: 0 | Y118: 0 | Z118: 0.3682919747 | AA118: 0 | AB118: =SUM(B118:AA118) -> 100
A119: Group 3 | B119: =B113/SUM($B$113:$AA$113)% -> 0 | C119: 40 | D119: 49.7719732 | E119: 0 | F119: 10 | G119: 0 | H119: 0 | I119: 0 | J119: 0 | K119: 0 | L119: 0 | M119: 0 | N119: 0 | O119: 0 | P119: 0 | Q119: 0 | R119: 0 | S119: 0 | T119: 0 | U119: 0 | V119: 0 | W119: 0 | X119: 0 | Y119: 0 | Z119: 0.2280267999 | AA119: 0 | AB119: =SUM(B119:AA119) -> 100
A120: Group 4 | B120: =B114/SUM($B$114:$AA$114)% -> 0 | C120: 40 | D120: 32.75666863 | E120: 10.77483326 | F120: 0 | G120: 0 | H120: 0 | I120: 0 | J120: 0 | K120: 0 | L120: 0 | M120: 0 | N120: 0 | O120: 0 | P120: 1.400066546 | Q120: 15 | R120: 0 | S120: 0 | T120: 0 | U120: 0 | V120: 0 | W120: 0 | X120: 0 | Y120: 0 | Z120: 0.06843155869 | AA120: 0 | AB120: =SUM(B120:AA120) -> 100
A121: Group 5 | B121: =B115/SUM($B$115:$AA$115)% -> 0 | C121: 40 | D121: 49.29798362 | E121: 4.700454019 | F121: 5.845891479 | G121: 0 | H121: 0 | I121: 0 | J121: 0 | K121: 0 | L121: 0 | M121: 0 | N121: 0 | O121: 0 | P121: 0 | Q121: 0 | R121: 0 | S121: 0 | T121: 0 | U121: 0 | V121: 0 | W121: 0 | X121: 0 | Y121: 0 | Z121: 0.1556708836 | AA121: 0 | AB121: =SUM(B121:AA121) -> 100
A122: Forages, % of DM
A123: Group 1 | B123: =IF(OR(AE$138="S",AE$138="H"),B117,0) -> 0 | C123: =IF(OR(AF$138="S",AF$138="H"),C117,0) -> 40 | D123: 10.6037683 | E123: 0 | F123: 0 | G123: 0 | H123: 0 | I123: 0 | J123: 0 | K123: 0 | L123: 0 | M123: 0 | N123: 0 | O123: 0 | P123: 0 | Q123: 0 | R123: 0 | S123: 0 | T123: 0 | U123: 0 | V123: 0 | W123: 0 | X123: 0 | Y123: 0 | Z123: 0 | AA123: 0 | AB123: =SUM(B123:AA123) -> 50.6037683
A124: Group 2 | B124: =IF(OR(AE$138="S",AE$138="H"),B118,0) -> 0 | C124: 40 | D124: 12.82863669 | E124: 30.99200466 | F124: 0 | G124: 0 | H124: 0 | I124: 0 | J124: 0 | K124: 0 | L124: 0 | M124: 0 | N124: 0 | O124: 0 | P124: 0 | Q124: 0 | R124: 0 | S124: 0 | T124: 0 | U124: 0 | V124: 0 | W124: 0 | X124: 0 | Y124: 0 | Z124: 0 | AA124: 0 | AB124: =SUM(B124:AA124) -> 83.82064135
A125: Group 3 | B125: =IF(OR(AE$138="S",AE$138="H"),B119,0) -> 0 | C125: 40 | D125: 49.7719732 | E125: 0 | F125: 10 | G125: 0 | H125: 0 | I125: 0 | J125: 0 | K125: 0 | L125: 0 | M125: 0 | N125: 0 | O125: 0 | P125: 0 | Q125: 0 | R125: 0 | S125: 0 | T125: 0 | U125: 0 | V125: 0 | W125: 0 | X125: 0 | Y125: 0 | Z125: 0 | AA125: 0 | AB125: =SUM(B125:AA125) -> 99.7719732
A126: Group 4 | B126: =IF(OR(AE$138="S",AE$138="H"),B120,0) -> 0 | C126: 40 | D126: 32.75666863 | E126: 10.77483326 | F126: 0 | G126: 0 | H126: 0 | I126: 0 | J126: 0 | K126: 0 | L126: 0 | M126: 0 | N126: 0 | O126: 0 | P126: 0 | Q126: 0 | R126: 0 | S126: 0 | T126: 0 | U126: 0 | V126: 0 | W126: 0 | X126: 0 | Y126: 0 | Z126: 0 | AA126: 0 | AB126: =SUM(B126:AA126) -> 83.5315019
A127: Group 5 | B127: =IF(OR(AE$138="S",AE$138="H"),B121,0) -> 0 | C127: 40 | D127: 49.29798362 | E127: 4.700454019 | F127: 5.845891479 | G127: 0 | H127: 0 | I127: 0 | J127: 0 | K127: 0 | L127: 0 | M127: 0 | N127: 0 | O127: 0 | P127: 0 | Q127: 0 | R127: 0 | S127: 0 | T127: 0 | U127: 0 | V127: 0 | W127: 0 | X127: 0 | Y127: 0 | Z127: 0 | AA127: 0 | AB127: =SUM(B127:AA127) -> 99.84432912
A132: 3. Constraint variables
A133: 3.1. Feed balance:
A134: Produced,T/y | B134: =AE136 -> GrPast-49 | C134: CoSi-35 | D134: AlSi-83 | E134: MxSi-74 | F134: GrHy-52 | G134: SBw-108 | H134: CoGr-27 | I134: Barley-8 | J134: Wheat-116 | K134: Brewers grains-16 | L134: Canola-19 | M134: FatCa-40 | N134: SBMx-104 | O134: SBM48-107 | P134: CGM-25 | Q134: CoDi-23 | R134: Bld Meal-14 | S134: Urea | T134: SoyHull-103 | U134: CottonSd-w-37 | V134: CaCO3 | W134: NaH2PO4.H20 | X134: MgO | Y134: CaSO4.2H20 | Z134: NaCl | AA134: MgSO4.7H20 | AE134: Feed analysis of (10) home-grown feed and (10) possible purchased feed
A135: =L380 -> LU 1 | B135: =SUMIF($R$391:$AA$391,AE136,$R$393:$AA$393)/MAX($R$392:$AA$392)*$M380*$B$84+SUMIF($AB$391:$AK$391,AE136,$AB$393:$AK$393)/MAX($AB$392:$AK$392)*$M380*$C$84+SUMIF($AL$391:$AU$391,AE136,$AL$393:$AU$393)/MAX($AL$392:$AU$392)*$M380*$D$84+SUMIF($AV$391:$BE$391,AE136,$AV$393:$BE$393)/MAX($AV$392:$BE$392)*$M380*$E$84+SUMIF($BF$391:$BO$391,AE136,$BF$393:$BO$393)/MAX($BF$392:$BO$392)*$M380*$F$84 -> 0 | C135: 195.6705882 | D135: 156.24 | E135: 95.76 | F135: 0 | G135: 0 | H135: 88.32989691 | I135: 0 | J135: 0 | AE135: Feeds produced/purchased | AN135: Feeds only purchased
A136: =L381 -> LU 2 | B136: =SUMIF($R$411:$AA$411,AE136,$R$413:$AA$413)/MAX($R$412:$AA$412)*$M381*$B$87+SUMIF($AB$411:$AK$411,AE136,$AB$413:$AK$413)/MAX($AB$412:$AK$412)*$M381*$C$87+SUMIF($AL$411:$AU$411,AE136,$AL$413:$AU$413)/MAX($AL$412:$AU$412)*$M381*$D$87+SUMIF($AV$411:$BE$411,AE136,$AV$413:$BE$413)/MAX($AV$412:$BE$412)*$M381*$E$87+SUMIF($BF$411:$BO$411,AE136,$BF$413:$BO$413)/MAX($BF$412:$BO$412)*$M381*$F$87 -> 0 | C136: 0 | D136: 0 | E136: 0 | F136: 0 | G136: 0 | H136: 0 | I136: 0 | J136: 0 | AE136: =Inputs!C181 -> GrPast-49 | AF136: =Inputs!D181 -> CoSi-35 | AG136: =Inputs!E181 -> AlSi-83 | AH136: =Inputs!F181 -> MxSi-74 | AI136: =Inputs!G181 -> GrHy-52 | AJ136: =Inputs!H181 -> SBw-108 | AK136: =Inputs!I181 -> CoGr-27 | AL136: =Inputs!J181 -> Barley-8 | AM136: =Inputs!K181 -> Wheat-116 | AN136: =Inputs!L181 -> Brewers grains-16 | AO136: =Inputs!M181 -> Canola-19 | AP136: =Inputs!N181 -> FatCa-40 | AQ136: =Inputs!O181 -> SBMx-104 | AR136: =Inputs!P181 -> SBM48-107 | AS136: =Inputs!Q181 -> CGM-25 | AT136: =Inputs!R181 -> CoDi-23 | AU136: =Inputs!S181 -> Bld Meal-14 | AV136: =Inputs!T181 -> Urea | AW136: =Inputs!U181 -> SoyHull-103 | AX136: =Inputs!V181 -> CottonSd-w-37 | AY136: =Inputs!W181 -> CaCO3 | AZ136: =Inputs!X181 -> NaH2PO4.H20 | BA136: =Inputs!Y181 -> MgO | BB136: =Inputs!Z181 -> CaSO4.2H20 | BC136: =Inputs!AA181 -> NaCl | BD136: =Inputs!AB181 -> MgSO4.7H20
A137: =L382 -> LU 3 | B137: =SUMIF($R$431:$AA$431,AE136,$R$433:$AA$433)/MAX($R$432:$AA$432)*$M382*$B$90+SUMIF($AB$431:$AK$431,AE136,$AB$433:$AK$433)/MAX($AB$432:$AK$432)*$M382*$C$90+SUMIF($AL$431:$AU$431,AE136,$AL$433:$AU$433)/MAX($AL$432:$AU$432)*$M382*$D$90+SUMIF($AV$431:$BE$431,AE136,$AV$433:$BE$433)/MAX($AV$432:$BE$432)*$M382*$E$90+SUMIF($BF$431:$BO$431,AE136,$BF$433:$BO$433)/MAX($BF$432:$BO$432)*$M382*$F$90 -> 0 | C137: 238.6588235 | D137: 97.65 | E137: 59.85 | F137: 0 | G137: 18.83505155 | H137: 113.9195876 | I137: 0 | J137: 0 | AD137: Unit resource, t DM | AE137: =Inputs!C182 -> 1 | AF137: =Inputs!D182 -> 1 | AG137: =Inputs!E182 -> 1 | AH137: =Inputs!F182 -> 1 | AI137: =Inputs!G182 -> 1 | AJ137: =Inputs!H182 -> 1 | AK137: =Inputs!I182 -> 1 | AL137: =Inputs!J182 -> 0 | AM137: =Inputs!K182 -> 1 | AN137: =Inputs!L182 -> 1 | AO137: =Inputs!M182 -> 1 | AP137: =Inputs!N182 -> 1 | AQ137: =Inputs!O182 -> 1 | AR137: =Inputs!P182 -> 1 | AS137: =Inputs!Q182 -> 1 | AT137: =Inputs!R182 -> 1 | AU137: =Inputs!S182 -> 1 | AV137: =Inputs!T182 -> 1 | AW137: =Inputs!U182 -> 1 | AX137: =Inputs!V182 -> 1 | AY137: =Inputs!W182 -> 1 | AZ137: =Inputs!X182 -> 1 | BA137: =Inputs!Y182 -> 1 | BB137: =Inputs!Z182 -> 1 | BC137: =Inputs!AA182 -> 1 | BD137: =Inputs!AB182 -> 1
A138: =L383 -> LU 4 | B138: =SUMIF($R$451:$AA$451,AE136,$R$453:$AA$453)/MAX($R$452:$AA$452)*$M383*$B$93+SUMIF($AB$451:$AK$451,AE136,$AB$453:$AK$453)/MAX($AB$452:$AK$452)*$M383*$C$93+SUMIF($AL$451:$AU$451,AE136,$AL$453:$AU$453)/MAX($AL$452:$AU$452)*$M383*$D$93+SUMIF($AV$451:$BE$451,AE136,$AV$453:$BE$453)/MAX($AV$452:$BE$452)*$M383*$E$93+SUMIF($BF$451:$BO$451,AE136,$BF$453:$BO$453)/MAX($BF$452:$BO$452)*$M383*$F$93 -> 0 | C138: 0 | D138: 0 | E138: 0 | F138: 0 | G138: 0 | H138: 0 | I138: 0 | J138: 0 | AD138: Fd type (F=Forage, P=Pasture; C=Concentrate, AP=Animal protein, FA=Fatty acid, M=Mineral) | AE138: =Inputs!C183 -> P | AF138: =Inputs!D183 -> S | AG138: =Inputs!E183 -> S | AH138: =Inputs!F183 -> S | AI138: =Inputs!G183 -> H | AJ138: =Inputs!H183 -> C | AK138: =Inputs!I183 -> C | AL138: =Inputs!J183 -> C | AM138: =Inputs!K183 -> C | AN138: =Inputs!L183 -> C | AO138: =Inputs!M183 -> C | AP138: =Inputs!N183 -> FA | AQ138: =Inputs!O183 -> C | AR138: =Inputs!P183 -> C | AS138: =Inputs!Q183 -> C | AT138: =Inputs!R183 -> C | AU138: =Inputs!S183 -> AP | AV138: M | AW138: =Inputs!U183 -> C | AX138: =Inputs!V183 -> C | AY138: =Inputs!W183 -> M | AZ138: =Inputs!X183 -> M | BA138: =Inputs!Y183 -> M | BB138: =Inputs!Z183 -> M | BC138: =Inputs!AA183 -> M | BD138: =Inputs!AB183 -> M
A139: =L384 -> LU 5 | B139: =SUMIF($R$471:$AA$471,AE136,$R$473:$AA$473)/MAX($R$472:$AA$472)*$M384*$B$96+SUMIF($AB$471:$AK$471,AE136,$AB$473:$AK$473)/MAX($AB$472:$AK$472)*$M384*$C$96+SUMIF($AL$471:$AU$471,AE136,$AL$473:$AU$473)/MAX($AL$472:$AU$472)*$M384*$D$96+SUMIF($AV$471:$BE$471,AE136,$AV$473:$BE$473)/MAX($AV$472:$BE$472)*$M384*$E$96+SUMIF($BF$471:$BO$471,AE136,$BF$473:$BO$473)/MAX($BF$472:$BO$472)*$M384*$F$96 -> 0 | C139: =SUMIF($R$471:$AA$471,AF136,$R$473:$AA$473)/MAX($R$472:$AA$472)*$M384*$B$96+SUMIF($AB$471:$AK$471,AF136,$AB$473:$AK$473)/MAX($AB$472:$AK$472)*$M384*$C$96+SUMIF($AL$471:$AU$471,AF136,$AL$473:$AU$473)/MAX($AL$472:$AU$472)*$M384*$D$96+SUMIF($AV$471:$BE$471,AF136,$AV$473:$BE$473)/MAX($AV$472:$BE$472)*$M384*$E$96+SUMIF($BF$471:$BO$471,AF136,$BF$473:$BO$473)/MAX($BF$472:$BO$472)*$M384*$F$96 -> 98.29568939 | D139: =SUMIF($R$471:$AA$471,AG136,$R$473:$AA$473)/MAX($R$472:$AA$472)*$M384*$B$96+SUMIF($AB$471:$AK$471,AG136,$AB$473:$AK$473)/MAX($AB$472:$AK$472)*$M384*$C$96+SUMIF($AL$471:$AU$471,AG136,$AL$473:$AU$473)/MAX($AL$472:$AU$472)*$M384*$D$96+SUMIF($AV$471:$BE$471,AG136,$AV$473:$BE$473)/MAX($AV$472:$BE$472)*$M384*$E$96+SUMIF($BF$471:$BO$471,AG136,$BF$473:$BO$473)/MAX($BF$472:$BO$472)*$M384*$F$96 -> 40.2188108 | E139: 24.65023888 | F139: 0 | G139: 7.757535837 | H139: 294.4448954 | I139: 0 | J139: 0 | AD139: Concentrates and minerals | AE139: =IF(OR(AE138="C",AE138="FA",AE138="AP",AE138="M"),1,0) -> 0 | AF139: =IF(OR(AF138="C",AF138="FA",AF138="AP",AF138="M"),1,0) -> 0 | AG139: 0 | AH139: 0 | AI139: 0 | AJ139: 1 | AK139: 1 | AL139: 1 | AM139: 1 | AN139: 1 | AO139: 1 | AP139: 1 | AQ139: 1 | AR139: 1 | AS139: 1 | AT139: 1 | AU139: 1 | AV139: 1 | AW139: 1 | AX139: 1 | AY139: 1 | AZ139: 1 | BA139: 1 | BB139: 1 | BC139: 1 | BD139: 1
A140: Amount of DM standing in the fields, T/y | B140: =SUM(B135:B139) -> 0 | C140: =SUM(C135:C139) -> 532.6251012 | D140: 294.1088108 | E140: 180.2602389 | F140: 0 | G140: 26.59258738 | H140: 496.6943799 | I140: 0 | J140: 0 | AD140: Forages | AE140: =IF(OR(AE138="P",AE138="H",AE138="S"),1,0) -> 1 | AF140: =IF(OR(AF138="P",AF138="H",AF138="S"),1,0) -> 1 | AG140: 1 | AH140: 1 | AI140: 1 | AJ140: 0 | AK140: 0 | AL140: 0 | AM140: 0 | AN140: 0 | AO140: 0 | AP140: 0 | AQ140: 0 | AR140: 0 | AS140: 0 | AT140: 0 | AU140: 0 | AV140: 0 | AW140: 0 | AX140: 0 | AY140: 0 | AZ140: 0 | BA140: 0 | BB140: 0 | BC140: 0 | BD140: 0
A141: Field & storage losses, % | B141: =Inputs!C217 -> 15 | C141: =Inputs!D217 -> 17 | D141: =Inputs!E217 -> 17 | E141: =Inputs!F217 -> 17 | F141: =Inputs!G217 -> 18 | G141: =Inputs!H217 -> 3 | H141: =Inputs!I217 -> 3 | I141: =Inputs!J217 -> 3 | J141: =Inputs!K217 -> 3 | AD141: EE, (%) | AE141: =Inputs!C185 -> 2.7 | AF141: =Inputs!D185 -> 3.13 | AG141: =Inputs!E185 -> 2.74 | AH141: =Inputs!F185 -> 2.84 | AI141: =Inputs!G185 -> 2.42 | AJ141: =Inputs!H185 -> 19.2 | AK141: =Inputs!I185 -> 4.2 | AL141: =Inputs!J185 -> 2.2 | AM141: =Inputs!K185 -> 2.3 | AN141: =Inputs!L185 -> 5.2 | AO141: =Inputs!M185 -> 5.4 | AP141: =Inputs!N185 -> 84.5 | AQ141: =Inputs!O185 -> 8.1 | AR141: =Inputs!P185 -> 1.1 | AS141: =Inputs!Q185 -> 2.5 | AT141: =Inputs!R185 -> 10 | AU141: =Inputs!S185 -> 1.2 | AV141: =Inputs!T185 -> 0 | AW141: =Inputs!U185 -> 2.7 | AX141: =Inputs!V185 -> 19.3 | AY141: =Inputs!W185 -> 0 | AZ141: =Inputs!X185 -> 0 | BA141: =Inputs!Y185 -> 0 | BB141: =Inputs!Z185 -> 0 | BC141: =Inputs!AA185 -> 0 | BD141: =Inputs!AB185 -> 0
A142: Field & storage losses, T/y | B142: =B140*B141% -> 0 | C142: =C140*C141% -> 90.5462672 | D142: 49.99849784 | E142: 30.64424061 | F142: 0 | G142: 0.7977776215 | H142: 14.9008314 | I142: 0 | J142: 0 | AD142: FNDF, (%) | AE142: =Inputs!C186 -> 45.8 | AF142: =Inputs!D186 -> 43.01 | AG142: =Inputs!E186 -> 44.72 | AH142: =Inputs!F186 -> 50.43 | AI142: =Inputs!G186 -> 60.43 | AJ142: =Inputs!H186 -> 0 | AK142: =Inputs!I186 -> 0 | AL142: =Inputs!J186 -> 0 | AM142: =Inputs!K186 -> 0 | AN142: =Inputs!L186 -> 0 | AO142: =Inputs!M186 -> 0 | AP142: =Inputs!N186 -> 0 | AQ142: =Inputs!O186 -> 0 | AR142: =Inputs!P186 -> 0 | AS142: =Inputs!Q186 -> 0 | AT142: =Inputs!R186 -> 0 | AU142: =Inputs!S186 -> 0 | AV142: =Inputs!T186 -> 0 | AW142: =Inputs!U186 -> 0 | AX142: =Inputs!V186 -> 16.599 | AY142: =Inputs!W186 -> 0 | AZ142: =Inputs!X186 -> 0 | BA142: =Inputs!Y186 -> 0 | BB142: =Inputs!Z186 -> 0 | BC142: =Inputs!AA186 -> 0 | BD142: =Inputs!AB186 -> 0
A143: Total, Metric tons | B143: =B140-B142 -> 0 | C143: =C140-C142 -> 442.078834 | D143: 244.110313 | E143: 149.6159983 | F143: 0 | G143: 25.79480976 | H143: 481.7935485 | I143: 0 | J143: 0 | AD143: NDF, (%) | AE143: =Inputs!C187 -> 45.8 | AF143: =Inputs!D187 -> 43.01 | AG143: =Inputs!E187 -> 44.72 | AH143: =Inputs!F187 -> 50.43 | AI143: =Inputs!G187 -> 60.43 | AJ143: =Inputs!H187 -> 19.5 | AK143: =Inputs!I187 -> 9.5 | AL143: =Inputs!J187 -> 20.8 | AM143: =Inputs!K187 -> 13.4 | AN143: =Inputs!L187 -> 47.4 | AO143: =Inputs!M187 -> 29.8 | AP143: =Inputs!N187 -> 0 | AQ143: =Inputs!O187 -> 21.7 | AR143: =Inputs!P187 -> 9.8 | AS143: =Inputs!Q187 -> 11.1 | AT143: =Inputs!R187 -> 38.8 | AU143: =Inputs!S187 -> 0 | AV143: =Inputs!T187 -> 0 | AW143: =Inputs!U187 -> 60.3 | AX143: =Inputs!V187 -> 50.3 | AY143: =Inputs!W187 -> 0 | AZ143: =Inputs!X187 -> 0 | BA143: =Inputs!Y187 -> 0 | BB143: =Inputs!Z187 -> 0 | BC143: =Inputs!AA187 -> 0 | BD143: =Inputs!AB187 -> 0
A144: Total, Metric tons | B144: =SUM(B135:B139)*(1-B141%) -> 0 | C144: =SUM(C135:C139)*(1-C141%) -> 442.078834 | D144: 244.110313 | E144: 149.6159983 | F144: 0 | G144: 25.79480976 | H144: 481.7935485 | I144: 0 | J144: 0 | AD144: NFC, (%) | AE144: =Inputs!C188 -> 25.5 | AF144: =Inputs!D188 -> 42.63 | AG144: =Inputs!E188 -> 25.58 | AH144: =Inputs!F188 -> 24.21 | AI144: =Inputs!G188 -> 20.42 | AJ144: =Inputs!H188 -> 18.5 | AK144: =Inputs!I188 -> 76.1 | AL144: =Inputs!J188 -> 63.5 | AM144: =Inputs!K188 -> 69.8 | AN144: =Inputs!L188 -> 23 | AO144: =Inputs!M188 -> 25.9 | AP144: =Inputs!N188 -> 0 | AQ144: =Inputs!O188 -> 28 | AR144: =Inputs!P188 -> 29.6 | AS144: =Inputs!Q188 -> 21.7 | AT144: =Inputs!R188 -> 24.9 | AU144: =Inputs!S188 -> 0.8 | AV144: =Inputs!T188 -> 0 | AW144: =Inputs!U188 -> 21.8 | AX144: =Inputs!V188 -> 5.1 | AY144: =Inputs!W188 -> 0 | AZ144: =Inputs!X188 -> 0 | BA144: =Inputs!Y188 -> 0 | BB144: =Inputs!Z188 -> 0 | BC144: =Inputs!AA188 -> 0 | BD144: =Inputs!AB188 -> 0
A145: Used by the herd (summer + winter) | AD145: ADL (lignin), (%) | AE145: =Inputs!C189 -> 2.1 | AF145: =Inputs!D189 -> 2.83 | AG145: =Inputs!E189 -> 6.86 | AH145: =Inputs!F189 -> 5.97 | AI145: =Inputs!G189 -> 5.26 | AJ145: =Inputs!H189 -> 1.2 | AK145: =Inputs!I189 -> 0.9 | AL145: =Inputs!J189 -> 2.1 | AM145: =Inputs!K189 -> 1.7 | AN145: =Inputs!L189 -> 5 | AO145: =Inputs!M189 -> 9.5 | AP145: =Inputs!N189 -> 0 | AQ145: =Inputs!O189 -> 1.5 | AR145: =Inputs!P189 -> 0.5 | AS145: =Inputs!Q189 -> 1.5 | AT145: =Inputs!R189 -> 4.3 | AU145: =Inputs!S189 -> 0 | AV145: =Inputs!T189 -> 0 | AW145: =Inputs!U189 -> 2.5 | AX145: =Inputs!V189 -> 7.9 | AY145: =Inputs!W189 -> 0 | AZ145: =Inputs!X189 -> 0 | BA145: =Inputs!Y189 -> 0 | BB145: =Inputs!Z189 -> 0 | BC145: =Inputs!AA189 -> 0 | BD145: =Inputs!AB189 -> 0
A146: Group 1 | B146: =B111+(Inputs!$D$175%*(SUM(C111:F111)+K111+L111)/(365-Inputs!D173)*Inputs!D173)*$Q48 -> 0 | C146: =C111+(C111*(1-Inputs!$D$175%)/(365-Inputs!$D$173)*Inputs!$D$173)*$Q48 -> 130.8415536 | D146: =D111+(D111*(1-Inputs!$D$175%)/(365-Inputs!$D$173)*Inputs!$D$173)*$Q48 -> 34.68533797 | E146: =E111+(E111*(1-Inputs!$D$175%)/(365-Inputs!$D$173)*Inputs!$D$173)*$Q48 -> 0 | F146: =F111+(F111*(1-Inputs!$D$175%)/(365-Inputs!$D$173)*Inputs!$D$173)*$Q48 -> 0 | G146: =G111+G111/(365-Inputs!$D$173)*Inputs!$D$173*IF(AJ$138="M",$Q48,$P48) -> 32.91540677 | H146: =H111+H111/(365-Inputs!$D$173)*Inputs!$D$173*IF(AK$138="M",$Q48,$P48) -> 71.26745958 | I146: =I111+I111/(365-Inputs!$D$173)*Inputs!$D$173*IF(AL$138="M",$Q48,$P48) -> 0 | J146: =J111+J111/(365-Inputs!$D$173)*Inputs!$D$173*IF(AM$138="M",$Q48,$P48) -> 0 | K146: =K111+K111*(1-Inputs!$D$175%)/(365-Inputs!$D$173)*Inputs!$D$173*$Q48 -> 0 | L146: =L111+L111*(1-Inputs!$D$175%)/(365-Inputs!$D$173)*Inputs!$D$173*$Q48 -> 0 | M146: =M111+M111/(365-Inputs!$D$173)*Inputs!$D$173*IF(AP$138="M",$Q48,$P48) -> 0 | N146: =N111+N111/(365-Inputs!$D$173)*Inputs!$D$173*IF(AQ$138="M",$Q48,$P48) -> 0 | O146: =O111+O111/(365-Inputs!$D$173)*Inputs!$D$173*IF(AR$138="M",$Q48,$P48) -> 0 | P146: =P111+P111/(365-Inputs!$D$173)*Inputs!$D$173*IF(AS$138="M",$Q48,$P48) -> 0 | Q146: =Q111+Q111/(365-Inputs!$D$173)*Inputs!$D$173*IF(AT$138="M",$Q48,$P48) -> 49.06558259 | R146: =R111+R111/(365-Inputs!$D$173)*Inputs!$D$173*IF(AU$138="M",$Q48,$P48) -> 0 | S146: =S111+S111/(365-Inputs!$D$173)*Inputs!$D$173*IF(AV$138="M",$Q48,$P48) -> 0.9226810525 | T146: =T111+T111/(365-Inputs!$D$173)*Inputs!$D$173*IF(AW$138="M",$Q48,$P48) -> 0 | U146: =U111+U111/(365-Inputs!$D$173)*Inputs!$D$173*IF(AX$138="M",$Q48,$P48) -> 3.767656042 | V146: =V111+V111/(365-Inputs!$D$173)*Inputs!$D$173*IF(AY$138="M",$Q48,$P48) -> 1.954694878 | W146: =W111+W111/(365-Inputs!$D$173)*Inputs!$D$173*IF(AZ$138="M",$Q48,$P48) -> 0.01708323042 | X146: =X111+X111/(365-Inputs!$D$173)*Inputs!$D$173*IF(BA$138="M",$Q48,$P48) -> 0.04437114857 | Y146: =Y111+Y111/(365-Inputs!$D$173)*Inputs!$D$173*IF(BB$138="M",$Q48,$P48) -> 0.04705500592 | Z146: =Z111+Z111/(365-Inputs!$D$173)*Inputs!$D$173*IF(BC$138="M",$Q48,$P48) -> 1.575002104 | AA146: =AA111+AA111/(365-Inputs!$D$173)*Inputs!$D$173*IF(BD$138="M",$Q48,$P48) -> 0 | AD146: NDICP, (%) | AE146: =Inputs!C190 -> 3.9 | AF146: =Inputs!D190 -> 1.3 | AG146: =Inputs!E190 -> 3.1 | AH146: =Inputs!F190 -> 3.1 | AI146: =Inputs!G190 -> 3.9 | AJ146: =Inputs!H190 -> 2.3 | AK146: =Inputs!I190 -> 0.7 | AL146: =Inputs!J190 -> 1.8 | AM146: =Inputs!K190 -> 1.7 | AN146: =Inputs!L190 -> 9.1 | AO146: =Inputs!M190 -> 6.3 | AP146: =Inputs!N190 -> 0 | AQ146: =Inputs!O190 -> 9.6 | AR146: =Inputs!P190 -> 0.7 | AS146: =Inputs!Q190 -> 3.6 | AT146: =Inputs!R190 -> 8.6 | AU146: =Inputs!S190 -> 0 | AV146: =Inputs!T190 -> 0 | AW146: =Inputs!U190 -> 3.5 | AX146: =Inputs!V190 -> 2.4 | AY146: =Inputs!W190 -> 0 | AZ146: =Inputs!X190 -> 0 | BA146: =Inputs!Y190 -> 0 | BB146: =Inputs!Z190 -> 0 | BC146: =Inputs!AA190 -> 0 | BD146: =Inputs!AB190 -> 0
A147: Group 2 | B147: =B112+(Inputs!$E$175%*(SUM(C112:F112)+K112+L112)/(365-Inputs!E173)*Inputs!E173)*$Q49 -> 0 | C147: =C112+(C112*(1-Inputs!$E$175%)/(365-Inputs!$E$173)*Inputs!$E$173)*$Q49 -> 162.7338808 | D147: =D112+(D112*(1-Inputs!$E$175%)/(365-Inputs!$E$173)*Inputs!$E$173)*$Q49 -> 52.19134585 | E147: =E112+(E112*(1-Inputs!$E$175%)/(365-Inputs!$E$173)*Inputs!$E$173)*$Q49 -> 126.0862298 | F147: =F112+(F112*(1-Inputs!$E$175%)/(365-Inputs!$E$173)*Inputs!$E$173)*$Q49 -> 0 | G147: =G112+G112/(365-Inputs!$E$173)*Inputs!$E$173*IF(AJ$138="M",$Q49,$P49) -> 0 | H147: =H112+H112/(365-Inputs!$E$173)*Inputs!$E$173*IF(AK$138="M",$Q49,$P49) -> 0 | I147: =I112+I112/(365-Inputs!$E$173)*Inputs!$E$173*IF(AL$138="M",$Q49,$P49) -> 0 | J147: =J112+J112/(365-Inputs!$E$173)*Inputs!$E$173*IF(AM$138="M",$Q49,$P49) -> 0 | K147: =K112+K112*(1-Inputs!$E$175%)/(365-Inputs!$E$173)*Inputs!$E$173*$Q49 -> 0 | L147: =L112+L112*(1-Inputs!$E$175%)/(365-Inputs!$E$173)*Inputs!$E$173*$Q49 -> 0 | M147: =M112+M112/(365-Inputs!$E$173)*Inputs!$E$173*IF(AP$138="M",$Q49,$P49) -> 0 | N147: =N112+N112/(365-Inputs!$E$173)*Inputs!$E$173*IF(AQ$138="M",$Q49,$P49) -> 0 | O147: =O112+O112/(365-Inputs!$E$173)*Inputs!$E$173*IF(AR$138="M",$Q49,$P49) -> 0 | P147: =P112+P112/(365-Inputs!$E$173)*Inputs!$E$173*IF(AS$138="M",$Q49,$P49) -> 1.233900116 | Q147: =Q112+Q112/(365-Inputs!$E$173)*Inputs!$E$173*IF(AT$138="M",$Q49,$P49) -> 61.0252053 | R147: =R112+R112/(365-Inputs!$E$173)*Inputs!$E$173*IF(AU$138="M",$Q49,$P49) -> 0 | S147: =S112+S112/(365-Inputs!$E$173)*Inputs!$E$173*IF(AV$138="M",$Q49,$P49) -> 0 | T147: =T112+T112/(365-Inputs!$E$173)*Inputs!$E$173*IF(AW$138="M",$Q49,$P49) -> 0 | U147: =U112+U112/(365-Inputs!$E$173)*Inputs!$E$173*IF(AX$138="M",$Q49,$P49) -> 0 | V147: =V112+V112/(365-Inputs!$E$173)*Inputs!$E$173*IF(AY$138="M",$Q49,$P49) -> 2.065800564 | W147: =W112+W112/(365-Inputs!$E$173)*Inputs!$E$173*IF(AZ$138="M",$Q49,$P49) -> 0 | X147: =X112+X112/(365-Inputs!$E$173)*Inputs!$E$173*IF(BA$138="M",$Q49,$P49) -> 0 | Y147: =Y112+Y112/(365-Inputs!$E$173)*Inputs!$E$173*IF(BB$138="M",$Q49,$P49) -> 0 | Z147: =Z112+Z112/(365-Inputs!$E$173)*Inputs!$E$173*IF(BC$138="M",$Q49,$P49) -> 1.498339558 | AA147: =AA112+AA112/(365-Inputs!$E$173)*Inputs!$E$173*IF(BD$138="M",$Q49,$P49) -> 0 | AD147: ADICP, (%) | AE147: =Inputs!C191 -> 1.1 | AF147: =Inputs!D191 -> 0.8 | AG147: =Inputs!E191 -> 1.8 | AH147: =Inputs!F191 -> 1.6 | AI147: =Inputs!G191 -> 1.2 | AJ147: =Inputs!H191 -> 0.6 | AK147: =Inputs!I191 -> 0.3 | AL147: =Inputs!J191 -> 0.5 | AM147: =Inputs!K191 -> 0.2 | AN147: =Inputs!L191 -> 3.5 | AO147: =Inputs!M191 -> 2.4 | AP147: =Inputs!N191 -> 0 | AQ147: =Inputs!O191 -> 0.4 | AR147: =Inputs!P191 -> 0.4 | AS147: =Inputs!Q191 -> 3 | AT147: =Inputs!R191 -> 5 | AU147: =Inputs!S191 -> 0 | AV147: =Inputs!T191 -> 0 | AW147: =Inputs!U191 -> 1 | AX147: =Inputs!V191 -> 1.9 | AY147: =Inputs!W191 -> 0 | AZ147: =Inputs!X191 -> 0 | BA147: =Inputs!Y191 -> 0 | BB147: =Inputs!Z191 -> 0 | BC147: =Inputs!AA191 -> 0 | BD147: =Inputs!AB191 -> 0
A148: Group 3 | B148: =B113+(Inputs!$F$175%*(SUM(C113:F113)+K113+L113)/(365-Inputs!F173)*Inputs!F173)*$Q50 -> 0 | C148: =C113+(C113*(1-Inputs!$F$175%)/(365-Inputs!$F$173)*Inputs!$F$173)*$Q50 -> 24.59808 | D148: =D113+(D113*(1-Inputs!$F$175%)/(365-Inputs!$F$173)*Inputs!$F$173)*$Q50 -> 30.60737446 | E148: =E113+(E113*(1-Inputs!$F$175%)/(365-Inputs!$F$173)*Inputs!$F$173)*$Q50 -> 0 | F148: =F113+(F113*(1-Inputs!$F$175%)/(365-Inputs!$F$173)*Inputs!$F$173)*$Q50 -> 6.14952 | G148: =G113+G113/(365-Inputs!$F$173)*Inputs!$F$173*IF(AJ$138="M",$Q50,$P50) -> 0 | H148: =H113+H113/(365-Inputs!$F$173)*Inputs!$F$173*IF(AK$138="M",$Q50,$P50) -> 0 | I148: =I113+I113/(365-Inputs!$F$173)*Inputs!$F$173*IF(AL$138="M",$Q50,$P50) -> 0 | J148: =J113+J113/(365-Inputs!$F$173)*Inputs!$F$173*IF(AM$138="M",$Q50,$P50) -> 0 | K148: =K113+K113*(1-Inputs!$F$175%)/(365-Inputs!$F$173)*Inputs!$F$173*$Q50 -> 0 | L148: =L113+L113*(1-Inputs!$F$175%)/(365-Inputs!$F$173)*Inputs!$F$173*$Q50 -> 0 | M148: =M113+M113/(365-Inputs!$F$173)*Inputs!$F$173*IF(AP$138="M",$Q50,$P50) -> 0 | N148: =N113+N113/(365-Inputs!$F$173)*Inputs!$F$173*IF(AQ$138="M",$Q50,$P50) -> 0 | O148: =O113+O113/(365-Inputs!$F$173)*Inputs!$F$173*IF(AR$138="M",$Q50,$P50) -> 0 | P148: =P113+P113/(365-Inputs!$F$173)*Inputs!$F$173*IF(AS$138="M",$Q50,$P50) -> 0 | Q148: =Q113+Q113/(365-Inputs!$F$173)*Inputs!$F$173*IF(AT$138="M",$Q50,$P50) -> 0 | R148: =R113+R113/(365-Inputs!$F$173)*Inputs!$F$173*IF(AU$138="M",$Q50,$P50) -> 0 | S148: =S113+S113/(365-Inputs!$F$173)*Inputs!$F$173*IF(AV$138="M",$Q50,$P50) -> 0 | T148: =T113+T113/(365-Inputs!$F$173)*Inputs!$F$173*IF(AW$138="M",$Q50,$P50) -> 0 | U148: =U113+U113/(365-Inputs!$F$173)*Inputs!$F$173*IF(AX$138="M",$Q50,$P50) -> 0 | V148: =V113+V113/(365-Inputs!$F$173)*Inputs!$F$173*IF(AY$138="M",$Q50,$P50) -> 0 | W148: =W113+W113/(365-Inputs!$F$173)*Inputs!$F$173*IF(AZ$138="M",$Q50,$P50) -> 0 | X148: =X113+X113/(365-Inputs!$F$173)*Inputs!$F$173*IF(BA$138="M",$Q50,$P50) -> 0 | Y148: =Y113+Y113/(365-Inputs!$F$173)*Inputs!$F$173*IF(BB$138="M",$Q50,$P50) -> 0 | Z148: =Z113+Z113/(365-Inputs!$F$173)*Inputs!$F$173*IF(BC$138="M",$Q50,$P50) -> 0.1402255366 | AA148: =AA113+AA113/(365-Inputs!$F$173)*Inputs!$F$173*IF(BD$138="M",$Q50,$P50) -> 0 | AD148: CP, (%) | AE148: =Inputs!C192 -> 20.1 | AF148: =Inputs!D192 -> 8.23 | AG148: =Inputs!E192 -> 19.26 | AH148: =Inputs!F192 -> 16.52 | AI148: =Inputs!G192 -> 11.83 | AJ148: =Inputs!H192 -> 39.2 | AK148: =Inputs!I192 -> 9.4 | AL148: =Inputs!J192 -> 12.4 | AM148: =Inputs!K192 -> 14.2 | AN148: =Inputs!L192 -> 29.2 | AO148: =Inputs!M192 -> 37.8 | AP148: =Inputs!N192 -> 0 | AQ148: =Inputs!O192 -> 46.3 | AR148: =Inputs!P192 -> 53.8 | AS148: =Inputs!Q192 -> 65 | AT148: =Inputs!R192 -> 29.7 | AU148: =Inputs!S192 -> 95.5 | AV148: =Inputs!T192 -> 281 | AW148: =Inputs!U192 -> 13.9 | AX148: =Inputs!V192 -> 23.5 | AY148: =Inputs!W192 -> 0 | AZ148: =Inputs!X192 -> 0 | BA148: =Inputs!Y192 -> 0 | BB148: =Inputs!Z192 -> 0 | BC148: =Inputs!AA192 -> 0 | BD148: =Inputs!AB192 -> 0
A149: Group 4 | B149: =B114+(Inputs!$G$175%*(SUM(C114:F114)+K114+L114)/(365-Inputs!G173)*Inputs!G173)*$Q51 -> 0 | C149: =C114+(C114*(1-Inputs!$G$175%)/(365-Inputs!$G$173)*Inputs!$G$173)*$Q51 -> 28.43873104 | D149: =D114+(D114*(1-Inputs!$G$175%)/(365-Inputs!$G$173)*Inputs!$G$173)*$Q51 -> 23.28895222 | E149: =E114+(E114*(1-Inputs!$G$175%)/(365-Inputs!$G$173)*Inputs!$G$173)*$Q51 -> 7.660564629 | F149: =F114+(F114*(1-Inputs!$G$175%)/(365-Inputs!$G$173)*Inputs!$G$173)*$Q51 -> 0 | G149: =G114+G114/(365-Inputs!$G$173)*Inputs!$G$173*IF(AJ$138="M",$Q51,$P51) -> 0 | H149: =H114+H114/(365-Inputs!$G$173)*Inputs!$G$173*IF(AK$138="M",$Q51,$P51) -> 0 | I149: =I114+I114/(365-Inputs!$G$173)*Inputs!$G$173*IF(AL$138="M",$Q51,$P51) -> 0 | J149: =J114+J114/(365-Inputs!$G$173)*Inputs!$G$173*IF(AM$138="M",$Q51,$P51) -> 0 | K149: =K114+K114*(1-Inputs!$G$175%)/(365-Inputs!$G$173)*Inputs!$G$173*$Q51 -> 0 | L149: =L114+L114*(1-Inputs!$G$175%)/(365-Inputs!$G$173)*Inputs!$G$173*$Q51 -> 0 | M149: =M114+M114/(365-Inputs!$G$173)*Inputs!$G$173*IF(AP$138="M",$Q51,$P51) -> 0 | N149: =N114+N114/(365-Inputs!$G$173)*Inputs!$G$173*IF(AQ$138="M",$Q51,$P51) -> 0 | O149: =O114+O114/(365-Inputs!$G$173)*Inputs!$G$173*IF(AR$138="M",$Q51,$P51) -> 0 | P149: =P114+P114/(365-Inputs!$G$173)*Inputs!$G$173*IF(AS$138="M",$Q51,$P51) -> 0.9954028983 | Q149: =Q114+Q114/(365-Inputs!$G$173)*Inputs!$G$173*IF(AT$138="M",$Q51,$P51) -> 10.66452414 | R149: =R114+R114/(365-Inputs!$G$173)*Inputs!$G$173*IF(AU$138="M",$Q51,$P51) -> 0 | S149: =S114+S114/(365-Inputs!$G$173)*Inputs!$G$173*IF(AV$138="M",$Q51,$P51) -> 0 | T149: =T114+T114/(365-Inputs!$G$173)*Inputs!$G$173*IF(AW$138="M",$Q51,$P51) -> 0 | U149: =U114+U114/(365-Inputs!$G$173)*Inputs!$G$173*IF(AX$138="M",$Q51,$P51) -> 0 | V149: =V114+V114/(365-Inputs!$G$173)*Inputs!$G$173*IF(AY$138="M",$Q51,$P51) -> 0 | W149: =W114+W114/(365-Inputs!$G$173)*Inputs!$G$173*IF(AZ$138="M",$Q51,$P51) -> 0 | X149: =X114+X114/(365-Inputs!$G$173)*Inputs!$G$173*IF(BA$138="M",$Q51,$P51) -> 0 | Y149: =Y114+Y114/(365-Inputs!$G$173)*Inputs!$G$173*IF(BB$138="M",$Q51,$P51) -> 0 | Z149: =Z114+Z114/(365-Inputs!$G$173)*Inputs!$G$173*IF(BC$138="M",$Q51,$P51) -> 0.0486526673 | AA149: =AA114+AA114/(365-Inputs!$G$173)*Inputs!$G$173*IF(BD$138="M",$Q51,$P51) -> 0 | AD149: A fraction , %CP | AE149: =Inputs!C193 -> 30.7 | AF149: =Inputs!D193 -> 51.3 | AG149: =Inputs!E193 -> 57.3 | AH149: =Inputs!F193 -> 42.4 | AI149: =Inputs!G193 -> 36.7 | AJ149: =Inputs!H193 -> 27.8 | AK149: =Inputs!I193 -> 23.9 | AL149: =Inputs!J193 -> 30.2 | AM149: =Inputs!K193 -> 27.1 | AN149: =Inputs!L193 -> 18.3 | AO149: =Inputs!M193 -> 23.2 | AP149: =Inputs!N193 -> 0 | AQ149: =Inputs!O193 -> 8.7 | AR149: =Inputs!P193 -> 15 | AS149: =Inputs!Q193 -> 3.9 | AT149: =Inputs!R193 -> 28.5 | AU149: =Inputs!S193 -> 10.1 | AV149: =Inputs!T193 -> 100 | AW149: =Inputs!U193 -> 22.5 | AX149: =Inputs!V193 -> 45.4 | AY149: =Inputs!W193 -> 0 | AZ149: =Inputs!X193 -> 0 | BA149: =Inputs!Y193 -> 0 | BB149: =Inputs!Z193 -> 0 | BC149: =Inputs!AA193 -> 0 | BD149: =Inputs!AB193 -> 0
A150: Group 5 | B150: =B115+(Inputs!$H$175%*(SUM(C115:F115)+K115+L115)/(365-Inputs!H173)*Inputs!H173)*$Q52 -> 0 | C150: =C115+(C115*(1-Inputs!$H$175%)/(365-Inputs!$H$173)*Inputs!$H$173)*$Q52 -> 74.41521548 | D150: =D115+(D115*(1-Inputs!$H$175%)/(365-Inputs!$H$173)*Inputs!$H$173)*$Q52 -> 91.71300184 | E150: =E115+(E115*(1-Inputs!$H$175%)/(365-Inputs!$H$173)*Inputs!$H$173)*$Q52 -> 8.744632468 | F150: =F115+(F115*(1-Inputs!$H$175%)/(365-Inputs!$H$173)*Inputs!$H$173)*$Q52 -> 10.87558185 | G150: =G115+G115/(365-Inputs!$H$173)*Inputs!$H$173*IF(AJ$138="M",$Q52,$P52) -> 0 | H150: =H115+H115/(365-Inputs!$H$173)*Inputs!$H$173*IF(AK$138="M",$Q52,$P52) -> 0 | I150: =I115+I115/(365-Inputs!$H$173)*Inputs!$H$173*IF(AL$138="M",$Q52,$P52) -> 0 | J150: =J115+J115/(365-Inputs!$H$173)*Inputs!$H$173*IF(AM$138="M",$Q52,$P52) -> 0 | K150: =K115+K115*(1-Inputs!$H$175%)/(365-Inputs!$H$173)*Inputs!$H$173*$Q52 -> 0 | L150: =L115+L115*(1-Inputs!$H$175%)/(365-Inputs!$H$173)*Inputs!$H$173*$Q52 -> 0 | M150: =M115+M115/(365-Inputs!$H$173)*Inputs!$H$173*IF(AJ$138="M",$Q52,$P52) -> 0 | N150: =N115+N115/(365-Inputs!$H$173)*Inputs!$H$173*IF(AK$138="M",$Q52,$P52) -> 0 | O150: =O115+O115/(365-Inputs!$H$173)*Inputs!$H$173*IF(AL$138="M",$Q52,$P52) -> 0 | P150: =P115+P115/(365-Inputs!$H$173)*Inputs!$H$173*IF(AM$138="M",$Q52,$P52) -> 0 | Q150: =Q115+Q115/(365-Inputs!$H$173)*Inputs!$H$173*IF(AN$138="M",$Q52,$P52) -> 0 | R150: =R115+R115/(365-Inputs!$H$173)*Inputs!$H$173*IF(AO$138="M",$Q52,$P52) -> 0 | S150: =S115+S115/(365-Inputs!$H$173)*Inputs!$H$173*IF(AP$138="M",$Q52,$P52) -> 0 | T150: =T115+T115/(365-Inputs!$H$173)*Inputs!$H$173*IF(AQ$138="M",$Q52,$P52) -> 0 | U150: =U115+U115/(365-Inputs!$H$173)*Inputs!$H$173*IF(AR$138="M",$Q52,$P52) -> 0 | V150: =V115+V115/(365-Inputs!$H$173)*Inputs!$H$173*IF(AS$138="M",$Q52,$P52) -> 0 | W150: =W115+W115/(365-Inputs!$H$173)*Inputs!$H$173*IF(AT$138="M",$Q52,$P52) -> 0 | X150: =X115+X115/(365-Inputs!$H$173)*Inputs!$H$173*IF(AU$138="M",$Q52,$P52) -> 0 | Y150: =Y115+Y115/(365-Inputs!$H$173)*Inputs!$H$173*IF(AV$138="M",$Q52,$P52) -> 0 | Z150: =Z115+Z115/(365-Inputs!$H$173)*Inputs!$H$173*IF(AW$138="M",$Q52,$P52) -> 0.2896070587 | AA150: =AA115+AA115/(365-Inputs!$H$173)*Inputs!$H$173*IF(AX$138="M",$Q52,$P52) -> 0 | AD150: B fraction, % CP | AE150: =Inputs!C194 -> 63.5 | AF150: =Inputs!D194 -> 30.2 | AG150: =Inputs!E194 -> 35.3 | AH150: =Inputs!F194 -> 48.1 | AI150: =Inputs!G194 -> 51.7 | AJ150: =Inputs!H194 -> 70.2 | AK150: =Inputs!I194 -> 72.5 | AL150: =Inputs!J194 -> 61.2 | AM150: =Inputs!K194 -> 65.1 | AN150: =Inputs!L194 -> 64.6 | AO150: =Inputs!M194 -> 70.4 | AP150: =Inputs!N194 -> 0 | AQ150: =Inputs!O194 -> 91.3 | AR150: =Inputs!P194 -> 84.4 | AS150: =Inputs!Q194 -> 90.9 | AT150: =Inputs!R194 -> 63.3 | AU150: =Inputs!S194 -> 60.9 | AV150: =Inputs!T194 -> 0 | AW150: =Inputs!U194 -> 72.2 | AX150: =Inputs!V194 -> 46.7 | AY150: =Inputs!W194 -> 0 | AZ150: =Inputs!X194 -> 0 | BA150: =Inputs!Y194 -> 0 | BB150: =Inputs!Z194 -> 0 | BC150: =Inputs!AA194 -> 0 | BD150: =Inputs!AB194 -> 0
A151: Refusals, % of used | B151: =Inputs!C218 -> 0 | C151: =Inputs!D218 -> 5 | D151: =Inputs!E218 -> 5 | E151: =Inputs!F218 -> 5 | F151: =Inputs!G218 -> 10 | G151: =Inputs!H218 -> 2 | H151: =Inputs!I218 -> 2 | I151: =Inputs!J218 -> 2 | J151: =Inputs!K218 -> 2 | K151: =Inputs!L218 -> 2 | L151: =Inputs!M218 -> 2 | M151: =Inputs!N218 -> 2 | N151: =Inputs!O218 -> 2 | O151: =Inputs!P218 -> 2 | P151: =Inputs!Q218 -> 2 | Q151: =Inputs!R218 -> 2 | R151: =Inputs!S218 -> 2 | S151: =Inputs!T218 -> 1 | T151: =Inputs!U218 -> 2 | U151: =Inputs!V218 -> 2 | V151: =Inputs!W218 -> 1 | W151: =Inputs!X218 -> 1 | X151: =Inputs!Y218 -> 1 | Y151: =Inputs!Z218 -> 1 | Z151: =Inputs!AA218 -> 1 | AA151: =Inputs!AB218 -> 1 | AD151: C fraction, % CP | AE151: =Inputs!C195 -> 5.8 | AF151: =Inputs!D195 -> 18.5 | AG151: =Inputs!E195 -> 7.4 | AH151: =Inputs!F195 -> 9.5 | AI151: =Inputs!G195 -> 11.6 | AJ151: =Inputs!H195 -> 2 | AK151: =Inputs!I195 -> 3.6 | AL151: =Inputs!J195 -> 8.6 | AM151: =Inputs!K195 -> 7.8 | AN151: =Inputs!L195 -> 17.1 | AO151: =Inputs!M195 -> 6.4 | AP151: =Inputs!N195 -> 0 | AQ151: =Inputs!O195 -> 0 | AR151: =Inputs!P195 -> 0.6 | AS151: =Inputs!Q195 -> 5.2 | AT151: =Inputs!R195 -> 8.2 | AU151: =Inputs!S195 -> 29 | AV151: =Inputs!T195 -> 0 | AW151: =Inputs!U195 -> 5.3 | AX151: =Inputs!V195 -> 7.9 | AY151: =Inputs!W195 -> 0 | AZ151: =Inputs!X195 -> 0 | BA151: =Inputs!Y195 -> 0 | BB151: =Inputs!Z195 -> 0 | BC151: =Inputs!AA195 -> 0 | BD151: =Inputs!AB195 -> 0
A152: Total, Metric tons | B152: =SUM(B146:B150)*(1+B151%) -> 0 | C152: 442.078834 | D152: 244.110313 | E152: 149.6159983 | F152: 18.72761204 | G152: 33.57371491 | H152: 72.69280877 | I152: 0 | J152: 0 | K152: 0 | L152: 0 | M152: 0 | N152: 0 | O152: 0 | P152: 2.273889074 | Q152: 123.1704183 | R152: 0 | S152: =SUM(S146:S150)*(1+S151%) -> 0.9319078631 | T152: 0 | U152: 3.843009163 | V152: 4.060700396 | W152: 0.01725406272 | X152: 0.04481486006 | Y152: 0.04752555598 | Z152: 3.587345193 | AA152: 0 | AD152: Kd fraction B, %/h | AE152: =Inputs!C196 -> 12.3 | AF152: =Inputs!D196 -> 4.4 | AG152: =Inputs!E196 -> 12.2 | AH152: =Inputs!F196 -> 15.5 | AI152: =Inputs!G196 -> 8.1 | AJ152: =Inputs!H196 -> 10.9 | AK152: =Inputs!I196 -> 4.9 | AL152: =Inputs!J196 -> 22.7 | AM152: =Inputs!K196 -> 18.8 | AN152: =Inputs!L196 -> 4.7 | AO152: =Inputs!M196 -> 10.4 | AP152: =Inputs!N196 -> 0 | AQ152: =Inputs!O196 -> 2.4 | AR152: =Inputs!P196 -> 7.5 | AS152: =Inputs!Q196 -> 2.3 | AT152: =Inputs!R196 -> 3.6 | AU152: =Inputs!S196 -> 1.9 | AV152: =Inputs!T196 -> 0 | AW152: =Inputs!U196 -> 6.2 | AX152: =Inputs!V196 -> 15.7 | AY152: =Inputs!W196 -> 0 | AZ152: =Inputs!X196 -> 0 | BA152: =Inputs!Y196 -> 0 | BB152: =Inputs!Z196 -> 0 | BC152: =Inputs!AA196 -> 0 | BD152: =Inputs!AB196 -> 0
A153: Sold/Purchased(-) | B153: =B144-B152 -> 0 | C153: -1.222133506e-11 | D153: -5.059064279e-12 | E153: 1.099920155e-11 | F153: -18.72761204 | G153: -7.778905145 | H153: 409.1007397 | I153: 0 | J153: 0 | K153: 0 | L153: 0 | M153: 0 | N153: 0 | O153: 0 | P153: -2.273889074 | Q153: -123.1704183 | R153: 0 | S153: -0.9319078631 | T153: 0 | U153: -3.843009163 | V153: -4.060700396 | W153: -0.01725406272 | X153: -0.04481486006 | Y153: -0.04752555598 | Z153: -3.587345193 | AA153: 0 | AD153: Ca, (%) | AE153: =Inputs!C197 -> 0.56 | AF153: =Inputs!D197 -> 0.2 | AG153: =Inputs!E197 -> 1.27 | AH153: =Inputs!F197 -> 0.99 | AI153: =Inputs!G197 -> 0.57 | AJ153: =Inputs!H197 -> 0.32 | AK153: =Inputs!I197 -> 0.04 | AL153: =Inputs!J197 -> 0.06 | AM153: =Inputs!K197 -> 0.05 | AN153: =Inputs!L197 -> 0.3 | AO153: =Inputs!M197 -> 0.75 | AP153: =Inputs!N197 -> 12 | AQ153: =Inputs!O197 -> 0.36 | AR153: =Inputs!P197 -> 0.35 | AS153: =Inputs!Q197 -> 0.06 | AT153: =Inputs!R197 -> 0.22 | AU153: =Inputs!S197 -> 0.3 | AV153: =Inputs!T197 -> 0 | AW153: =Inputs!U197 -> 0.63 | AX153: =Inputs!V197 -> 0.17 | AY153: =Inputs!W197 -> 39.39 | AZ153: =Inputs!X197 -> 0 | BA153: =Inputs!Y197 -> 0 | BB153: =Inputs!Z197 -> 23.28 | BC153: =Inputs!AA197 -> 0 | BD153: =Inputs!AB197 -> 0
A154: Minimum, t | B154: =Inputs!C220 -> 0 | C154: =Inputs!D220 -> 0 | D154: =Inputs!E220 -> 0 | E154: =Inputs!F220 -> 0 | F154: * If min = 0 and max = 0, then amount produced = amount used | AD154: Ca availibility (%) | AE154: =Inputs!C198 -> 0.3 | AF154: =Inputs!D198 -> 0.6 | AG154: =Inputs!E198 -> 0.3 | AH154: =Inputs!F198 -> 0.3 | AI154: =Inputs!G198 -> 0.3 | AJ154: =Inputs!H198 -> 0.6 | AK154: =Inputs!I198 -> 0.6 | AL154: =Inputs!J198 -> 0.6 | AM154: =Inputs!K198 -> 0.6 | AN154: =Inputs!L198 -> 0.6 | AO154: =Inputs!M198 -> 0.6 | AP154: =Inputs!N198 -> 0.8 | AQ154: =Inputs!O198 -> 0.6 | AR154: =Inputs!P198 -> 0.6 | AS154: =Inputs!Q198 -> 0.6 | AT154: =Inputs!R198 -> 0.6 | AU154: =Inputs!S198 -> 0.6 | AV154: =Inputs!T198 -> 0 | AW154: =Inputs!U198 -> 0.6 | AX154: =Inputs!V198 -> 0.6 | AY154: =Inputs!W198 -> 0.75 | AZ154: =Inputs!X198 -> 0 | BA154: =Inputs!Y198 -> 0 | BB154: =Inputs!Z198 -> 0.7 | BC154: =Inputs!AA198 -> 0 | BD154: =Inputs!AB198 -> 0
A155: (Inventory change) Max., t | B155: =Inputs!C221 -> 0 | C155: =Inputs!D221 -> 0 | D155: =Inputs!E221 -> 0 | E155: =Inputs!F221 -> 0 | F155: * If min = 0 and max > 0 then amount produced > amount used and the excess is sold | AD155: P, (%) | AE155: =Inputs!C199 -> 0.44 | AF155: =Inputs!D199 -> 0.26 | AG155: =Inputs!E199 -> 0.35 | AH155: =Inputs!F199 -> 0.34 | AI155: =Inputs!G199 -> 0.25 | AJ155: =Inputs!H199 -> 0.6 | AK155: =Inputs!I199 -> 0.3 | AL155: =Inputs!J199 -> 0.39 | AM155: =Inputs!K199 -> 0.43 | AN155: =Inputs!L199 -> 0.67 | AO155: =Inputs!M199 -> 1.1 | AP155: =Inputs!N199 -> 0 | AQ155: =Inputs!O199 -> 0.66 | AR155: =Inputs!P199 -> 0.7 | AS155: =Inputs!Q199 -> 0.6 | AT155: =Inputs!R199 -> 0.83 | AU155: =Inputs!S199 -> 0.3 | AV155: =Inputs!T199 -> 0 | AW155: =Inputs!U199 -> 0.17 | AX155: =Inputs!V199 -> 0.6 | AY155: =Inputs!W199 -> 0.04 | AZ155: =Inputs!X199 -> 22.5 | BA155: =Inputs!Y199 -> 0 | BB155: =Inputs!Z199 -> 0 | BC155: =Inputs!AA199 -> 0 | BD155: =Inputs!AB199 -> 0
F156: * If min < 0 and max = 0 then amount produced < amount used and the deficit is purchased | AD156: P availibility (%) | AE156: =Inputs!C200 -> 0.64 | AF156: =Inputs!D200 -> 0.7 | AG156: =Inputs!E200 -> 0.64 | AH156: =Inputs!F200 -> 0.64 | AI156: =Inputs!G200 -> 0.64 | AJ156: =Inputs!H200 -> 0.7 | AK156: =Inputs!I200 -> 0.7 | AL156: =Inputs!J200 -> 0.7 | AM156: =Inputs!K200 -> 0.7 | AN156: =Inputs!L200 -> 0.7 | AO156: =Inputs!M200 -> 0.7 | AP156: =Inputs!N200 -> 0 | AQ156: =Inputs!O200 -> 0.7 | AR156: =Inputs!P200 -> 0.7 | AS156: =Inputs!Q200 -> 0.7 | AT156: =Inputs!R200 -> 0.7 | AU156: =Inputs!S200 -> 0.7 | AV156: =Inputs!T200 -> 0 | AW156: =Inputs!U200 -> 0.7 | AX156: =Inputs!V200 -> 0.7 | AY156: =Inputs!W200 -> 0.7 | AZ156: =Inputs!X200 -> 0.9 | BA156: =Inputs!Y200 -> 0 | BB156: =Inputs!Z200 -> 0 | BC156: =Inputs!AA200 -> 0 | BD156: =Inputs!AB200 -> 0
F157: * If min < 0 and max > 0 then N-CyCLE decides whether one should overproduce or underproduce | AD157: K, (%) | AE157: =Inputs!C201 -> 3.36 | AF157: =Inputs!D201 -> 0.99 | AG157: =Inputs!E201 -> 2.57 | AH157: =Inputs!F201 -> 2.42 | AI157: =Inputs!G201 -> 1.85 | AJ157: =Inputs!H201 -> 1.99 | AK157: =Inputs!I201 -> 0.42 | AL157: =Inputs!J201 -> 0.56 | AM157: =Inputs!K201 -> 0.5 | AN157: =Inputs!L201 -> 0.5 | AO157: =Inputs!M201 -> 1.41 | AP157: =Inputs!N201 -> 0 | AQ157: =Inputs!O201 -> 2.12 | AR157: =Inputs!P201 -> 2.41 | AS157: =Inputs!Q201 -> 0.46 | AT157: =Inputs!R201 -> 1.1 | AU157: =Inputs!S201 -> 0.33 | AV157: =Inputs!T201 -> 0 | AW157: =Inputs!U201 -> 1.51 | AX157: =Inputs!V201 -> 1.13 | AY157: =Inputs!W201 -> 0.06 | AZ157: =Inputs!X201 -> 0 | BA157: =Inputs!Y201 -> 0 | BB157: =Inputs!Z201 -> 0 | BC157: =Inputs!AA201 -> 0 | BD157: =Inputs!AB201 -> 0
AD158: K availibility (%) | AE158: =Inputs!C202 -> 0.9 | AF158: =Inputs!D202 -> 0.9 | AG158: =Inputs!E202 -> 0.9 | AH158: =Inputs!F202 -> 0.9 | AI158: =Inputs!G202 -> 0.9 | AJ158: =Inputs!H202 -> 0.9 | AK158: =Inputs!I202 -> 0.9 | AL158: =Inputs!J202 -> 0.9 | AM158: =Inputs!K202 -> 0.9 | AN158: =Inputs!L202 -> 0.9 | AO158: =Inputs!M202 -> 0.9 | AP158: =Inputs!N202 -> 0 | AQ158: =Inputs!O202 -> 0.9 | AR158: =Inputs!P202 -> 0.9 | AS158: =Inputs!Q202 -> 0.9 | AT158: =Inputs!R202 -> 0.9 | AU158: =Inputs!S202 -> 0.9 | AV158: =Inputs!T202 -> 0 | AW158: =Inputs!U202 -> 0.9 | AX158: =Inputs!V202 -> 0.9 | AY158: =Inputs!W202 -> 0.9 | AZ158: =Inputs!X202 -> 0 | BA158: =Inputs!Y202 -> 0 | BB158: =Inputs!Z202 -> 0 | BC158: =Inputs!AA202 -> 0.9 | BD158: =Inputs!AB202 -> 0
A159: Used by the herd (summer) | B159: =B134 -> GrPast-49 | C159: CoSi-35 | D159: AlSi-83 | E159: MxSi-74 | F159: GrHy-52 | G159: SBw-108 | H159: CoGr-27 | I159: Barley-8 | J159: Wheat-116 | K159: Brewers grains-16 | L159: Canola-19 | M159: FatCa-40 | N159: SBMx-104 | O159: SBM48-107 | P159: CGM-25 | Q159: CoDi-23 | R159: Bld Meal-14 | S159: Urea | T159: SoyHull-103 | U159: CottonSd-w-37 | V159: CaCO3 | W159: NaH2PO4.H20 | X159: MgO | Y159: CaSO4.2H20 | Z159: NaCl | AA159: MgSO4.7H20 | AB159: Total | AD159: Mg, (%) | AE159: =Inputs!C203 -> 0.2 | AF159: =Inputs!D203 -> 0.15 | AG159: =Inputs!E203 -> 0.26 | AH159: =Inputs!F203 -> 0.24 | AI159: =Inputs!G203 -> 0.17 | AJ159: =Inputs!H203 -> 0.25 | AK159: =Inputs!I203 -> 0.12 | AL159: =Inputs!J203 -> 0.14 | AM159: =Inputs!K203 -> 0.15 | AN159: =Inputs!L203 -> 0.26 | AO159: =Inputs!M203 -> 0.53 | AP159: =Inputs!N203 -> 0 | AQ159: =Inputs!O203 -> 0.3 | AR159: =Inputs!P203 -> 0.29 | AS159: =Inputs!Q203 -> 0.14 | AT159: =Inputs!R203 -> 0.33 | AU159: =Inputs!S203 -> 0.03 | AV159: =Inputs!T203 -> 0 | AW159: =Inputs!U203 -> 0.25 | AX159: =Inputs!V203 -> 0.37 | AY159: =Inputs!W203 -> 0.05 | AZ159: =Inputs!X203 -> 0 | BA159: =Inputs!Y203 -> 56.2 | BB159: =Inputs!Z203 -> 0 | BC159: =Inputs!AA203 -> 0 | BD159: =Inputs!AB203 -> 9.8
A160: Group 1 | B160: =B146-B111 -> 0 | C160: 0 | D160: 0 | E160: 0 | F160: 0 | G160: 0 | H160: 0 | I160: 0 | J160: 0 | K160: 0 | L160: 0 | M160: 0 | N160: 0 | O160: 0 | P160: 0 | Q160: 0 | R160: 0 | S160: 0 | T160: 0 | U160: 0 | V160: 0 | W160: 0 | X160: 0 | Y160: 0 | Z160: 0 | AA160: 0 | AB160: =SUM(B160:AA160) -> 0 | AD160: Mg availibility (%) | AE160: =Inputs!C204 -> 0.16 | AF160: =Inputs!D204 -> 0.16 | AG160: =Inputs!E204 -> 0.16 | AH160: =Inputs!F204 -> 0.16 | AI160: =Inputs!G204 -> 0.16 | AJ160: =Inputs!H204 -> 0.16 | AK160: =Inputs!I204 -> 0.16 | AL160: =Inputs!J204 -> 0.16 | AM160: =Inputs!K204 -> 0.16 | AN160: =Inputs!L204 -> 0.16 | AO160: =Inputs!M204 -> 0.16 | AP160: =Inputs!N204 -> 0 | AQ160: =Inputs!O204 -> 0.16 | AR160: =Inputs!P204 -> 0.16 | AS160: =Inputs!Q204 -> 0.16 | AT160: =Inputs!R204 -> 0.16 | AU160: =Inputs!S204 -> 0.16 | AV160: =Inputs!T204 -> 0 | AW160: =Inputs!U204 -> 0.16 | AX160: =Inputs!V204 -> 0.16 | AY160: =Inputs!W204 -> 0.16 | AZ160: =Inputs!X204 -> 0 | BA160: =Inputs!Y204 -> 0.7 | BB160: =Inputs!Z204 -> 0 | BC160: =Inputs!AA204 -> 0 | BD160: =Inputs!AB204 -> 0.9
A161: Group 2 | B161: =B147-B112 -> 0 | C161: 0 | D161: 0 | E161: 0 | F161: 0 | G161: 0 | H161: 0 | I161: 0 | J161: 0 | K161: 0 | L161: 0 | M161: 0 | N161: 0 | O161: 0 | P161: 0 | Q161: 0 | R161: 0 | S161: 0 | T161: 0 | U161: 0 | V161: 0 | W161: 0 | X161: 0 | Y161: 0 | Z161: 0 | AA161: 0 | AB161: =SUM(B161:AA161) -> 0 | AD161: Na, (%) | AE161: =Inputs!C205 -> 0.02 | AF161: =Inputs!D205 -> 0.01 | AG161: =Inputs!E205 -> 0.02 | AH161: =Inputs!F205 -> 0.08 | AI161: =Inputs!G205 -> 0.08 | AJ161: =Inputs!H205 -> 0.01 | AK161: =Inputs!I205 -> 0.02 | AL161: =Inputs!J205 -> 0.02 | AM161: =Inputs!K205 -> 0.01 | AN161: =Inputs!L205 -> 0.04 | AO161: =Inputs!M205 -> 0.07 | AP161: =Inputs!N205 -> 0 | AQ161: =Inputs!O205 -> 0.04 | AR161: =Inputs!P205 -> 0.03 | AS161: =Inputs!Q205 -> 0.05 | AT161: =Inputs!R205 -> 0.3 | AU161: =Inputs!S205 -> 0.4 | AV161: =Inputs!T205 -> 0 | AW161: =Inputs!U205 -> 0.01 | AX161: =Inputs!V205 -> 0.02 | AY161: =Inputs!W205 -> 0.06 | AZ161: =Inputs!X205 -> 16.68 | BA161: =Inputs!Y205 -> 0 | BB161: =Inputs!Z205 -> 0 | BC161: =Inputs!AA205 -> 39.34 | BD161: =Inputs!AB205 -> 0
A162: Group 3 | B162: =B148-B113 -> 0 | C162: 0 | D162: 0 | E162: 0 | F162: 0 | G162: 0 | H162: 0 | I162: 0 | J162: 0 | K162: 0 | L162: 0 | M162: 0 | N162: 0 | O162: 0 | P162: 0 | Q162: 0 | R162: 0 | S162: 0 | T162: 0 | U162: 0 | V162: 0 | W162: 0 | X162: 0 | Y162: 0 | Z162: 0 | AA162: 0 | AB162: =SUM(B162:AA162) -> 0 | AD162: Na availibility (%) | AE162: =Inputs!C206 -> 0.9 | AF162: =Inputs!D206 -> 0.9 | AG162: =Inputs!E206 -> 0.9 | AH162: =Inputs!F206 -> 0.9 | AI162: =Inputs!G206 -> 0.9 | AJ162: =Inputs!H206 -> 0.9 | AK162: =Inputs!I206 -> 0.9 | AL162: =Inputs!J206 -> 0.9 | AM162: =Inputs!K206 -> 0.9 | AN162: =Inputs!L206 -> 0.9 | AO162: =Inputs!M206 -> 0.9 | AP162: =Inputs!N206 -> 0 | AQ162: =Inputs!O206 -> 0.9 | AR162: =Inputs!P206 -> 0.9 | AS162: =Inputs!Q206 -> 0.9 | AT162: =Inputs!R206 -> 0.9 | AU162: =Inputs!S206 -> 0.9 | AV162: =Inputs!T206 -> 0 | AW162: =Inputs!U206 -> 0.9 | AX162: =Inputs!V206 -> 0.9 | AY162: =Inputs!W206 -> 0.9 | AZ162: =Inputs!X206 -> 0.9 | BA162: =Inputs!Y206 -> 0 | BB162: =Inputs!Z206 -> 0 | BC162: =Inputs!AA206 -> 0.9 | BD162: =Inputs!AB206 -> 0
A163: Group 4 | B163: =B149-B114 -> 0 | C163: 0 | D163: 0 | E163: 0 | F163: 0 | G163: 0 | H163: 0 | I163: 0 | J163: 0 | K163: 0 | L163: 0 | M163: 0 | N163: 0 | O163: 0 | P163: 0 | Q163: 0 | R163: 0 | S163: 0 | T163: 0 | U163: 0 | V163: 0 | W163: 0 | X163: 0 | Y163: 0 | Z163: 0 | AA163: 0 | AB163: =SUM(B163:AA163) -> 0 | AD163: Cl, (%) | AE163: =Inputs!C207 -> 0.56 | AF163: =Inputs!D207 -> 0.29 | AG163: =Inputs!E207 -> 0.61 | AH163: =Inputs!F207 -> 0.43 | AI163: =Inputs!G207 -> 0.92 | AJ163: =Inputs!H207 -> 0.04 | AK163: =Inputs!I207 -> 0.08 | AL163: =Inputs!J207 -> 0.13 | AM163: =Inputs!K207 -> 0.11 | AN163: =Inputs!L207 -> 0.07 | AO163: =Inputs!M207 -> 0.04 | AP163: =Inputs!N207 -> 0 | AQ163: =Inputs!O207 -> 0.1 | AR163: =Inputs!P207 -> 0.13 | AS163: =Inputs!Q207 -> 0.11 | AT163: =Inputs!R207 -> 0.26 | AU163: =Inputs!S207 -> 0.33 | AV163: =Inputs!T207 -> 0 | AW163: =Inputs!U207 -> 0.05 | AX163: =Inputs!V207 -> 0.06 | AY163: =Inputs!W207 -> 0 | AZ163: =Inputs!X207 -> 0 | BA163: =Inputs!Y207 -> 0 | BB163: =Inputs!Z207 -> 0 | BC163: =Inputs!AA207 -> 60.663 | BD163: =Inputs!AB207 -> 0
A164: Group 5 | B164: =B150-B115 -> 0 | C164: 0 | D164: 0 | E164: 0 | F164: 0 | G164: 0 | H164: 0 | I164: 0 | J164: 0 | K164: 0 | L164: 0 | M164: 0 | N164: 0 | O164: 0 | P164: 0 | Q164: 0 | R164: 0 | S164: 0 | T164: 0 | U164: 0 | V164: 0 | W164: 0 | X164: 0 | Y164: 0 | Z164: 0 | AA164: 0 | AB164: =SUM(B164:AA164) -> 0 | AD164: Cl availibility (%) | AE164: =Inputs!C208 -> 0.9 | AF164: =Inputs!D208 -> 0.9 | AG164: =Inputs!E208 -> 0.9 | AH164: =Inputs!F208 -> 0.9 | AI164: =Inputs!G208 -> 0.9 | AJ164: =Inputs!H208 -> 0.9 | AK164: =Inputs!I208 -> 0.9 | AL164: =Inputs!J208 -> 0.9 | AM164: =Inputs!K208 -> 0.9 | AN164: =Inputs!L208 -> 0.9 | AO164: =Inputs!M208 -> 0.9 | AP164: =Inputs!N208 -> 0 | AQ164: =Inputs!O208 -> 0.9 | AR164: =Inputs!P208 -> 0.9 | AS164: =Inputs!Q208 -> 0.9 | AT164: =Inputs!R208 -> 0.9 | AU164: =Inputs!S208 -> 0.9 | AV164: =Inputs!T208 -> 0 | AW164: =Inputs!U208 -> 0.9 | AX164: =Inputs!V208 -> 0.9 | AY164: =Inputs!W208 -> 0.9 | AZ164: =Inputs!X208 -> 0 | BA164: =Inputs!Y208 -> 0 | BB164: =Inputs!Z208 -> 0 | BC164: =Inputs!AA208 -> 0.9 | BD164: =Inputs!AB208 -> 0
A165: Refusals, % of used | B165: =B151 -> 0 | C165: =C151 -> 5 | D165: 5 | E165: 5 | F165: 10 | G165: 2 | H165: 2 | I165: 2 | J165: 2 | K165: 2 | L165: 2 | M165: 2 | N165: 2 | O165: 2 | P165: 2 | Q165: 2 | R165: 2 | S165: 1 | T165: 2 | U165: 2 | V165: 1 | W165: 1 | X165: 1 | Y165: 1 | Z165: 1 | AA165: 1 | AD165: S, (%) | AE165: =Inputs!C209 -> 0.2 | AF165: =Inputs!D209 -> 0.14 | AG165: =Inputs!E209 -> 0.28 | AH165: =Inputs!F209 -> 0.26 | AI165: =Inputs!G209 -> 0.24 | AJ165: =Inputs!H209 -> 0.31 | AK165: =Inputs!I209 -> 0.1 | AL165: =Inputs!J209 -> 0.12 | AM165: =Inputs!K209 -> 0.15 | AN165: =Inputs!L209 -> 0.38 | AO165: =Inputs!M209 -> 0.73 | AP165: =Inputs!N209 -> 0 | AQ165: =Inputs!O209 -> 0.34 | AR165: =Inputs!P209 -> 0.39 | AS165: =Inputs!Q209 -> 0.86 | AT165: =Inputs!R209 -> 0.44 | AU165: =Inputs!S209 -> 0.77 | AV165: =Inputs!T209 -> 0 | AW165: =Inputs!U209 -> 0.12 | AX165: =Inputs!V209 -> 0.23 | AY165: =Inputs!W209 -> 0 | AZ165: =Inputs!X209 -> 0 | BA165: =Inputs!Y209 -> 0 | BB165: =Inputs!Z209 -> 18.62 | BC165: =Inputs!AA209 -> 0 | BD165: =Inputs!AB209 -> 13.31
A166: Total, Metric tons | B166: =SUM(B160:B164)*(1+B165%) -> 0 | C166: 0 | D166: 0 | E166: 0 | F166: 0 | G166: 0 | H166: 0 | I166: 0 | J166: 0 | K166: 0 | L166: 0 | M166: 0 | N166: 0 | O166: 0 | P166: 0 | Q166: 0 | R166: 0 | S166: 0 | T166: 0 | U166: 0 | V166: 0 | W166: 0 | X166: 0 | Y166: 0 | Z166: 0 | AA166: 0 | AD166: DCAD (meq/kg) | AE166: =Inputs!C210 -> 585.6220673 | AF166: =Inputs!D210 -> 88.61328823 | AG166: =Inputs!E210 -> 319.6663708 | AH166: =Inputs!F210 -> 370.6209301 | AI166: =Inputs!G210 -> 99.07281184 | AJ166: =Inputs!H210 -> 309.0746726 | AK166: =Inputs!I210 -> 31.30885327 | AL166: =Inputs!J210 -> 40.56343364 | AM166: =Inputs!K210 -> 7.834877992 | AN166: =Inputs!L210 -> -111.0016921 | AO166: =Inputs!M210 -> -74.60875085 | AP166: =Inputs!N210 -> 0 | AQ166: =Inputs!O210 -> 319.7755145 | AR166: =Inputs!P210 -> 350.0123144 | AS166: =Inputs!Q210 -> -426.951285 | AT166: =Inputs!R210 -> 64.61094604 | AU166: =Inputs!S210 -> -313.9909617 | AV166: =Inputs!T210 -> 0 | AW166: =Inputs!U210 -> 301.7560808 | AX166: =Inputs!V210 -> 137.6224405 | AY166: =Inputs!W210 -> 41.44446641 | AZ166: =Inputs!X210 -> 7255.391521 | BA166: =Inputs!Y210 -> 0 | BB166: =Inputs!Z210 -> -11590.41394 | BC166: =Inputs!AA210 -> 1.113818515 | BD166: =Inputs!AB210 -> -8285.091815
A167: Composition, % of DM | AD167: Ash, (%) | AE167: =Inputs!C211 -> 9.8 | AF167: =Inputs!D211 -> 4.3 | AG167: =Inputs!E211 -> 10.8 | AH167: =Inputs!F211 -> 9.1 | AI167: =Inputs!G211 -> 8.8 | AJ167: =Inputs!H211 -> 5.9 | AK167: =Inputs!I211 -> 1.5 | AL167: =Inputs!J211 -> 2.9 | AM167: =Inputs!K211 -> 2 | AN167: =Inputs!L211 -> 4.3 | AO167: =Inputs!M211 -> 7.4 | AP167: =Inputs!N211 -> 15.5 | AQ167: =Inputs!O211 -> 5.5 | AR167: =Inputs!P211 -> 6.4 | AS167: =Inputs!Q211 -> 3.3 | AT167: =Inputs!R211 -> 5.2 | AU167: =Inputs!S211 -> 2.5 | AV167: =Inputs!T211 -> 100 | AW167: =Inputs!U211 -> 4.8 | AX167: =Inputs!V211 -> 4.2 | AY167: =Inputs!W211 -> 100 | AZ167: =Inputs!X211 -> 100 | BA167: =Inputs!Y211 -> 100 | BB167: =Inputs!Z211 -> 100 | BC167: =Inputs!AA211 -> 100 | BD167: =Inputs!AB211 -> 100
A168: Group 1 | B168: =IF(SUM($B160:$AA160)>0,B160/SUM($B160:$AA160)%,0) -> 0 | C168: =IF(SUM($B160:$AA160)>0,C160/SUM($B160:$AA160)%,0) -> 0 | D168: 0 | E168: 0 | F168: 0 | G168: 0 | H168: 0 | I168: 0 | J168: 0 | K168: 0 | L168: 0 | M168: 0 | N168: 0 | O168: 0 | P168: 0 | Q168: 0 | R168: 0 | S168: 0 | T168: 0 | U168: 0 | V168: 0 | W168: 0 | X168: 0 | Y168: 0 | Z168: 0 | AA168: 0 | AB168: =SUM(B168:AA168) -> 0 | AD168: Energy used (MJ/t DM) | AE168: =Inputs!C213 -> 0 | AF168: =Inputs!D213 -> 0 | AG168: =Inputs!E213 -> 0 | AH168: =Inputs!F213 -> 0 | AI168: =Inputs!G213 -> 0 | AJ168: =Inputs!H213 -> 0 | AK168: =Inputs!I213 -> 0 | AL168: =Inputs!J213 -> 0 | AM168: =Inputs!K213 -> 0 | AN168: =Inputs!L213 -> 0 | AO168: =Inputs!M213 -> 0 | AP168: =Inputs!N213 -> 0 | AQ168: =Inputs!O213 -> 0 | AR168: =Inputs!P213 -> 0 | AS168: =Inputs!Q213 -> 0 | AT168: =Inputs!R213 -> 0 | AU168: =Inputs!S213 -> 0 | AV168: =Inputs!T213 -> 0 | AW168: =Inputs!U213 -> 0 | AX168: =Inputs!V213 -> 0 | AY168: =Inputs!W213 -> 0 | AZ168: =Inputs!X213 -> 0 | BA168: =Inputs!Y213 -> 0 | BB168: =Inputs!Z213 -> 0 | BC168: =Inputs!Y213 -> 0 | BD168: =Inputs!Z213 -> 0
